Workbook

Sheet Master Sheet
B2: Player Name: | AM2: Mystic Armament | BV2: RowStart: | BW2: 22 | BY2: =IF(WeaponLvl=0,"",WeaponLvl) ->  | CB2: Be Warned: Full Reset Takes One or Two Minutes
B3: Character Name: | BV3: MysticArmID: | BW3: =IFERROR(MATCH(BA2,MysticArmaments,0),1) -> 1
B5: STR | F5: 10 | K5: INT | O5: 10 | T5: Character Lvl: | AE5: 1 | AM5: Character Alignment
B6: DEX | F6: 10 | K6: WIS | O6: 10
B7: CON | F7: 10 | K7: CHA | O7: 10 | AY7: Spellcasting Ability:
D9: 4 | F9: 4 | H9: 4 | J9: 4 | W9: 5 | Z9: 20 | AJ9: 21 | AQ9: 19
B11: =MysticArmName ->  | U11: =MysticElement ->  | AD11: =MysticAlign ->  | AQ11: =BY2 ->  | AZ11: EGO | BF11: HARMONY
B12: Weapon Name | U12: Element | AD12: Alignment | AQ12: Spirit Level | AZ12: =EgoScore ->  | BF12: =Harmony -> 
B14: =WeaponForm ->  | U14: =WeaponDamage & " " & WeaponType ->  | AD14: =WeaponProf ->  | AL14: =Enchant ->  | AV14: =SpiritCharges ->  | BF14: =SpiritAttack ->  | BO14: =SaveDC -> 
B15: Weapon Form | U15: Damage | AD15: Proficency | AL15: Enchantment | AV15: Spirit Charges | BF15: Spirit Attack | BO15: Save DC
BV16: 1 | BW16: 2
B17: Spirit: | X17: =SpiritName ->  | BV17: MysticIndex | BW17: Height | BX17: Display
B18: =SpiritInfo ->  | BV18: 0000 | BW18: =IFERROR(INDEX(Spirits,MysticArmID,3),0) -> 0 | BX18: TRUE
B19: x | D19: 3 | W19: 4 | Z19: 5 | AJ19: 6 | AQ19: 7 | BW19: 0
BW20: 21
B21: SPECIAL ABILITIES AND TECHNIQUES | BW21: 22
B22: √ | D22: Ability Name | S22: Charges | Z22: Activation | AJ22: Limit | AQ22: Description | BW22: 22
B23: x | D23: =INDEX(PrintTable,ROW()-$BW$2,D$19) ->  | S23: =INDEX(PrintTable,ROW()-$BW$2,W$19) ->  | Z23: =INDEX(PrintTable,ROW()-$BW$2,Z$19) ->  | AJ23: =INDEX(PrintTable,ROW()-$BW$2,AJ$19) ->  | AQ23: =INDEX(PrintTable,ROW()-$BW$2,AQ$19) ->  | BV23: =INDEX(PrintTable,ROW()-$BW$2,BV$16) ->  | BW23: =IF(INDEX(PrintTable,ROW()-$BW$2,BW$16)="",0,INDEX(PrintTable,ROW()-$BW$2,BW$16)) -> 0
B24: x | BW24: 0
B25: x | BW25: 0
B26: x | BW26: 0
B27: x | BW27: 0
B28: x | BW28: 0
B29: x | BW29: 0
B30: x | BW30: 0
B31: x | BW31: 0
B32: x | BW32: 0
B33: x | BW33: 0
B34: x | BW34: 0
B35: x | BW35: 0
B36: x | BW36: 0
B37: x | BW37: 0
B38: x | BW38: 0
B39: x | BW39: 0
B40: x | BW40: 0
B41: x | BW41: 0
B42: x | BW42: 0
B43: x | BW43: 0
B44: x | BW44: 0
B45: x | BW45: 0
B46: x | BW46: 0
B47: x | BW47: 0
B48: x | BW48: 0
B49: x | BW49: 0
B50: x | BW50: 0
B51: x | BW51: 0
B52: x | BW52: 0
B53: x | BW53: 0
B54: x | BW54: 0
B55: x | BW55: 0
B56: x | BW56: 0
B57: x | BW57: 0
B58: x | BW58: 0
B59: x | BW59: 0
B60: x | BW60: 0
B61: x | BW61: 0
B62: x | BW62: 0
B63: x | BW63: 0
B64: x | BW64: 0
B65: x | BW65: 0
B66: x | BW66: 0
B67: x | BW67: 0
B68: x | BW68: 0
B69: x | BW69: 0
B70: x | S70: =INDEX(PrintTable,ROW()-$BW$2,W$19) ->  | BW70: 0
B71: x | BW71: 0
B72: x | S72: =INDEX(PrintTable,ROW()-$BW$2,W$19) ->  | BW72: 0
B73: x | BW73: 0
B74: x | BW74: 0
B75: x | BW75: 0
B76: x | S76: =INDEX(PrintTable,ROW()-$BW$2,W$19) ->  | BW76: 0
B77: x | BW77: 0
B78: x | BW78: 0
B79: x | BW79: 0
B80: x | BW80: 0
B81: x | BW81: 0
B82: x | BW82: 0
B83: x | BW83: 0
B84: x | BW84: 0
B85: x | BW85: 0
B86: x | BW86: 0
B87: x | D87: =INDEX(PrintTable,ROW()-$BW$2,D$19) ->  | Z87: =INDEX(PrintTable,ROW()-$BW$2,Z$19) ->  | AJ87: =INDEX(PrintTable,ROW()-$BW$2,AJ$19) ->  | AQ87: =INDEX(PrintTable,ROW()-$BW$2,AQ$19) ->  | BV87: =INDEX(PrintTable,ROW()-$BW$2,BV$16) ->  | BW87: =IF(INDEX(PrintTable,ROW()-$BW$2,BW$16)="",0,INDEX(PrintTable,ROW()-$BW$2,BW$16)) -> 0
B88: x | BW88: 0
B89: x | BW89: 0
B90: x | BW90: 0
B91: x | BW91: 0
B92: x | BW92: 0
B93: x | BW93: 0
B94: x | BW94: 0
B95: x | BW95: 0
B96: x | BW96: 0
B97: x | BW97: 0
B98: x | BW98: 0
B99: x | BW99: 0
B100: x | BW100: 0

Sheet Eternal Flame (hidden)
B2: =INDEX(MysticArmaments,BW3) -> Eternal Flame | U2: =INDEX(MysticElements,BW3) -> Fire | AD2: =BZ4 -> Lawful Good | AQ2: =CC2 -> 1 | AZ2: EGO | BF2: HARMONY | BV2: RowStart: | BW2: 17 | BY2: Weapon Name | BZ2: =INDEX(MysticArmaments,BW3) -> Eternal Flame | CB2: Level | CC2: =IF(INDEX(SpiritLevels,BW3)=0, "", INDEX(SpiritLevels,BW3)) -> 1 | CE2: Spirit Charges | CF2: =IF(CC2=0,"",2+CC2*2+IF($B$5=INDEX(SpiritPreferredForms,BW3),2)) -> 4
B3: Weapon Name | U3: Element | AD3: Alignment | AQ3: Spirit Level | AZ3: =BZ5 -> 23 | BF3: =BZ6 ->  | BV3: ArmID | BW3: 2 | BY3: Element | BZ3: =INDEX(MysticElements,BW3) -> Fire | CB3: Proficiency | CC3: =IF(INDEX(SpiritLevels,$BW$3)=0,"",ROUNDDOWN((INDEX(SpiritLevels,$BW$3)+7) / 4, 0)) -> +2 | CE3: Spirit Attack | CF3: =INDEX(SpiritAttacks,BW3) -> +2
BY4: Alignment | BZ4: =INDEX(MysticAlignments,BW3) -> Lawful Good | CB4: Enchantment | CC4: =IF(CC2="","","+"&FLOOR(MAX(0, (CC2 + 2) /5),1)) -> +0 | CE4: Save DC | CF4: =INDEX(SpiritSaveDCs,BW3) -> 13
U5: =CC5 -> 1 B | AD5: =CC3 -> +2 | AL5: =CC4 -> +0 | AV5: =CF2 -> 4 | BF5: =CF3 -> +2 | BO5: =CF4 -> 13 | BY5: Ego | BZ5: =INDEX(SpiritEgos,BW3) -> 23 | CB5: Damage | CC5: =INDEX(WeaponTable,INDEX(SpiritFormIDs,$BW$3),3) & " " & INDEX(WeaponTable,INDEX(SpiritFormIDs,$BW$3),2) -> 1 B | CE5: Spirit Name | CF5: =INDEX(Spirits,BW3,1) -> Ishat, Denizen of Fire
B6: Weapon Form | U6: Damage | AD6: Proficiency | AL6: Enchantment | AV6: Spirit Charges | BF6: Spirit Attack | BO6: Save DC | BY6: Harmony | BZ6: =9-(ABS(INDEX(AlignMetrix,MATCH(BZ4,Alignments,0),2)-INDEX(AlignMetrix,CharAlignID,2))*2)-(ABS(INDEX(AlignMetrix,MATCH(BZ4,Alignments,0),3)-INDEX(AlignMetrix,CharAlignID,3))*2) ->  | CB6: AP Remaining | CC6: =INDEX(AbilityMax,BW3)-INDEX(SpiritAbilityCounts,BW3) -> 1 | CE6: Spirit Desc | CF6: =INDEX(Spirits,BW3,2) -> Ishat tends to take the form of a beautiful woman in her late twenties with brilliant locks of bright red hair. Shapely and comely, Ishat could easily win over the heart of any man, though she has little interest in doing anything of the sort. Ishat has a more protective, motherly nature – especially for those she grows fond of. Ishat is the most independent of the spirits, often acting of her own will – sometimes even against the wishes of her wielder or her creator. When she does, though, she does so with the intent to protect her charge from harm.
B8: Spirit EXP: | L8: 0 | T8: Harmony Shift: | AD8: 0 | AM8: Bonus Abilities: | AW8: 0 | BE8: AP Remaining: | BO8: =CC6 -> 1
B11: Spirit: | X11: =CF5 -> Ishat, Denizen of Fire
B12: =CF6 -> Ishat tends to take the form of a beautiful woman in her late twenties with brilliant locks of bright red hair. Shapely and comely, Ishat could easily win over the heart of any man, though she has little interest in doing anything of the sort. Ishat has a more protective, motherly nature – especially for those she grows fond of. Ishat is the most independent of the spirits, often acting of her own will – sometimes even against the wishes of her wielder or her creator. When she does, though, she does so with the intent to protect her charge from harm. | BV12: 0 | BW12: =IFERROR(INDEX(Spirits,MysticArmID,3),22) -> 0 | BX12: FALSE | BY12: 0
D14: 4 | W14: 5 | Z14: 20 | AJ14: 21 | AQ14: 19 | BV14: MysticIndex | BW14: Height | BX14: Border | BY14: Depth | BZ14: Fill | CA14: RowIndex | CB14: Visible | CC14: Selectable | CD14: chkboc
B15: SPECIAL ABILITIES AND TECHNIQUES | BV15: 1 | BW15: 22 | BX15: 23 | BY15: 24 | BZ15: 25 | CB15: 26 | CC15: 27 | CD15: 31
B16: √ | D16: Ability Name | W16: Lv | Z16: Must Know | AJ16: Misc. | AQ16: Description
B17: x | D17: =IF(BV17<>"0000",INDEX(MysticAbilities,CA17,$D$14),"") -> Endure Elements | W17: =IF(BV17="0000", "", IF(INDEX(MysticAbilities,CA17,$W$14)=0, "-", INDEX(MysticAbilities,CA17,$W$14))) -> - | Z17: =IF(BV17<>"0000",IF(INDEX(MysticAbilities,CA17,$Z$14)= 0,"",INDEX(MysticAbilities,CA17,$Z$14)),"") ->  | AJ17: =IF(BV17<>"0000",IF(INDEX(MysticAbilities,CA17,$AJ$14)= 0,"",INDEX(MysticAbilities,CA17,$AJ$14)),"") ->  | AQ17: =IF(BV17<>"0000",IF(INDEX(MysticAbilities,CA17,$AQ$14)= 0,"",INDEX(MysticAbilities,CA17,$AQ$14)),"") -> While bonded with the Eternal Flame a character increases their resistance to the elements. You gain Advantage on any Saving Throws meant to protect you against the effects of extreme heat or cold from natural weather. This extends no advantage against effects created by spells. | BV17: =IF(_xlfn.IFNA(MATCH(TEXT($BW$3,"00")&TEXT(((ROW()+3)-$BW$2) / 3,"00"),MysticIndex,0),0)=0,"0000",TEXT($BW$3,"00")&TEXT(((ROW()+3)-$BW$2) / 3,"00")) -> 0201 | BW17: =IF(BV17<>"0000",INDEX(MysticAbilities,CA17,BW$15),0) -> 75 | BX17: =IFERROR(IF(BV17<>"0000",INDEX(MysticAbilities,CA17,BX$15),TRUE),TRUE) -> TRUE | BY17: =IF(BV17<>"0000",INDEX(MysticAbilities,CA17,BY$15),0) -> 0 | BZ17: =IF($BV17<>"0000",INDEX(MysticAbilities,CA17,BZ$15),0) -> 0 | CA17: =IF(BV17<>"0000", MATCH(BV17,MysticIndex,0),"") -> 1 | CB17: =IF($BV17<>"0000",INDEX(MysticAbilities,$CA17,CB$15),FALSE) -> TRUE | CC17: =IF($BV17<>"0000",INDEX(MysticAbilities,$CA17,CC$15),FALSE) -> TRUE | CD17: =IF($BV17<>"0000",INDEX(MysticAbilities,$CA17,CD$15),TRUE) -> TRUE
CE18: =B17<>"" -> TRUE
B20: x | D20: =IF(BV20<>"0000",INDEX(MysticAbilities,CA20,$D$14),"") -> Everlasting Torch | W20: =IF(BV20="0000", "", IF(INDEX(MysticAbilities,CA20,$W$14)=0, "-", INDEX(MysticAbilities,CA20,$W$14))) -> - | Z20: =IF(BV20<>"0000",IF(INDEX(MysticAbilities,CA20,$Z$14)= 0,"",INDEX(MysticAbilities,CA20,$Z$14)),"") ->  | AJ20: =IF(BV20<>"0000",IF(INDEX(MysticAbilities,CA20,$AJ$14)= 0,"",INDEX(MysticAbilities,CA20,$AJ$14)),"") ->  | AQ20: =IF(BV20<>"0000",IF(INDEX(MysticAbilities,CA20,$AQ$14)= 0,"",INDEX(MysticAbilities,CA20,$AQ$14)),"") -> At will, the wielder of the Eternal Flame can ignite their weapon's form, thus transforming it into an everlasting torch. It will remain burning for as long as it is in the character’s possession and not dormant, or until the PC wills it to stop. | BV20: =IF(_xlfn.IFNA(MATCH(TEXT($BW$3,"00")&TEXT(((ROW()+3)-$BW$2) / 3,"00"),MysticIndex,0),0)=0,"0000",TEXT($BW$3,"00")&TEXT(((ROW()+3)-$BW$2) / 3,"00")) -> 0202 | BW20: =IF(BV20<>"0000",INDEX(MysticAbilities,CA20,BW$15),0) -> 60 | BX20: =IFERROR(IF(BV20<>"0000",INDEX(MysticAbilities,CA20,BX$15),TRUE),TRUE) -> TRUE | BY20: =IF(BV20<>"0000",INDEX(MysticAbilities,CA20,BY$15),0) -> 0 | BZ20: =IF(BV20<>"0000",INDEX(MysticAbilities,CA20,BZ$15),0) -> 0 | CA20: =IF(BV20<>"0000", MATCH(BV20,MysticIndex,0),"") -> 2 | CB20: =IF($BV20<>"0000",INDEX(MysticAbilities,$CA20,CB$15),FALSE) -> TRUE | CC20: =IF($BV20<>"0000",INDEX(MysticAbilities,$CA20,CC$15),FALSE) -> TRUE | CD20: =IF($BV20<>"0000",INDEX(MysticAbilities,$CA20,CD$15),TRUE) -> TRUE
CE21: =B20<>"" -> TRUE
B23: x | D23: =IF(BV23<>"0000",INDEX(MysticAbilities,CA23,$D$14),"") -> Searing Flames | W23: =IF(BV23="0000", "", IF(INDEX(MysticAbilities,CA23,$W$14)=0, "-", INDEX(MysticAbilities,CA23,$W$14))) -> - | Z23: =IF(BV23<>"0000",IF(INDEX(MysticAbilities,CA23,$Z$14)= 0,"",INDEX(MysticAbilities,CA23,$Z$14)),"") ->  | AJ23: =IF(BV23<>"0000",IF(INDEX(MysticAbilities,CA23,$AJ$14)= 0,"",INDEX(MysticAbilities,CA23,$AJ$14)),"") ->  | AQ23: =IF(BV23<>"0000",IF(INDEX(MysticAbilities,CA23,$AQ$14)= 0,"",INDEX(MysticAbilities,CA23,$AQ$14)),"") -> As a Bonus Action, the Eternal Flame can transform into a stretching lick of flames. This ability allows the sword to gain a reach of 10 ft. In addition, any damage done with the attack becomes fire damage. If any two creatures are in a line with the wielder of the Eternal Flame, this ability also allows them both to be attacked simultaneously. In this case, make a single Weapon Attack Roll. Compare the result to the AC of both creatures, hitting those it equals or exceeds. When using the Eternal Flame in this form, the blade deals an extra 1d6 points of fire damage. If the attack is a critical hit, the critical damage is only applied to the closer target. Transforming the Eternal Flame in this manner costs 2 Spirit Charges and can be used once per Short Rest. It remains this way until the end of your next turn. | BV23: =IF(_xlfn.IFNA(MATCH(TEXT($BW$3,"00")&TEXT(((ROW()+3)-$BW$2) / 3,"00"),MysticIndex,0),0)=0,"0000",TEXT($BW$3,"00")&TEXT(((ROW()+3)-$BW$2) / 3,"00")) -> 0203 | BW23: =IF(BV23<>"0000",INDEX(MysticAbilities,CA23,BW$15),0) -> 224 | BX23: =IFERROR(IF(BV23<>"0000",INDEX(MysticAbilities,CA23,BX$15),TRUE),TRUE) -> TRUE | BY23: =IF(BV23<>"0000",INDEX(MysticAbilities,CA23,BY$15),0) -> 0 | BZ23: =IF(BV23<>"0000",INDEX(MysticAbilities,CA23,BZ$15),0) -> 0 | CA23: =IF(BV23<>"0000", MATCH(BV23,MysticIndex,0),"") -> 3 | CB23: =IF($BV23<>"0000",INDEX(MysticAbilities,$CA23,CB$15),FALSE) -> TRUE | CC23: =IF($BV23<>"0000",INDEX(MysticAbilities,$CA23,CC$15),FALSE) -> TRUE | CD23: =IF($BV23<>"0000",INDEX(MysticAbilities,$CA23,CD$15),TRUE) -> TRUE
CE24: =B23<>"" -> TRUE
F26: =IF(BV26<>"0000",INDEX(MysticAbilities,CA26,$D$14),"") -> Intense Radiation | W26: =IF(BV26="0000", "", IF(INDEX(MysticAbilities,CA26,$W$14)=0, "-", INDEX(MysticAbilities,CA26,$W$14))) -> 4 | Z26: =IF(BV26<>"0000",IF(INDEX(MysticAbilities,CA26,$Z$14)= 0,"",INDEX(MysticAbilities,CA26,$Z$14)),"") ->  | AJ26: =IF(BV26<>"0000",IF(INDEX(MysticAbilities,CA26,$AJ$14)= 0,"",INDEX(MysticAbilities,CA26,$AJ$14)),"") -> INT 15+; | AQ26: =IF(BV26<>"0000",IF(INDEX(MysticAbilities,CA26,$AQ$14)= 0,"",INDEX(MysticAbilities,CA26,$AQ$14)),"") -> This ability augments the Searing Flames Ability. When selected, this ability will increase the extra fire damage to 3d6. | BV26: =IF(_xlfn.IFNA(MATCH(TEXT($BW$3,"00")&TEXT(((ROW()+3)-$BW$2) / 3,"00"),MysticIndex,0),0)=0,"0000",TEXT($BW$3,"00")&TEXT(((ROW()+3)-$BW$2) / 3,"00")) -> 0204 | BW26: =IF(BV26<>"0000",INDEX(MysticAbilities,CA26,BW$15),0) -> 45 | BX26: =IFERROR(IF(BV26<>"0000",INDEX(MysticAbilities,CA26,BX$15),TRUE),TRUE) -> FALSE | BY26: =IF(BV26<>"0000",INDEX(MysticAbilities,CA26,BY$15),0) -> 1 | BZ26: =IF(BV26<>"0000",INDEX(MysticAbilities,CA26,BZ$15),0) -> 13 | CA26: =IF(BV26<>"0000", MATCH(BV26,MysticIndex,0),"") -> 4 | CB26: =IF($BV26<>"0000",INDEX(MysticAbilities,$CA26,CB$15),FALSE) -> TRUE | CC26: =IF($BV26<>"0000",INDEX(MysticAbilities,$CA26,CC$15),FALSE) -> FALSE | CD26: =IF($BV26<>"0000",INDEX(MysticAbilities,$CA26,CD$15),TRUE) -> FALSE
CE27: =B26<>"" -> FALSE
H29: =IF(BV29<>"0000",INDEX(MysticAbilities,CA29,$D$14),"") -> Infernel Heat | W29: =IF(BV29="0000", "", IF(INDEX(MysticAbilities,CA29,$W$14)=0, "-", INDEX(MysticAbilities,CA29,$W$14))) -> 12 | Z29: =IF(BV29<>"0000",IF(INDEX(MysticAbilities,CA29,$Z$14)= 0,"",INDEX(MysticAbilities,CA29,$Z$14)),"") ->  | AJ29: =IF(BV29<>"0000",IF(INDEX(MysticAbilities,CA29,$AJ$14)= 0,"",INDEX(MysticAbilities,CA29,$AJ$14)),"") -> INT 15+; | AQ29: =IF(BV29<>"0000",IF(INDEX(MysticAbilities,CA29,$AQ$14)= 0,"",INDEX(MysticAbilities,CA29,$AQ$14)),"") -> This ability augments the Searing Flames Ability. When selected, this ability will increase the extra fire damage to 5d6. | BV29: =IF(_xlfn.IFNA(MATCH(TEXT($BW$3,"00")&TEXT(((ROW()+3)-$BW$2) / 3,"00"),MysticIndex,0),0)=0,"0000",TEXT($BW$3,"00")&TEXT(((ROW()+3)-$BW$2) / 3,"00")) -> 0205 | BW29: =IF(BV29<>"0000",INDEX(MysticAbilities,CA29,BW$15),0) -> 45 | BX29: =IFERROR(IF(BV29<>"0000",INDEX(MysticAbilities,CA29,BX$15),TRUE),TRUE) -> FALSE | BY29: =IF(BV29<>"0000",INDEX(MysticAbilities,CA29,BY$15),0) -> 2 | BZ29: =IF(BV29<>"0000",INDEX(MysticAbilities,CA29,BZ$15),0) -> 1203 | CA29: =IF(BV29<>"0000", MATCH(BV29,MysticIndex,0),"") -> 5 | CB29: =IF($BV29<>"0000",INDEX(MysticAbilities,$CA29,CB$15),FALSE) -> FALSE | CC29: =IF($BV29<>"0000",INDEX(MysticAbilities,$CA29,CC$15),FALSE) -> FALSE | CD29: =IF($BV29<>"0000",INDEX(MysticAbilities,$CA29,CD$15),TRUE) -> FALSE
CE30: =B29<>"" -> FALSE
F32: =IF(BV32<>"0000",INDEX(MysticAbilities,CA32,$D$14),"") -> Lick of Fire | W32: =IF(BV32="0000", "", IF(INDEX(MysticAbilities,CA32,$W$14)=0, "-", INDEX(MysticAbilities,CA32,$W$14))) -> 5 | Z32: =IF(BV32<>"0000",IF(INDEX(MysticAbilities,CA32,$Z$14)= 0,"",INDEX(MysticAbilities,CA32,$Z$14)),"") ->  | AJ32: =IF(BV32<>"0000",IF(INDEX(MysticAbilities,CA32,$AJ$14)= 0,"",INDEX(MysticAbilities,CA32,$AJ$14)),"") ->  | AQ32: =IF(BV32<>"0000",IF(INDEX(MysticAbilities,CA32,$AQ$14)= 0,"",INDEX(MysticAbilities,CA32,$AQ$14)),"") -> This ability augments the Searing Flames Ability. When it is selected, it extends the reach of the Searing Flames Ability out to 15 ft. | BV32: =IF(_xlfn.IFNA(MATCH(TEXT($BW$3,"00")&TEXT(((ROW()+3)-$BW$2) / 3,"00"),MysticIndex,0),0)=0,"0000",TEXT($BW$3,"00")&TEXT(((ROW()+3)-$BW$2) / 3,"00")) -> 0206 | BW32: =IF(BV32<>"0000",INDEX(MysticAbilities,CA32,BW$15),0) -> 45 | BX32: =IFERROR(IF(BV32<>"0000",INDEX(MysticAbilities,CA32,BX$15),TRUE),TRUE) -> FALSE | BY32: =IF(BV32<>"0000",INDEX(MysticAbilities,CA32,BY$15),0) -> 1 | BZ32: =IF(BV32<>"0000",INDEX(MysticAbilities,CA32,BZ$15),0) -> 13 | CA32: =IF(BV32<>"0000", MATCH(BV32,MysticIndex,0),"") -> 6 | CB32: =IF($BV32<>"0000",INDEX(MysticAbilities,$CA32,CB$15),FALSE) -> TRUE | CC32: =IF($BV32<>"0000",INDEX(MysticAbilities,$CA32,CC$15),FALSE) -> FALSE | CD32: =IF($BV32<>"0000",INDEX(MysticAbilities,$CA32,CD$15),TRUE) -> FALSE
CE33: =B32<>"" -> FALSE
H35: =IF(BV35<>"0000",INDEX(MysticAbilities,CA35,$D$14),"") -> Tongue of Flame | W35: =IF(BV35="0000", "", IF(INDEX(MysticAbilities,CA35,$W$14)=0, "-", INDEX(MysticAbilities,CA35,$W$14))) -> 11 | Z35: =IF(BV35<>"0000",IF(INDEX(MysticAbilities,CA35,$Z$14)= 0,"",INDEX(MysticAbilities,CA35,$Z$14)),"") ->  | AJ35: =IF(BV35<>"0000",IF(INDEX(MysticAbilities,CA35,$AJ$14)= 0,"",INDEX(MysticAbilities,CA35,$AJ$14)),"") ->  | AQ35: =IF(BV35<>"0000",IF(INDEX(MysticAbilities,CA35,$AQ$14)= 0,"",INDEX(MysticAbilities,CA35,$AQ$14)),"") -> This ability augments the Searing Flames Ability. When it is selected, it extends the reach of the Searing Flames Ability out to 20 ft. | BV35: =IF(_xlfn.IFNA(MATCH(TEXT($BW$3,"00")&TEXT(((ROW()+3)-$BW$2) / 3,"00"),MysticIndex,0),0)=0,"0000",TEXT($BW$3,"00")&TEXT(((ROW()+3)-$BW$2) / 3,"00")) -> 0207 | BW35: =IF(BV35<>"0000",INDEX(MysticAbilities,CA35,BW$15),0) -> 45 | BX35: =IFERROR(IF(BV35<>"0000",INDEX(MysticAbilities,CA35,BX$15),TRUE),TRUE) -> FALSE | BY35: =IF(BV35<>"0000",INDEX(MysticAbilities,CA35,BY$15),0) -> 2 | BZ35: =IF(BV35<>"0000",INDEX(MysticAbilities,CA35,BZ$15),0) -> 1203 | CA35: =IF(BV35<>"0000", MATCH(BV35,MysticIndex,0),"") -> 7 | CB35: =IF($BV35<>"0000",INDEX(MysticAbilities,$CA35,CB$15),FALSE) -> FALSE | CC35: =IF($BV35<>"0000",INDEX(MysticAbilities,$CA35,CC$15),FALSE) -> FALSE | CD35: =IF($BV35<>"0000",INDEX(MysticAbilities,$CA35,CD$15),TRUE) -> FALSE
CE36: =B35<>"" -> FALSE
F38: =IF(BV38<>"0000",INDEX(MysticAbilities,CA38,$D$14),"") -> Resiliant Flame | W38: =IF(BV38="0000", "", IF(INDEX(MysticAbilities,CA38,$W$14)=0, "-", INDEX(MysticAbilities,CA38,$W$14))) -> 6 | Z38: =IF(BV38<>"0000",IF(INDEX(MysticAbilities,CA38,$Z$14)= 0,"",INDEX(MysticAbilities,CA38,$Z$14)),"") ->  | AJ38: =IF(BV38<>"0000",IF(INDEX(MysticAbilities,CA38,$AJ$14)= 0,"",INDEX(MysticAbilities,CA38,$AJ$14)),"") -> CHA 13+; | AQ38: =IF(BV38<>"0000",IF(INDEX(MysticAbilities,CA38,$AQ$14)= 0,"",INDEX(MysticAbilities,CA38,$AQ$14)),"") -> This ability augments the Searing Flames Ability. When known, it increases the duration of the Searing Flames Ability to a length of three rounds. | BV38: =IF(_xlfn.IFNA(MATCH(TEXT($BW$3,"00")&TEXT(((ROW()+3)-$BW$2) / 3,"00"),MysticIndex,0),0)=0,"0000",TEXT($BW$3,"00")&TEXT(((ROW()+3)-$BW$2) / 3,"00")) -> 0208 | BW38: =IF(BV38<>"0000",INDEX(MysticAbilities,CA38,BW$15),0) -> 45 | BX38: =IFERROR(IF(BV38<>"0000",INDEX(MysticAbilities,CA38,BX$15),TRUE),TRUE) -> FALSE | BY38: =IF(BV38<>"0000",INDEX(MysticAbilities,CA38,BY$15),0) -> 1 | BZ38: =IF(BV38<>"0000",INDEX(MysticAbilities,CA38,BZ$15),0) -> 13 | CA38: =IF(BV38<>"0000", MATCH(BV38,MysticIndex,0),"") -> 8 | CB38: =IF($BV38<>"0000",INDEX(MysticAbilities,$CA38,CB$15),FALSE) -> TRUE | CC38: =IF($BV38<>"0000",INDEX(MysticAbilities,$CA38,CC$15),FALSE) -> FALSE | CD38: =IF($BV38<>"0000",INDEX(MysticAbilities,$CA38,CD$15),TRUE) -> FALSE
CE39: =B38<>"" -> FALSE
F41: =IF(BV41<>"0000",INDEX(MysticAbilities,CA41,$D$14),"") -> Fiery Arc | W41: =IF(BV41="0000", "", IF(INDEX(MysticAbilities,CA41,$W$14)=0, "-", INDEX(MysticAbilities,CA41,$W$14))) -> 12 | Z41: =IF(BV41<>"0000",IF(INDEX(MysticAbilities,CA41,$Z$14)= 0,"",INDEX(MysticAbilities,CA41,$Z$14)),"") ->  | AJ41: =IF(BV41<>"0000",IF(INDEX(MysticAbilities,CA41,$AJ$14)= 0,"",INDEX(MysticAbilities,CA41,$AJ$14)),"") -> STR 15+; | AQ41: =IF(BV41<>"0000",IF(INDEX(MysticAbilities,CA41,$AQ$14)= 0,"",INDEX(MysticAbilities,CA41,$AQ$14)),"") -> This ability extends the Searing Flames Ability. As an Action while the Searing Flames Ability is active, the wielder can make a wide sweeping attack. This turns the attack into a cone shape that stretches the normal length of Searing Flames, plus an additional 10 feet. The wielder makes a single attack roll. Any creature in this area must make a Dexterity Saving Throw with the DC equal to the result of the wielder's attack. Those that succeed take only half damage - all others take damage equal to the normal damage of the Searing Blade. If the attack Roll is a Natural 20, then all creatures have Disadvantage on their Saving Throw. | BV41: =IF(_xlfn.IFNA(MATCH(TEXT($BW$3,"00")&TEXT(((ROW()+3)-$BW$2) / 3,"00"),MysticIndex,0),0)=0,"0000",TEXT($BW$3,"00")&TEXT(((ROW()+3)-$BW$2) / 3,"00")) -> 0209 | BW41: =IF(BV41<>"0000",INDEX(MysticAbilities,CA41,BW$15),0) -> 165 | BX41: =IFERROR(IF(BV41<>"0000",INDEX(MysticAbilities,CA41,BX$15),TRUE),TRUE) -> FALSE | BY41: =IF(BV41<>"0000",INDEX(MysticAbilities,CA41,BY$15),0) -> 1 | BZ41: =IF(BV41<>"0000",INDEX(MysticAbilities,CA41,BZ$15),0) -> 12 | CA41: =IF(BV41<>"0000", MATCH(BV41,MysticIndex,0),"") -> 9 | CB41: =IF($BV41<>"0000",INDEX(MysticAbilities,$CA41,CB$15),FALSE) -> TRUE | CC41: =IF($BV41<>"0000",INDEX(MysticAbilities,$CA41,CC$15),FALSE) -> FALSE | CD41: =IF($BV41<>"0000",INDEX(MysticAbilities,$CA41,CD$15),TRUE) -> TRUE
CE42: =B41<>"" -> FALSE
B44: x | D44: =IF(BV44<>"0000",INDEX(MysticAbilities,CA44,$D$14),"") -> Focus Magic | W44: =IF(BV44="0000", "", IF(INDEX(MysticAbilities,CA44,$W$14)=0, "-", INDEX(MysticAbilities,CA44,$W$14))) -> - | Z44: =IF(BV44<>"0000",IF(INDEX(MysticAbilities,CA44,$Z$14)= 0,"",INDEX(MysticAbilities,CA44,$Z$14)),"") ->  | AJ44: =IF(BV44<>"0000",IF(INDEX(MysticAbilities,CA44,$AJ$14)= 0,"",INDEX(MysticAbilities,CA44,$AJ$14)),"") ->  | AQ44: =IF(BV44<>"0000",IF(INDEX(MysticAbilities,CA44,$AQ$14)= 0,"",INDEX(MysticAbilities,CA44,$AQ$14)),"") -> As an Action, the wielder of the Eternal Flame can focus its magic in order to give them a bonus equal to their Spirit Proficiency on a number of attack rolls they make equal to the number of Spirit Charges they sacrifice. The maximum number of Spirit Charges that can be sacrificed at once is equal to half their Spirit Level. You may use this ability once per Short Rest. | BV44: =IF(_xlfn.IFNA(MATCH(TEXT($BW$3,"00")&TEXT(((ROW()+3)-$BW$2) / 3,"00"),MysticIndex,0),0)=0,"0000",TEXT($BW$3,"00")&TEXT(((ROW()+3)-$BW$2) / 3,"00")) -> 0210 | BW44: =IF(BV44<>"0000",INDEX(MysticAbilities,CA44,BW$15),0) -> 105 | BX44: =IFERROR(IF(BV44<>"0000",INDEX(MysticAbilities,CA44,BX$15),TRUE),TRUE) -> TRUE | BY44: =IF(BV44<>"0000",INDEX(MysticAbilities,CA44,BY$15),0) -> 0 | BZ44: =IF(BV44<>"0000",INDEX(MysticAbilities,CA44,BZ$15),0) -> 0 | CA44: =IF(BV44<>"0000", MATCH(BV44,MysticIndex,0),"") -> 10 | CB44: =IF($BV44<>"0000",INDEX(MysticAbilities,$CA44,CB$15),FALSE) -> TRUE | CC44: =IF($BV44<>"0000",INDEX(MysticAbilities,$CA44,CC$15),FALSE) -> TRUE | CD44: =IF($BV44<>"0000",INDEX(MysticAbilities,$CA44,CD$15),TRUE) -> TRUE
CE45: =B44<>"" -> TRUE
F47: =IF(BV47<>"0000",INDEX(MysticAbilities,CA47,$D$14),"") -> Improved Focus Magic | W47: =IF(BV47="0000", "", IF(INDEX(MysticAbilities,CA47,$W$14)=0, "-", INDEX(MysticAbilities,CA47,$W$14))) -> 5 | Z47: =IF(BV47<>"0000",IF(INDEX(MysticAbilities,CA47,$Z$14)= 0,"",INDEX(MysticAbilities,CA47,$Z$14)),"") ->  | AJ47: =IF(BV47<>"0000",IF(INDEX(MysticAbilities,CA47,$AJ$14)= 0,"",INDEX(MysticAbilities,CA47,$AJ$14)),"") ->  | AQ47: =IF(BV47<>"0000",IF(INDEX(MysticAbilities,CA47,$AQ$14)= 0,"",INDEX(MysticAbilities,CA47,$AQ$14)),"") -> This ability augments the Focus Magic Ability. When known, Focus Magic can be used once per encounter instead of once per Short Rest. | BV47: =IF(_xlfn.IFNA(MATCH(TEXT($BW$3,"00")&TEXT(((ROW()+3)-$BW$2) / 3,"00"),MysticIndex,0),0)=0,"0000",TEXT($BW$3,"00")&TEXT(((ROW()+3)-$BW$2) / 3,"00")) -> 0211 | BW47: =IF(BV47<>"0000",INDEX(MysticAbilities,CA47,BW$15),0) -> 45 | BX47: =IFERROR(IF(BV47<>"0000",INDEX(MysticAbilities,CA47,BX$15),TRUE),TRUE) -> FALSE | BY47: =IF(BV47<>"0000",INDEX(MysticAbilities,CA47,BY$15),0) -> 1 | BZ47: =IF(BV47<>"0000",INDEX(MysticAbilities,CA47,BZ$15),0) -> 12 | CA47: =IF(BV47<>"0000", MATCH(BV47,MysticIndex,0),"") -> 11 | CB47: =IF($BV47<>"0000",INDEX(MysticAbilities,$CA47,CB$15),FALSE) -> TRUE | CC47: =IF($BV47<>"0000",INDEX(MysticAbilities,$CA47,CC$15),FALSE) -> FALSE | CD47: =IF($BV47<>"0000",INDEX(MysticAbilities,$CA47,CD$15),TRUE) -> FALSE
CE48: =B47<>"" -> FALSE
D50: =IF(BV50<>"0000",INDEX(MysticAbilities,CA50,$D$14),"") -> Spirit Re-Charge | W50: =IF(BV50="0000", "", IF(INDEX(MysticAbilities,CA50,$W$14)=0, "-", INDEX(MysticAbilities,CA50,$W$14))) -> 1 | Z50: =IF(BV50<>"0000",IF(INDEX(MysticAbilities,CA50,$Z$14)= 0,"",INDEX(MysticAbilities,CA50,$Z$14)),"") ->  | AJ50: =IF(BV50<>"0000",IF(INDEX(MysticAbilities,CA50,$AJ$14)= 0,"",INDEX(MysticAbilities,CA50,$AJ$14)),"") ->  | AQ50: =IF(BV50<>"0000",IF(INDEX(MysticAbilities,CA50,$AQ$14)= 0,"",INDEX(MysticAbilities,CA50,$AQ$14)),"") -> Eternal Flame grants it's wielder additional access to it's power. Whenever the wielder has less than half of their maximum Spirit Charges remaining during a Short Rest, they can recover 1d8 Spirit Charges as part of the rest. | BV50: =IF(_xlfn.IFNA(MATCH(TEXT($BW$3,"00")&TEXT(((ROW()+3)-$BW$2) / 3,"00"),MysticIndex,0),0)=0,"0000",TEXT($BW$3,"00")&TEXT(((ROW()+3)-$BW$2) / 3,"00")) -> 0212 | BW50: =IF(BV50<>"0000",INDEX(MysticAbilities,CA50,BW$15),0) -> 60 | BX50: =IFERROR(IF(BV50<>"0000",INDEX(MysticAbilities,CA50,BX$15),TRUE),TRUE) -> TRUE | BY50: =IF(BV50<>"0000",INDEX(MysticAbilities,CA50,BY$15),0) -> 0 | BZ50: =IF(BV50<>"0000",INDEX(MysticAbilities,CA50,BZ$15),0) -> 0 | CA50: =IF(BV50<>"0000", MATCH(BV50,MysticIndex,0),"") -> 12 | CB50: =IF($BV50<>"0000",INDEX(MysticAbilities,$CA50,CB$15),FALSE) -> TRUE | CC50: =IF($BV50<>"0000",INDEX(MysticAbilities,$CA50,CC$15),FALSE) -> TRUE | CD50: =IF($BV50<>"0000",INDEX(MysticAbilities,$CA50,CD$15),TRUE) -> TRUE
CE51: =B50<>"" -> FALSE
F53: =IF(BV53<>"0000",INDEX(MysticAbilities,CA53,$D$14),"") -> Quickened Spirit Re-Charge | W53: =IF(BV53="0000", "", IF(INDEX(MysticAbilities,CA53,$W$14)=0, "-", INDEX(MysticAbilities,CA53,$W$14))) -> 5 | Z53: =IF(BV53<>"0000",IF(INDEX(MysticAbilities,CA53,$Z$14)= 0,"",INDEX(MysticAbilities,CA53,$Z$14)),"") ->  | AJ53: =IF(BV53<>"0000",IF(INDEX(MysticAbilities,CA53,$AJ$14)= 0,"",INDEX(MysticAbilities,CA53,$AJ$14)),"") ->  | AQ53: =IF(BV53<>"0000",IF(INDEX(MysticAbilities,CA53,$AQ$14)= 0,"",INDEX(MysticAbilities,CA53,$AQ$14)),"") -> Eternal Flame grants it's wielder additional access to it's power. Whenever the wielder has less than half of their maximum Spirit Charges remaining, they can use an Action to recover 1d8 Spirit Charges as part of the rest. | BV53: =IF(_xlfn.IFNA(MATCH(TEXT($BW$3,"00")&TEXT(((ROW()+3)-$BW$2) / 3,"00"),MysticIndex,0),0)=0,"0000",TEXT($BW$3,"00")&TEXT(((ROW()+3)-$BW$2) / 3,"00")) -> 0213 | BW53: =IF(BV53<>"0000",INDEX(MysticAbilities,CA53,BW$15),0) -> 60 | BX53: =IFERROR(IF(BV53<>"0000",INDEX(MysticAbilities,CA53,BX$15),TRUE),TRUE) -> FALSE | BY53: =IF(BV53<>"0000",INDEX(MysticAbilities,CA53,BY$15),0) -> 1 | BZ53: =IF(BV53<>"0000",INDEX(MysticAbilities,CA53,BZ$15),0) -> 13 | CA53: =IF(BV53<>"0000", MATCH(BV53,MysticIndex,0),"") -> 13 | CB53: =IF($BV53<>"0000",INDEX(MysticAbilities,$CA53,CB$15),FALSE) -> FALSE | CC53: =IF($BV53<>"0000",INDEX(MysticAbilities,$CA53,CC$15),FALSE) -> FALSE | CD53: =IF($BV53<>"0000",INDEX(MysticAbilities,$CA53,CD$15),TRUE) -> FALSE
CE54: =B53<>"" -> FALSE
H56: =IF(BV56<>"0000",INDEX(MysticAbilities,CA56,$D$14),"") -> Maximized Spirit Re-Charge | W56: =IF(BV56="0000", "", IF(INDEX(MysticAbilities,CA56,$W$14)=0, "-", INDEX(MysticAbilities,CA56,$W$14))) -> 10 | Z56: =IF(BV56<>"0000",IF(INDEX(MysticAbilities,CA56,$Z$14)= 0,"",INDEX(MysticAbilities,CA56,$Z$14)),"") ->  | AJ56: =IF(BV56<>"0000",IF(INDEX(MysticAbilities,CA56,$AJ$14)= 0,"",INDEX(MysticAbilities,CA56,$AJ$14)),"") ->  | AQ56: =IF(BV56<>"0000",IF(INDEX(MysticAbilities,CA56,$AQ$14)= 0,"",INDEX(MysticAbilities,CA56,$AQ$14)),"") -> Eternal Flame grants it's wielder additional access to it's power. When the wielder uses Spirit Re-Charge or Quickened Spirit Re-Charge, they gain the maximum number of possible Spirit Charges (8). | BV56: =IF(_xlfn.IFNA(MATCH(TEXT($BW$3,"00")&TEXT(((ROW()+3)-$BW$2) / 3,"00"),MysticIndex,0),0)=0,"0000",TEXT($BW$3,"00")&TEXT(((ROW()+3)-$BW$2) / 3,"00")) -> 0214 | BW56: =IF(BV56<>"0000",INDEX(MysticAbilities,CA56,BW$15),0) -> 60 | BX56: =IFERROR(IF(BV56<>"0000",INDEX(MysticAbilities,CA56,BX$15),TRUE),TRUE) -> FALSE | BY56: =IF(BV56<>"0000",INDEX(MysticAbilities,CA56,BY$15),0) -> 2 | BZ56: =IF(BV56<>"0000",INDEX(MysticAbilities,CA56,BZ$15),0) -> 1203 | CA56: =IF(BV56<>"0000", MATCH(BV56,MysticIndex,0),"") -> 14 | CB56: =IF($BV56<>"0000",INDEX(MysticAbilities,$CA56,CB$15),FALSE) -> FALSE | CC56: =IF($BV56<>"0000",INDEX(MysticAbilities,$CA56,CC$15),FALSE) -> FALSE | CD56: =IF($BV56<>"0000",INDEX(MysticAbilities,$CA56,CD$15),TRUE) -> FALSE
CE57: =B56<>"" -> FALSE
F59: =IF(BV59<>"0000",INDEX(MysticAbilities,CA59,$D$14),"") -> Residual Charge | W59: =IF(BV59="0000", "", IF(INDEX(MysticAbilities,CA59,$W$14)=0, "-", INDEX(MysticAbilities,CA59,$W$14))) -> 10 | Z59: =IF(BV59<>"0000",IF(INDEX(MysticAbilities,CA59,$Z$14)= 0,"",INDEX(MysticAbilities,CA59,$Z$14)),"") ->  | AJ59: =IF(BV59<>"0000",IF(INDEX(MysticAbilities,CA59,$AJ$14)= 0,"",INDEX(MysticAbilities,CA59,$AJ$14)),"") -> Harmony 8+; | AQ59: =IF(BV59<>"0000",IF(INDEX(MysticAbilities,CA59,$AQ$14)= 0,"",INDEX(MysticAbilities,CA59,$AQ$14)),"") -> When this ability is known, you no longer lose the passive benefits of Eternal Flame when you use all of your Spirit Points. The weapon remains active for the rest of the day, allowing you to retain any passive effects and it's enchantment bonus, but you cannot activate any Abilities - even if they do not normally cost Spirit Charges. | BV59: =IF(_xlfn.IFNA(MATCH(TEXT($BW$3,"00")&TEXT(((ROW()+3)-$BW$2) / 3,"00"),MysticIndex,0),0)=0,"0000",TEXT($BW$3,"00")&TEXT(((ROW()+3)-$BW$2) / 3,"00")) -> 0215 | BW59: =IF(BV59<>"0000",INDEX(MysticAbilities,CA59,BW$15),0) -> 90 | BX59: =IFERROR(IF(BV59<>"0000",INDEX(MysticAbilities,CA59,BX$15),TRUE),TRUE) -> FALSE | BY59: =IF(BV59<>"0000",INDEX(MysticAbilities,CA59,BY$15),0) -> 1 | BZ59: =IF(BV59<>"0000",INDEX(MysticAbilities,CA59,BZ$15),0) -> 12 | CA59: =IF(BV59<>"0000", MATCH(BV59,MysticIndex,0),"") -> 15 | CB59: =IF($BV59<>"0000",INDEX(MysticAbilities,$CA59,CB$15),FALSE) -> FALSE | CC59: =IF($BV59<>"0000",INDEX(MysticAbilities,$CA59,CC$15),FALSE) -> FALSE | CD59: =IF($BV59<>"0000",INDEX(MysticAbilities,$CA59,CD$15),TRUE) -> TRUE
CE60: =B59<>"" -> FALSE
D62: =IF(BV62<>"0000",INDEX(MysticAbilities,CA62,$D$14),"") -> Increase DC | W62: =IF(BV62="0000", "", IF(INDEX(MysticAbilities,CA62,$W$14)=0, "-", INDEX(MysticAbilities,CA62,$W$14))) -> 1 | Z62: =IF(BV62<>"0000",IF(INDEX(MysticAbilities,CA62,$Z$14)= 0,"",INDEX(MysticAbilities,CA62,$Z$14)),"") ->  | AJ62: =IF(BV62<>"0000",IF(INDEX(MysticAbilities,CA62,$AJ$14)= 0,"",INDEX(MysticAbilities,CA62,$AJ$14)),"") ->  | AQ62: =IF(BV62<>"0000",IF(INDEX(MysticAbilities,CA62,$AQ$14)= 0,"",INDEX(MysticAbilities,CA62,$AQ$14)),"") -> This ability increases the Saving Throw of any Eternal Flame ability by +1. | BV62: =IF(_xlfn.IFNA(MATCH(TEXT($BW$3,"00")&TEXT(((ROW()+3)-$BW$2) / 3,"00"),MysticIndex,0),0)=0,"0000",TEXT($BW$3,"00")&TEXT(((ROW()+3)-$BW$2) / 3,"00")) -> 0216 | BW62: =IF(BV62<>"0000",INDEX(MysticAbilities,CA62,BW$15),0) -> 30 | BX62: =IFERROR(IF(BV62<>"0000",INDEX(MysticAbilities,CA62,BX$15),TRUE),TRUE) -> TRUE | BY62: =IF(BV62<>"0000",INDEX(MysticAbilities,CA62,BY$15),0) -> 0 | BZ62: =IF(BV62<>"0000",INDEX(MysticAbilities,CA62,BZ$15),0) -> 0 | CA62: =IF(BV62<>"0000", MATCH(BV62,MysticIndex,0),"") -> 16 | CB62: =IF($BV62<>"0000",INDEX(MysticAbilities,$CA62,CB$15),FALSE) -> TRUE | CC62: =IF($BV62<>"0000",INDEX(MysticAbilities,$CA62,CC$15),FALSE) -> TRUE | CD62: =IF($BV62<>"0000",INDEX(MysticAbilities,$CA62,CD$15),TRUE) -> TRUE
CE63: =B62<>"" -> FALSE
F65: =IF(BV65<>"0000",INDEX(MysticAbilities,CA65,$D$14),"") -> Increase DC II | W65: =IF(BV65="0000", "", IF(INDEX(MysticAbilities,CA65,$W$14)=0, "-", INDEX(MysticAbilities,CA65,$W$14))) -> 5 | Z65: =IF(BV65<>"0000",IF(INDEX(MysticAbilities,CA65,$Z$14)= 0,"",INDEX(MysticAbilities,CA65,$Z$14)),"") ->  | AJ65: =IF(BV65<>"0000",IF(INDEX(MysticAbilities,CA65,$AJ$14)= 0,"",INDEX(MysticAbilities,CA65,$AJ$14)),"") ->  | AQ65: =IF(BV65<>"0000",IF(INDEX(MysticAbilities,CA65,$AQ$14)= 0,"",INDEX(MysticAbilities,CA65,$AQ$14)),"") -> This ability increases the Saving Throw of any Eternal Flame ability by +2. | BV65: =IF(_xlfn.IFNA(MATCH(TEXT($BW$3,"00")&TEXT(((ROW()+3)-$BW$2) / 3,"00"),MysticIndex,0),0)=0,"0000",TEXT($BW$3,"00")&TEXT(((ROW()+3)-$BW$2) / 3,"00")) -> 0217 | BW65: =IF(BV65<>"0000",INDEX(MysticAbilities,CA65,BW$15),0) -> 30 | BX65: =IFERROR(IF(BV65<>"0000",INDEX(MysticAbilities,CA65,BX$15),TRUE),TRUE) -> FALSE | BY65: =IF(BV65<>"0000",INDEX(MysticAbilities,CA65,BY$15),0) -> 1 | BZ65: =IF(BV65<>"0000",INDEX(MysticAbilities,CA65,BZ$15),0) -> 12 | CA65: =IF(BV65<>"0000", MATCH(BV65,MysticIndex,0),"") -> 17 | CB65: =IF($BV65<>"0000",INDEX(MysticAbilities,$CA65,CB$15),FALSE) -> FALSE | CC65: =IF($BV65<>"0000",INDEX(MysticAbilities,$CA65,CC$15),FALSE) -> FALSE | CD65: =IF($BV65<>"0000",INDEX(MysticAbilities,$CA65,CD$15),TRUE) -> FALSE
CE66: =B65<>"" -> FALSE
H68: =IF(BV68<>"0000",INDEX(MysticAbilities,CA68,$D$14),"") -> Increase DC III | W68: =IF(BV68="0000", "", IF(INDEX(MysticAbilities,CA68,$W$14)=0, "-", INDEX(MysticAbilities,CA68,$W$14))) -> 10 | Z68: =IF(BV68<>"0000",IF(INDEX(MysticAbilities,CA68,$Z$14)= 0,"",INDEX(MysticAbilities,CA68,$Z$14)),"") ->  | AJ68: =IF(BV68<>"0000",IF(INDEX(MysticAbilities,CA68,$AJ$14)= 0,"",INDEX(MysticAbilities,CA68,$AJ$14)),"") ->  | AQ68: =IF(BV68<>"0000",IF(INDEX(MysticAbilities,CA68,$AQ$14)= 0,"",INDEX(MysticAbilities,CA68,$AQ$14)),"") -> This ability increases the Saving Throw of any Eternal Flame ability by +3. | BV68: =IF(_xlfn.IFNA(MATCH(TEXT($BW$3,"00")&TEXT(((ROW()+3)-$BW$2) / 3,"00"),MysticIndex,0),0)=0,"0000",TEXT($BW$3,"00")&TEXT(((ROW()+3)-$BW$2) / 3,"00")) -> 0218 | BW68: =IF(BV68<>"0000",INDEX(MysticAbilities,CA68,BW$15),0) -> 30 | BX68: =IFERROR(IF(BV68<>"0000",INDEX(MysticAbilities,CA68,BX$15),TRUE),TRUE) -> FALSE | BY68: =IF(BV68<>"0000",INDEX(MysticAbilities,CA68,BY$15),0) -> 2 | BZ68: =IF(BV68<>"0000",INDEX(MysticAbilities,CA68,BZ$15),0) -> 1200 | CA68: =IF(BV68<>"0000", MATCH(BV68,MysticIndex,0),"") -> 18 | CB68: =IF($BV68<>"0000",INDEX(MysticAbilities,$CA68,CB$15),FALSE) -> FALSE | CC68: =IF($BV68<>"0000",INDEX(MysticAbilities,$CA68,CC$15),FALSE) -> FALSE | CD68: =IF($BV68<>"0000",INDEX(MysticAbilities,$CA68,CD$15),TRUE) -> FALSE
CE69: =B68<>"" -> FALSE
D71: =IF(BV71<>"0000",INDEX(MysticAbilities,CA71,$D$14),"") -> Skill Proficiency | W71: =IF(BV71="0000", "", IF(INDEX(MysticAbilities,CA71,$W$14)=0, "-", INDEX(MysticAbilities,CA71,$W$14))) -> - | Z71: =IF(BV71<>"0000",IF(INDEX(MysticAbilities,CA71,$Z$14)= 0,"",INDEX(MysticAbilities,CA71,$Z$14)),"") ->  | AJ71: =IF(BV71<>"0000",IF(INDEX(MysticAbilities,CA71,$AJ$14)= 0,"",INDEX(MysticAbilities,CA71,$AJ$14)),"") ->  | AQ71: =IF(BV71<>"0000",IF(INDEX(MysticAbilities,CA71,$AQ$14)= 0,"",INDEX(MysticAbilities,CA71,$AQ$14)),"") -> This is meant to group together the skill abilities. Select the appropriate one below to gain the ability. | BV71: =IF(_xlfn.IFNA(MATCH(TEXT($BW$3,"00")&TEXT(((ROW()+3)-$BW$2) / 3,"00"),MysticIndex,0),0)=0,"0000",TEXT($BW$3,"00")&TEXT(((ROW()+3)-$BW$2) / 3,"00")) -> 0219 | BW71: =IF(BV71<>"0000",INDEX(MysticAbilities,CA71,BW$15),0) -> 30 | BX71: =IFERROR(IF(BV71<>"0000",INDEX(MysticAbilities,CA71,BX$15),TRUE),TRUE) -> TRUE | BY71: =IF(BV71<>"0000",INDEX(MysticAbilities,CA71,BY$15),0) -> 0 | BZ71: =IF(BV71<>"0000",INDEX(MysticAbilities,CA71,BZ$15),0) -> 0 | CA71: =IF(BV71<>"0000", MATCH(BV71,MysticIndex,0),"") -> 19 | CB71: =IF($BV71<>"0000",INDEX(MysticAbilities,$CA71,CB$15),FALSE) -> TRUE | CC71: =IF($BV71<>"0000",INDEX(MysticAbilities,$CA71,CC$15),FALSE) -> FALSE | CD71: =IF($BV71<>"0000",INDEX(MysticAbilities,$CA71,CD$15),TRUE) -> FALSE
CE72: =B71<>"" -> FALSE
F74: =IF(BV74<>"0000",INDEX(MysticAbilities,CA74,$D$14),"") -> Skill Proficiency: Acrobatics | W74: =IF(BV74="0000", "", IF(INDEX(MysticAbilities,CA74,$W$14)=0, "-", INDEX(MysticAbilities,CA74,$W$14))) -> 1 | Z74: =IF(BV74<>"0000",IF(INDEX(MysticAbilities,CA74,$Z$14)= 0,"",INDEX(MysticAbilities,CA74,$Z$14)),"") ->  | AJ74: =IF(BV74<>"0000",IF(INDEX(MysticAbilities,CA74,$AJ$14)= 0,"",INDEX(MysticAbilities,CA74,$AJ$14)),"") ->  | AQ74: =IF(BV74<>"0000",IF(INDEX(MysticAbilities,CA74,$AQ$14)= 0,"",INDEX(MysticAbilities,CA74,$AQ$14)),"") -> When Selected, the wielder gains proficiency with the Acrobatics Skill. If you already have Proficiency with Acrobatics, you instead gain expertise. If you gain expertise, you double your proficiency bonus on Acrobatics checks. You gain no additional bonus if you already have expertise. | BV74: =IF(_xlfn.IFNA(MATCH(TEXT($BW$3,"00")&TEXT(((ROW()+3)-$BW$2) / 3,"00"),MysticIndex,0),0)=0,"0000",TEXT($BW$3,"00")&TEXT(((ROW()+3)-$BW$2) / 3,"00")) -> 0220 | BW74: =IF(BV74<>"0000",INDEX(MysticAbilities,CA74,BW$15),0) -> 75 | BX74: =IFERROR(IF(BV74<>"0000",INDEX(MysticAbilities,CA74,BX$15),TRUE),TRUE) -> FALSE | BY74: =IF(BV74<>"0000",INDEX(MysticAbilities,CA74,BY$15),0) -> 1 | BZ74: =IF(BV74<>"0000",INDEX(MysticAbilities,CA74,BZ$15),0) -> 0 | CA74: =IF(BV74<>"0000", MATCH(BV74,MysticIndex,0),"") -> 20 | CB74: =IF($BV74<>"0000",INDEX(MysticAbilities,$CA74,CB$15),FALSE) -> TRUE | CC74: =IF($BV74<>"0000",INDEX(MysticAbilities,$CA74,CC$15),FALSE) -> TRUE | CD74: =IF($BV74<>"0000",INDEX(MysticAbilities,$CA74,CD$15),TRUE) -> TRUE
CE75: =B74<>"" -> FALSE
F77: =IF(BV77<>"0000",INDEX(MysticAbilities,CA77,$D$14),"") -> Skill Proficiency: Athletics | W77: =IF(BV77="0000", "", IF(INDEX(MysticAbilities,CA77,$W$14)=0, "-", INDEX(MysticAbilities,CA77,$W$14))) -> 1 | Z77: =IF(BV77<>"0000",IF(INDEX(MysticAbilities,CA77,$Z$14)= 0,"",INDEX(MysticAbilities,CA77,$Z$14)),"") ->  | AJ77: =IF(BV77<>"0000",IF(INDEX(MysticAbilities,CA77,$AJ$14)= 0,"",INDEX(MysticAbilities,CA77,$AJ$14)),"") ->  | AQ77: =IF(BV77<>"0000",IF(INDEX(MysticAbilities,CA77,$AQ$14)= 0,"",INDEX(MysticAbilities,CA77,$AQ$14)),"") -> When Selected, the wielder gains proficiency with the Athletics Skill. If you already have Proficiency with Athletics, you instead gain expertise. If you gain expertise, you double your proficiency bonus on Athletics checks. You gain no additional bonus if you already have expertise. | BV77: =IF(_xlfn.IFNA(MATCH(TEXT($BW$3,"00")&TEXT(((ROW()+3)-$BW$2) / 3,"00"),MysticIndex,0),0)=0,"0000",TEXT($BW$3,"00")&TEXT(((ROW()+3)-$BW$2) / 3,"00")) -> 0221 | BW77: =IF(BV77<>"0000",INDEX(MysticAbilities,CA77,BW$15),0) -> 75 | BX77: =IFERROR(IF(BV77<>"0000",INDEX(MysticAbilities,CA77,BX$15),TRUE),TRUE) -> FALSE | BY77: =IF(BV77<>"0000",INDEX(MysticAbilities,CA77,BY$15),0) -> 1 | BZ77: =IF(BV77<>"0000",INDEX(MysticAbilities,CA77,BZ$15),0) -> 0 | CA77: =IF(BV77<>"0000", MATCH(BV77,MysticIndex,0),"") -> 21 | CB77: =IF($BV77<>"0000",INDEX(MysticAbilities,$CA77,CB$15),FALSE) -> TRUE | CC77: =IF($BV77<>"0000",INDEX(MysticAbilities,$CA77,CC$15),FALSE) -> TRUE | CD77: =IF($BV77<>"0000",INDEX(MysticAbilities,$CA77,CD$15),TRUE) -> TRUE
CE78: =B77<>"" -> FALSE
F80: =IF(BV80<>"0000",INDEX(MysticAbilities,CA80,$D$14),"") -> Skill Proficiency: Initiative | W80: =IF(BV80="0000", "", IF(INDEX(MysticAbilities,CA80,$W$14)=0, "-", INDEX(MysticAbilities,CA80,$W$14))) -> 1 | Z80: =IF(BV80<>"0000",IF(INDEX(MysticAbilities,CA80,$Z$14)= 0,"",INDEX(MysticAbilities,CA80,$Z$14)),"") ->  | AJ80: =IF(BV80<>"0000",IF(INDEX(MysticAbilities,CA80,$AJ$14)= 0,"",INDEX(MysticAbilities,CA80,$AJ$14)),"") ->  | AQ80: =IF(BV80<>"0000",IF(INDEX(MysticAbilities,CA80,$AQ$14)= 0,"",INDEX(MysticAbilities,CA80,$AQ$14)),"") -> When Selected, the wielder gains proficiency with the Initiative Skill. If you already have Proficiency with Initiative, you instead gain expertise. If you gain expertise, you double your proficiency bonus on Initiative checks. You gain no additional bonus if you already have expertise. | BV80: =IF(_xlfn.IFNA(MATCH(TEXT($BW$3,"00")&TEXT(((ROW()+3)-$BW$2) / 3,"00"),MysticIndex,0),0)=0,"0000",TEXT($BW$3,"00")&TEXT(((ROW()+3)-$BW$2) / 3,"00")) -> 0222 | BW80: =IF(BV80<>"0000",INDEX(MysticAbilities,CA80,BW$15),0) -> 75 | BX80: =IFERROR(IF(BV80<>"0000",INDEX(MysticAbilities,CA80,BX$15),TRUE),TRUE) -> FALSE | BY80: =IF(BV80<>"0000",INDEX(MysticAbilities,CA80,BY$15),0) -> 1 | BZ80: =IF(BV80<>"0000",INDEX(MysticAbilities,CA80,BZ$15),0) -> 0 | CA80: =IF(BV80<>"0000", MATCH(BV80,MysticIndex,0),"") -> 22 | CB80: =IF($BV80<>"0000",INDEX(MysticAbilities,$CA80,CB$15),FALSE) -> TRUE | CC80: =IF($BV80<>"0000",INDEX(MysticAbilities,$CA80,CC$15),FALSE) -> TRUE | CD80: =IF($BV80<>"0000",INDEX(MysticAbilities,$CA80,CD$15),TRUE) -> TRUE
CE81: =B80<>"" -> FALSE
F83: =IF(BV83<>"0000",INDEX(MysticAbilities,CA83,$D$14),"") -> Skill Proficiency: Insight | W83: =IF(BV83="0000", "", IF(INDEX(MysticAbilities,CA83,$W$14)=0, "-", INDEX(MysticAbilities,CA83,$W$14))) -> 1 | Z83: =IF(BV83<>"0000",IF(INDEX(MysticAbilities,CA83,$Z$14)= 0,"",INDEX(MysticAbilities,CA83,$Z$14)),"") ->  | AJ83: =IF(BV83<>"0000",IF(INDEX(MysticAbilities,CA83,$AJ$14)= 0,"",INDEX(MysticAbilities,CA83,$AJ$14)),"") ->  | AQ83: =IF(BV83<>"0000",IF(INDEX(MysticAbilities,CA83,$AQ$14)= 0,"",INDEX(MysticAbilities,CA83,$AQ$14)),"") -> When Selected, the wielder gains proficiency with the Insight Skill. If you already have Proficiency with Insight, you instead gain expertise. If you gain expertise, you double your proficiency bonus on Insight checks. You gain no additional bonus if you already have expertise. | BV83: =IF(_xlfn.IFNA(MATCH(TEXT($BW$3,"00")&TEXT(((ROW()+3)-$BW$2) / 3,"00"),MysticIndex,0),0)=0,"0000",TEXT($BW$3,"00")&TEXT(((ROW()+3)-$BW$2) / 3,"00")) -> 0223 | BW83: =IF(BV83<>"0000",INDEX(MysticAbilities,CA83,BW$15),0) -> 75 | BX83: =IFERROR(IF(BV83<>"0000",INDEX(MysticAbilities,CA83,BX$15),TRUE),TRUE) -> FALSE | BY83: =IF(BV83<>"0000",INDEX(MysticAbilities,CA83,BY$15),0) -> 1 | BZ83: =IF(BV83<>"0000",INDEX(MysticAbilities,CA83,BZ$15),0) -> 0 | CA83: =IF(BV83<>"0000", MATCH(BV83,MysticIndex,0),"") -> 23 | CB83: =IF($BV83<>"0000",INDEX(MysticAbilities,$CA83,CB$15),FALSE) -> TRUE | CC83: =IF($BV83<>"0000",INDEX(MysticAbilities,$CA83,CC$15),FALSE) -> TRUE | CD83: =IF($BV83<>"0000",INDEX(MysticAbilities,$CA83,CD$15),TRUE) -> TRUE
CE84: =B83<>"" -> FALSE
F86: =IF(BV86<>"0000",INDEX(MysticAbilities,CA86,$D$14),"") -> Skill Proficiency: Intimidation | W86: =IF(BV86="0000", "", IF(INDEX(MysticAbilities,CA86,$W$14)=0, "-", INDEX(MysticAbilities,CA86,$W$14))) -> 1 | Z86: =IF(BV86<>"0000",IF(INDEX(MysticAbilities,CA86,$Z$14)= 0,"",INDEX(MysticAbilities,CA86,$Z$14)),"") ->  | AJ86: =IF(BV86<>"0000",IF(INDEX(MysticAbilities,CA86,$AJ$14)= 0,"",INDEX(MysticAbilities,CA86,$AJ$14)),"") ->  | AQ86: =IF(BV86<>"0000",IF(INDEX(MysticAbilities,CA86,$AQ$14)= 0,"",INDEX(MysticAbilities,CA86,$AQ$14)),"") -> When Selected, the wielder gains proficiency with the Intimidation Skill. If you already have Proficiency with Intimidation, you instead gain expertise. If you gain expertise, you double your proficiency bonus on Intimidation checks. You gain no additional bonus if you already have expertise. | BV86: =IF(_xlfn.IFNA(MATCH(TEXT($BW$3,"00")&TEXT(((ROW()+3)-$BW$2) / 3,"00"),MysticIndex,0),0)=0,"0000",TEXT($BW$3,"00")&TEXT(((ROW()+3)-$BW$2) / 3,"00")) -> 0224 | BW86: =IF(BV86<>"0000",INDEX(MysticAbilities,CA86,BW$15),0) -> 75 | BX86: =IFERROR(IF(BV86<>"0000",INDEX(MysticAbilities,CA86,BX$15),TRUE),TRUE) -> FALSE | BY86: =IF(BV86<>"0000",INDEX(MysticAbilities,CA86,BY$15),0) -> 1 | BZ86: =IF(BV86<>"0000",INDEX(MysticAbilities,CA86,BZ$15),0) -> 0 | CA86: =IF(BV86<>"0000", MATCH(BV86,MysticIndex,0),"") -> 24 | CB86: =IF($BV86<>"0000",INDEX(MysticAbilities,$CA86,CB$15),FALSE) -> TRUE | CC86: =IF($BV86<>"0000",INDEX(MysticAbilities,$CA86,CC$15),FALSE) -> TRUE | CD86: =IF($BV86<>"0000",INDEX(MysticAbilities,$CA86,CD$15),TRUE) -> TRUE
CE87: =B86<>"" -> FALSE
F89: =IF(BV89<>"0000",INDEX(MysticAbilities,CA89,$D$14),"") -> Skill Proficiency: Survival | W89: =IF(BV89="0000", "", IF(INDEX(MysticAbilities,CA89,$W$14)=0, "-", INDEX(MysticAbilities,CA89,$W$14))) -> 1 | Z89: =IF(BV89<>"0000",IF(INDEX(MysticAbilities,CA89,$Z$14)= 0,"",INDEX(MysticAbilities,CA89,$Z$14)),"") ->  | AJ89: =IF(BV89<>"0000",IF(INDEX(MysticAbilities,CA89,$AJ$14)= 0,"",INDEX(MysticAbilities,CA89,$AJ$14)),"") ->  | AQ89: =IF(BV89<>"0000",IF(INDEX(MysticAbilities,CA89,$AQ$14)= 0,"",INDEX(MysticAbilities,CA89,$AQ$14)),"") -> When Selected, the wielder gains proficiency with the Survival Skill. If you already have Proficiency with Survival, you instead gain expertise. If you gain expertise, you double your proficiency bonus on Survival checks. You gain no additional bonus if you already have expertise. | BV89: =IF(_xlfn.IFNA(MATCH(TEXT($BW$3,"00")&TEXT(((ROW()+3)-$BW$2) / 3,"00"),MysticIndex,0),0)=0,"0000",TEXT($BW$3,"00")&TEXT(((ROW()+3)-$BW$2) / 3,"00")) -> 0225 | BW89: =IF(BV89<>"0000",INDEX(MysticAbilities,CA89,BW$15),0) -> 75 | BX89: =IFERROR(IF(BV89<>"0000",INDEX(MysticAbilities,CA89,BX$15),TRUE),TRUE) -> FALSE | BY89: =IF(BV89<>"0000",INDEX(MysticAbilities,CA89,BY$15),0) -> 1 | BZ89: =IF(BV89<>"0000",INDEX(MysticAbilities,CA89,BZ$15),0) -> 0 | CA89: =IF(BV89<>"0000", MATCH(BV89,MysticIndex,0),"") -> 25 | CB89: =IF($BV89<>"0000",INDEX(MysticAbilities,$CA89,CB$15),FALSE) -> TRUE | CC89: =IF($BV89<>"0000",INDEX(MysticAbilities,$CA89,CC$15),FALSE) -> TRUE | CD89: =IF($BV89<>"0000",INDEX(MysticAbilities,$CA89,CD$15),TRUE) -> TRUE
CE90: =B89<>"" -> FALSE
D92: =IF(BV92<>"0000",INDEX(MysticAbilities,CA92,$D$14),"") -> Infernal Fire | W92: =IF(BV92="0000", "", IF(INDEX(MysticAbilities,CA92,$W$14)=0, "-", INDEX(MysticAbilities,CA92,$W$14))) -> 1 | Z92: =IF(BV92<>"0000",IF(INDEX(MysticAbilities,CA92,$Z$14)= 0,"",INDEX(MysticAbilities,CA92,$Z$14)),"") ->  | AJ92: =IF(BV92<>"0000",IF(INDEX(MysticAbilities,CA92,$AJ$14)= 0,"",INDEX(MysticAbilities,CA92,$AJ$14)),"") -> STR 15+; | AQ92: =IF(BV92<>"0000",IF(INDEX(MysticAbilities,CA92,$AQ$14)= 0,"",INDEX(MysticAbilities,CA92,$AQ$14)),"") -> Whenever Eternal Flame causes fire damage with a melee strike, the weapon will release a burst of fire, doing an additional 1d6 points of fire damage to the target. This extra damage also stacks on the Searing Flames ability. | BV92: =IF(_xlfn.IFNA(MATCH(TEXT($BW$3,"00")&TEXT(((ROW()+3)-$BW$2) / 3,"00"),MysticIndex,0),0)=0,"0000",TEXT($BW$3,"00")&TEXT(((ROW()+3)-$BW$2) / 3,"00")) -> 0226 | BW92: =IF(BV92<>"0000",INDEX(MysticAbilities,CA92,BW$15),0) -> 60 | BX92: =IFERROR(IF(BV92<>"0000",INDEX(MysticAbilities,CA92,BX$15),TRUE),TRUE) -> TRUE | BY92: =IF(BV92<>"0000",INDEX(MysticAbilities,CA92,BY$15),0) -> 0 | BZ92: =IF(BV92<>"0000",INDEX(MysticAbilities,CA92,BZ$15),0) -> 0 | CA92: =IF(BV92<>"0000", MATCH(BV92,MysticIndex,0),"") -> 26 | CB92: =IF($BV92<>"0000",INDEX(MysticAbilities,$CA92,CB$15),FALSE) -> TRUE | CC92: =IF($BV92<>"0000",INDEX(MysticAbilities,$CA92,CC$15),FALSE) -> FALSE | CD92: =IF($BV92<>"0000",INDEX(MysticAbilities,$CA92,CD$15),TRUE) -> TRUE
CE93: =B92<>"" -> FALSE
F95: =IF(BV95<>"0000",INDEX(MysticAbilities,CA95,$D$14),"") -> Dazzling Burst | W95: =IF(BV95="0000", "", IF(INDEX(MysticAbilities,CA95,$W$14)=0, "-", INDEX(MysticAbilities,CA95,$W$14))) -> 8 | Z95: =IF(BV95<>"0000",IF(INDEX(MysticAbilities,CA95,$Z$14)= 0,"",INDEX(MysticAbilities,CA95,$Z$14)),"") ->  | AJ95: =IF(BV95<>"0000",IF(INDEX(MysticAbilities,CA95,$AJ$14)= 0,"",INDEX(MysticAbilities,CA95,$AJ$14)),"") -> INT 13+; | AQ95: =IF(BV95<>"0000",IF(INDEX(MysticAbilities,CA95,$AQ$14)= 0,"",INDEX(MysticAbilities,CA95,$AQ$14)),"") -> This ability augments the Infernal Edge Ability. On any Critical Hit Eternal Flame's explosion may also cause the target to become stunned until the end of their next turn. The target must make a Constitution Saving Throw Against your Spirit Save DC in order to resist. | BV95: =IF(_xlfn.IFNA(MATCH(TEXT($BW$3,"00")&TEXT(((ROW()+3)-$BW$2) / 3,"00"),MysticIndex,0),0)=0,"0000",TEXT($BW$3,"00")&TEXT(((ROW()+3)-$BW$2) / 3,"00")) -> 0227 | BW95: =IF(BV95<>"0000",INDEX(MysticAbilities,CA95,BW$15),0) -> 75 | BX95: =IFERROR(IF(BV95<>"0000",INDEX(MysticAbilities,CA95,BX$15),TRUE),TRUE) -> FALSE | BY95: =IF(BV95<>"0000",INDEX(MysticAbilities,CA95,BY$15),0) -> 1 | BZ95: =IF(BV95<>"0000",INDEX(MysticAbilities,CA95,BZ$15),0) -> 13 | CA95: =IF(BV95<>"0000", MATCH(BV95,MysticIndex,0),"") -> 27 | CB95: =IF($BV95<>"0000",INDEX(MysticAbilities,$CA95,CB$15),FALSE) -> FALSE | CC95: =IF($BV95<>"0000",INDEX(MysticAbilities,$CA95,CC$15),FALSE) -> FALSE | CD95: =IF($BV95<>"0000",INDEX(MysticAbilities,$CA95,CD$15),TRUE) -> FALSE
CE96: =B95<>"" -> FALSE
F98: =IF(BV98<>"0000",INDEX(MysticAbilities,CA98,$D$14),"") -> Volatility | W98: =IF(BV98="0000", "", IF(INDEX(MysticAbilities,CA98,$W$14)=0, "-", INDEX(MysticAbilities,CA98,$W$14))) -> 10 | Z98: =IF(BV98<>"0000",IF(INDEX(MysticAbilities,CA98,$Z$14)= 0,"",INDEX(MysticAbilities,CA98,$Z$14)),"") ->  | AJ98: =IF(BV98<>"0000",IF(INDEX(MysticAbilities,CA98,$AJ$14)= 0,"",INDEX(MysticAbilities,CA98,$AJ$14)),"") ->  | AQ98: =IF(BV98<>"0000",IF(INDEX(MysticAbilities,CA98,$AQ$14)= 0,"",INDEX(MysticAbilities,CA98,$AQ$14)),"") -> This ability augments the Infernal Edge Ability. When this ability is selected, it increases the additional fire damage to a total of 3d6. | BV98: =IF(_xlfn.IFNA(MATCH(TEXT($BW$3,"00")&TEXT(((ROW()+3)-$BW$2) / 3,"00"),MysticIndex,0),0)=0,"0000",TEXT($BW$3,"00")&TEXT(((ROW()+3)-$BW$2) / 3,"00")) -> 0228 | BW98: =IF(BV98<>"0000",INDEX(MysticAbilities,CA98,BW$15),0) -> 45 | BX98: =IFERROR(IF(BV98<>"0000",INDEX(MysticAbilities,CA98,BX$15),TRUE),TRUE) -> FALSE | BY98: =IF(BV98<>"0000",INDEX(MysticAbilities,CA98,BY$15),0) -> 1 | BZ98: =IF(BV98<>"0000",INDEX(MysticAbilities,CA98,BZ$15),0) -> 12 | CA98: =IF(BV98<>"0000", MATCH(BV98,MysticIndex,0),"") -> 28 | CB98: =IF($BV98<>"0000",INDEX(MysticAbilities,$CA98,CB$15),FALSE) -> FALSE | CC98: =IF($BV98<>"0000",INDEX(MysticAbilities,$CA98,CC$15),FALSE) -> FALSE | CD98: =IF($BV98<>"0000",INDEX(MysticAbilities,$CA98,CD$15),TRUE) -> FALSE
CE99: =B98<>"" -> FALSE
D101: =IF(BV101<>"0000",INDEX(MysticAbilities,CA101,$D$14),"") -> Thermal Vent | W101: =IF(BV101="0000", "", IF(INDEX(MysticAbilities,CA101,$W$14)=0, "-", INDEX(MysticAbilities,CA101,$W$14))) -> 4 | Z101: =IF(BV101<>"0000",IF(INDEX(MysticAbilities,CA101,$Z$14)= 0,"",INDEX(MysticAbilities,CA101,$Z$14)),"") ->  | AJ101: =IF(BV101<>"0000",IF(INDEX(MysticAbilities,CA101,$AJ$14)= 0,"",INDEX(MysticAbilities,CA101,$AJ$14)),"") ->  | AQ101: =IF(BV101<>"0000",IF(INDEX(MysticAbilities,CA101,$AQ$14)= 0,"",INDEX(MysticAbilities,CA101,$AQ$14)),"") -> The creature wielding Eternal Flame gains the ability to alter the environment. As an Acton, the wielder can sacrifice 4 Spirit Charges to activate this ability. This ability causes Eternal Flame to give off an extreme, sweltering wave of heat for two rounds. While active, the Thermal Vent covers an area with a 30 foot diameter centered on Eternal Flame. This area moves with Eternal Flame for the entire duration. When a creature enters the area for the first time on their turn, or begins their turn there, they are forced to make Constitution Saving Throws against your Spirit Save DC. Those that fail these saves immediately gain one level of Exhaustion. A successful Saving Throw against this effect leaves the creature immune to further effects for 24 hours. This ability can be manifested once per Long Rest. | BV101: =IF(_xlfn.IFNA(MATCH(TEXT($BW$3,"00")&TEXT(((ROW()+3)-$BW$2) / 3,"00"),MysticIndex,0),0)=0,"0000",TEXT($BW$3,"00")&TEXT(((ROW()+3)-$BW$2) / 3,"00")) -> 0229 | BW101: =IF(BV101<>"0000",INDEX(MysticAbilities,CA101,BW$15),0) -> 210 | BX101: =IFERROR(IF(BV101<>"0000",INDEX(MysticAbilities,CA101,BX$15),TRUE),TRUE) -> TRUE | BY101: =IF(BV101<>"0000",INDEX(MysticAbilities,CA101,BY$15),0) -> 0 | BZ101: =IF(BV101<>"0000",INDEX(MysticAbilities,CA101,BZ$15),0) -> 0 | CA101: =IF(BV101<>"0000", MATCH(BV101,MysticIndex,0),"") -> 29 | CB101: =IF($BV101<>"0000",INDEX(MysticAbilities,$CA101,CB$15),FALSE) -> TRUE | CC101: =IF($BV101<>"0000",INDEX(MysticAbilities,$CA101,CC$15),FALSE) -> FALSE | CD101: =IF($BV101<>"0000",INDEX(MysticAbilities,$CA101,CD$15),TRUE) -> TRUE
CE102: =B101<>"" -> FALSE
F104: =IF(BV104<>"0000",INDEX(MysticAbilities,CA104,$D$14),"") -> Dry Spell | W104: =IF(BV104="0000", "", IF(INDEX(MysticAbilities,CA104,$W$14)=0, "-", INDEX(MysticAbilities,CA104,$W$14))) -> 8 | Z104: =IF(BV104<>"0000",IF(INDEX(MysticAbilities,CA104,$Z$14)= 0,"",INDEX(MysticAbilities,CA104,$Z$14)),"") ->  | AJ104: =IF(BV104<>"0000",IF(INDEX(MysticAbilities,CA104,$AJ$14)= 0,"",INDEX(MysticAbilities,CA104,$AJ$14)),"") -> INT 13+; | AQ104: =IF(BV104<>"0000",IF(INDEX(MysticAbilities,CA104,$AQ$14)= 0,"",INDEX(MysticAbilities,CA104,$AQ$14)),"") -> This ability augments the Thermal Vent Ability. When Selected, the area of Thermal Vent becomes incredibly dry and arid, prompting a few changes to magical energy: • If a spell dealing fire damage is cast from or targets a creature within this area, it is treated as being one Spell level higher than what it was cast at. • If a spell dealing cold damage is cast from or targets a creature within this area, its damage is reduced by half. • If a spell dealing acid damage or anything dealing with water is cast from or targets a creature within this area, it must be cast using a Spell Slot at least 1 level higher than normal. For damage and effects, treat it as being one Spell Slot lower than what it was cast at. • If a spell manipulates air flow or wind in the are, the speeds of the winds are doubled. | BV104: =IF(_xlfn.IFNA(MATCH(TEXT($BW$3,"00")&TEXT(((ROW()+3)-$BW$2) / 3,"00"),MysticIndex,0),0)=0,"0000",TEXT($BW$3,"00")&TEXT(((ROW()+3)-$BW$2) / 3,"00")) -> 0230 | BW104: =IF(BV104<>"0000",INDEX(MysticAbilities,CA104,BW$15),0) -> 225 | BX104: =IFERROR(IF(BV104<>"0000",INDEX(MysticAbilities,CA104,BX$15),TRUE),TRUE) -> FALSE | BY104: =IF(BV104<>"0000",INDEX(MysticAbilities,CA104,BY$15),0) -> 1 | BZ104: =IF(BV104<>"0000",INDEX(MysticAbilities,CA104,BZ$15),0) -> 13 | CA104: =IF(BV104<>"0000", MATCH(BV104,MysticIndex,0),"") -> 30 | CB104: =IF($BV104<>"0000",INDEX(MysticAbilities,$CA104,CB$15),FALSE) -> FALSE | CC104: =IF($BV104<>"0000",INDEX(MysticAbilities,$CA104,CC$15),FALSE) -> FALSE | CD104: =IF($BV104<>"0000",INDEX(MysticAbilities,$CA104,CD$15),TRUE) -> FALSE
CE105: =B104<>"" -> FALSE
F107: =IF(BV107<>"0000",INDEX(MysticAbilities,CA107,$D$14),"") -> Drought | W107: =IF(BV107="0000", "", IF(INDEX(MysticAbilities,CA107,$W$14)=0, "-", INDEX(MysticAbilities,CA107,$W$14))) -> 8 | Z107: =IF(BV107<>"0000",IF(INDEX(MysticAbilities,CA107,$Z$14)= 0,"",INDEX(MysticAbilities,CA107,$Z$14)),"") ->  | AJ107: =IF(BV107<>"0000",IF(INDEX(MysticAbilities,CA107,$AJ$14)= 0,"",INDEX(MysticAbilities,CA107,$AJ$14)),"") -> WIS 13+; | AQ107: =IF(BV107<>"0000",IF(INDEX(MysticAbilities,CA107,$AQ$14)= 0,"",INDEX(MysticAbilities,CA107,$AQ$14)),"") -> This ability augments the Thermal Vent Ability. As a Bonus Action after using their Action to activate Thrmal Vent, the wielder can spend up to 4 additional Spirit Charges to extend the duration of Thermal Vent by 1 round for every Spirit Charge spent. | BV107: =IF(_xlfn.IFNA(MATCH(TEXT($BW$3,"00")&TEXT(((ROW()+3)-$BW$2) / 3,"00"),MysticIndex,0),0)=0,"0000",TEXT($BW$3,"00")&TEXT(((ROW()+3)-$BW$2) / 3,"00")) -> 0231 | BW107: =IF(BV107<>"0000",INDEX(MysticAbilities,CA107,BW$15),0) -> 75 | BX107: =IFERROR(IF(BV107<>"0000",INDEX(MysticAbilities,CA107,BX$15),TRUE),TRUE) -> FALSE | BY107: =IF(BV107<>"0000",INDEX(MysticAbilities,CA107,BY$15),0) -> 1 | BZ107: =IF(BV107<>"0000",INDEX(MysticAbilities,CA107,BZ$15),0) -> 13 | CA107: =IF(BV107<>"0000", MATCH(BV107,MysticIndex,0),"") -> 31 | CB107: =IF($BV107<>"0000",INDEX(MysticAbilities,$CA107,CB$15),FALSE) -> FALSE | CC107: =IF($BV107<>"0000",INDEX(MysticAbilities,$CA107,CC$15),FALSE) -> FALSE | CD107: =IF($BV107<>"0000",INDEX(MysticAbilities,$CA107,CD$15),TRUE) -> FALSE
CE108: =B107<>"" -> FALSE
F110: =IF(BV110<>"0000",INDEX(MysticAbilities,CA110,$D$14),"") -> Dry Heat | W110: =IF(BV110="0000", "", IF(INDEX(MysticAbilities,CA110,$W$14)=0, "-", INDEX(MysticAbilities,CA110,$W$14))) -> 8 | Z110: =IF(BV110<>"0000",IF(INDEX(MysticAbilities,CA110,$Z$14)= 0,"",INDEX(MysticAbilities,CA110,$Z$14)),"") ->  | AJ110: =IF(BV110<>"0000",IF(INDEX(MysticAbilities,CA110,$AJ$14)= 0,"",INDEX(MysticAbilities,CA110,$AJ$14)),"") -> CHA 13+; | AQ110: =IF(BV110<>"0000",IF(INDEX(MysticAbilities,CA110,$AQ$14)= 0,"",INDEX(MysticAbilities,CA110,$AQ$14)),"") -> This ability augments the Thermal Vent Ability. When selected, the area of Thermal Vent is doubled, to a 60 feet diameter. | BV110: =IF(_xlfn.IFNA(MATCH(TEXT($BW$3,"00")&TEXT(((ROW()+3)-$BW$2) / 3,"00"),MysticIndex,0),0)=0,"0000",TEXT($BW$3,"00")&TEXT(((ROW()+3)-$BW$2) / 3,"00")) -> 0232 | BW110: =IF(BV110<>"0000",INDEX(MysticAbilities,CA110,BW$15),0) -> 45 | BX110: =IFERROR(IF(BV110<>"0000",INDEX(MysticAbilities,CA110,BX$15),TRUE),TRUE) -> FALSE | BY110: =IF(BV110<>"0000",INDEX(MysticAbilities,CA110,BY$15),0) -> 1 | BZ110: =IF(BV110<>"0000",INDEX(MysticAbilities,CA110,BZ$15),0) -> 13 | CA110: =IF(BV110<>"0000", MATCH(BV110,MysticIndex,0),"") -> 32 | CB110: =IF($BV110<>"0000",INDEX(MysticAbilities,$CA110,CB$15),FALSE) -> FALSE | CC110: =IF($BV110<>"0000",INDEX(MysticAbilities,$CA110,CC$15),FALSE) -> FALSE | CD110: =IF($BV110<>"0000",INDEX(MysticAbilities,$CA110,CD$15),TRUE) -> FALSE
CE111: =B110<>"" -> FALSE
F113: =IF(BV113<>"0000",INDEX(MysticAbilities,CA113,$D$14),"") -> Firestorm | W113: =IF(BV113="0000", "", IF(INDEX(MysticAbilities,CA113,$W$14)=0, "-", INDEX(MysticAbilities,CA113,$W$14))) -> 10 | Z113: =IF(BV113<>"0000",IF(INDEX(MysticAbilities,CA113,$Z$14)= 0,"",INDEX(MysticAbilities,CA113,$Z$14)),"") ->  | AJ113: =IF(BV113<>"0000",IF(INDEX(MysticAbilities,CA113,$AJ$14)= 0,"",INDEX(MysticAbilities,CA113,$AJ$14)),"") ->  | AQ113: =IF(BV113<>"0000",IF(INDEX(MysticAbilities,CA113,$AQ$14)= 0,"",INDEX(MysticAbilities,CA113,$AQ$14)),"") -> This ability augments the Thermal Vent Ability. As a Bonus action, while the wielder is within the Thermal Vent, they can cause Firestorm to deal 5d6 fire damage to all creatures in the area that have at least 1 level of Exhuastion. Doing this requires the wielder spend 3 Spirit Charges to Activate. | BV113: =IF(_xlfn.IFNA(MATCH(TEXT($BW$3,"00")&TEXT(((ROW()+3)-$BW$2) / 3,"00"),MysticIndex,0),0)=0,"0000",TEXT($BW$3,"00")&TEXT(((ROW()+3)-$BW$2) / 3,"00")) -> 0233 | BW113: =IF(BV113<>"0000",INDEX(MysticAbilities,CA113,BW$15),0) -> 75 | BX113: =IFERROR(IF(BV113<>"0000",INDEX(MysticAbilities,CA113,BX$15),TRUE),TRUE) -> FALSE | BY113: =IF(BV113<>"0000",INDEX(MysticAbilities,CA113,BY$15),0) -> 1 | BZ113: =IF(BV113<>"0000",INDEX(MysticAbilities,CA113,BZ$15),0) -> 13 | CA113: =IF(BV113<>"0000", MATCH(BV113,MysticIndex,0),"") -> 33 | CB113: =IF($BV113<>"0000",INDEX(MysticAbilities,$CA113,CB$15),FALSE) -> FALSE | CC113: =IF($BV113<>"0000",INDEX(MysticAbilities,$CA113,CC$15),FALSE) -> FALSE | CD113: =IF($BV113<>"0000",INDEX(MysticAbilities,$CA113,CD$15),TRUE) -> TRUE
CE114: =B113<>"" -> FALSE
H116: =IF(BV116<>"0000",INDEX(MysticAbilities,CA116,$D$14),"") -> Focused Flames | W116: =IF(BV116="0000", "", IF(INDEX(MysticAbilities,CA116,$W$14)=0, "-", INDEX(MysticAbilities,CA116,$W$14))) -> 12 | Z116: =IF(BV116<>"0000",IF(INDEX(MysticAbilities,CA116,$Z$14)= 0,"",INDEX(MysticAbilities,CA116,$Z$14)),"") ->  | AJ116: =IF(BV116<>"0000",IF(INDEX(MysticAbilities,CA116,$AJ$14)= 0,"",INDEX(MysticAbilities,CA116,$AJ$14)),"") -> WIS 15+; | AQ116: =IF(BV116<>"0000",IF(INDEX(MysticAbilities,CA116,$AQ$14)= 0,"",INDEX(MysticAbilities,CA116,$AQ$14)),"") -> This ability augments the Thermal Vent Ability. When known, the Thermal Vent no longer effects allies. As such, they need not make any Saving Throws and do not take damage while in the range of Thermal Vent. | BV116: =IF(_xlfn.IFNA(MATCH(TEXT($BW$3,"00")&TEXT(((ROW()+3)-$BW$2) / 3,"00"),MysticIndex,0),0)=0,"0000",TEXT($BW$3,"00")&TEXT(((ROW()+3)-$BW$2) / 3,"00")) -> 0234 | BW116: =IF(BV116<>"0000",INDEX(MysticAbilities,CA116,BW$15),0) -> 60 | BX116: =IFERROR(IF(BV116<>"0000",INDEX(MysticAbilities,CA116,BX$15),TRUE),TRUE) -> FALSE | BY116: =IF(BV116<>"0000",INDEX(MysticAbilities,CA116,BY$15),0) -> 2 | BZ116: =IF(BV116<>"0000",INDEX(MysticAbilities,CA116,BZ$15),0) -> 1203 | CA116: =IF(BV116<>"0000", MATCH(BV116,MysticIndex,0),"") -> 34 | CB116: =IF($BV116<>"0000",INDEX(MysticAbilities,$CA116,CB$15),FALSE) -> FALSE | CC116: =IF($BV116<>"0000",INDEX(MysticAbilities,$CA116,CC$15),FALSE) -> FALSE | CD116: =IF($BV116<>"0000",INDEX(MysticAbilities,$CA116,CD$15),TRUE) -> FALSE
CE117: =B116<>"" -> FALSE
F119: =IF(BV119<>"0000",INDEX(MysticAbilities,CA119,$D$14),"") -> Burning Skin | W119: =IF(BV119="0000", "", IF(INDEX(MysticAbilities,CA119,$W$14)=0, "-", INDEX(MysticAbilities,CA119,$W$14))) -> 15 | Z119: =IF(BV119<>"0000",IF(INDEX(MysticAbilities,CA119,$Z$14)= 0,"",INDEX(MysticAbilities,CA119,$Z$14)),"") -> Salamander Skin | AJ119: =IF(BV119<>"0000",IF(INDEX(MysticAbilities,CA119,$AJ$14)= 0,"",INDEX(MysticAbilities,CA119,$AJ$14)),"") -> CON 13+; | AQ119: =IF(BV119<>"0000",IF(INDEX(MysticAbilities,CA119,$AQ$14)= 0,"",INDEX(MysticAbilities,CA119,$AQ$14)),"") -> This ability augments the Thermal Vent Ability. While the Thermal Vent is active and the wielder is within the area, they gain 10 temporary hit points at the beginning of their turn. | BV119: =IF(_xlfn.IFNA(MATCH(TEXT($BW$3,"00")&TEXT(((ROW()+3)-$BW$2) / 3,"00"),MysticIndex,0),0)=0,"0000",TEXT($BW$3,"00")&TEXT(((ROW()+3)-$BW$2) / 3,"00")) -> 0235 | BW119: =IF(BV119<>"0000",INDEX(MysticAbilities,CA119,BW$15),0) -> 45 | BX119: =IFERROR(IF(BV119<>"0000",INDEX(MysticAbilities,CA119,BX$15),TRUE),TRUE) -> FALSE | BY119: =IF(BV119<>"0000",INDEX(MysticAbilities,CA119,BY$15),0) -> 1 | BZ119: =IF(BV119<>"0000",INDEX(MysticAbilities,CA119,BZ$15),0) -> 12 | CA119: =IF(BV119<>"0000", MATCH(BV119,MysticIndex,0),"") -> 35 | CB119: =IF($BV119<>"0000",INDEX(MysticAbilities,$CA119,CB$15),FALSE) -> FALSE | CC119: =IF($BV119<>"0000",INDEX(MysticAbilities,$CA119,CC$15),FALSE) -> FALSE | CD119: =IF($BV119<>"0000",INDEX(MysticAbilities,$CA119,CD$15),TRUE) -> FALSE
CE120: =B119<>"" -> FALSE
D122: =IF(BV122<>"0000",INDEX(MysticAbilities,CA122,$D$14),"") -> Weapon Finesse | W122: =IF(BV122="0000", "", IF(INDEX(MysticAbilities,CA122,$W$14)=0, "-", INDEX(MysticAbilities,CA122,$W$14))) -> 5 | Z122: =IF(BV122<>"0000",IF(INDEX(MysticAbilities,CA122,$Z$14)= 0,"",INDEX(MysticAbilities,CA122,$Z$14)),"") ->  | AJ122: =IF(BV122<>"0000",IF(INDEX(MysticAbilities,CA122,$AJ$14)= 0,"",INDEX(MysticAbilities,CA122,$AJ$14)),"") ->  | AQ122: =IF(BV122<>"0000",IF(INDEX(MysticAbilities,CA122,$AQ$14)= 0,"",INDEX(MysticAbilities,CA122,$AQ$14)),"") -> While bonded to Eternal Flame and using it to make a Weapon Attack Roll, one per round, you can choose to add your Dexterity Modifier as a bonus to either your Attack or damage roll with this weapon. | BV122: =IF(_xlfn.IFNA(MATCH(TEXT($BW$3,"00")&TEXT(((ROW()+3)-$BW$2) / 3,"00"),MysticIndex,0),0)=0,"0000",TEXT($BW$3,"00")&TEXT(((ROW()+3)-$BW$2) / 3,"00")) -> 0236 | BW122: =IF(BV122<>"0000",INDEX(MysticAbilities,CA122,BW$15),0) -> 60 | BX122: =IFERROR(IF(BV122<>"0000",INDEX(MysticAbilities,CA122,BX$15),TRUE),TRUE) -> TRUE | BY122: =IF(BV122<>"0000",INDEX(MysticAbilities,CA122,BY$15),0) -> 0 | BZ122: =IF(BV122<>"0000",INDEX(MysticAbilities,CA122,BZ$15),0) -> 0 | CA122: =IF(BV122<>"0000", MATCH(BV122,MysticIndex,0),"") -> 36 | CB122: =IF($BV122<>"0000",INDEX(MysticAbilities,$CA122,CB$15),FALSE) -> TRUE | CC122: =IF($BV122<>"0000",INDEX(MysticAbilities,$CA122,CC$15),FALSE) -> FALSE | CD122: =IF($BV122<>"0000",INDEX(MysticAbilities,$CA122,CD$15),TRUE) -> TRUE
CE123: =B122<>"" -> FALSE
D125: =IF(BV125<>"0000",INDEX(MysticAbilities,CA125,$D$14),"") -> Ember | W125: =IF(BV125="0000", "", IF(INDEX(MysticAbilities,CA125,$W$14)=0, "-", INDEX(MysticAbilities,CA125,$W$14))) -> 5 | Z125: =IF(BV125<>"0000",IF(INDEX(MysticAbilities,CA125,$Z$14)= 0,"",INDEX(MysticAbilities,CA125,$Z$14)),"") ->  | AJ125: =IF(BV125<>"0000",IF(INDEX(MysticAbilities,CA125,$AJ$14)= 0,"",INDEX(MysticAbilities,CA125,$AJ$14)),"") -> INT 15+; | AQ125: =IF(BV125<>"0000",IF(INDEX(MysticAbilities,CA125,$AQ$14)= 0,"",INDEX(MysticAbilities,CA125,$AQ$14)),"") -> This ability grants an amount of Fast Healing equivalent to the number of Spirit Charges spent to activate it. As a Bonus Action, the wielder can spend a maximum of 5 Spirit Charges. This effect lasts for 5 rounds. This ability can be used once per Short Rest. | BV125: =IF(_xlfn.IFNA(MATCH(TEXT($BW$3,"00")&TEXT(((ROW()+3)-$BW$2) / 3,"00"),MysticIndex,0),0)=0,"0000",TEXT($BW$3,"00")&TEXT(((ROW()+3)-$BW$2) / 3,"00")) -> 0237 | BW125: =IF(BV125<>"0000",INDEX(MysticAbilities,CA125,BW$15),0) -> 75 | BX125: =IFERROR(IF(BV125<>"0000",INDEX(MysticAbilities,CA125,BX$15),TRUE),TRUE) -> TRUE | BY125: =IF(BV125<>"0000",INDEX(MysticAbilities,CA125,BY$15),0) -> 0 | BZ125: =IF(BV125<>"0000",INDEX(MysticAbilities,CA125,BZ$15),0) -> 0 | CA125: =IF(BV125<>"0000", MATCH(BV125,MysticIndex,0),"") -> 37 | CB125: =IF($BV125<>"0000",INDEX(MysticAbilities,$CA125,CB$15),FALSE) -> TRUE | CC125: =IF($BV125<>"0000",INDEX(MysticAbilities,$CA125,CC$15),FALSE) -> FALSE | CD125: =IF($BV125<>"0000",INDEX(MysticAbilities,$CA125,CD$15),TRUE) -> TRUE
CE126: =B125<>"" -> FALSE
F128: =IF(BV128<>"0000",INDEX(MysticAbilities,CA128,$D$14),"") -> Glowing Ember | W128: =IF(BV128="0000", "", IF(INDEX(MysticAbilities,CA128,$W$14)=0, "-", INDEX(MysticAbilities,CA128,$W$14))) -> 8 | Z128: =IF(BV128<>"0000",IF(INDEX(MysticAbilities,CA128,$Z$14)= 0,"",INDEX(MysticAbilities,CA128,$Z$14)),"") ->  | AJ128: =IF(BV128<>"0000",IF(INDEX(MysticAbilities,CA128,$AJ$14)= 0,"",INDEX(MysticAbilities,CA128,$AJ$14)),"") ->  | AQ128: =IF(BV128<>"0000",IF(INDEX(MysticAbilities,CA128,$AQ$14)= 0,"",INDEX(MysticAbilities,CA128,$AQ$14)),"") -> This ability augments the Ember Ability. The amount of Fast Healing gained from each Spirit Charge is doubled. | BV128: =IF(_xlfn.IFNA(MATCH(TEXT($BW$3,"00")&TEXT(((ROW()+3)-$BW$2) / 3,"00"),MysticIndex,0),0)=0,"0000",TEXT($BW$3,"00")&TEXT(((ROW()+3)-$BW$2) / 3,"00")) -> 0238 | BW128: =IF(BV128<>"0000",INDEX(MysticAbilities,CA128,BW$15),0) -> 30 | BX128: =IFERROR(IF(BV128<>"0000",INDEX(MysticAbilities,CA128,BX$15),TRUE),TRUE) -> FALSE | BY128: =IF(BV128<>"0000",INDEX(MysticAbilities,CA128,BY$15),0) -> 1 | BZ128: =IF(BV128<>"0000",INDEX(MysticAbilities,CA128,BZ$15),0) -> 13 | CA128: =IF(BV128<>"0000", MATCH(BV128,MysticIndex,0),"") -> 38 | CB128: =IF($BV128<>"0000",INDEX(MysticAbilities,$CA128,CB$15),FALSE) -> FALSE | CC128: =IF($BV128<>"0000",INDEX(MysticAbilities,$CA128,CC$15),FALSE) -> FALSE | CD128: =IF($BV128<>"0000",INDEX(MysticAbilities,$CA128,CD$15),TRUE) -> FALSE
CE129: =B128<>"" -> FALSE
F131: =IF(BV131<>"0000",INDEX(MysticAbilities,CA131,$D$14),"") -> Resiliant Ember | W131: =IF(BV131="0000", "", IF(INDEX(MysticAbilities,CA131,$W$14)=0, "-", INDEX(MysticAbilities,CA131,$W$14))) -> 8 | Z131: =IF(BV131<>"0000",IF(INDEX(MysticAbilities,CA131,$Z$14)= 0,"",INDEX(MysticAbilities,CA131,$Z$14)),"") ->  | AJ131: =IF(BV131<>"0000",IF(INDEX(MysticAbilities,CA131,$AJ$14)= 0,"",INDEX(MysticAbilities,CA131,$AJ$14)),"") ->  | AQ131: =IF(BV131<>"0000",IF(INDEX(MysticAbilities,CA131,$AQ$14)= 0,"",INDEX(MysticAbilities,CA131,$AQ$14)),"") -> This ability augments the Ember Ability. When this ability is known, it increases the duration of Ember to 10 rounds. | BV131: =IF(_xlfn.IFNA(MATCH(TEXT($BW$3,"00")&TEXT(((ROW()+3)-$BW$2) / 3,"00"),MysticIndex,0),0)=0,"0000",TEXT($BW$3,"00")&TEXT(((ROW()+3)-$BW$2) / 3,"00")) -> 0239 | BW131: =IF(BV131<>"0000",INDEX(MysticAbilities,CA131,BW$15),0) -> 30 | BX131: =IFERROR(IF(BV131<>"0000",INDEX(MysticAbilities,CA131,BX$15),TRUE),TRUE) -> FALSE | BY131: =IF(BV131<>"0000",INDEX(MysticAbilities,CA131,BY$15),0) -> 1 | BZ131: =IF(BV131<>"0000",INDEX(MysticAbilities,CA131,BZ$15),0) -> 13 | CA131: =IF(BV131<>"0000", MATCH(BV131,MysticIndex,0),"") -> 39 | CB131: =IF($BV131<>"0000",INDEX(MysticAbilities,$CA131,CB$15),FALSE) -> FALSE | CC131: =IF($BV131<>"0000",INDEX(MysticAbilities,$CA131,CC$15),FALSE) -> FALSE | CD131: =IF($BV131<>"0000",INDEX(MysticAbilities,$CA131,CD$15),TRUE) -> FALSE
CE132: =B131<>"" -> FALSE
F134: =IF(BV134<>"0000",INDEX(MysticAbilities,CA134,$D$14),"") -> Regeneration | W134: =IF(BV134="0000", "", IF(INDEX(MysticAbilities,CA134,$W$14)=0, "-", INDEX(MysticAbilities,CA134,$W$14))) -> 13 | Z134: =IF(BV134<>"0000",IF(INDEX(MysticAbilities,CA134,$Z$14)= 0,"",INDEX(MysticAbilities,CA134,$Z$14)),"") ->  | AJ134: =IF(BV134<>"0000",IF(INDEX(MysticAbilities,CA134,$AJ$14)= 0,"",INDEX(MysticAbilities,CA134,$AJ$14)),"") -> CON 15+; | AQ134: =IF(BV134<>"0000",IF(INDEX(MysticAbilities,CA134,$AQ$14)= 0,"",INDEX(MysticAbilities,CA134,$AQ$14)),"") -> This ability extends the Ember Ability. As an Action on the wielder's turn, they can spend Up to 5 Spirit Charges to instantly recover the health that would otherwise be restored by Ember. Take the Fast Healing amount and multiply it by the number of turns Ember would normally last to determine how much health is recovered. This counts as a use of Ember. | BV134: =IF(_xlfn.IFNA(MATCH(TEXT($BW$3,"00")&TEXT(((ROW()+3)-$BW$2) / 3,"00"),MysticIndex,0),0)=0,"0000",TEXT($BW$3,"00")&TEXT(((ROW()+3)-$BW$2) / 3,"00")) -> 0240 | BW134: =IF($BV134<>"0000",INDEX(MysticAbilities,$CA134,$BW$15),0) -> 90 | BX134: =IFERROR(IF($BV134<>"0000",INDEX(MysticAbilities,$CA134,$BX$15),TRUE),TRUE) -> FALSE | BY134: =IF($BV134<>"0000",INDEX(MysticAbilities,$CA134,$BY$15),0) -> 1 | BZ134: =IF($BV134<>"0000",INDEX(MysticAbilities,$CA134,$BZ$15),0) -> 12 | CA134: =IF($BV134<>"0000", MATCH($BV134,MysticIndex,0),"") -> 40 | CB134: =IF($BV134<>"0000",INDEX(MysticAbilities,$CA134,$CB$15),FALSE) -> FALSE | CC134: =IF($BV134<>"0000",INDEX(MysticAbilities,$CA134,$CC$15),FALSE) -> FALSE | CD134: =IF($BV134<>"0000",INDEX(MysticAbilities,$CA134,CD$15),TRUE) -> TRUE
CE135: =B134<>"" -> FALSE
D137: =IF(BV137<>"0000",INDEX(MysticAbilities,CA137,$D$14),"") -> Combustion | W137: =IF(BV137="0000", "", IF(INDEX(MysticAbilities,CA137,$W$14)=0, "-", INDEX(MysticAbilities,CA137,$W$14))) -> 5 | Z137: =IF(BV137<>"0000",IF(INDEX(MysticAbilities,CA137,$Z$14)= 0,"",INDEX(MysticAbilities,CA137,$Z$14)),"") ->  | AJ137: =IF(BV137<>"0000",IF(INDEX(MysticAbilities,CA137,$AJ$14)= 0,"",INDEX(MysticAbilities,CA137,$AJ$14)),"") -> DEX 13+; | AQ137: =IF(BV137<>"0000",IF(INDEX(MysticAbilities,CA137,$AQ$14)= 0,"",INDEX(MysticAbilities,CA137,$AQ$14)),"") -> Eternal Flame can provide a powerful boost of momentum to the wielder. As a Bonus Action on their turn, by spending 1 Spirit Charge, the wielder of Eternal Flame can use this ability to take the Dash or Disengage Action. They must move in a straight line while doing this. | BV137: =IF(_xlfn.IFNA(MATCH(TEXT($BW$3,"00")&TEXT(((ROW()+3)-$BW$2) / 3,"00"),MysticIndex,0),0)=0,"0000",TEXT($BW$3,"00")&TEXT(((ROW()+3)-$BW$2) / 3,"00")) -> 0241 | BW137: =IF(BV137<>"0000",INDEX(MysticAbilities,CA137,BW$15),0) -> 75 | BX137: =IFERROR(IF(BV137<>"0000",INDEX(MysticAbilities,CA137,BX$15),TRUE),TRUE) -> TRUE | BY137: =IF(BV137<>"0000",INDEX(MysticAbilities,CA137,BY$15),0) -> 0 | BZ137: =IF(BV137<>"0000",INDEX(MysticAbilities,CA137,BZ$15),0) -> 0 | CA137: =IF(BV137<>"0000", MATCH(BV137,MysticIndex,0),"") -> 41 | CB137: =IF($BV137<>"0000",INDEX(MysticAbilities,$CA137,CB$15),FALSE) -> TRUE | CC137: =IF($BV137<>"0000",INDEX(MysticAbilities,$CA137,CC$15),FALSE) -> FALSE | CD137: =IF($BV137<>"0000",INDEX(MysticAbilities,$CA137,CD$15),TRUE) -> TRUE
CE138: =B137<>"" -> FALSE
F140: =IF(BV140<>"0000",INDEX(MysticAbilities,CA140,$D$14),"") -> Burst | W140: =IF(BV140="0000", "", IF(INDEX(MysticAbilities,CA140,$W$14)=0, "-", INDEX(MysticAbilities,CA140,$W$14))) -> 8 | Z140: =IF(BV140<>"0000",IF(INDEX(MysticAbilities,CA140,$Z$14)= 0,"",INDEX(MysticAbilities,CA140,$Z$14)),"") ->  | AJ140: =IF(BV140<>"0000",IF(INDEX(MysticAbilities,CA140,$AJ$14)= 0,"",INDEX(MysticAbilities,CA140,$AJ$14)),"") -> DEX 15+; | AQ140: =IF(BV140<>"0000",IF(INDEX(MysticAbilities,CA140,$AQ$14)= 0,"",INDEX(MysticAbilities,CA140,$AQ$14)),"") -> This ability augments the Combustion Ability. With careful manipulation of the bursts of energy, the wielder may now turn and weave while they Dash or Disengage. | BV140: =IF(_xlfn.IFNA(MATCH(TEXT($BW$3,"00")&TEXT(((ROW()+3)-$BW$2) / 3,"00"),MysticIndex,0),0)=0,"0000",TEXT($BW$3,"00")&TEXT(((ROW()+3)-$BW$2) / 3,"00")) -> 0242 | BW140: =IF(BV140<>"0000",INDEX(MysticAbilities,CA140,BW$15),0) -> 45 | BX140: =IFERROR(IF(BV140<>"0000",INDEX(MysticAbilities,CA140,BX$15),TRUE),TRUE) -> FALSE | BY140: =IF(BV140<>"0000",INDEX(MysticAbilities,CA140,BY$15),0) -> 1 | BZ140: =IF(BV140<>"0000",INDEX(MysticAbilities,CA140,BZ$15),0) -> 12 | CA140: =IF(BV140<>"0000", MATCH(BV140,MysticIndex,0),"") -> 42 | CB140: =IF($BV140<>"0000",INDEX(MysticAbilities,$CA140,CB$15),FALSE) -> FALSE | CC140: =IF($BV140<>"0000",INDEX(MysticAbilities,$CA140,CC$15),FALSE) -> FALSE | CD140: =IF($BV140<>"0000",INDEX(MysticAbilities,$CA140,CD$15),TRUE) -> FALSE
CE141: =B140<>"" -> FALSE
H143: =IF(BV143<>"0000",INDEX(MysticAbilities,CA143,$D$14),"") -> Scorching Speed | W143: =IF(BV143="0000", "", IF(INDEX(MysticAbilities,CA143,$W$14)=0, "-", INDEX(MysticAbilities,CA143,$W$14))) -> 8 | Z143: =IF(BV143<>"0000",IF(INDEX(MysticAbilities,CA143,$Z$14)= 0,"",INDEX(MysticAbilities,CA143,$Z$14)),"") ->  | AJ143: =IF(BV143<>"0000",IF(INDEX(MysticAbilities,CA143,$AJ$14)= 0,"",INDEX(MysticAbilities,CA143,$AJ$14)),"") -> DEX 15+; | AQ143: =IF(BV143<>"0000",IF(INDEX(MysticAbilities,CA143,$AQ$14)= 0,"",INDEX(MysticAbilities,CA143,$AQ$14)),"") -> This ability augments the Combustion Ability. When the wielder chooses to Dash of Disengage with this ability, their speed is also doubled until the end of their turn. | BV143: =IF(_xlfn.IFNA(MATCH(TEXT($BW$3,"00")&TEXT(((ROW()+3)-$BW$2) / 3,"00"),MysticIndex,0),0)=0,"0000",TEXT($BW$3,"00")&TEXT(((ROW()+3)-$BW$2) / 3,"00")) -> 0243 | BW143: =IF(BV143<>"0000",INDEX(MysticAbilities,CA143,BW$15),0) -> 45 | BX143: =IFERROR(IF(BV143<>"0000",INDEX(MysticAbilities,CA143,BX$15),TRUE),TRUE) -> FALSE | BY143: =IF(BV143<>"0000",INDEX(MysticAbilities,CA143,BY$15),0) -> 2 | BZ143: =IF(BV143<>"0000",INDEX(MysticAbilities,CA143,BZ$15),0) -> 1200 | CA143: =IF(BV143<>"0000", MATCH(BV143,MysticIndex,0),"") -> 43 | CB143: =IF($BV143<>"0000",INDEX(MysticAbilities,$CA143,CB$15),FALSE) -> FALSE | CC143: =IF($BV143<>"0000",INDEX(MysticAbilities,$CA143,CC$15),FALSE) -> FALSE | CD143: =IF($BV143<>"0000",INDEX(MysticAbilities,$CA143,CD$15),TRUE) -> FALSE
CE144: =B143<>"" -> FALSE
D146: =IF(BV146<>"0000",INDEX(MysticAbilities,CA146,$D$14),"") -> Flame Cloak | W146: =IF(BV146="0000", "", IF(INDEX(MysticAbilities,CA146,$W$14)=0, "-", INDEX(MysticAbilities,CA146,$W$14))) -> 6 | Z146: =IF(BV146<>"0000",IF(INDEX(MysticAbilities,CA146,$Z$14)= 0,"",INDEX(MysticAbilities,CA146,$Z$14)),"") ->  | AJ146: =IF(BV146<>"0000",IF(INDEX(MysticAbilities,CA146,$AJ$14)= 0,"",INDEX(MysticAbilities,CA146,$AJ$14)),"") ->  | AQ146: =IF(BV146<>"0000",IF(INDEX(MysticAbilities,CA146,$AQ$14)= 0,"",INDEX(MysticAbilities,CA146,$AQ$14)),"") -> The Flame Cloak ability coats Eternal Flame's wielder in a cloak of fire draped across their entire body. As a Bonus Action on their turn, the wielder can spend 1 Spirit Charge to wreathe their body in flames. These flames deal 1d6 fire damage to any creature that begins its turn adjacent to the wielder, or attempts to grapple them or is grappled by them. These flames remain for 10 minutes. | BV146: =IF(_xlfn.IFNA(MATCH(TEXT($BW$3,"00")&TEXT(((ROW()+3)-$BW$2) / 3,"00"),MysticIndex,0),0)=0,"0000",TEXT($BW$3,"00")&TEXT(((ROW()+3)-$BW$2) / 3,"00")) -> 0244 | BW146: =IF(BV146<>"0000",INDEX(MysticAbilities,CA146,BW$15),0) -> 105 | BX146: =IFERROR(IF(BV146<>"0000",INDEX(MysticAbilities,CA146,BX$15),TRUE),TRUE) -> TRUE | BY146: =IF(BV146<>"0000",INDEX(MysticAbilities,CA146,BY$15),0) -> 0 | BZ146: =IF(BV146<>"0000",INDEX(MysticAbilities,CA146,BZ$15),0) -> 0 | CA146: =IF(BV146<>"0000", MATCH(BV146,MysticIndex,0),"") -> 44 | CB146: =IF($BV146<>"0000",INDEX(MysticAbilities,$CA146,CB$15),FALSE) -> TRUE | CC146: =IF($BV146<>"0000",INDEX(MysticAbilities,$CA146,CC$15),FALSE) -> FALSE | CD146: =IF($BV146<>"0000",INDEX(MysticAbilities,$CA146,CD$15),TRUE) -> TRUE
CE147: =B146<>"" -> FALSE
F149: =IF(BV149<>"0000",INDEX(MysticAbilities,CA149,$D$14),"") -> Raging Fire | W149: =IF(BV149="0000", "", IF(INDEX(MysticAbilities,CA149,$W$14)=0, "-", INDEX(MysticAbilities,CA149,$W$14))) -> 10 | Z149: =IF(BV149<>"0000",IF(INDEX(MysticAbilities,CA149,$Z$14)= 0,"",INDEX(MysticAbilities,CA149,$Z$14)),"") ->  | AJ149: =IF(BV149<>"0000",IF(INDEX(MysticAbilities,CA149,$AJ$14)= 0,"",INDEX(MysticAbilities,CA149,$AJ$14)),"") ->  | AQ149: =IF(BV149<>"0000",IF(INDEX(MysticAbilities,CA149,$AQ$14)= 0,"",INDEX(MysticAbilities,CA149,$AQ$14)),"") -> This ability augments the Flame Cloak ability. The flames of the Flame Cloak grow large an wild when this is known. The damage done by Flame Cloak increases to 2d6. | BV149: =IF(_xlfn.IFNA(MATCH(TEXT($BW$3,"00")&TEXT(((ROW()+3)-$BW$2) / 3,"00"),MysticIndex,0),0)=0,"0000",TEXT($BW$3,"00")&TEXT(((ROW()+3)-$BW$2) / 3,"00")) -> 0245 | BW149: =IF(BV149<>"0000",INDEX(MysticAbilities,CA149,BW$15),0) -> 45 | BX149: =IFERROR(IF(BV149<>"0000",INDEX(MysticAbilities,CA149,BX$15),TRUE),TRUE) -> FALSE | BY149: =IF(BV149<>"0000",INDEX(MysticAbilities,CA149,BY$15),0) -> 1 | BZ149: =IF(BV149<>"0000",INDEX(MysticAbilities,CA149,BZ$15),0) -> 12 | CA149: =IF(BV149<>"0000", MATCH(BV149,MysticIndex,0),"") -> 45 | CB149: =IF($BV149<>"0000",INDEX(MysticAbilities,$CA149,CB$15),FALSE) -> FALSE | CC149: =IF($BV149<>"0000",INDEX(MysticAbilities,$CA149,CC$15),FALSE) -> FALSE | CD149: =IF($BV149<>"0000",INDEX(MysticAbilities,$CA149,CD$15),TRUE) -> FALSE
CE150: =B149<>"" -> FALSE
D152: =IF(BV152<>"0000",INDEX(MysticAbilities,CA152,$D$14),"") -> Increase Threat Range | W152: =IF(BV152="0000", "", IF(INDEX(MysticAbilities,CA152,$W$14)=0, "-", INDEX(MysticAbilities,CA152,$W$14))) -> 7 | Z152: =IF(BV152<>"0000",IF(INDEX(MysticAbilities,CA152,$Z$14)= 0,"",INDEX(MysticAbilities,CA152,$Z$14)),"") ->  | AJ152: =IF(BV152<>"0000",IF(INDEX(MysticAbilities,CA152,$AJ$14)= 0,"",INDEX(MysticAbilities,CA152,$AJ$14)),"") ->  | AQ152: =IF(BV152<>"0000",IF(INDEX(MysticAbilities,CA152,$AQ$14)= 0,"",INDEX(MysticAbilities,CA152,$AQ$14)),"") -> Increases the Critical Threat Range of the weapon by 1. This makes its normal crit range 19-20. If the wielder already possess an extension of this range, it instead becomes 18-20. | BV152: =IF(_xlfn.IFNA(MATCH(TEXT($BW$3,"00")&TEXT(((ROW()+3)-$BW$2) / 3,"00"),MysticIndex,0),0)=0,"0000",TEXT($BW$3,"00")&TEXT(((ROW()+3)-$BW$2) / 3,"00")) -> 0246 | BW152: =IF(BV152<>"0000",INDEX(MysticAbilities,CA152,BW$15),0) -> 45 | BX152: =IFERROR(IF(BV152<>"0000",INDEX(MysticAbilities,CA152,BX$15),TRUE),TRUE) -> TRUE | BY152: =IF(BV152<>"0000",INDEX(MysticAbilities,CA152,BY$15),0) -> 0 | BZ152: =IF(BV152<>"0000",INDEX(MysticAbilities,CA152,BZ$15),0) -> 0 | CA152: =IF(BV152<>"0000", MATCH(BV152,MysticIndex,0),"") -> 46 | CB152: =IF($BV152<>"0000",INDEX(MysticAbilities,$CA152,CB$15),FALSE) -> TRUE | CC152: =IF($BV152<>"0000",INDEX(MysticAbilities,$CA152,CC$15),FALSE) -> FALSE | CD152: =IF($BV152<>"0000",INDEX(MysticAbilities,$CA152,CD$15),TRUE) -> TRUE
CE153: =B152<>"" -> FALSE
D155: =IF(BV155<>"0000",INDEX(MysticAbilities,CA155,$D$14),"") -> Ishat's Grace | W155: =IF(BV155="0000", "", IF(INDEX(MysticAbilities,CA155,$W$14)=0, "-", INDEX(MysticAbilities,CA155,$W$14))) -> 8 | Z155: =IF(BV155<>"0000",IF(INDEX(MysticAbilities,CA155,$Z$14)= 0,"",INDEX(MysticAbilities,CA155,$Z$14)),"") ->  | AJ155: =IF(BV155<>"0000",IF(INDEX(MysticAbilities,CA155,$AJ$14)= 0,"",INDEX(MysticAbilities,CA155,$AJ$14)),"") ->  | AQ155: =IF(BV155<>"0000",IF(INDEX(MysticAbilities,CA155,$AQ$14)= 0,"",INDEX(MysticAbilities,CA155,$AQ$14)),"") -> Ishat bestows a bit of agility to her wielder. While bonded with the Eternal Flame, the wielder's Dexterity Score becomes 19 unless it is already higher. | BV155: =IF(_xlfn.IFNA(MATCH(TEXT($BW$3,"00")&TEXT(((ROW()+3)-$BW$2) / 3,"00"),MysticIndex,0),0)=0,"0000",TEXT($BW$3,"00")&TEXT(((ROW()+3)-$BW$2) / 3,"00")) -> 0247 | BW155: =IF(BV155<>"0000",INDEX(MysticAbilities,CA155,BW$15),0) -> 45 | BX155: =IFERROR(IF(BV155<>"0000",INDEX(MysticAbilities,CA155,BX$15),TRUE),TRUE) -> TRUE | BY155: =IF(BV155<>"0000",INDEX(MysticAbilities,CA155,BY$15),0) -> 0 | BZ155: =IF(BV155<>"0000",INDEX(MysticAbilities,CA155,BZ$15),0) -> 0 | CA155: =IF(BV155<>"0000", MATCH(BV155,MysticIndex,0),"") -> 47 | CB155: =IF($BV155<>"0000",INDEX(MysticAbilities,$CA155,CB$15),FALSE) -> TRUE | CC155: =IF($BV155<>"0000",INDEX(MysticAbilities,$CA155,CC$15),FALSE) -> FALSE | CD155: =IF($BV155<>"0000",INDEX(MysticAbilities,$CA155,CD$15),TRUE) -> TRUE
CE156: =B155<>"" -> FALSE
F158: =IF(BV158<>"0000",INDEX(MysticAbilities,CA158,$D$14),"") -> Ishat's Agility | W158: =IF(BV158="0000", "", IF(INDEX(MysticAbilities,CA158,$W$14)=0, "-", INDEX(MysticAbilities,CA158,$W$14))) -> 12 | Z158: =IF(BV158<>"0000",IF(INDEX(MysticAbilities,CA158,$Z$14)= 0,"",INDEX(MysticAbilities,CA158,$Z$14)),"") ->  | AJ158: =IF(BV158<>"0000",IF(INDEX(MysticAbilities,CA158,$AJ$14)= 0,"",INDEX(MysticAbilities,CA158,$AJ$14)),"") ->  | AQ158: =IF(BV158<>"0000",IF(INDEX(MysticAbilities,CA158,$AQ$14)= 0,"",INDEX(MysticAbilities,CA158,$AQ$14)),"") -> This ability augments the Ishat's Grace Ability. While bonded with the Eternal Flame, the wielder's Dexterity Score now becomes 22, unless it is normally higher. | BV158: =IF(_xlfn.IFNA(MATCH(TEXT($BW$3,"00")&TEXT(((ROW()+3)-$BW$2) / 3,"00"),MysticIndex,0),0)=0,"0000",TEXT($BW$3,"00")&TEXT(((ROW()+3)-$BW$2) / 3,"00")) -> 0248 | BW158: =IF(BV158<>"0000",INDEX(MysticAbilities,CA158,BW$15),0) -> 45 | BX158: =IFERROR(IF(BV158<>"0000",INDEX(MysticAbilities,CA158,BX$15),TRUE),TRUE) -> FALSE | BY158: =IF(BV158<>"0000",INDEX(MysticAbilities,CA158,BY$15),0) -> 1 | BZ158: =IF(BV158<>"0000",INDEX(MysticAbilities,CA158,BZ$15),0) -> 12 | CA158: =IF(BV158<>"0000", MATCH(BV158,MysticIndex,0),"") -> 48 | CB158: =IF($BV158<>"0000",INDEX(MysticAbilities,$CA158,CB$15),FALSE) -> FALSE | CC158: =IF($BV158<>"0000",INDEX(MysticAbilities,$CA158,CC$15),FALSE) -> FALSE | CD158: =IF($BV158<>"0000",INDEX(MysticAbilities,$CA158,CD$15),TRUE) -> FALSE
CE159: =B158<>"" -> FALSE
D161: =IF(BV161<>"0000",INDEX(MysticAbilities,CA161,$D$14),"") -> Maximize Fire | W161: =IF(BV161="0000", "", IF(INDEX(MysticAbilities,CA161,$W$14)=0, "-", INDEX(MysticAbilities,CA161,$W$14))) -> 8 | Z161: =IF(BV161<>"0000",IF(INDEX(MysticAbilities,CA161,$Z$14)= 0,"",INDEX(MysticAbilities,CA161,$Z$14)),"") ->  | AJ161: =IF(BV161<>"0000",IF(INDEX(MysticAbilities,CA161,$AJ$14)= 0,"",INDEX(MysticAbilities,CA161,$AJ$14)),"") -> INT 17+; | AQ161: =IF(BV161<>"0000",IF(INDEX(MysticAbilities,CA161,$AQ$14)= 0,"",INDEX(MysticAbilities,CA161,$AQ$14)),"") -> This ability represents a Harmony between blade and wielder. At the cost of 3 Spirit Charges, Eternal Flame will automatically maximize any fire-based spells. When the wielder casts a spell that deals fire damage, it deals the maximum possible amount of damage - no need to roll. This ability can be used once per Encounter. | BV161: =IF(_xlfn.IFNA(MATCH(TEXT($BW$3,"00")&TEXT(((ROW()+3)-$BW$2) / 3,"00"),MysticIndex,0),0)=0,"0000",TEXT($BW$3,"00")&TEXT(((ROW()+3)-$BW$2) / 3,"00")) -> 0249 | BW161: =IF(BV161<>"0000",INDEX(MysticAbilities,CA161,BW$15),0) -> 90 | BX161: =IFERROR(IF(BV161<>"0000",INDEX(MysticAbilities,CA161,BX$15),TRUE),TRUE) -> TRUE | BY161: =IF(BV161<>"0000",INDEX(MysticAbilities,CA161,BY$15),0) -> 0 | BZ161: =IF(BV161<>"0000",INDEX(MysticAbilities,CA161,BZ$15),0) -> 0 | CA161: =IF(BV161<>"0000", MATCH(BV161,MysticIndex,0),"") -> 49 | CB161: =IF($BV161<>"0000",INDEX(MysticAbilities,$CA161,CB$15),FALSE) -> TRUE | CC161: =IF($BV161<>"0000",INDEX(MysticAbilities,$CA161,CC$15),FALSE) -> FALSE | CD161: =IF($BV161<>"0000",INDEX(MysticAbilities,$CA161,CD$15),TRUE) -> TRUE
CE162: =B161<>"" -> FALSE
D164: =IF(BV164<>"0000",INDEX(MysticAbilities,CA164,$D$14),"") -> Implosive Edge | W164: =IF(BV164="0000", "", IF(INDEX(MysticAbilities,CA164,$W$14)=0, "-", INDEX(MysticAbilities,CA164,$W$14))) -> 8 | Z164: =IF(BV164<>"0000",IF(INDEX(MysticAbilities,CA164,$Z$14)= 0,"",INDEX(MysticAbilities,CA164,$Z$14)),"") ->  | AJ164: =IF(BV164<>"0000",IF(INDEX(MysticAbilities,CA164,$AJ$14)= 0,"",INDEX(MysticAbilities,CA164,$AJ$14)),"") -> CHA 13+; | AQ164: =IF(BV164<>"0000",IF(INDEX(MysticAbilities,CA164,$AQ$14)= 0,"",INDEX(MysticAbilities,CA164,$AQ$14)),"") -> Eternal Flame's power can be siphoned into a target to burn them from the inside. As part of an Attack, the wielder can spend 6 Spirit Charges to activate this ability. The target takes normal attack damage. In addition, they must make a Constitution Saving Throw against your Spirit Save DC or take 10d6 additional fire damage. On a successful save, the target takes half damage. If this damage brings the target to 0 hp, they are burned alive from the inside in a matter of seconds, turning their body and all their non-magical possessions into ash. This ability can be used once per Long Rest. | BV164: =IF(_xlfn.IFNA(MATCH(TEXT($BW$3,"00")&TEXT(((ROW()+3)-$BW$2) / 3,"00"),MysticIndex,0),0)=0,"0000",TEXT($BW$3,"00")&TEXT(((ROW()+3)-$BW$2) / 3,"00")) -> 0250 | BW164: =IF(BV164<>"0000",INDEX(MysticAbilities,CA164,BW$15),0) -> 150 | BX164: =IFERROR(IF(BV164<>"0000",INDEX(MysticAbilities,CA164,BX$15),TRUE),TRUE) -> TRUE | BY164: =IF(BV164<>"0000",INDEX(MysticAbilities,CA164,BY$15),0) -> 0 | BZ164: =IF(BV164<>"0000",INDEX(MysticAbilities,CA164,BZ$15),0) -> 0 | CA164: =IF(BV164<>"0000", MATCH(BV164,MysticIndex,0),"") -> 50 | CB164: =IF($BV164<>"0000",INDEX(MysticAbilities,$CA164,CB$15),FALSE) -> TRUE | CC164: =IF($BV164<>"0000",INDEX(MysticAbilities,$CA164,CC$15),FALSE) -> FALSE | CD164: =IF($BV164<>"0000",INDEX(MysticAbilities,$CA164,CD$15),TRUE) -> TRUE
CE165: =B164<>"" -> FALSE
F167: =IF(BV167<>"0000",INDEX(MysticAbilities,CA167,$D$14),"") -> Resiliant Blaze | W167: =IF(BV167="0000", "", IF(INDEX(MysticAbilities,CA167,$W$14)=0, "-", INDEX(MysticAbilities,CA167,$W$14))) -> 12 | Z167: =IF(BV167<>"0000",IF(INDEX(MysticAbilities,CA167,$Z$14)= 0,"",INDEX(MysticAbilities,CA167,$Z$14)),"") ->  | AJ167: =IF(BV167<>"0000",IF(INDEX(MysticAbilities,CA167,$AJ$14)= 0,"",INDEX(MysticAbilities,CA167,$AJ$14)),"") -> CON 13+; | AQ167: =IF(BV167<>"0000",IF(INDEX(MysticAbilities,CA167,$AQ$14)= 0,"",INDEX(MysticAbilities,CA167,$AQ$14)),"") -> This ability augments the Implosive Edge Ability. With this ability known, the wielder may use Implosive Edge once per Short Rest instead of once per Long Rest. | BV167: =IF(_xlfn.IFNA(MATCH(TEXT($BW$3,"00")&TEXT(((ROW()+3)-$BW$2) / 3,"00"),MysticIndex,0),0)=0,"0000",TEXT($BW$3,"00")&TEXT(((ROW()+3)-$BW$2) / 3,"00")) -> 0251 | BW167: =IF(BV167<>"0000",INDEX(MysticAbilities,CA167,BW$15),0) -> 45 | BX167: =IFERROR(IF(BV167<>"0000",INDEX(MysticAbilities,CA167,BX$15),TRUE),TRUE) -> FALSE | BY167: =IF(BV167<>"0000",INDEX(MysticAbilities,CA167,BY$15),0) -> 1 | BZ167: =IF(BV167<>"0000",INDEX(MysticAbilities,CA167,BZ$15),0) -> 13 | CA167: =IF(BV167<>"0000", MATCH(BV167,MysticIndex,0),"") -> 51 | CB167: =IF($BV167<>"0000",INDEX(MysticAbilities,$CA167,CB$15),FALSE) -> FALSE | CC167: =IF($BV167<>"0000",INDEX(MysticAbilities,$CA167,CC$15),FALSE) -> FALSE | CD167: =IF($BV167<>"0000",INDEX(MysticAbilities,$CA167,CD$15),TRUE) -> FALSE
CE168: =B167<>"" -> FALSE
F170: =IF(BV170<>"0000",INDEX(MysticAbilities,CA170,$D$14),"") -> Consuming Flames | W170: =IF(BV170="0000", "", IF(INDEX(MysticAbilities,CA170,$W$14)=0, "-", INDEX(MysticAbilities,CA170,$W$14))) -> 15 | Z170: =IF(BV170<>"0000",IF(INDEX(MysticAbilities,CA170,$Z$14)= 0,"",INDEX(MysticAbilities,CA170,$Z$14)),"") ->  | AJ170: =IF(BV170<>"0000",IF(INDEX(MysticAbilities,CA170,$AJ$14)= 0,"",INDEX(MysticAbilities,CA170,$AJ$14)),"") -> WIS 15+; | AQ170: =IF(BV170<>"0000",IF(INDEX(MysticAbilities,CA170,$AQ$14)= 0,"",INDEX(MysticAbilities,CA170,$AQ$14)),"") -> This ability augments the Implosive Edge Ability. When this ability is known, the extra damage done is increased to 15d10 fire damage. | BV170: =IF(_xlfn.IFNA(MATCH(TEXT($BW$3,"00")&TEXT(((ROW()+3)-$BW$2) / 3,"00"),MysticIndex,0),0)=0,"0000",TEXT($BW$3,"00")&TEXT(((ROW()+3)-$BW$2) / 3,"00")) -> 0252 | BW170: =IF(BV170<>"0000",INDEX(MysticAbilities,CA170,BW$15),0) -> 45 | BX170: =IFERROR(IF(BV170<>"0000",INDEX(MysticAbilities,CA170,BX$15),TRUE),TRUE) -> FALSE | BY170: =IF(BV170<>"0000",INDEX(MysticAbilities,CA170,BY$15),0) -> 1 | BZ170: =IF(BV170<>"0000",INDEX(MysticAbilities,CA170,BZ$15),0) -> 12 | CA170: =IF(BV170<>"0000", MATCH(BV170,MysticIndex,0),"") -> 52 | CB170: =IF($BV170<>"0000",INDEX(MysticAbilities,$CA170,CB$15),FALSE) -> FALSE | CC170: =IF($BV170<>"0000",INDEX(MysticAbilities,$CA170,CC$15),FALSE) -> FALSE | CD170: =IF($BV170<>"0000",INDEX(MysticAbilities,$CA170,CD$15),TRUE) -> FALSE
CE171: =B170<>"" -> FALSE
D173: =IF(BV173<>"0000",INDEX(MysticAbilities,CA173,$D$14),"") -> Shockwave | W173: =IF(BV173="0000", "", IF(INDEX(MysticAbilities,CA173,$W$14)=0, "-", INDEX(MysticAbilities,CA173,$W$14))) -> 10 | Z173: =IF(BV173<>"0000",IF(INDEX(MysticAbilities,CA173,$Z$14)= 0,"",INDEX(MysticAbilities,CA173,$Z$14)),"") ->  | AJ173: =IF(BV173<>"0000",IF(INDEX(MysticAbilities,CA173,$AJ$14)= 0,"",INDEX(MysticAbilities,CA173,$AJ$14)),"") -> STR 15+; | AQ173: =IF(BV173<>"0000",IF(INDEX(MysticAbilities,CA173,$AQ$14)= 0,"",INDEX(MysticAbilities,CA173,$AQ$14)),"") -> The concussive power of The Eternal Flame is fully manifested by this ability. When you strike a creature with a Melee Weapon Attack using Eternal Flame and deal at least 1 point of Fire Damage, you can activate this ability by spending 1 Spirit Charge. When you do, the target of your attack is moved 5 feet in any direction of your choice from the blast force. You can use this ability only once per round. | BV173: =IF(_xlfn.IFNA(MATCH(TEXT($BW$3,"00")&TEXT(((ROW()+3)-$BW$2) / 3,"00"),MysticIndex,0),0)=0,"0000",TEXT($BW$3,"00")&TEXT(((ROW()+3)-$BW$2) / 3,"00")) -> 0253 | BW173: =IF(BV173<>"0000",INDEX(MysticAbilities,CA173,BW$15),0) -> 105 | BX173: =IFERROR(IF(BV173<>"0000",INDEX(MysticAbilities,CA173,BX$15),TRUE),TRUE) -> TRUE | BY173: =IF(BV173<>"0000",INDEX(MysticAbilities,CA173,BY$15),0) -> 0 | BZ173: =IF(BV173<>"0000",INDEX(MysticAbilities,CA173,BZ$15),0) -> 0 | CA173: =IF(BV173<>"0000", MATCH(BV173,MysticIndex,0),"") -> 53 | CB173: =IF($BV173<>"0000",INDEX(MysticAbilities,$CA173,CB$15),FALSE) -> TRUE | CC173: =IF($BV173<>"0000",INDEX(MysticAbilities,$CA173,CC$15),FALSE) -> FALSE | CD173: =IF($BV173<>"0000",INDEX(MysticAbilities,$CA173,CD$15),TRUE) -> TRUE
CE174: =B173<>"" -> FALSE
D176: =IF(BV176<>"0000",INDEX(MysticAbilities,CA176,$D$14),"") -> Damage Up | W176: =IF(BV176="0000", "", IF(INDEX(MysticAbilities,CA176,$W$14)=0, "-", INDEX(MysticAbilities,CA176,$W$14))) -> 10 | Z176: =IF(BV176<>"0000",IF(INDEX(MysticAbilities,CA176,$Z$14)= 0,"",INDEX(MysticAbilities,CA176,$Z$14)),"") ->  | AJ176: =IF(BV176<>"0000",IF(INDEX(MysticAbilities,CA176,$AJ$14)= 0,"",INDEX(MysticAbilities,CA176,$AJ$14)),"") ->  | AQ176: =IF(BV176<>"0000",IF(INDEX(MysticAbilities,CA176,$AQ$14)= 0,"",INDEX(MysticAbilities,CA176,$AQ$14)),"") -> By Selecting this Ability for Eternal Flame, the weapon increases its damage output when used with melee strikes. Increase the number of damage dice by 1. | BV176: =IF(_xlfn.IFNA(MATCH(TEXT($BW$3,"00")&TEXT(((ROW()+3)-$BW$2) / 3,"00"),MysticIndex,0),0)=0,"0000",TEXT($BW$3,"00")&TEXT(((ROW()+3)-$BW$2) / 3,"00")) -> 0254 | BW176: =IF(BV176<>"0000",INDEX(MysticAbilities,CA176,BW$15),0) -> 45 | BX176: =IFERROR(IF(BV176<>"0000",INDEX(MysticAbilities,CA176,BX$15),TRUE),TRUE) -> TRUE | BY176: =IF(BV176<>"0000",INDEX(MysticAbilities,CA176,BY$15),0) -> 0 | BZ176: =IF(BV176<>"0000",INDEX(MysticAbilities,CA176,BZ$15),0) -> 0 | CA176: =IF(BV176<>"0000", MATCH(BV176,MysticIndex,0),"") -> 54 | CB176: =IF($BV176<>"0000",INDEX(MysticAbilities,$CA176,CB$15),FALSE) -> TRUE | CC176: =IF($BV176<>"0000",INDEX(MysticAbilities,$CA176,CC$15),FALSE) -> FALSE | CD176: =IF($BV176<>"0000",INDEX(MysticAbilities,$CA176,CD$15),TRUE) -> TRUE
CE177: =B176<>"" -> FALSE
D179: =IF(BV179<>"0000",INDEX(MysticAbilities,CA179,$D$14),"") -> Flame Resistance | W179: =IF(BV179="0000", "", IF(INDEX(MysticAbilities,CA179,$W$14)=0, "-", INDEX(MysticAbilities,CA179,$W$14))) -> 10 | Z179: =IF(BV179<>"0000",IF(INDEX(MysticAbilities,CA179,$Z$14)= 0,"",INDEX(MysticAbilities,CA179,$Z$14)),"") ->  | AJ179: =IF(BV179<>"0000",IF(INDEX(MysticAbilities,CA179,$AJ$14)= 0,"",INDEX(MysticAbilities,CA179,$AJ$14)),"") ->  | AQ179: =IF(BV179<>"0000",IF(INDEX(MysticAbilities,CA179,$AQ$14)= 0,"",INDEX(MysticAbilities,CA179,$AQ$14)),"") -> While bonded with Eternal Flame, the wielder gains resistance to fire damage. | BV179: =IF(_xlfn.IFNA(MATCH(TEXT($BW$3,"00")&TEXT(((ROW()+3)-$BW$2) / 3,"00"),MysticIndex,0),0)=0,"0000",TEXT($BW$3,"00")&TEXT(((ROW()+3)-$BW$2) / 3,"00")) -> 0255 | BW179: =IF(BV179<>"0000",INDEX(MysticAbilities,CA179,BW$15),0) -> 30 | BX179: =IFERROR(IF(BV179<>"0000",INDEX(MysticAbilities,CA179,BX$15),TRUE),TRUE) -> TRUE | BY179: =IF(BV179<>"0000",INDEX(MysticAbilities,CA179,BY$15),0) -> 0 | BZ179: =IF(BV179<>"0000",INDEX(MysticAbilities,CA179,BZ$15),0) -> 0 | CA179: =IF(BV179<>"0000", MATCH(BV179,MysticIndex,0),"") -> 55 | CB179: =IF($BV179<>"0000",INDEX(MysticAbilities,$CA179,CB$15),FALSE) -> TRUE | CC179: =IF($BV179<>"0000",INDEX(MysticAbilities,$CA179,CC$15),FALSE) -> FALSE | CD179: =IF($BV179<>"0000",INDEX(MysticAbilities,$CA179,CD$15),TRUE) -> TRUE
CE180: =B179<>"" -> FALSE
F182: =IF(BV182<>"0000",INDEX(MysticAbilities,CA182,$D$14),"") -> Heat Circulation | W182: =IF(BV182="0000", "", IF(INDEX(MysticAbilities,CA182,$W$14)=0, "-", INDEX(MysticAbilities,CA182,$W$14))) -> 12 | Z182: =IF(BV182<>"0000",IF(INDEX(MysticAbilities,CA182,$Z$14)= 0,"",INDEX(MysticAbilities,CA182,$Z$14)),"") ->  | AJ182: =IF(BV182<>"0000",IF(INDEX(MysticAbilities,CA182,$AJ$14)= 0,"",INDEX(MysticAbilities,CA182,$AJ$14)),"") ->  | AQ182: =IF(BV182<>"0000",IF(INDEX(MysticAbilities,CA182,$AQ$14)= 0,"",INDEX(MysticAbilities,CA182,$AQ$14)),"") -> Whenever Flame Resistance reduces any fire damage, the wielder's Speed increases by an amount equal to half the damage that was reduced up to a maximum of 20 extra feet of movement until the end of their next turn. If struck by multiple fire attacks before their next turn, use whichever single attack granted the highest increase in speed. This ability cannot be seleceted if Hellborne or Salamander Skin are known. This ability cannot be triggered by effects of Eternal Flame itself. | BV182: =IF(_xlfn.IFNA(MATCH(TEXT($BW$3,"00")&TEXT(((ROW()+3)-$BW$2) / 3,"00"),MysticIndex,0),0)=0,"0000",TEXT($BW$3,"00")&TEXT(((ROW()+3)-$BW$2) / 3,"00")) -> 0256 | BW182: =IF(BV182<>"0000",INDEX(MysticAbilities,CA182,BW$15),0) -> 120 | BX182: =IFERROR(IF(BV182<>"0000",INDEX(MysticAbilities,CA182,BX$15),TRUE),TRUE) -> FALSE | BY182: =IF(BV182<>"0000",INDEX(MysticAbilities,CA182,BY$15),0) -> 1 | BZ182: =IF(BV182<>"0000",INDEX(MysticAbilities,CA182,BZ$15),0) -> 13 | CA182: =IF(BV182<>"0000", MATCH(BV182,MysticIndex,0),"") -> 56 | CB182: =IF($BV182<>"0000",INDEX(MysticAbilities,$CA182,CB$15),FALSE) -> FALSE | CC182: =IF($BV182<>"0000",INDEX(MysticAbilities,$CA182,CC$15),FALSE) -> FALSE | CD182: =IF($BV182<>"0000",INDEX(MysticAbilities,$CA182,CD$15),TRUE) -> FALSE
CE183: =B182<>"" -> FALSE
F185: =IF(BV185<>"0000",INDEX(MysticAbilities,CA185,$D$14),"") -> Hellborne | W185: =IF(BV185="0000", "", IF(INDEX(MysticAbilities,CA185,$W$14)=0, "-", INDEX(MysticAbilities,CA185,$W$14))) -> 12 | Z185: =IF(BV185<>"0000",IF(INDEX(MysticAbilities,CA185,$Z$14)= 0,"",INDEX(MysticAbilities,CA185,$Z$14)),"") ->  | AJ185: =IF(BV185<>"0000",IF(INDEX(MysticAbilities,CA185,$AJ$14)= 0,"",INDEX(MysticAbilities,CA185,$AJ$14)),"") ->  | AQ185: =IF(BV185<>"0000",IF(INDEX(MysticAbilities,CA185,$AQ$14)= 0,"",INDEX(MysticAbilities,CA185,$AQ$14)),"") -> Whenever Flame Resistance reduces any fire damage, the critical range of Eternal Flame is extended by 1 until the end of the wielder's next turn. This increase to threat range is applied in addition to any other increases to their critical range. If hit again, it does not further extend the threat range. This ability cannot be selected if Heat Circulation or Salamander Skin are known. This ability cannot be triggered by effects of Eternal Flame itself. | BV185: =IF(_xlfn.IFNA(MATCH(TEXT($BW$3,"00")&TEXT(((ROW()+3)-$BW$2) / 3,"00"),MysticIndex,0),0)=0,"0000",TEXT($BW$3,"00")&TEXT(((ROW()+3)-$BW$2) / 3,"00")) -> 0257 | BW185: =IF(BV185<>"0000",INDEX(MysticAbilities,CA185,BW$15),0) -> 120 | BX185: =IFERROR(IF(BV185<>"0000",INDEX(MysticAbilities,CA185,BX$15),TRUE),TRUE) -> FALSE | BY185: =IF(BV185<>"0000",INDEX(MysticAbilities,CA185,BY$15),0) -> 1 | BZ185: =IF(BV185<>"0000",INDEX(MysticAbilities,CA185,BZ$15),0) -> 13 | CA185: =IF(BV185<>"0000", MATCH(BV185,MysticIndex,0),"") -> 57 | CB185: =IF($BV185<>"0000",INDEX(MysticAbilities,$CA185,CB$15),FALSE) -> FALSE | CC185: =IF($BV185<>"0000",INDEX(MysticAbilities,$CA185,CC$15),FALSE) -> FALSE | CD185: =IF($BV185<>"0000",INDEX(MysticAbilities,$CA185,CD$15),TRUE) -> FALSE
CE186: =B185<>"" -> FALSE
F188: =IF(BV188<>"0000",INDEX(MysticAbilities,CA188,$D$14),"") -> Salamander Skin | W188: =IF(BV188="0000", "", IF(INDEX(MysticAbilities,CA188,$W$14)=0, "-", INDEX(MysticAbilities,CA188,$W$14))) -> 12 | Z188: =IF(BV188<>"0000",IF(INDEX(MysticAbilities,CA188,$Z$14)= 0,"",INDEX(MysticAbilities,CA188,$Z$14)),"") ->  | AJ188: =IF(BV188<>"0000",IF(INDEX(MysticAbilities,CA188,$AJ$14)= 0,"",INDEX(MysticAbilities,CA188,$AJ$14)),"") -> CON 13+; | AQ188: =IF(BV188<>"0000",IF(INDEX(MysticAbilities,CA188,$AQ$14)= 0,"",INDEX(MysticAbilities,CA188,$AQ$14)),"") -> Whenever Flame Resistance reduces any fire damage, the user is instead healed by the amount of damage that would have otherwise been inflicted. If this healed amount would cause the wielder to rise above his normal maximum hit points, the excess is granted as temporary hit points which last until the end of their next turn. This ability cannot be selected if Heat Circulation or Hellborne are known. This ability cannot be triggered by effects of Eternal Flame itself. | BV188: =IF(_xlfn.IFNA(MATCH(TEXT($BW$3,"00")&TEXT(((ROW()+3)-$BW$2) / 3,"00"),MysticIndex,0),0)=0,"0000",TEXT($BW$3,"00")&TEXT(((ROW()+3)-$BW$2) / 3,"00")) -> 0258 | BW188: =IF(BV188<>"0000",INDEX(MysticAbilities,CA188,BW$15),0) -> 120 | BX188: =IFERROR(IF(BV188<>"0000",INDEX(MysticAbilities,CA188,BX$15),TRUE),TRUE) -> FALSE | BY188: =IF(BV188<>"0000",INDEX(MysticAbilities,CA188,BY$15),0) -> 1 | BZ188: =IF(BV188<>"0000",INDEX(MysticAbilities,CA188,BZ$15),0) -> 13 | CA188: =IF(BV188<>"0000", MATCH(BV188,MysticIndex,0),"") -> 58 | CB188: =IF($BV188<>"0000",INDEX(MysticAbilities,$CA188,CB$15),FALSE) -> FALSE | CC188: =IF($BV188<>"0000",INDEX(MysticAbilities,$CA188,CC$15),FALSE) -> FALSE | CD188: =IF($BV188<>"0000",INDEX(MysticAbilities,$CA188,CD$15),TRUE) -> FALSE
CE189: =B188<>"" -> FALSE
F191: =IF(BV191<>"0000",INDEX(MysticAbilities,CA191,$D$14),"") -> Inflammable | W191: =IF(BV191="0000", "", IF(INDEX(MysticAbilities,CA191,$W$14)=0, "-", INDEX(MysticAbilities,CA191,$W$14))) -> 15 | Z191: =IF(BV191<>"0000",IF(INDEX(MysticAbilities,CA191,$Z$14)= 0,"",INDEX(MysticAbilities,CA191,$Z$14)),"") ->  | AJ191: =IF(BV191<>"0000",IF(INDEX(MysticAbilities,CA191,$AJ$14)= 0,"",INDEX(MysticAbilities,CA191,$AJ$14)),"") -> WIS 17+; | AQ191: =IF(BV191<>"0000",IF(INDEX(MysticAbilities,CA191,$AQ$14)= 0,"",INDEX(MysticAbilities,CA191,$AQ$14)),"") -> If known, Flame Resistance now grants immunity to fire damage. | BV191: =IF(_xlfn.IFNA(MATCH(TEXT($BW$3,"00")&TEXT(((ROW()+3)-$BW$2) / 3,"00"),MysticIndex,0),0)=0,"0000",TEXT($BW$3,"00")&TEXT(((ROW()+3)-$BW$2) / 3,"00")) -> 0259 | BW191: =IF(BV191<>"0000",INDEX(MysticAbilities,CA191,BW$15),0) -> 30 | BX191: =IFERROR(IF(BV191<>"0000",INDEX(MysticAbilities,CA191,BX$15),TRUE),TRUE) -> FALSE | BY191: =IF(BV191<>"0000",INDEX(MysticAbilities,CA191,BY$15),0) -> 1 | BZ191: =IF(BV191<>"0000",INDEX(MysticAbilities,CA191,BZ$15),0) -> 12 | CA191: =IF(BV191<>"0000", MATCH(BV191,MysticIndex,0),"") -> 59 | CB191: =IF($BV191<>"0000",INDEX(MysticAbilities,$CA191,CB$15),FALSE) -> FALSE | CC191: =IF($BV191<>"0000",INDEX(MysticAbilities,$CA191,CC$15),FALSE) -> FALSE | CD191: =IF($BV191<>"0000",INDEX(MysticAbilities,$CA191,CD$15),TRUE) -> FALSE
CE192: =B191<>"" -> FALSE
D194: =IF(BV194<>"0000",INDEX(MysticAbilities,CA194,$D$14),"") -> Flaming Dervish | W194: =IF(BV194="0000", "", IF(INDEX(MysticAbilities,CA194,$W$14)=0, "-", INDEX(MysticAbilities,CA194,$W$14))) -> 10 | Z194: =IF(BV194<>"0000",IF(INDEX(MysticAbilities,CA194,$Z$14)= 0,"",INDEX(MysticAbilities,CA194,$Z$14)),"") ->  | AJ194: =IF(BV194<>"0000",IF(INDEX(MysticAbilities,CA194,$AJ$14)= 0,"",INDEX(MysticAbilities,CA194,$AJ$14)),"") -> DEX 17+; Weapon Form: Scimitar | AQ194: =IF(BV194<>"0000",IF(INDEX(MysticAbilities,CA194,$AQ$14)= 0,"",INDEX(MysticAbilities,CA194,$AQ$14)),"") -> When the Eternal Flame resides upon its preferred form of a Scimitar, it grants the power of this special ability. This ability is activated as a Bonus Action on your turn by spending 6 Spirit Charges. Once activated, you can combine your movement and your action. You may move around the battle field, and everytime you move at least 5 feet, you can make a Melee Weapon Attack with the Eternal Flame against a creature within range. This attack deals any normal damage plus an additional 1d6 fire damage. You cannot move into a square you have already entered as part of this ability, and cannot attack the same creature more than once. You can use this ability once per Short Rest. | BV194: =IF(_xlfn.IFNA(MATCH(TEXT($BW$3,"00")&TEXT(((ROW()+3)-$BW$2) / 3,"00"),MysticIndex,0),0)=0,"0000",TEXT($BW$3,"00")&TEXT(((ROW()+3)-$BW$2) / 3,"00")) -> 0260 | BW194: =IF(BV194<>"0000",INDEX(MysticAbilities,CA194,BW$15),0) -> 180 | BX194: =IFERROR(IF(BV194<>"0000",INDEX(MysticAbilities,CA194,BX$15),TRUE),TRUE) -> TRUE | BY194: =IF(BV194<>"0000",INDEX(MysticAbilities,CA194,BY$15),0) -> 0 | BZ194: =IF(BV194<>"0000",INDEX(MysticAbilities,CA194,BZ$15),0) -> 0 | CA194: =IF(BV194<>"0000", MATCH(BV194,MysticIndex,0),"") -> 60 | CB194: =IF($BV194<>"0000",INDEX(MysticAbilities,$CA194,CB$15),FALSE) -> TRUE | CC194: =IF($BV194<>"0000",INDEX(MysticAbilities,$CA194,CC$15),FALSE) -> FALSE | CD194: =IF($BV194<>"0000",INDEX(MysticAbilities,$CA194,CD$15),TRUE) -> TRUE
CE195: =B194<>"" -> FALSE
F197: =IF(BV197<>"0000",INDEX(MysticAbilities,CA197,$D$14),"") -> Quickend Pace | W197: =IF(BV197="0000", "", IF(INDEX(MysticAbilities,CA197,$W$14)=0, "-", INDEX(MysticAbilities,CA197,$W$14))) -> 12 | Z197: =IF(BV197<>"0000",IF(INDEX(MysticAbilities,CA197,$Z$14)= 0,"",INDEX(MysticAbilities,CA197,$Z$14)),"") -> Scorching Speed | AJ197: =IF(BV197<>"0000",IF(INDEX(MysticAbilities,CA197,$AJ$14)= 0,"",INDEX(MysticAbilities,CA197,$AJ$14)),"") ->  | AQ197: =IF(BV197<>"0000",IF(INDEX(MysticAbilities,CA197,$AQ$14)= 0,"",INDEX(MysticAbilities,CA197,$AQ$14)),"") -> This ability augments the Flaming Dervish Ability. When this ability is known, when you use your Bonus Action to activate Flaming Dervish, your Speed is also increased by 30 feet, or to a maximum of 60 feet, until the end of your turn. | BV197: =IF(_xlfn.IFNA(MATCH(TEXT($BW$3,"00")&TEXT(((ROW()+3)-$BW$2) / 3,"00"),MysticIndex,0),0)=0,"0000",TEXT($BW$3,"00")&TEXT(((ROW()+3)-$BW$2) / 3,"00")) -> 0261 | BW197: =IF(BV197<>"0000",INDEX(MysticAbilities,CA197,BW$15),0) -> 60 | BX197: =IFERROR(IF(BV197<>"0000",INDEX(MysticAbilities,CA197,BX$15),TRUE),TRUE) -> FALSE | BY197: =IF(BV197<>"0000",INDEX(MysticAbilities,CA197,BY$15),0) -> 1 | BZ197: =IF(BV197<>"0000",INDEX(MysticAbilities,CA197,BZ$15),0) -> 13 | CA197: =IF(BV197<>"0000", MATCH(BV197,MysticIndex,0),"") -> 61 | CB197: =IF($BV197<>"0000",INDEX(MysticAbilities,$CA197,CB$15),FALSE) -> FALSE | CC197: =IF($BV197<>"0000",INDEX(MysticAbilities,$CA197,CC$15),FALSE) -> FALSE | CD197: =IF($BV197<>"0000",INDEX(MysticAbilities,$CA197,CD$15),TRUE) -> FALSE
CE198: =B197<>"" -> FALSE
F200: =IF(BV200<>"0000",INDEX(MysticAbilities,CA200,$D$14),"") -> Forceful Strike | W200: =IF(BV200="0000", "", IF(INDEX(MysticAbilities,CA200,$W$14)=0, "-", INDEX(MysticAbilities,CA200,$W$14))) -> 12 | Z200: =IF(BV200<>"0000",IF(INDEX(MysticAbilities,CA200,$Z$14)= 0,"",INDEX(MysticAbilities,CA200,$Z$14)),"") -> Shockwave | AJ200: =IF(BV200<>"0000",IF(INDEX(MysticAbilities,CA200,$AJ$14)= 0,"",INDEX(MysticAbilities,CA200,$AJ$14)),"") ->  | AQ200: =IF(BV200<>"0000",IF(INDEX(MysticAbilities,CA200,$AQ$14)= 0,"",INDEX(MysticAbilities,CA200,$AQ$14)),"") -> This ability augements the Flaming Dervish Ability. You can now strike a creature more than once on their turn as long as that creature has also moved at least 5 feet since the last time you struck them. You cannot strike the same creature twice in a row. In addition, during your Flaming Dervish, there is no limit on how many times you can use Shockwave in a round. | BV200: =IF(_xlfn.IFNA(MATCH(TEXT($BW$3,"00")&TEXT(((ROW()+3)-$BW$2) / 3,"00"),MysticIndex,0),0)=0,"0000",TEXT($BW$3,"00")&TEXT(((ROW()+3)-$BW$2) / 3,"00")) -> 0262 | BW200: =IF(BV200<>"0000",INDEX(MysticAbilities,CA200,BW$15),0) -> 90 | BX200: =IFERROR(IF(BV200<>"0000",INDEX(MysticAbilities,CA200,BX$15),TRUE),TRUE) -> FALSE | BY200: =IF(BV200<>"0000",INDEX(MysticAbilities,CA200,BY$15),0) -> 1 | BZ200: =IF(BV200<>"0000",INDEX(MysticAbilities,CA200,BZ$15),0) -> 13 | CA200: =IF(BV200<>"0000", MATCH(BV200,MysticIndex,0),"") -> 62 | CB200: =IF($BV200<>"0000",INDEX(MysticAbilities,$CA200,CB$15),FALSE) -> FALSE | CC200: =IF($BV200<>"0000",INDEX(MysticAbilities,$CA200,CC$15),FALSE) -> FALSE | CD200: =IF($BV200<>"0000",INDEX(MysticAbilities,$CA200,CD$15),TRUE) -> FALSE
CE201: =B200<>"" -> FALSE
F203: =IF(BV203<>"0000",INDEX(MysticAbilities,CA203,$D$14),"") -> Feinting Dance | W203: =IF(BV203="0000", "", IF(INDEX(MysticAbilities,CA203,$W$14)=0, "-", INDEX(MysticAbilities,CA203,$W$14))) -> 12 | Z203: =IF(BV203<>"0000",IF(INDEX(MysticAbilities,CA203,$Z$14)= 0,"",INDEX(MysticAbilities,CA203,$Z$14)),"") ->  | AJ203: =IF(BV203<>"0000",IF(INDEX(MysticAbilities,CA203,$AJ$14)= 0,"",INDEX(MysticAbilities,CA203,$AJ$14)),"") ->  | AQ203: =IF(BV203<>"0000",IF(INDEX(MysticAbilities,CA203,$AQ$14)= 0,"",INDEX(MysticAbilities,CA203,$AQ$14)),"") -> This ability augments the Flaming Dervish Ability. Your movement during Flaming Dervish no longer provokes Opportunity Attacks. You can also reenter a square your previously entered, but only if you have moved at least 10 feet since you were last in that square. | BV203: =IF(_xlfn.IFNA(MATCH(TEXT($BW$3,"00")&TEXT(((ROW()+3)-$BW$2) / 3,"00"),MysticIndex,0),0)=0,"0000",TEXT($BW$3,"00")&TEXT(((ROW()+3)-$BW$2) / 3,"00")) -> 0263 | BW203: =IF(BV203<>"0000",INDEX(MysticAbilities,CA203,BW$15),0) -> 75 | BX203: =IFERROR(IF(BV203<>"0000",INDEX(MysticAbilities,CA203,BX$15),TRUE),TRUE) -> FALSE | BY203: =IF(BV203<>"0000",INDEX(MysticAbilities,CA203,BY$15),0) -> 1 | BZ203: =IF(BV203<>"0000",INDEX(MysticAbilities,CA203,BZ$15),0) -> 13 | CA203: =IF(BV203<>"0000", MATCH(BV203,MysticIndex,0),"") -> 63 | CB203: =IF($BV203<>"0000",INDEX(MysticAbilities,$CA203,CB$15),FALSE) -> FALSE | CC203: =IF($BV203<>"0000",INDEX(MysticAbilities,$CA203,CC$15),FALSE) -> FALSE | CD203: =IF($BV203<>"0000",INDEX(MysticAbilities,$CA203,CD$15),TRUE) -> FALSE
CE204: =B203<>"" -> FALSE
F206: =IF(BV206<>"0000",INDEX(MysticAbilities,CA206,$D$14),"") -> Burning Intensity | W206: =IF(BV206="0000", "", IF(INDEX(MysticAbilities,CA206,$W$14)=0, "-", INDEX(MysticAbilities,CA206,$W$14))) -> 18 | Z206: =IF(BV206<>"0000",IF(INDEX(MysticAbilities,CA206,$Z$14)= 0,"",INDEX(MysticAbilities,CA206,$Z$14)),"") -> Infernal Fire | AJ206: =IF(BV206<>"0000",IF(INDEX(MysticAbilities,CA206,$AJ$14)= 0,"",INDEX(MysticAbilities,CA206,$AJ$14)),"") -> STR 17+; | AQ206: =IF(BV206<>"0000",IF(INDEX(MysticAbilities,CA206,$AQ$14)= 0,"",INDEX(MysticAbilities,CA206,$AQ$14)),"") -> This ability augments the Flaming Dervish Ability. When this ability is known, the extra damage done by your weapon attacks increases with each strike. Every time an Attack during Flaming Dervish hits, it deals an additional 1d6 fire damage over the previous strike. | BV206: =IF(_xlfn.IFNA(MATCH(TEXT($BW$3,"00")&TEXT(((ROW()+3)-$BW$2) / 3,"00"),MysticIndex,0),0)=0,"0000",TEXT($BW$3,"00")&TEXT(((ROW()+3)-$BW$2) / 3,"00")) -> 0264 | BW206: =IF(BV206<>"0000",INDEX(MysticAbilities,CA206,BW$15),0) -> 75 | BX206: =IFERROR(IF(BV206<>"0000",INDEX(MysticAbilities,CA206,BX$15),TRUE),TRUE) -> FALSE | BY206: =IF(BV206<>"0000",INDEX(MysticAbilities,CA206,BY$15),0) -> 1 | BZ206: =IF(BV206<>"0000",INDEX(MysticAbilities,CA206,BZ$15),0) -> 12 | CA206: =IF(BV206<>"0000", MATCH(BV206,MysticIndex,0),"") -> 64 | CB206: =IF($BV206<>"0000",INDEX(MysticAbilities,$CA206,CB$15),FALSE) -> FALSE | CC206: =IF($BV206<>"0000",INDEX(MysticAbilities,$CA206,CC$15),FALSE) -> FALSE | CD206: =IF($BV206<>"0000",INDEX(MysticAbilities,$CA206,CD$15),TRUE) -> FALSE
CE207: =B206<>"" -> FALSE
D209: =IF(BV209<>"0000",INDEX(MysticAbilities,CA209,$D$14),"") -> Overheat | W209: =IF(BV209="0000", "", IF(INDEX(MysticAbilities,CA209,$W$14)=0, "-", INDEX(MysticAbilities,CA209,$W$14))) -> 10 | Z209: =IF(BV209<>"0000",IF(INDEX(MysticAbilities,CA209,$Z$14)= 0,"",INDEX(MysticAbilities,CA209,$Z$14)),"") ->  | AJ209: =IF(BV209<>"0000",IF(INDEX(MysticAbilities,CA209,$AJ$14)= 0,"",INDEX(MysticAbilities,CA209,$AJ$14)),"") -> STR 15+; | AQ209: =IF(BV209<>"0000",IF(INDEX(MysticAbilities,CA209,$AQ$14)= 0,"",INDEX(MysticAbilities,CA209,$AQ$14)),"") -> The Overheat Ability turns the powerful emotions of rage into fuel for Eternal Flame's fire. Whenever the wielder takes damage, or if the wielder witnessess an ally within 30 feet of them fall to 0 hp, they can spend 6 Spirit Charges and use their reaction to activate this ability. For the duration, the wielder gains the following benefits and penalties: • They have Advantage on all Melee Attack Rolls or Spirit Attack Rolls. • They gain resistance to slashing, piercing, and bludgeoning damage. • All Melee Weapon Attack Rolls they make deal an additional 1d6 fire damage. • They gain an additional Action that can be used only to take the Attack Action (one Attack only) or the Dash Action (if it moves them closer to the nearest enemy) • All Creatures have Advantage on Attack Rolls against them. If the triggering attack came from a creature within range of a melee attack, they can make an attack as part of this reaction. For the duration, they are also forced to make a DC 20 Constitution Saving Throw. For each failure, they gain a level of exhaustion when the ability expires. Overheat lasts for 5 rounds or until the wielder falls Unconcious. This ability can be used once per Long Rest. | BV209: =IF(_xlfn.IFNA(MATCH(TEXT($BW$3,"00")&TEXT(((ROW()+3)-$BW$2) / 3,"00"),MysticIndex,0),0)=0,"0000",TEXT($BW$3,"00")&TEXT(((ROW()+3)-$BW$2) / 3,"00")) -> 0265 | BW209: =IF(BV209<>"0000",INDEX(MysticAbilities,CA209,BW$15),0) -> 360 | BX209: =IFERROR(IF(BV209<>"0000",INDEX(MysticAbilities,CA209,BX$15),TRUE),TRUE) -> TRUE | BY209: =IF(BV209<>"0000",INDEX(MysticAbilities,CA209,BY$15),0) -> 0 | BZ209: =IF(BV209<>"0000",INDEX(MysticAbilities,CA209,BZ$15),0) -> 0 | CA209: =IF(BV209<>"0000", MATCH(BV209,MysticIndex,0),"") -> 65 | CB209: =IF($BV209<>"0000",INDEX(MysticAbilities,$CA209,CB$15),FALSE) -> TRUE | CC209: =IF($BV209<>"0000",INDEX(MysticAbilities,$CA209,CC$15),FALSE) -> FALSE | CD209: =IF($BV209<>"0000",INDEX(MysticAbilities,$CA209,CD$15),TRUE) -> TRUE
CE210: =B209<>"" -> FALSE
F212: =IF(BV212<>"0000",INDEX(MysticAbilities,CA212,$D$14),"") -> Raging Inferno | W212: =IF(BV212="0000", "", IF(INDEX(MysticAbilities,CA212,$W$14)=0, "-", INDEX(MysticAbilities,CA212,$W$14))) -> 12 | Z212: =IF(BV212<>"0000",IF(INDEX(MysticAbilities,CA212,$Z$14)= 0,"",INDEX(MysticAbilities,CA212,$Z$14)),"") ->  | AJ212: =IF(BV212<>"0000",IF(INDEX(MysticAbilities,CA212,$AJ$14)= 0,"",INDEX(MysticAbilities,CA212,$AJ$14)),"") -> STR 17+; | AQ212: =IF(BV212<>"0000",IF(INDEX(MysticAbilities,CA212,$AQ$14)= 0,"",INDEX(MysticAbilities,CA212,$AQ$14)),"") -> This ability augments the Overheat Ability. As a reaction to a creature attacking with with a melee weapon while Overheat is active, the wielder can choose to take a level of Exhuastion in order to immediately take the Attack Action on the triggering creature. | BV212: =IF(_xlfn.IFNA(MATCH(TEXT($BW$3,"00")&TEXT(((ROW()+3)-$BW$2) / 3,"00"),MysticIndex,0),0)=0,"0000",TEXT($BW$3,"00")&TEXT(((ROW()+3)-$BW$2) / 3,"00")) -> 0266 | BW212: =IF(BV212<>"0000",INDEX(MysticAbilities,CA212,BW$15),0) -> 75 | BX212: =IFERROR(IF(BV212<>"0000",INDEX(MysticAbilities,CA212,BX$15),TRUE),TRUE) -> FALSE | BY212: =IF(BV212<>"0000",INDEX(MysticAbilities,CA212,BY$15),0) -> 1 | BZ212: =IF(BV212<>"0000",INDEX(MysticAbilities,CA212,BZ$15),0) -> 13 | CA212: =IF(BV212<>"0000", MATCH(BV212,MysticIndex,0),"") -> 66 | CB212: =IF($BV212<>"0000",INDEX(MysticAbilities,$CA212,CB$15),FALSE) -> FALSE | CC212: =IF($BV212<>"0000",INDEX(MysticAbilities,$CA212,CC$15),FALSE) -> FALSE | CD212: =IF($BV212<>"0000",INDEX(MysticAbilities,$CA212,CD$15),TRUE) -> FALSE
CE213: =B212<>"" -> FALSE
F215: =IF(BV215<>"0000",INDEX(MysticAbilities,CA215,$D$14),"") -> Boiling Fury | W215: =IF(BV215="0000", "", IF(INDEX(MysticAbilities,CA215,$W$14)=0, "-", INDEX(MysticAbilities,CA215,$W$14))) -> 14 | Z215: =IF(BV215<>"0000",IF(INDEX(MysticAbilities,CA215,$Z$14)= 0,"",INDEX(MysticAbilities,CA215,$Z$14)),"") ->  | AJ215: =IF(BV215<>"0000",IF(INDEX(MysticAbilities,CA215,$AJ$14)= 0,"",INDEX(MysticAbilities,CA215,$AJ$14)),"") -> CHA 13+; | AQ215: =IF(BV215<>"0000",IF(INDEX(MysticAbilities,CA215,$AQ$14)= 0,"",INDEX(MysticAbilities,CA215,$AQ$14)),"") -> This ability augments the Overheat Ability. When selected, this ability extends the Overheat's Duration to a maximum of 10 rounds. | BV215: =IF(_xlfn.IFNA(MATCH(TEXT($BW$3,"00")&TEXT(((ROW()+3)-$BW$2) / 3,"00"),MysticIndex,0),0)=0,"0000",TEXT($BW$3,"00")&TEXT(((ROW()+3)-$BW$2) / 3,"00")) -> 0267 | BW215: =IF(BV215<>"0000",INDEX(MysticAbilities,CA215,BW$15),0) -> 45 | BX215: =IFERROR(IF(BV215<>"0000",INDEX(MysticAbilities,CA215,BX$15),TRUE),TRUE) -> FALSE | BY215: =IF(BV215<>"0000",INDEX(MysticAbilities,CA215,BY$15),0) -> 1 | BZ215: =IF(BV215<>"0000",INDEX(MysticAbilities,CA215,BZ$15),0) -> 13 | CA215: =IF(BV215<>"0000", MATCH(BV215,MysticIndex,0),"") -> 67 | CB215: =IF($BV215<>"0000",INDEX(MysticAbilities,$CA215,CB$15),FALSE) -> FALSE | CC215: =IF($BV215<>"0000",INDEX(MysticAbilities,$CA215,CC$15),FALSE) -> FALSE | CD215: =IF($BV215<>"0000",INDEX(MysticAbilities,$CA215,CD$15),TRUE) -> FALSE
CE216: =B215<>"" -> FALSE
F218: =IF(BV218<>"0000",INDEX(MysticAbilities,CA218,$D$14),"") -> Clarity | W218: =IF(BV218="0000", "", IF(INDEX(MysticAbilities,CA218,$W$14)=0, "-", INDEX(MysticAbilities,CA218,$W$14))) -> 16 | Z218: =IF(BV218<>"0000",IF(INDEX(MysticAbilities,CA218,$Z$14)= 0,"",INDEX(MysticAbilities,CA218,$Z$14)),"") ->  | AJ218: =IF(BV218<>"0000",IF(INDEX(MysticAbilities,CA218,$AJ$14)= 0,"",INDEX(MysticAbilities,CA218,$AJ$14)),"") -> WIS 13+; | AQ218: =IF(BV218<>"0000",IF(INDEX(MysticAbilities,CA218,$AQ$14)= 0,"",INDEX(MysticAbilities,CA218,$AQ$14)),"") -> This ability augments the Overheat Ability. When selected, you can add your Spirit Proficiency as a bonus to the Constitution Saving Throw of this ability. | BV218: =IF(_xlfn.IFNA(MATCH(TEXT($BW$3,"00")&TEXT(((ROW()+3)-$BW$2) / 3,"00"),MysticIndex,0),0)=0,"0000",TEXT($BW$3,"00")&TEXT(((ROW()+3)-$BW$2) / 3,"00")) -> 0268 | BW218: =IF(BV218<>"0000",INDEX(MysticAbilities,CA218,BW$15),0) -> 45 | BX218: =IFERROR(IF(BV218<>"0000",INDEX(MysticAbilities,CA218,BX$15),TRUE),TRUE) -> FALSE | BY218: =IF(BV218<>"0000",INDEX(MysticAbilities,CA218,BY$15),0) -> 1 | BZ218: =IF(BV218<>"0000",INDEX(MysticAbilities,CA218,BZ$15),0) -> 13 | CA218: =IF(BV218<>"0000", MATCH(BV218,MysticIndex,0),"") -> 68 | CB218: =IF($BV218<>"0000",INDEX(MysticAbilities,$CA218,CB$15),FALSE) -> FALSE | CC218: =IF($BV218<>"0000",INDEX(MysticAbilities,$CA218,CC$15),FALSE) -> FALSE | CD218: =IF($BV218<>"0000",INDEX(MysticAbilities,$CA218,CD$15),TRUE) -> FALSE
CE219: =B218<>"" -> FALSE
F221: =IF(BV221<>"0000",INDEX(MysticAbilities,CA221,$D$14),"") -> Flash Point | W221: =IF(BV221="0000", "", IF(INDEX(MysticAbilities,CA221,$W$14)=0, "-", INDEX(MysticAbilities,CA221,$W$14))) -> 16 | Z221: =IF(BV221<>"0000",IF(INDEX(MysticAbilities,CA221,$Z$14)= 0,"",INDEX(MysticAbilities,CA221,$Z$14)),"") ->  | AJ221: =IF(BV221<>"0000",IF(INDEX(MysticAbilities,CA221,$AJ$14)= 0,"",INDEX(MysticAbilities,CA221,$AJ$14)),"") -> INT 13+; | AQ221: =IF(BV221<>"0000",IF(INDEX(MysticAbilities,CA221,$AQ$14)= 0,"",INDEX(MysticAbilities,CA221,$AQ$14)),"") -> This ability augments the Overheat Ability. When known, this ability adds an option for a damaging explosion at the end of the Overheat Ability. When the ability ends forcefully or by reaching it's maximum duration, the wielder may choose to spend up to 10 Spirit Charges. In response, a burst of fire explodes out from the wielder, covering an area with a 15 ft radius from the wielder. Affected Creatures must succeed at a Dexterity Saving Throw against your Spirit Save DC or take 2d6 fire damage for each Spirit Charge that was spent. | BV221: =IF(_xlfn.IFNA(MATCH(TEXT($BW$3,"00")&TEXT(((ROW()+3)-$BW$2) / 3,"00"),MysticIndex,0),0)=0,"0000",TEXT($BW$3,"00")&TEXT(((ROW()+3)-$BW$2) / 3,"00")) -> 0269 | BW221: =IF(BV221<>"0000",INDEX(MysticAbilities,CA221,BW$15),0) -> 135 | BX221: =IFERROR(IF(BV221<>"0000",INDEX(MysticAbilities,CA221,BX$15),TRUE),TRUE) -> FALSE | BY221: =IF(BV221<>"0000",INDEX(MysticAbilities,CA221,BY$15),0) -> 1 | BZ221: =IF(BV221<>"0000",INDEX(MysticAbilities,CA221,BZ$15),0) -> 12 | CA221: =IF(BV221<>"0000", MATCH(BV221,MysticIndex,0),"") -> 69 | CB221: =IF($BV221<>"0000",INDEX(MysticAbilities,$CA221,CB$15),FALSE) -> FALSE | CC221: =IF($BV221<>"0000",INDEX(MysticAbilities,$CA221,CC$15),FALSE) -> FALSE | CD221: =IF($BV221<>"0000",INDEX(MysticAbilities,$CA221,CD$15),TRUE) -> TRUE
CE222: =B221<>"" -> FALSE
D224: =IF(BV224<>"0000",INDEX(MysticAbilities,CA224,$D$14),"") -> Phoenix Fire | W224: =IF(BV224="0000", "", IF(INDEX(MysticAbilities,CA224,$W$14)=0, "-", INDEX(MysticAbilities,CA224,$W$14))) -> 10 | Z224: =IF(BV224<>"0000",IF(INDEX(MysticAbilities,CA224,$Z$14)= 0,"",INDEX(MysticAbilities,CA224,$Z$14)),"") ->  | AJ224: =IF(BV224<>"0000",IF(INDEX(MysticAbilities,CA224,$AJ$14)= 0,"",INDEX(MysticAbilities,CA224,$AJ$14)),"") ->  | AQ224: =IF(BV224<>"0000",IF(INDEX(MysticAbilities,CA224,$AQ$14)= 0,"",INDEX(MysticAbilities,CA224,$AQ$14)),"") -> As a Reaction to any spell that deals fire damage cast or targeting anything within 10 ft. of the wielder, they can spend 1 Spirit Charge to use Phoenix Fire. This allows the character to take 10% of the damage that spell inflicts on its target to heal the wielder. If 10% would be less than 1 hp, this heals no damage. The spell still strikes its target at full damage. This cannot be activated by effects of Eternal Flame itself. The wielder may even choose to activate this ability while Dying, Unconcious, or otherwise Incapacitated, but not while dead. | BV224: =IF(_xlfn.IFNA(MATCH(TEXT($BW$3,"00")&TEXT(((ROW()+3)-$BW$2) / 3,"00"),MysticIndex,0),0)=0,"0000",TEXT($BW$3,"00")&TEXT(((ROW()+3)-$BW$2) / 3,"00")) -> 0270 | BW224: =IF(BV224<>"0000",INDEX(MysticAbilities,CA224,BW$15),0) -> 135 | BX224: =IFERROR(IF(BV224<>"0000",INDEX(MysticAbilities,CA224,BX$15),TRUE),TRUE) -> TRUE | BY224: =IF(BV224<>"0000",INDEX(MysticAbilities,CA224,BY$15),0) -> 0 | BZ224: =IF(BV224<>"0000",INDEX(MysticAbilities,CA224,BZ$15),0) -> 0 | CA224: =IF(BV224<>"0000", MATCH(BV224,MysticIndex,0),"") -> 70 | CB224: =IF($BV224<>"0000",INDEX(MysticAbilities,$CA224,CB$15),FALSE) -> TRUE | CC224: =IF($BV224<>"0000",INDEX(MysticAbilities,$CA224,CC$15),FALSE) -> FALSE | CD224: =IF($BV224<>"0000",INDEX(MysticAbilities,$CA224,CD$15),TRUE) -> TRUE
CE225: =B224<>"" -> FALSE
F227: =IF(BV227<>"0000",INDEX(MysticAbilities,CA227,$D$14),"") -> Phoenix Blood | W227: =IF(BV227="0000", "", IF(INDEX(MysticAbilities,CA227,$W$14)=0, "-", INDEX(MysticAbilities,CA227,$W$14))) -> 13 | Z227: =IF(BV227<>"0000",IF(INDEX(MysticAbilities,CA227,$Z$14)= 0,"",INDEX(MysticAbilities,CA227,$Z$14)),"") ->  | AJ227: =IF(BV227<>"0000",IF(INDEX(MysticAbilities,CA227,$AJ$14)= 0,"",INDEX(MysticAbilities,CA227,$AJ$14)),"") ->  | AQ227: =IF(BV227<>"0000",IF(INDEX(MysticAbilities,CA227,$AQ$14)= 0,"",INDEX(MysticAbilities,CA227,$AQ$14)),"") -> This ability augments the Phoenix Fire Ability. From now on, if a spell would heal the wielder of Eternal Flame, but they have perished within the current encounter, the Pheonix Fire ability can now revive them at the cost of every remaining Spirit Charge. The character will revive to 0 HP, but be considered stable. | BV227: =IF(_xlfn.IFNA(MATCH(TEXT($BW$3,"00")&TEXT(((ROW()+3)-$BW$2) / 3,"00"),MysticIndex,0),0)=0,"0000",TEXT($BW$3,"00")&TEXT(((ROW()+3)-$BW$2) / 3,"00")) -> 0271 | BW227: =IF(BV227<>"0000",INDEX(MysticAbilities,CA227,BW$15),0) -> 90 | BX227: =IFERROR(IF(BV227<>"0000",INDEX(MysticAbilities,CA227,BX$15),TRUE),TRUE) -> FALSE | BY227: =IF(BV227<>"0000",INDEX(MysticAbilities,CA227,BY$15),0) -> 1 | BZ227: =IF(BV227<>"0000",INDEX(MysticAbilities,CA227,BZ$15),0) -> 13 | CA227: =IF(BV227<>"0000", MATCH(BV227,MysticIndex,0),"") -> 71 | CB227: =IF($BV227<>"0000",INDEX(MysticAbilities,$CA227,CB$15),FALSE) -> FALSE | CC227: =IF($BV227<>"0000",INDEX(MysticAbilities,$CA227,CC$15),FALSE) -> FALSE | CD227: =IF($BV227<>"0000",INDEX(MysticAbilities,$CA227,CD$15),TRUE) -> FALSE
CE228: =B227<>"" -> FALSE
F230: =IF(BV230<>"0000",INDEX(MysticAbilities,CA230,$D$14),"") -> Burning Blood | W230: =IF(BV230="0000", "", IF(INDEX(MysticAbilities,CA230,$W$14)=0, "-", INDEX(MysticAbilities,CA230,$W$14))) -> 15 | Z230: =IF(BV230<>"0000",IF(INDEX(MysticAbilities,CA230,$Z$14)= 0,"",INDEX(MysticAbilities,CA230,$Z$14)),"") ->  | AJ230: =IF(BV230<>"0000",IF(INDEX(MysticAbilities,CA230,$AJ$14)= 0,"",INDEX(MysticAbilities,CA230,$AJ$14)),"") ->  | AQ230: =IF(BV230<>"0000",IF(INDEX(MysticAbilities,CA230,$AQ$14)= 0,"",INDEX(MysticAbilities,CA230,$AQ$14)),"") -> This ability augments the Phoenix Fire Ability. When this ability is selected, it increases the amount of health gained from the Pheonix Fire ability to 25% of the fire damage inflicted. | BV230: =IF(_xlfn.IFNA(MATCH(TEXT($BW$3,"00")&TEXT(((ROW()+3)-$BW$2) / 3,"00"),MysticIndex,0),0)=0,"0000",TEXT($BW$3,"00")&TEXT(((ROW()+3)-$BW$2) / 3,"00")) -> 0272 | BW230: =IF(BV230<>"0000",INDEX(MysticAbilities,CA230,BW$15),0) -> 60 | BX230: =IFERROR(IF(BV230<>"0000",INDEX(MysticAbilities,CA230,BX$15),TRUE),TRUE) -> FALSE | BY230: =IF(BV230<>"0000",INDEX(MysticAbilities,CA230,BY$15),0) -> 1 | BZ230: =IF(BV230<>"0000",INDEX(MysticAbilities,CA230,BZ$15),0) -> 12 | CA230: =IF(BV230<>"0000", MATCH(BV230,MysticIndex,0),"") -> 72 | CB230: =IF($BV230<>"0000",INDEX(MysticAbilities,$CA230,CB$15),FALSE) -> FALSE | CC230: =IF($BV230<>"0000",INDEX(MysticAbilities,$CA230,CC$15),FALSE) -> FALSE | CD230: =IF($BV230<>"0000",INDEX(MysticAbilities,$CA230,CD$15),TRUE) -> FALSE
CE231: =B230<>"" -> FALSE
D233: =IF(BV233<>"0000",INDEX(MysticAbilities,CA233,$D$14),"") -> Flash Fire | W233: =IF(BV233="0000", "", IF(INDEX(MysticAbilities,CA233,$W$14)=0, "-", INDEX(MysticAbilities,CA233,$W$14))) -> 10 | Z233: =IF(BV233<>"0000",IF(INDEX(MysticAbilities,CA233,$Z$14)= 0,"",INDEX(MysticAbilities,CA233,$Z$14)),"") ->  | AJ233: =IF(BV233<>"0000",IF(INDEX(MysticAbilities,CA233,$AJ$14)= 0,"",INDEX(MysticAbilities,CA233,$AJ$14)),"") ->  | AQ233: =IF(BV233<>"0000",IF(INDEX(MysticAbilities,CA233,$AQ$14)= 0,"",INDEX(MysticAbilities,CA233,$AQ$14)),"") -> A creature bonded with Eternal Flame gains the power to summon a tightly compressed ball of fire. As an action by spending 6 Spirit Charges, the character can choose a spot within 60ft. on the map to throw these intense flames. Everything within 15 ft. of that location becomes consumed in flames dealing 10d6 fire damage. For two rounds after that, every square affected by the ability is considered to be consumed in flames. Any creature beginning their turn in this area or passing through any square takes an additional 1d6 points of fire damage for each square they pass through. A creature in the affected area when the ability is first used can make a Dexterity Saving Throw against your Spirit Save DC to try and avoid taking damage. However, if successful, the creature is thrown 15 ft. from where they stand in the opposite direction of the blast’s radius, taking 5d6 bludgeoning damage as they crash down. If they cannot move 15 ft. in that direction, they move as far as possible and receive only half the bludgeoning and half the fire damage. If they are successfully thrown clear of the blast, they are considered to be prone. This ability can be used once per Long Rest. | BV233: =IF(_xlfn.IFNA(MATCH(TEXT($BW$3,"00")&TEXT(((ROW()+3)-$BW$2) / 3,"00"),MysticIndex,0),0)=0,"0000",TEXT($BW$3,"00")&TEXT(((ROW()+3)-$BW$2) / 3,"00")) -> 0273 | BW233: =IF(BV233<>"0000",INDEX(MysticAbilities,CA233,BW$15),0) -> 300 | BX233: =IFERROR(IF(BV233<>"0000",INDEX(MysticAbilities,CA233,BX$15),TRUE),TRUE) -> TRUE | BY233: =IF(BV233<>"0000",INDEX(MysticAbilities,CA233,BY$15),0) -> 0 | BZ233: =IF(BV233<>"0000",INDEX(MysticAbilities,CA233,BZ$15),0) -> 0 | CA233: =IF(BV233<>"0000", MATCH(BV233,MysticIndex,0),"") -> 73 | CB233: =IF($BV233<>"0000",INDEX(MysticAbilities,$CA233,CB$15),FALSE) -> TRUE | CC233: =IF($BV233<>"0000",INDEX(MysticAbilities,$CA233,CC$15),FALSE) -> FALSE | CD233: =IF($BV233<>"0000",INDEX(MysticAbilities,$CA233,CD$15),TRUE) -> TRUE
CE234: =B233<>"" -> FALSE
F236: =IF(BV236<>"0000",INDEX(MysticAbilities,CA236,$D$14),"") -> Recall | W236: =IF(BV236="0000", "", IF(INDEX(MysticAbilities,CA236,$W$14)=0, "-", INDEX(MysticAbilities,CA236,$W$14))) -> 12 | Z236: =IF(BV236<>"0000",IF(INDEX(MysticAbilities,CA236,$Z$14)= 0,"",INDEX(MysticAbilities,CA236,$Z$14)),"") ->  | AJ236: =IF(BV236<>"0000",IF(INDEX(MysticAbilities,CA236,$AJ$14)= 0,"",INDEX(MysticAbilities,CA236,$AJ$14)),"") ->  | AQ236: =IF(BV236<>"0000",IF(INDEX(MysticAbilities,CA236,$AQ$14)= 0,"",INDEX(MysticAbilities,CA236,$AQ$14)),"") -> This ability augments the Flash Fire Ability. When this ability is taken, Flash Fire can be used once per Short Rest instead of only once per Long Rest. | BV236: =IF(_xlfn.IFNA(MATCH(TEXT($BW$3,"00")&TEXT(((ROW()+3)-$BW$2) / 3,"00"),MysticIndex,0),0)=0,"0000",TEXT($BW$3,"00")&TEXT(((ROW()+3)-$BW$2) / 3,"00")) -> 0274 | BW236: =IF(BV236<>"0000",INDEX(MysticAbilities,CA236,BW$15),0) -> 45 | BX236: =IFERROR(IF(BV236<>"0000",INDEX(MysticAbilities,CA236,BX$15),TRUE),TRUE) -> FALSE | BY236: =IF(BV236<>"0000",INDEX(MysticAbilities,CA236,BY$15),0) -> 1 | BZ236: =IF(BV236<>"0000",INDEX(MysticAbilities,CA236,BZ$15),0) -> 13 | CA236: =IF(BV236<>"0000", MATCH(BV236,MysticIndex,0),"") -> 74 | CB236: =IF($BV236<>"0000",INDEX(MysticAbilities,$CA236,CB$15),FALSE) -> FALSE | CC236: =IF($BV236<>"0000",INDEX(MysticAbilities,$CA236,CC$15),FALSE) -> FALSE | CD236: =IF($BV236<>"0000",INDEX(MysticAbilities,$CA236,CD$15),TRUE) -> FALSE
CE237: =B236<>"" -> FALSE
F239: =IF(BV239<>"0000",INDEX(MysticAbilities,CA239,$D$14),"") -> Rolling Flames | W239: =IF(BV239="0000", "", IF(INDEX(MysticAbilities,CA239,$W$14)=0, "-", INDEX(MysticAbilities,CA239,$W$14))) -> 13 | Z239: =IF(BV239<>"0000",IF(INDEX(MysticAbilities,CA239,$Z$14)= 0,"",INDEX(MysticAbilities,CA239,$Z$14)),"") ->  | AJ239: =IF(BV239<>"0000",IF(INDEX(MysticAbilities,CA239,$AJ$14)= 0,"",INDEX(MysticAbilities,CA239,$AJ$14)),"") -> INT 15+; | AQ239: =IF(BV239<>"0000",IF(INDEX(MysticAbilities,CA239,$AQ$14)= 0,"",INDEX(MysticAbilities,CA239,$AQ$14)),"") -> This ability augments the Flash Fire Ability. When selected, it increases the size of the blast to a 30 ft. radius. | BV239: =IF(_xlfn.IFNA(MATCH(TEXT($BW$3,"00")&TEXT(((ROW()+3)-$BW$2) / 3,"00"),MysticIndex,0),0)=0,"0000",TEXT($BW$3,"00")&TEXT(((ROW()+3)-$BW$2) / 3,"00")) -> 0275 | BW239: =IF(BV239<>"0000",INDEX(MysticAbilities,CA239,BW$15),0) -> 30 | BX239: =IFERROR(IF(BV239<>"0000",INDEX(MysticAbilities,CA239,BX$15),TRUE),TRUE) -> FALSE | BY239: =IF(BV239<>"0000",INDEX(MysticAbilities,CA239,BY$15),0) -> 1 | BZ239: =IF(BV239<>"0000",INDEX(MysticAbilities,CA239,BZ$15),0) -> 13 | CA239: =IF(BV239<>"0000", MATCH(BV239,MysticIndex,0),"") -> 75 | CB239: =IF($BV239<>"0000",INDEX(MysticAbilities,$CA239,CB$15),FALSE) -> FALSE | CC239: =IF($BV239<>"0000",INDEX(MysticAbilities,$CA239,CC$15),FALSE) -> FALSE | CD239: =IF($BV239<>"0000",INDEX(MysticAbilities,$CA239,CD$15),TRUE) -> FALSE
CE240: =B239<>"" -> FALSE
F242: =IF(BV242<>"0000",INDEX(MysticAbilities,CA242,$D$14),"") -> Incineration | W242: =IF(BV242="0000", "", IF(INDEX(MysticAbilities,CA242,$W$14)=0, "-", INDEX(MysticAbilities,CA242,$W$14))) -> 15 | Z242: =IF(BV242<>"0000",IF(INDEX(MysticAbilities,CA242,$Z$14)= 0,"",INDEX(MysticAbilities,CA242,$Z$14)),"") ->  | AJ242: =IF(BV242<>"0000",IF(INDEX(MysticAbilities,CA242,$AJ$14)= 0,"",INDEX(MysticAbilities,CA242,$AJ$14)),"") -> STR 15+; | AQ242: =IF(BV242<>"0000",IF(INDEX(MysticAbilities,CA242,$AQ$14)= 0,"",INDEX(MysticAbilities,CA242,$AQ$14)),"") -> This ability augments the Flash Fire Ability. When selected, it increases the amount of damage done by the ability's initial explosion to 15d6 fire damage. | BV242: =IF(_xlfn.IFNA(MATCH(TEXT($BW$3,"00")&TEXT(((ROW()+3)-$BW$2) / 3,"00"),MysticIndex,0),0)=0,"0000",TEXT($BW$3,"00")&TEXT(((ROW()+3)-$BW$2) / 3,"00")) -> 0276 | BW242: =IF(BV242<>"0000",INDEX(MysticAbilities,CA242,BW$15),0) -> 45 | BX242: =IFERROR(IF(BV242<>"0000",INDEX(MysticAbilities,CA242,BX$15),TRUE),TRUE) -> FALSE | BY242: =IF(BV242<>"0000",INDEX(MysticAbilities,CA242,BY$15),0) -> 1 | BZ242: =IF(BV242<>"0000",INDEX(MysticAbilities,CA242,BZ$15),0) -> 13 | CA242: =IF(BV242<>"0000", MATCH(BV242,MysticIndex,0),"") -> 76 | CB242: =IF($BV242<>"0000",INDEX(MysticAbilities,$CA242,CB$15),FALSE) -> FALSE | CC242: =IF($BV242<>"0000",INDEX(MysticAbilities,$CA242,CC$15),FALSE) -> FALSE | CD242: =IF($BV242<>"0000",INDEX(MysticAbilities,$CA242,CD$15),TRUE) -> FALSE
CE243: =B242<>"" -> FALSE
H245: =IF(BV245<>"0000",INDEX(MysticAbilities,CA245,$D$14),"") -> To Ashes | W245: =IF(BV245="0000", "", IF(INDEX(MysticAbilities,CA245,$W$14)=0, "-", INDEX(MysticAbilities,CA245,$W$14))) -> 19 | Z245: =IF(BV245<>"0000",IF(INDEX(MysticAbilities,CA245,$Z$14)= 0,"",INDEX(MysticAbilities,CA245,$Z$14)),"") ->  | AJ245: =IF(BV245<>"0000",IF(INDEX(MysticAbilities,CA245,$AJ$14)= 0,"",INDEX(MysticAbilities,CA245,$AJ$14)),"") -> STR 15+; | AQ245: =IF(BV245<>"0000",IF(INDEX(MysticAbilities,CA245,$AQ$14)= 0,"",INDEX(MysticAbilities,CA245,$AQ$14)),"") -> This ability augments the Flash Fire Ability. When selected, it increases the amount of damage done by the ability's initial explosion to 20d6 fire damage. In addition, the residual damge of the fires in the area increases to 3d6 fire damage. | BV245: =IF(_xlfn.IFNA(MATCH(TEXT($BW$3,"00")&TEXT(((ROW()+3)-$BW$2) / 3,"00"),MysticIndex,0),0)=0,"0000",TEXT($BW$3,"00")&TEXT(((ROW()+3)-$BW$2) / 3,"00")) -> 0277 | BW245: =IF(BV245<>"0000",INDEX(MysticAbilities,CA245,BW$15),0) -> 60 | BX245: =IFERROR(IF(BV245<>"0000",INDEX(MysticAbilities,CA245,BX$15),TRUE),TRUE) -> FALSE | BY245: =IF(BV245<>"0000",INDEX(MysticAbilities,CA245,BY$15),0) -> 2 | BZ245: =IF(BV245<>"0000",INDEX(MysticAbilities,CA245,BZ$15),0) -> 1203 | CA245: =IF(BV245<>"0000", MATCH(BV245,MysticIndex,0),"") -> 77 | CB245: =IF($BV245<>"0000",INDEX(MysticAbilities,$CA245,CB$15),FALSE) -> FALSE | CC245: =IF($BV245<>"0000",INDEX(MysticAbilities,$CA245,CC$15),FALSE) -> FALSE | CD245: =IF($BV245<>"0000",INDEX(MysticAbilities,$CA245,CD$15),TRUE) -> FALSE
CE246: =B245<>"" -> FALSE
F248: =IF(BV248<>"0000",INDEX(MysticAbilities,CA248,$D$14),"") -> Heat of the Sun | W248: =IF(BV248="0000", "", IF(INDEX(MysticAbilities,CA248,$W$14)=0, "-", INDEX(MysticAbilities,CA248,$W$14))) -> 15 | Z248: =IF(BV248<>"0000",IF(INDEX(MysticAbilities,CA248,$Z$14)= 0,"",INDEX(MysticAbilities,CA248,$Z$14)),"") -> Thermal Vent | AJ248: =IF(BV248<>"0000",IF(INDEX(MysticAbilities,CA248,$AJ$14)= 0,"",INDEX(MysticAbilities,CA248,$AJ$14)),"") -> INT 15+; | AQ248: =IF(BV248<>"0000",IF(INDEX(MysticAbilities,CA248,$AQ$14)= 0,"",INDEX(MysticAbilities,CA248,$AQ$14)),"") -> This ability augments the Flash Fire Ability. If the wielder chooses their own square as the source of the Flash Fire explosion, they can spend 3 Spirit Charges to instantly activate Thermal Vent as well. When used in this manner, the wielder takes half damage and is not offered a Saving Throw to avoid this damage. Normal Immunity or resistances apply to this damage, but secondary effects of Eternal Flame do not. | BV248: =IF(_xlfn.IFNA(MATCH(TEXT($BW$3,"00")&TEXT(((ROW()+3)-$BW$2) / 3,"00"),MysticIndex,0),0)=0,"0000",TEXT($BW$3,"00")&TEXT(((ROW()+3)-$BW$2) / 3,"00")) -> 0278 | BW248: =IF(BV248<>"0000",INDEX(MysticAbilities,CA248,BW$15),0) -> 105 | BX248: =IFERROR(IF(BV248<>"0000",INDEX(MysticAbilities,CA248,BX$15),TRUE),TRUE) -> FALSE | BY248: =IF(BV248<>"0000",INDEX(MysticAbilities,CA248,BY$15),0) -> 1 | BZ248: =IF(BV248<>"0000",INDEX(MysticAbilities,CA248,BZ$15),0) -> 12 | CA248: =IF(BV248<>"0000", MATCH(BV248,MysticIndex,0),"") -> 78 | CB248: =IF($BV248<>"0000",INDEX(MysticAbilities,$CA248,CB$15),FALSE) -> FALSE | CC248: =IF($BV248<>"0000",INDEX(MysticAbilities,$CA248,CC$15),FALSE) -> FALSE | CD248: =IF($BV248<>"0000",INDEX(MysticAbilities,$CA248,CD$15),TRUE) -> FALSE
CE249: =B248<>"" -> FALSE
D251: =IF(BV251<>"0000",INDEX(MysticAbilities,CA251,$D$14),"") -> Living Flames | W251: =IF(BV251="0000", "", IF(INDEX(MysticAbilities,CA251,$W$14)=0, "-", INDEX(MysticAbilities,CA251,$W$14))) -> 12 | Z251: =IF(BV251<>"0000",IF(INDEX(MysticAbilities,CA251,$Z$14)= 0,"",INDEX(MysticAbilities,CA251,$Z$14)),"") ->  | AJ251: =IF(BV251<>"0000",IF(INDEX(MysticAbilities,CA251,$AJ$14)= 0,"",INDEX(MysticAbilities,CA251,$AJ$14)),"") -> INT 11+; | AQ251: =IF(BV251<>"0000",IF(INDEX(MysticAbilities,CA251,$AQ$14)= 0,"",INDEX(MysticAbilities,CA251,$AQ$14)),"") -> With this ability, Eternal Flame is able to conjure forth a Fire Elemental as an Action by spending 4 Spirit Charges. The Fire Elemental appears at a square adjacent to the wielder and can make an action immediately. It moves on the wielder's turn, and follows the last direction given to it to the best of it's ability. The Fire Elemental lasts up to 1 minute. This can be done only once per Long Rest. | BV251: =IF(_xlfn.IFNA(MATCH(TEXT($BW$3,"00")&TEXT(((ROW()+3)-$BW$2) / 3,"00"),MysticIndex,0),0)=0,"0000",TEXT($BW$3,"00")&TEXT(((ROW()+3)-$BW$2) / 3,"00")) -> 0279 | BW251: =IF(BV251<>"0000",INDEX(MysticAbilities,CA251,BW$15),0) -> 105 | BX251: =IFERROR(IF(BV251<>"0000",INDEX(MysticAbilities,CA251,BX$15),TRUE),TRUE) -> TRUE | BY251: =IF(BV251<>"0000",INDEX(MysticAbilities,CA251,BY$15),0) -> 0 | BZ251: =IF(BV251<>"0000",INDEX(MysticAbilities,CA251,BZ$15),0) -> 0 | CA251: =IF(BV251<>"0000", MATCH(BV251,MysticIndex,0),"") -> 79 | CB251: =IF($BV251<>"0000",INDEX(MysticAbilities,$CA251,CB$15),FALSE) -> TRUE | CC251: =IF($BV251<>"0000",INDEX(MysticAbilities,$CA251,CC$15),FALSE) -> FALSE | CD251: =IF($BV251<>"0000",INDEX(MysticAbilities,$CA251,CD$15),TRUE) -> TRUE
CE252: =B251<>"" -> FALSE
D254: =IF(BV254<>"0000",INDEX(MysticAbilities,CA254,$D$14),"") -> Heat Well | W254: =IF(BV254="0000", "", IF(INDEX(MysticAbilities,CA254,$W$14)=0, "-", INDEX(MysticAbilities,CA254,$W$14))) -> 12 | Z254: =IF(BV254<>"0000",IF(INDEX(MysticAbilities,CA254,$Z$14)= 0,"",INDEX(MysticAbilities,CA254,$Z$14)),"") ->  | AJ254: =IF(BV254<>"0000",IF(INDEX(MysticAbilities,CA254,$AJ$14)= 0,"",INDEX(MysticAbilities,CA254,$AJ$14)),"") -> CHA 13+; | AQ254: =IF(BV254<>"0000",IF(INDEX(MysticAbilities,CA254,$AQ$14)= 0,"",INDEX(MysticAbilities,CA254,$AQ$14)),"") -> As an Action, the wielder of Eternal Flame may activate this ability by spending 3 Spirit Charges. While active, Heat Well siphons in and absorbs any spell that would deal fire damage, funneling them into the weapon before any of their effects can occur. On subsequent turns, the wielder can choose to maintain this ability by spending an additional Spirit Charge at the beginning of their turn. | BV254: =IF(_xlfn.IFNA(MATCH(TEXT($BW$3,"00")&TEXT(((ROW()+3)-$BW$2) / 3,"00"),MysticIndex,0),0)=0,"0000",TEXT($BW$3,"00")&TEXT(((ROW()+3)-$BW$2) / 3,"00")) -> 0280 | BW254: =IF(BV254<>"0000",INDEX(MysticAbilities,CA254,BW$15),0) -> 105 | BX254: =IFERROR(IF(BV254<>"0000",INDEX(MysticAbilities,CA254,BX$15),TRUE),TRUE) -> TRUE | BY254: =IF(BV254<>"0000",INDEX(MysticAbilities,CA254,BY$15),0) -> 0 | BZ254: =IF(BV254<>"0000",INDEX(MysticAbilities,CA254,BZ$15),0) -> 0 | CA254: =IF(BV254<>"0000", MATCH(BV254,MysticIndex,0),"") -> 80 | CB254: =IF($BV254<>"0000",INDEX(MysticAbilities,$CA254,CB$15),FALSE) -> TRUE | CC254: =IF($BV254<>"0000",INDEX(MysticAbilities,$CA254,CC$15),FALSE) -> FALSE | CD254: =IF($BV254<>"0000",INDEX(MysticAbilities,$CA254,CD$15),TRUE) -> TRUE
CE255: =B254<>"" -> FALSE
F257: =IF(BV257<>"0000",INDEX(MysticAbilities,CA257,$D$14),"") -> Resurgance | W257: =IF(BV257="0000", "", IF(INDEX(MysticAbilities,CA257,$W$14)=0, "-", INDEX(MysticAbilities,CA257,$W$14))) -> 15 | Z257: =IF(BV257<>"0000",IF(INDEX(MysticAbilities,CA257,$Z$14)= 0,"",INDEX(MysticAbilities,CA257,$Z$14)),"") ->  | AJ257: =IF(BV257<>"0000",IF(INDEX(MysticAbilities,CA257,$AJ$14)= 0,"",INDEX(MysticAbilities,CA257,$AJ$14)),"") ->  | AQ257: =IF(BV257<>"0000",IF(INDEX(MysticAbilities,CA257,$AQ$14)= 0,"",INDEX(MysticAbilities,CA257,$AQ$14)),"") -> This ability augments the Heat Well ability. When known, whenever a spell is absorbed by Heat Well, the magic of the spell is used to power Eternal Flame. Eternal Flame regains 1 Spirit Charge per Level of the Spell absorbed. This cannot be used to increase the available Spirit Charges beyond their normal limit. | BV257: =IF(_xlfn.IFNA(MATCH(TEXT($BW$3,"00")&TEXT(((ROW()+3)-$BW$2) / 3,"00"),MysticIndex,0),0)=0,"0000",TEXT($BW$3,"00")&TEXT(((ROW()+3)-$BW$2) / 3,"00")) -> 0281 | BW257: =IF(BV257<>"0000",INDEX(MysticAbilities,CA257,BW$15),0) -> 90 | BX257: =IFERROR(IF(BV257<>"0000",INDEX(MysticAbilities,CA257,BX$15),TRUE),TRUE) -> FALSE | BY257: =IF(BV257<>"0000",INDEX(MysticAbilities,CA257,BY$15),0) -> 1 | BZ257: =IF(BV257<>"0000",INDEX(MysticAbilities,CA257,BZ$15),0) -> 12 | CA257: =IF(BV257<>"0000", MATCH(BV257,MysticIndex,0),"") -> 81 | CB257: =IF($BV257<>"0000",INDEX(MysticAbilities,$CA257,CB$15),FALSE) -> FALSE | CC257: =IF($BV257<>"0000",INDEX(MysticAbilities,$CA257,CC$15),FALSE) -> FALSE | CD257: =IF($BV257<>"0000",INDEX(MysticAbilities,$CA257,CD$15),TRUE) -> FALSE
CE258: =B257<>"" -> FALSE
D260: =IF(BV260<>"0000",INDEX(MysticAbilities,CA260,$D$14),"") -> Burning Brand | W260: =IF(BV260="0000", "", IF(INDEX(MysticAbilities,CA260,$W$14)=0, "-", INDEX(MysticAbilities,CA260,$W$14))) -> 15 | Z260: =IF(BV260<>"0000",IF(INDEX(MysticAbilities,CA260,$Z$14)= 0,"",INDEX(MysticAbilities,CA260,$Z$14)),"") ->  | AJ260: =IF(BV260<>"0000",IF(INDEX(MysticAbilities,CA260,$AJ$14)= 0,"",INDEX(MysticAbilities,CA260,$AJ$14)),"") -> INT 15+; | AQ260: =IF(BV260<>"0000",IF(INDEX(MysticAbilities,CA260,$AQ$14)= 0,"",INDEX(MysticAbilities,CA260,$AQ$14)),"") -> Whenever a character is struck by Eternal Flame's magical attacks, it leaves a scarring burn on the creature that causes lingering damage. Each time Eternal Flame strikes a target with an Attack or Ability, it leaves this burn. For 1d4 rounds, the creature takes 1d4 fire damage at the beginning of their turn. This lingering damage can be removed by any effect that heals damage. | BV260: =IF(_xlfn.IFNA(MATCH(TEXT($BW$3,"00")&TEXT(((ROW()+3)-$BW$2) / 3,"00"),MysticIndex,0),0)=0,"0000",TEXT($BW$3,"00")&TEXT(((ROW()+3)-$BW$2) / 3,"00")) -> 0282 | BW260: =IF(BV260<>"0000",INDEX(MysticAbilities,CA260,BW$15),0) -> 105 | BX260: =IFERROR(IF(BV260<>"0000",INDEX(MysticAbilities,CA260,BX$15),TRUE),TRUE) -> TRUE | BY260: =IF(BV260<>"0000",INDEX(MysticAbilities,CA260,BY$15),0) -> 0 | BZ260: =IF(BV260<>"0000",INDEX(MysticAbilities,CA260,BZ$15),0) -> 0 | CA260: =IF(BV260<>"0000", MATCH(BV260,MysticIndex,0),"") -> 82 | CB260: =IF($BV260<>"0000",INDEX(MysticAbilities,$CA260,CB$15),FALSE) -> TRUE | CC260: =IF($BV260<>"0000",INDEX(MysticAbilities,$CA260,CC$15),FALSE) -> FALSE | CD260: =IF($BV260<>"0000",INDEX(MysticAbilities,$CA260,CD$15),TRUE) -> TRUE
CE261: =B260<>"" -> FALSE
F263: =IF(BV263<>"0000",INDEX(MysticAbilities,CA263,$D$14),"") -> Soldering Brand | W263: =IF(BV263="0000", "", IF(INDEX(MysticAbilities,CA263,$W$14)=0, "-", INDEX(MysticAbilities,CA263,$W$14))) -> 16 | Z263: =IF(BV263<>"0000",IF(INDEX(MysticAbilities,CA263,$Z$14)= 0,"",INDEX(MysticAbilities,CA263,$Z$14)),"") ->  | AJ263: =IF(BV263<>"0000",IF(INDEX(MysticAbilities,CA263,$AJ$14)= 0,"",INDEX(MysticAbilities,CA263,$AJ$14)),"") -> INT 17+; | AQ263: =IF(BV263<>"0000",IF(INDEX(MysticAbilities,CA263,$AQ$14)= 0,"",INDEX(MysticAbilities,CA263,$AQ$14)),"") -> This ability augments the Burning Edge Ability. When this ability is known, the lingering damage of the Burning Edge increases to 2d4 fire damage. | BV263: =IF(_xlfn.IFNA(MATCH(TEXT($BW$3,"00")&TEXT(((ROW()+3)-$BW$2) / 3,"00"),MysticIndex,0),0)=0,"0000",TEXT($BW$3,"00")&TEXT(((ROW()+3)-$BW$2) / 3,"00")) -> 0283 | BW263: =IF(BV263<>"0000",INDEX(MysticAbilities,CA263,BW$15),0) -> 30 | BX263: =IFERROR(IF(BV263<>"0000",INDEX(MysticAbilities,CA263,BX$15),TRUE),TRUE) -> FALSE | BY263: =IF(BV263<>"0000",INDEX(MysticAbilities,CA263,BY$15),0) -> 1 | BZ263: =IF(BV263<>"0000",INDEX(MysticAbilities,CA263,BZ$15),0) -> 13 | CA263: =IF(BV263<>"0000", MATCH(BV263,MysticIndex,0),"") -> 83 | CB263: =IF($BV263<>"0000",INDEX(MysticAbilities,$CA263,CB$15),FALSE) -> FALSE | CC263: =IF($BV263<>"0000",INDEX(MysticAbilities,$CA263,CC$15),FALSE) -> FALSE | CD263: =IF($BV263<>"0000",INDEX(MysticAbilities,$CA263,CD$15),TRUE) -> FALSE
CE264: =B263<>"" -> FALSE
F266: =IF(BV266<>"0000",INDEX(MysticAbilities,CA266,$D$14),"") -> Third Degree Burns | W266: =IF(BV266="0000", "", IF(INDEX(MysticAbilities,CA266,$W$14)=0, "-", INDEX(MysticAbilities,CA266,$W$14))) -> 18 | Z266: =IF(BV266<>"0000",IF(INDEX(MysticAbilities,CA266,$Z$14)= 0,"",INDEX(MysticAbilities,CA266,$Z$14)),"") ->  | AJ266: =IF(BV266<>"0000",IF(INDEX(MysticAbilities,CA266,$AJ$14)= 0,"",INDEX(MysticAbilities,CA266,$AJ$14)),"") -> CHA 15+; | AQ266: =IF(BV266<>"0000",IF(INDEX(MysticAbilities,CA266,$AQ$14)= 0,"",INDEX(MysticAbilities,CA266,$AQ$14)),"") -> This ability augments the Burning Edge Ability. When this ability is known, the lingering damage of the Burning Edge lasts for 2d4 rounds, instead of 1d4 rounds. | BV266: =IF(_xlfn.IFNA(MATCH(TEXT($BW$3,"00")&TEXT(((ROW()+3)-$BW$2) / 3,"00"),MysticIndex,0),0)=0,"0000",TEXT($BW$3,"00")&TEXT(((ROW()+3)-$BW$2) / 3,"00")) -> 0284 | BW266: =IF(BV266<>"0000",INDEX(MysticAbilities,CA266,BW$15),0) -> 45 | BX266: =IFERROR(IF(BV266<>"0000",INDEX(MysticAbilities,CA266,BX$15),TRUE),TRUE) -> FALSE | BY266: =IF(BV266<>"0000",INDEX(MysticAbilities,CA266,BY$15),0) -> 1 | BZ266: =IF(BV266<>"0000",INDEX(MysticAbilities,CA266,BZ$15),0) -> 12 | CA266: =IF(BV266<>"0000", MATCH(BV266,MysticIndex,0),"") -> 84 | CB266: =IF($BV266<>"0000",INDEX(MysticAbilities,$CA266,CB$15),FALSE) -> FALSE | CC266: =IF($BV266<>"0000",INDEX(MysticAbilities,$CA266,CC$15),FALSE) -> FALSE | CD266: =IF($BV266<>"0000",INDEX(MysticAbilities,$CA266,CD$15),TRUE) -> FALSE
CE267: =B266<>"" -> FALSE
D269: =IF(BV269<>"0000",INDEX(MysticAbilities,CA269,$D$14),"") -> Smouldering Flame | W269: =IF(BV269="0000", "", IF(INDEX(MysticAbilities,CA269,$W$14)=0, "-", INDEX(MysticAbilities,CA269,$W$14))) -> 15 | Z269: =IF(BV269<>"0000",IF(INDEX(MysticAbilities,CA269,$Z$14)= 0,"",INDEX(MysticAbilities,CA269,$Z$14)),"") ->  | AJ269: =IF(BV269<>"0000",IF(INDEX(MysticAbilities,CA269,$AJ$14)= 0,"",INDEX(MysticAbilities,CA269,$AJ$14)),"") -> STR 15+; CON 13+; | AQ269: =IF(BV269<>"0000",IF(INDEX(MysticAbilities,CA269,$AQ$14)= 0,"",INDEX(MysticAbilities,CA269,$AQ$14)),"") -> The Smouldering Flame ability allows a warrior to keep fighting past the point of their normal limits. This ability activates automatically so long as the character possesses the required Spirit Charges. At the moment any attack would bring the wielder to 0 hp, Eternal Flame automatically spends 5 Spirit Charges (if available) to keep the wielder on their feet at 1 hp. This ability can activate only once per encounter. | BV269: =IF(_xlfn.IFNA(MATCH(TEXT($BW$3,"00")&TEXT(((ROW()+3)-$BW$2) / 3,"00"),MysticIndex,0),0)=0,"0000",TEXT($BW$3,"00")&TEXT(((ROW()+3)-$BW$2) / 3,"00")) -> 0285 | BW269: =IF(BV269<>"0000",INDEX(MysticAbilities,CA269,BW$15),0) -> 105 | BX269: =IFERROR(IF(BV269<>"0000",INDEX(MysticAbilities,CA269,BX$15),TRUE),TRUE) -> TRUE | BY269: =IF(BV269<>"0000",INDEX(MysticAbilities,CA269,BY$15),0) -> 0 | BZ269: =IF(BV269<>"0000",INDEX(MysticAbilities,CA269,BZ$15),0) -> 0 | CA269: =IF(BV269<>"0000", MATCH(BV269,MysticIndex,0),"") -> 85 | CB269: =IF($BV269<>"0000",INDEX(MysticAbilities,$CA269,CB$15),FALSE) -> TRUE | CC269: =IF($BV269<>"0000",INDEX(MysticAbilities,$CA269,CC$15),FALSE) -> FALSE | CD269: =IF($BV269<>"0000",INDEX(MysticAbilities,$CA269,CD$15),TRUE) -> TRUE
CE270: =B269<>"" -> FALSE
D272: =IF(BV272<>"0000",INDEX(MysticAbilities,CA272,$D$14),"") -> Hands of a Master | W272: =IF(BV272="0000", "", IF(INDEX(MysticAbilities,CA272,$W$14)=0, "-", INDEX(MysticAbilities,CA272,$W$14))) -> 15 | Z272: =IF(BV272<>"0000",IF(INDEX(MysticAbilities,CA272,$Z$14)= 0,"",INDEX(MysticAbilities,CA272,$Z$14)),"") ->  | AJ272: =IF(BV272<>"0000",IF(INDEX(MysticAbilities,CA272,$AJ$14)= 0,"",INDEX(MysticAbilities,CA272,$AJ$14)),"") ->  | AQ272: =IF(BV272<>"0000",IF(INDEX(MysticAbilities,CA272,$AQ$14)= 0,"",INDEX(MysticAbilities,CA272,$AQ$14)),"") -> This ability is a representation of the trust between Ishat and her wielder. Once per round, the wielder of Eternal Flame can choose to have Advantage on one attack. If they hit, this attack also deals an additional 1d6 fire damage. | BV272: =IF(_xlfn.IFNA(MATCH(TEXT($BW$3,"00")&TEXT(((ROW()+3)-$BW$2) / 3,"00"),MysticIndex,0),0)=0,"0000",TEXT($BW$3,"00")&TEXT(((ROW()+3)-$BW$2) / 3,"00")) -> 0286 | BW272: =IF(BV272<>"0000",INDEX(MysticAbilities,CA272,BW$15),0) -> 60 | BX272: =IFERROR(IF(BV272<>"0000",INDEX(MysticAbilities,CA272,BX$15),TRUE),TRUE) -> TRUE | BY272: =IF(BV272<>"0000",INDEX(MysticAbilities,CA272,BY$15),0) -> 0 | BZ272: =IF(BV272<>"0000",INDEX(MysticAbilities,CA272,BZ$15),0) -> 0 | CA272: =IF(BV272<>"0000", MATCH(BV272,MysticIndex,0),"") -> 86 | CB272: =IF($BV272<>"0000",INDEX(MysticAbilities,$CA272,CB$15),FALSE) -> TRUE | CC272: =IF($BV272<>"0000",INDEX(MysticAbilities,$CA272,CC$15),FALSE) -> FALSE | CD272: =IF($BV272<>"0000",INDEX(MysticAbilities,$CA272,CD$15),TRUE) -> TRUE
CE273: =B272<>"" -> FALSE
D275: =IF(BV275<>"0000",INDEX(MysticAbilities,CA275,$D$14),"") -> Self-Immolation | W275: =IF(BV275="0000", "", IF(INDEX(MysticAbilities,CA275,$W$14)=0, "-", INDEX(MysticAbilities,CA275,$W$14))) -> 16 | Z275: =IF(BV275<>"0000",IF(INDEX(MysticAbilities,CA275,$Z$14)= 0,"",INDEX(MysticAbilities,CA275,$Z$14)),"") ->  | AJ275: =IF(BV275<>"0000",IF(INDEX(MysticAbilities,CA275,$AJ$14)= 0,"",INDEX(MysticAbilities,CA275,$AJ$14)),"") ->  | AQ275: =IF(BV275<>"0000",IF(INDEX(MysticAbilities,CA275,$AQ$14)= 0,"",INDEX(MysticAbilities,CA275,$AQ$14)),"") -> A powerful last ditch effort to secure victory, Self-Immolation allows the wielder to sacrifice themselves to defeat a powerful foe. As an Action on their turn, the wielder spends 6 Spirit Charges and makes a Grapple Attempt on a target. If the grapple is successful, the target must make a Constitution Saving Throw against your Spell Save DC or take damage equal to the amount of damage the wielder currently has. On a successful save, the target instead takes 5d6 fire damage. If this damage drops the target to 0 hp, the target and all non-magical items they carry turn to ash. In return, the wielder is immediately reduced to 0 hp themselves, with 1 failed Death Saving Throw. This ability can be used once per Long Rest. | BV275: =IF(_xlfn.IFNA(MATCH(TEXT($BW$3,"00")&TEXT(((ROW()+3)-$BW$2) / 3,"00"),MysticIndex,0),0)=0,"0000",TEXT($BW$3,"00")&TEXT(((ROW()+3)-$BW$2) / 3,"00")) -> 0287 | BW275: =IF(BV275<>"0000",INDEX(MysticAbilities,CA275,BW$15),0) -> 180 | BX275: =IFERROR(IF(BV275<>"0000",INDEX(MysticAbilities,CA275,BX$15),TRUE),TRUE) -> TRUE | BY275: =IF(BV275<>"0000",INDEX(MysticAbilities,CA275,BY$15),0) -> 0 | BZ275: =IF(BV275<>"0000",INDEX(MysticAbilities,CA275,BZ$15),0) -> 0 | CA275: =IF(BV275<>"0000", MATCH(BV275,MysticIndex,0),"") -> 87 | CB275: =IF($BV275<>"0000",INDEX(MysticAbilities,$CA275,CB$15),FALSE) -> TRUE | CC275: =IF($BV275<>"0000",INDEX(MysticAbilities,$CA275,CC$15),FALSE) -> FALSE | CD275: =IF($BV275<>"0000",INDEX(MysticAbilities,$CA275,CD$15),TRUE) -> TRUE
CE276: =B275<>"" -> FALSE
F278: =IF(BV278<>"0000",INDEX(MysticAbilities,CA278,$D$14),"") -> Stabalize | W278: =IF(BV278="0000", "", IF(INDEX(MysticAbilities,CA278,$W$14)=0, "-", INDEX(MysticAbilities,CA278,$W$14))) -> 18 | Z278: =IF(BV278<>"0000",IF(INDEX(MysticAbilities,CA278,$Z$14)= 0,"",INDEX(MysticAbilities,CA278,$Z$14)),"") ->  | AJ278: =IF(BV278<>"0000",IF(INDEX(MysticAbilities,CA278,$AJ$14)= 0,"",INDEX(MysticAbilities,CA278,$AJ$14)),"") -> CON 15+; | AQ278: =IF(BV278<>"0000",IF(INDEX(MysticAbilities,CA278,$AQ$14)= 0,"",INDEX(MysticAbilities,CA278,$AQ$14)),"") -> This ability augments the Self-Immolation Ability. When this ability is known, after using Self-Immolation, the wielder now ends up at 0 hp, but stable. | BV278: =IF(_xlfn.IFNA(MATCH(TEXT($BW$3,"00")&TEXT(((ROW()+3)-$BW$2) / 3,"00"),MysticIndex,0),0)=0,"0000",TEXT($BW$3,"00")&TEXT(((ROW()+3)-$BW$2) / 3,"00")) -> 0288 | BW278: =IF(BV278<>"0000",INDEX(MysticAbilities,CA278,BW$15),0) -> 45 | BX278: =IFERROR(IF(BV278<>"0000",INDEX(MysticAbilities,CA278,BX$15),TRUE),TRUE) -> FALSE | BY278: =IF(BV278<>"0000",INDEX(MysticAbilities,CA278,BY$15),0) -> 1 | BZ278: =IF(BV278<>"0000",INDEX(MysticAbilities,CA278,BZ$15),0) -> 12 | CA278: =IF(BV278<>"0000", MATCH(BV278,MysticIndex,0),"") -> 88 | CB278: =IF($BV278<>"0000",INDEX(MysticAbilities,$CA278,CB$15),FALSE) -> FALSE | CC278: =IF($BV278<>"0000",INDEX(MysticAbilities,$CA278,CC$15),FALSE) -> FALSE | CD278: =IF($BV278<>"0000",INDEX(MysticAbilities,$CA278,CD$15),TRUE) -> FALSE
CE279: =B278<>"" -> FALSE
D281: =IF(BV281<>"0000",INDEX(MysticAbilities,CA281,$D$14),"") ->  | W281: =IF(BV281="0000", "", IF(INDEX(MysticAbilities,CA281,$W$14)=0, "-", INDEX(MysticAbilities,CA281,$W$14))) ->  | Z281: =IF(BV281<>"0000",IF(INDEX(MysticAbilities,CA281,$Z$14)= 0,"",INDEX(MysticAbilities,CA281,$Z$14)),"") ->  | AJ281: =IF(BV281<>"0000",IF(INDEX(MysticAbilities,CA281,$AJ$14)= 0,"",INDEX(MysticAbilities,CA281,$AJ$14)),"") ->  | AQ281: =IF(BV281<>"0000",IF(INDEX(MysticAbilities,CA281,$AQ$14)= 0,"",INDEX(MysticAbilities,CA281,$AQ$14)),"") ->  | BV281: =IF(_xlfn.IFNA(MATCH(TEXT($BW$3,"00")&TEXT(((ROW()+3)-$BW$2) / 3,"00"),MysticIndex,0),0)=0,"0000",TEXT($BW$3,"00")&TEXT(((ROW()+3)-$BW$2) / 3,"00")) -> 0000 | BW281: =IF(BV281<>"0000",INDEX(MysticAbilities,CA281,BW$15),0) -> 0 | BX281: =IFERROR(IF(BV281<>"0000",INDEX(MysticAbilities,CA281,BX$15),TRUE),TRUE) -> TRUE | BY281: =IF(BV281<>"0000",INDEX(MysticAbilities,CA281,BY$15),0) -> 0 | BZ281: =IF(BV281<>"0000",INDEX(MysticAbilities,CA281,BZ$15),0) -> 0 | CA281: =IF(BV281<>"0000", MATCH(BV281,MysticIndex,0),"") ->  | CB281: =IF($BV281<>"0000",INDEX(MysticAbilities,$CA281,CB$15),FALSE) -> FALSE | CC281: =IF($BV281<>"0000",INDEX(MysticAbilities,$CA281,CC$15),FALSE) -> FALSE | CD281: =IF($BV281<>"0000",INDEX(MysticAbilities,$CA281,CD$15),TRUE) -> TRUE
CE282: =B281<>"" -> FALSE
D284: =IF(BV284<>"0000",INDEX(MysticAbilities,CA284,$D$14),"") ->  | W284: =IF(BV284="0000", "", IF(INDEX(MysticAbilities,CA284,$W$14)=0, "-", INDEX(MysticAbilities,CA284,$W$14))) ->  | Z284: =IF(BV284<>"0000",IF(INDEX(MysticAbilities,CA284,$Z$14)= 0,"",INDEX(MysticAbilities,CA284,$Z$14)),"") ->  | AJ284: =IF(BV284<>"0000",IF(INDEX(MysticAbilities,CA284,$AJ$14)= 0,"",INDEX(MysticAbilities,CA284,$AJ$14)),"") ->  | AQ284: =IF(BV284<>"0000",IF(INDEX(MysticAbilities,CA284,$AQ$14)= 0,"",INDEX(MysticAbilities,CA284,$AQ$14)),"") ->  | BV284: =IF(_xlfn.IFNA(MATCH(TEXT($BW$3,"00")&TEXT(((ROW()+3)-$BW$2) / 3,"00"),MysticIndex,0),0)=0,"0000",TEXT($BW$3,"00")&TEXT(((ROW()+3)-$BW$2) / 3,"00")) -> 0000 | BW284: =IF(BV284<>"0000",INDEX(MysticAbilities,CA284,BW$15),0) -> 0 | BX284: =IFERROR(IF(BV284<>"0000",INDEX(MysticAbilities,CA284,BX$15),TRUE),TRUE) -> TRUE | BY284: =IF(BV284<>"0000",INDEX(MysticAbilities,CA284,BY$15),0) -> 0 | BZ284: =IF(BV284<>"0000",INDEX(MysticAbilities,CA284,BZ$15),0) -> 0 | CA284: =IF(BV284<>"0000", MATCH(BV284,MysticIndex,0),"") ->  | CB284: =IF($BV284<>"0000",INDEX(MysticAbilities,$CA284,CB$15),FALSE) -> FALSE | CC284: =IF($BV284<>"0000",INDEX(MysticAbilities,$CA284,CC$15),FALSE) -> FALSE | CD284: =IF($BV284<>"0000",INDEX(MysticAbilities,$CA284,CD$15),TRUE) -> TRUE
CE285: =B284<>"" -> FALSE
D287: =IF(BV287<>"0000",INDEX(MysticAbilities,CA287,$D$14),"") ->  | W287: =IF(BV287="0000", "", IF(INDEX(MysticAbilities,CA287,$W$14)=0, "-", INDEX(MysticAbilities,CA287,$W$14))) ->  | Z287: =IF(BV287<>"0000",IF(INDEX(MysticAbilities,CA287,$Z$14)= 0,"",INDEX(MysticAbilities,CA287,$Z$14)),"") ->  | AJ287: =IF(BV287<>"0000",IF(INDEX(MysticAbilities,CA287,$AJ$14)= 0,"",INDEX(MysticAbilities,CA287,$AJ$14)),"") ->  | AQ287: =IF(BV287<>"0000",IF(INDEX(MysticAbilities,CA287,$AQ$14)= 0,"",INDEX(MysticAbilities,CA287,$AQ$14)),"") ->  | BV287: =IF(_xlfn.IFNA(MATCH(TEXT($BW$3,"00")&TEXT(((ROW()+3)-$BW$2) / 3,"00"),MysticIndex,0),0)=0,"0000",TEXT($BW$3,"00")&TEXT(((ROW()+3)-$BW$2) / 3,"00")) -> 0000 | BW287: =IF(BV287<>"0000",INDEX(MysticAbilities,CA287,BW$15),0) -> 0 | BX287: =IFERROR(IF(BV287<>"0000",INDEX(MysticAbilities,CA287,BX$15),TRUE),TRUE) -> TRUE | BY287: =IF(BV287<>"0000",INDEX(MysticAbilities,CA287,BY$15),0) -> 0 | BZ287: =IF(BV287<>"0000",INDEX(MysticAbilities,CA287,BZ$15),0) -> 0 | CA287: =IF(BV287<>"0000", MATCH(BV287,MysticIndex,0),"") ->  | CB287: =IF($BV287<>"0000",INDEX(MysticAbilities,$CA287,CB$15),FALSE) -> FALSE | CC287: =IF($BV287<>"0000",INDEX(MysticAbilities,$CA287,CC$15),FALSE) -> FALSE | CD287: =IF($BV287<>"0000",INDEX(MysticAbilities,$CA287,CD$15),TRUE) -> TRUE
CE288: =B287<>"" -> FALSE
D290: =IF(BV290<>"0000",INDEX(MysticAbilities,CA290,$D$14),"") ->  | W290: =IF(BV290="0000", "", IF(INDEX(MysticAbilities,CA290,$W$14)=0, "-", INDEX(MysticAbilities,CA290,$W$14))) ->  | Z290: =IF(BV290<>"0000",IF(INDEX(MysticAbilities,CA290,$Z$14)= 0,"",INDEX(MysticAbilities,CA290,$Z$14)),"") ->  | AJ290: =IF(BV290<>"0000",IF(INDEX(MysticAbilities,CA290,$AJ$14)= 0,"",INDEX(MysticAbilities,CA290,$AJ$14)),"") ->  | AQ290: =IF(BV290<>"0000",IF(INDEX(MysticAbilities,CA290,$AQ$14)= 0,"",INDEX(MysticAbilities,CA290,$AQ$14)),"") ->  | BV290: =IF(_xlfn.IFNA(MATCH(TEXT($BW$3,"00")&TEXT(((ROW()+3)-$BW$2) / 3,"00"),MysticIndex,0),0)=0,"0000",TEXT($BW$3,"00")&TEXT(((ROW()+3)-$BW$2) / 3,"00")) -> 0000 | BW290: =IF(BV290<>"0000",INDEX(MysticAbilities,CA290,BW$15),0) -> 0 | BX290: =IFERROR(IF(BV290<>"0000",INDEX(MysticAbilities,CA290,BX$15),TRUE),TRUE) -> TRUE | BY290: =IF(BV290<>"0000",INDEX(MysticAbilities,CA290,BY$15),0) -> 0 | BZ290: =IF(BV290<>"0000",INDEX(MysticAbilities,CA290,BZ$15),0) -> 0 | CA290: =IF(BV290<>"0000", MATCH(BV290,MysticIndex,0),"") ->  | CB290: =IF($BV290<>"0000",INDEX(MysticAbilities,$CA290,CB$15),FALSE) -> FALSE | CC290: =IF($BV290<>"0000",INDEX(MysticAbilities,$CA290,CC$15),FALSE) -> FALSE | CD290: =IF($BV290<>"0000",INDEX(MysticAbilities,$CA290,CD$15),TRUE) -> TRUE
CE291: =B290<>"" -> FALSE
D293: =IF(BV293<>"0000",INDEX(MysticAbilities,CA293,$D$14),"") ->  | W293: =IF(BV293="0000", "", IF(INDEX(MysticAbilities,CA293,$W$14)=0, "-", INDEX(MysticAbilities,CA293,$W$14))) ->  | Z293: =IF(BV293<>"0000",IF(INDEX(MysticAbilities,CA293,$Z$14)= 0,"",INDEX(MysticAbilities,CA293,$Z$14)),"") ->  | AJ293: =IF(BV293<>"0000",IF(INDEX(MysticAbilities,CA293,$AJ$14)= 0,"",INDEX(MysticAbilities,CA293,$AJ$14)),"") ->  | AQ293: =IF(BV293<>"0000",IF(INDEX(MysticAbilities,CA293,$AQ$14)= 0,"",INDEX(MysticAbilities,CA293,$AQ$14)),"") ->  | BV293: =IF(_xlfn.IFNA(MATCH(TEXT($BW$3,"00")&TEXT(((ROW()+3)-$BW$2) / 3,"00"),MysticIndex,0),0)=0,"0000",TEXT($BW$3,"00")&TEXT(((ROW()+3)-$BW$2) / 3,"00")) -> 0000 | BW293: =IF(BV293<>"0000",INDEX(MysticAbilities,CA293,BW$15),0) -> 0 | BX293: =IFERROR(IF(BV293<>"0000",INDEX(MysticAbilities,CA293,BX$15),TRUE),TRUE) -> TRUE | BY293: =IF(BV293<>"0000",INDEX(MysticAbilities,CA293,BY$15),0) -> 0 | BZ293: =IF(BV293<>"0000",INDEX(MysticAbilities,CA293,BZ$15),0) -> 0 | CA293: =IF(BV293<>"0000", MATCH(BV293,MysticIndex,0),"") ->  | CB293: =IF($BV293<>"0000",INDEX(MysticAbilities,$CA293,CB$15),FALSE) -> FALSE | CC293: =IF($BV293<>"0000",INDEX(MysticAbilities,$CA293,CC$15),FALSE) -> FALSE | CD293: =IF($BV293<>"0000",INDEX(MysticAbilities,$CA293,CD$15),TRUE) -> TRUE
CE294: =B293<>"" -> FALSE
D296: =IF(BV296<>"0000",INDEX(MysticAbilities,CA296,$D$14),"") ->  | W296: =IF(BV296="0000", "", IF(INDEX(MysticAbilities,CA296,$W$14)=0, "-", INDEX(MysticAbilities,CA296,$W$14))) ->  | Z296: =IF(BV296<>"0000",IF(INDEX(MysticAbilities,CA296,$Z$14)= 0,"",INDEX(MysticAbilities,CA296,$Z$14)),"") ->  | AJ296: =IF(BV296<>"0000",IF(INDEX(MysticAbilities,CA296,$AJ$14)= 0,"",INDEX(MysticAbilities,CA296,$AJ$14)),"") ->  | AQ296: =IF(BV296<>"0000",IF(INDEX(MysticAbilities,CA296,$AQ$14)= 0,"",INDEX(MysticAbilities,CA296,$AQ$14)),"") ->  | BV296: =IF(_xlfn.IFNA(MATCH(TEXT($BW$3,"00")&TEXT(((ROW()+3)-$BW$2) / 3,"00"),MysticIndex,0),0)=0,"0000",TEXT($BW$3,"00")&TEXT(((ROW()+3)-$BW$2) / 3,"00")) -> 0000 | BW296: =IF(BV296<>"0000",INDEX(MysticAbilities,CA296,BW$15),0) -> 0 | BX296: =IFERROR(IF(BV296<>"0000",INDEX(MysticAbilities,CA296,BX$15),TRUE),TRUE) -> TRUE | BY296: =IF(BV296<>"0000",INDEX(MysticAbilities,CA296,BY$15),0) -> 0 | BZ296: =IF(BV296<>"0000",INDEX(MysticAbilities,CA296,BZ$15),0) -> 0 | CA296: =IF(BV296<>"0000", MATCH(BV296,MysticIndex,0),"") ->  | CB296: =IF($BV296<>"0000",INDEX(MysticAbilities,$CA296,CB$15),FALSE) -> FALSE | CC296: =IF($BV296<>"0000",INDEX(MysticAbilities,$CA296,CC$15),FALSE) -> FALSE | CD296: =IF($BV296<>"0000",INDEX(MysticAbilities,$CA296,CD$15),TRUE) -> TRUE
CE297: =B296<>"" -> FALSE
D299: =IF(BV299<>"0000",INDEX(MysticAbilities,CA299,$D$14),"") ->  | W299: =IF(BV299="0000", "", IF(INDEX(MysticAbilities,CA299,$W$14)=0, "-", INDEX(MysticAbilities,CA299,$W$14))) ->  | Z299: =IF(BV299<>"0000",IF(INDEX(MysticAbilities,CA299,$Z$14)= 0,"",INDEX(MysticAbilities,CA299,$Z$14)),"") ->  | AJ299: =IF(BV299<>"0000",IF(INDEX(MysticAbilities,CA299,$AJ$14)= 0,"",INDEX(MysticAbilities,CA299,$AJ$14)),"") ->  | AQ299: =IF(BV299<>"0000",IF(INDEX(MysticAbilities,CA299,$AQ$14)= 0,"",INDEX(MysticAbilities,CA299,$AQ$14)),"") ->  | BV299: =IF(_xlfn.IFNA(MATCH(TEXT($BW$3,"00")&TEXT(((ROW()+3)-$BW$2) / 3,"00"),MysticIndex,0),0)=0,"0000",TEXT($BW$3,"00")&TEXT(((ROW()+3)-$BW$2) / 3,"00")) -> 0000 | BW299: =IF(BV299<>"0000",INDEX(MysticAbilities,CA299,BW$15),0) -> 0 | BX299: =IFERROR(IF(BV299<>"0000",INDEX(MysticAbilities,CA299,BX$15),TRUE),TRUE) -> TRUE | BY299: =IF(BV299<>"0000",INDEX(MysticAbilities,CA299,BY$15),0) -> 0 | BZ299: =IF(BV299<>"0000",INDEX(MysticAbilities,CA299,BZ$15),0) -> 0 | CA299: =IF(BV299<>"0000", MATCH(BV299,MysticIndex,0),"") ->  | CB299: =IF($BV299<>"0000",INDEX(MysticAbilities,$CA299,CB$15),FALSE) -> FALSE | CC299: =IF($BV299<>"0000",INDEX(MysticAbilities,$CA299,CC$15),FALSE) -> FALSE | CD299: =IF($BV299<>"0000",INDEX(MysticAbilities,$CA299,CD$15),TRUE) -> TRUE
... 13 more rows

Sheet MysticArmament (hidden)
B11: =MysticArmName ->  | U11: =MysticElement ->  | AD11: =MysticAlign ->  | AQ11: =IF(WeaponLvl=0, "", WeaponLvl) ->  | AZ11: EGO | BF11: HARMONY | BN11: SHIFT
B12: Weapon Name | U12: Element | AD12: Alignment | AQ12: Spirit Level | AZ12: =EgoScore ->  | BF12: =DefaultHarmony ->  | BN12: 1
B14: =WeaponForm ->  | U14: =WeaponDamage & " " & WeaponType ->  | AD14: ="+"&WeaponProf -> + | AL14: =Enchant ->  | AV14: =SpiritCharges ->  | BF14: =SpiritAttack ->  | BO14: =SaveDC -> 
B15: Weapon Form | U15: Damage | AD15: Proficency | AL15: Enchantment | AV15: Spirit Charges | BF15: Spirit Attack | BO15: Save DC
B17: Spirit: | X17: =SpiritName -> 
B18: =SpiritInfo ->  | BV18: 0 | BW18: =IFERROR(INDEX(Spirits,MysticArmID-1,3),22) -> 22 | BX18: FALSE | BY18: 0
BV19: MysticIndex | BW19: Height | BX19: Border | BY19: Depth | BZ19: Fill | CA19: RowIndex | CB19: Visible | CC19: Selectable | CD19: chkboc
B20: SPECIAL ABILITIES AND TECHNIQUES | BV20: 1 | BW20: 22 | BX20: 23 | BY20: 24 | BZ20: 25 | CB20: 26 | CC20: 27 | CD20: 1
B21: √ | D21: Ability Name | W21: Lv | Z21: Must Know | AJ21: Misc. | AQ21: Description
B22: x | D22: =IF(BV22<>"0000",INDEX(MysticAbilities,CA22,'Master Sheet'!$D$9),"") ->  | W22: =IF(BV22="0000", "", IF(INDEX(MysticAbilities,CA22,5)=0, "-", INDEX(MysticAbilities,CA22,5))) ->  | Z22: =IF(BV22<>"0000",IF(INDEX(MysticAbilities,CA22,'Master Sheet'!$Z$9)= 0,"",INDEX(MysticAbilities,CA22,'Master Sheet'!$Z$9)),"") ->  | AJ22: =IF(BV22<>"0000",IF(INDEX(MysticAbilities,CA22,'Master Sheet'!$AJ$9)= 0,"",INDEX(MysticAbilities,CA22,'Master Sheet'!$AJ$9)),"") ->  | AQ22: =IF(BV22<>"0000",IF(INDEX(MysticAbilities,CA22,'Master Sheet'!$AQ$9)= 0,"",INDEX(MysticAbilities,CA22,'Master Sheet'!$AQ$9)),"") ->  | BV22: =IFERROR(INDEX(MysticAbilities,MATCH(INDEX(DisplayList,(ROW(A22)-19)/3),MysticIndex,0),$BV$20),"0000") -> 0000 | BW22: =IF(BV22<>"0000",INDEX(MysticAbilities,CA22,BW$20),0) -> 0 | BX22: =IFERROR(IF(BV22<>"0000",INDEX(MysticAbilities,CA22,BX$20),TRUE),TRUE) -> TRUE | BY22: =IF(BV22<>"0000",INDEX(MysticAbilities,CA22,BY$20),0) -> 0 | BZ22: =IF($BV22<>"0000",INDEX(MysticAbilities,CA22,BZ$20),0) -> 0 | CA22: =IF(BV22<>"0000", MATCH(BV22,MysticIndex,0),"") ->  | CB22: =IF($BV22<>"0000",INDEX(MysticAbilities,$CA22,CB$20),FALSE) -> FALSE | CC22: =IF($BV22<>"0000",INDEX(MysticAbilities,$CA22,CC$20),FALSE) -> FALSE | CD22: =IF($BV22<>"0000",INDEX(MysticAbilities,$CA22,CD$20),TRUE) -> TRUE
CE23: =B22<>"" -> TRUE
B25: x | D25: =IF(BV25<>"0000",INDEX(MysticAbilities,CA25,'Master Sheet'!$D$9),"") ->  | W25: =IF(BV25="0000", "", IF(INDEX(MysticAbilities,CA25,5)=0, "-", INDEX(MysticAbilities,CA25,5))) ->  | Z25: =IF(BV25<>"0000",IF(INDEX(MysticAbilities,CA25,'Master Sheet'!$Z$9)= 0,"",INDEX(MysticAbilities,CA25,'Master Sheet'!$Z$9)),"") ->  | AJ25: =IF(BV25<>"0000",IF(INDEX(MysticAbilities,CA25,'Master Sheet'!$AJ$9)= 0,"",INDEX(MysticAbilities,CA25,'Master Sheet'!$AJ$9)),"") ->  | AQ25: =IF(BV25<>"0000",IF(INDEX(MysticAbilities,CA25,'Master Sheet'!$AQ$9)= 0,"",INDEX(MysticAbilities,CA25,'Master Sheet'!$AQ$9)),"") ->  | BV25: =IFERROR(INDEX(MysticAbilities,MATCH(INDEX(DisplayList,(ROW(A25)-19)/3),MysticIndex,0),$BV$20),"0000") -> 0000 | BW25: =IF(BV25<>"0000",INDEX(MysticAbilities,CA25,BW$20),0) -> 0 | BX25: =IFERROR(IF(BV25<>"0000",INDEX(MysticAbilities,CA25,BX$20),TRUE),TRUE) -> TRUE | BY25: =IF(BV25<>"0000",INDEX(MysticAbilities,CA25,BY$20),0) -> 0 | BZ25: =IF(BV25<>"0000",INDEX(MysticAbilities,CA25,BZ$20),0) -> 0 | CA25: =IF(BV25<>"0000", MATCH(BV25,MysticIndex,0),"") ->  | CB25: =IF($BV25<>"0000",INDEX(MysticAbilities,$CA25,CB$20),FALSE) -> FALSE | CC25: =IF($BV25<>"0000",INDEX(MysticAbilities,$CA25,CC$20),FALSE) -> FALSE | CD25: =IF($BV25<>"0000",INDEX(MysticAbilities,$CA25,CD$20),TRUE) -> TRUE
CE26: =B25<>"" -> TRUE
B28: x | D28: =IF(BV28<>"0000",INDEX(MysticAbilities,CA28,'Master Sheet'!$D$9),"") ->  | W28: =IF(BV28="0000", "", IF(INDEX(MysticAbilities,CA28,5)=0, "-", INDEX(MysticAbilities,CA28,5))) ->  | Z28: =IF(BV28<>"0000",IF(INDEX(MysticAbilities,CA28,'Master Sheet'!$Z$9)= 0,"",INDEX(MysticAbilities,CA28,'Master Sheet'!$Z$9)),"") ->  | AJ28: =IF(BV28<>"0000",IF(INDEX(MysticAbilities,CA28,'Master Sheet'!$AJ$9)= 0,"",INDEX(MysticAbilities,CA28,'Master Sheet'!$AJ$9)),"") ->  | AQ28: =IF(BV28<>"0000",IF(INDEX(MysticAbilities,CA28,'Master Sheet'!$AQ$9)= 0,"",INDEX(MysticAbilities,CA28,'Master Sheet'!$AQ$9)),"") ->  | BV28: =IFERROR(INDEX(MysticAbilities,MATCH(INDEX(DisplayList,(ROW(A28)-19)/3),MysticIndex,0),$BV$20),"0000") -> 0000 | BW28: =IF(BV28<>"0000",INDEX(MysticAbilities,CA28,BW$20),0) -> 0 | BX28: =IFERROR(IF(BV28<>"0000",INDEX(MysticAbilities,CA28,BX$20),TRUE),TRUE) -> TRUE | BY28: =IF(BV28<>"0000",INDEX(MysticAbilities,CA28,BY$20),0) -> 0 | BZ28: =IF(BV28<>"0000",INDEX(MysticAbilities,CA28,BZ$20),0) -> 0 | CA28: =IF(BV28<>"0000", MATCH(BV28,MysticIndex,0),"") ->  | CB28: =IF($BV28<>"0000",INDEX(MysticAbilities,$CA28,CB$20),FALSE) -> FALSE | CC28: =IF($BV28<>"0000",INDEX(MysticAbilities,$CA28,CC$20),FALSE) -> FALSE | CD28: =IF($BV28<>"0000",INDEX(MysticAbilities,$CA28,CD$20),TRUE) -> TRUE
CE29: =B28<>"" -> TRUE
B31: x | F31: =IF(BV31<>"0000",INDEX(MysticAbilities,CA31,'Master Sheet'!$D$9),"") ->  | W31: =IF(BV31="0000", "", IF(INDEX(MysticAbilities,CA31,5)=0, "-", INDEX(MysticAbilities,CA31,5))) ->  | Z31: =IF(BV31<>"0000",IF(INDEX(MysticAbilities,CA31,'Master Sheet'!$Z$9)= 0,"",INDEX(MysticAbilities,CA31,'Master Sheet'!$Z$9)),"") ->  | AJ31: =IF(BV31<>"0000",IF(INDEX(MysticAbilities,CA31,'Master Sheet'!$AJ$9)= 0,"",INDEX(MysticAbilities,CA31,'Master Sheet'!$AJ$9)),"") ->  | AQ31: =IF(BV31<>"0000",IF(INDEX(MysticAbilities,CA31,'Master Sheet'!$AQ$9)= 0,"",INDEX(MysticAbilities,CA31,'Master Sheet'!$AQ$9)),"") ->  | BV31: =IFERROR(INDEX(MysticAbilities,MATCH(INDEX(DisplayList,(ROW(A31)-19)/3),MysticIndex,0),$BV$20),"0000") -> 0000 | BW31: =IF(BV31<>"0000",INDEX(MysticAbilities,CA31,BW$20),0) -> 0 | BX31: =IFERROR(IF(BV31<>"0000",INDEX(MysticAbilities,CA31,BX$20),TRUE),TRUE) -> TRUE | BY31: =IF(BV31<>"0000",INDEX(MysticAbilities,CA31,BY$20),0) -> 0 | BZ31: =IF(BV31<>"0000",INDEX(MysticAbilities,CA31,BZ$20),0) -> 0 | CA31: =IF(BV31<>"0000", MATCH(BV31,MysticIndex,0),"") ->  | CB31: =IF($BV31<>"0000",INDEX(MysticAbilities,$CA31,CB$20),FALSE) -> FALSE | CC31: =IF($BV31<>"0000",INDEX(MysticAbilities,$CA31,CC$20),FALSE) -> FALSE | CD31: =IF($BV31<>"0000",INDEX(MysticAbilities,$CA31,CD$20),TRUE) -> TRUE
CE32: =B31<>"" -> TRUE
B34: x | F34: =IF(BV34<>"0000",INDEX(MysticAbilities,CA34,'Master Sheet'!$D$9),"") ->  | W34: =IF(BV34="0000", "", IF(INDEX(MysticAbilities,CA34,5)=0, "-", INDEX(MysticAbilities,CA34,5))) ->  | Z34: =IF(BV34<>"0000",IF(INDEX(MysticAbilities,CA34,'Master Sheet'!$Z$9)= 0,"",INDEX(MysticAbilities,CA34,'Master Sheet'!$Z$9)),"") ->  | AJ34: =IF(BV34<>"0000",IF(INDEX(MysticAbilities,CA34,'Master Sheet'!$AJ$9)= 0,"",INDEX(MysticAbilities,CA34,'Master Sheet'!$AJ$9)),"") ->  | AQ34: =IF(BV34<>"0000",IF(INDEX(MysticAbilities,CA34,'Master Sheet'!$AQ$9)= 0,"",INDEX(MysticAbilities,CA34,'Master Sheet'!$AQ$9)),"") ->  | BV34: =IFERROR(INDEX(MysticAbilities,MATCH(INDEX(DisplayList,(ROW(A34)-19)/3),MysticIndex,0),$BV$20),"0000") -> 0000 | BW34: =IF(BV34<>"0000",INDEX(MysticAbilities,CA34,BW$20),0) -> 0 | BX34: =IFERROR(IF(BV34<>"0000",INDEX(MysticAbilities,CA34,BX$20),TRUE),TRUE) -> TRUE | BY34: =IF(BV34<>"0000",INDEX(MysticAbilities,CA34,BY$20),0) -> 0 | BZ34: =IF(BV34<>"0000",INDEX(MysticAbilities,CA34,BZ$20),0) -> 0 | CA34: =IF(BV34<>"0000", MATCH(BV34,MysticIndex,0),"") ->  | CB34: =IF($BV34<>"0000",INDEX(MysticAbilities,$CA34,CB$20),FALSE) -> FALSE | CC34: =IF($BV34<>"0000",INDEX(MysticAbilities,$CA34,CC$20),FALSE) -> FALSE | CD34: =IF($BV34<>"0000",INDEX(MysticAbilities,$CA34,CD$20),TRUE) -> TRUE
CE35: =B34<>"" -> TRUE
B37: x | F37: =IF(BV37<>"0000",INDEX(MysticAbilities,CA37,'Master Sheet'!$D$9),"") ->  | W37: =IF(BV37="0000", "", IF(INDEX(MysticAbilities,CA37,5)=0, "-", INDEX(MysticAbilities,CA37,5))) ->  | Z37: =IF(BV37<>"0000",IF(INDEX(MysticAbilities,CA37,'Master Sheet'!$Z$9)= 0,"",INDEX(MysticAbilities,CA37,'Master Sheet'!$Z$9)),"") ->  | AJ37: =IF(BV37<>"0000",IF(INDEX(MysticAbilities,CA37,'Master Sheet'!$AJ$9)= 0,"",INDEX(MysticAbilities,CA37,'Master Sheet'!$AJ$9)),"") ->  | AQ37: =IF(BV37<>"0000",IF(INDEX(MysticAbilities,CA37,'Master Sheet'!$AQ$9)= 0,"",INDEX(MysticAbilities,CA37,'Master Sheet'!$AQ$9)),"") ->  | BV37: =IFERROR(INDEX(MysticAbilities,MATCH(INDEX(DisplayList,(ROW(A37)-19)/3),MysticIndex,0),$BV$20),"0000") -> 0000 | BW37: =IF(BV37<>"0000",INDEX(MysticAbilities,CA37,BW$20),0) -> 0 | BX37: =IFERROR(IF(BV37<>"0000",INDEX(MysticAbilities,CA37,BX$20),TRUE),TRUE) -> TRUE | BY37: =IF(BV37<>"0000",INDEX(MysticAbilities,CA37,BY$20),0) -> 0 | BZ37: =IF(BV37<>"0000",INDEX(MysticAbilities,CA37,BZ$20),0) -> 0 | CA37: =IF(BV37<>"0000", MATCH(BV37,MysticIndex,0),"") ->  | CB37: =IF($BV37<>"0000",INDEX(MysticAbilities,$CA37,CB$20),FALSE) -> FALSE | CC37: =IF($BV37<>"0000",INDEX(MysticAbilities,$CA37,CC$20),FALSE) -> FALSE | CD37: =IF($BV37<>"0000",INDEX(MysticAbilities,$CA37,CD$20),TRUE) -> TRUE
CE38: =B37<>"" -> TRUE
B40: x | D40: =IF(BV40<>"0000",INDEX(MysticAbilities,CA40,'Master Sheet'!$D$9),"") ->  | W40: =IF(BV40="0000", "", IF(INDEX(MysticAbilities,CA40,5)=0, "-", INDEX(MysticAbilities,CA40,5))) ->  | Z40: =IF(BV40<>"0000",IF(INDEX(MysticAbilities,CA40,'Master Sheet'!$Z$9)= 0,"",INDEX(MysticAbilities,CA40,'Master Sheet'!$Z$9)),"") ->  | AJ40: =IF(BV40<>"0000",IF(INDEX(MysticAbilities,CA40,'Master Sheet'!$AJ$9)= 0,"",INDEX(MysticAbilities,CA40,'Master Sheet'!$AJ$9)),"") ->  | AQ40: =IF(BV40<>"0000",IF(INDEX(MysticAbilities,CA40,'Master Sheet'!$AQ$9)= 0,"",INDEX(MysticAbilities,CA40,'Master Sheet'!$AQ$9)),"") ->  | BV40: =IFERROR(INDEX(MysticAbilities,MATCH(INDEX(DisplayList,(ROW(A40)-19)/3),MysticIndex,0),$BV$20),"0000") -> 0000 | BW40: =IF(BV40<>"0000",INDEX(MysticAbilities,CA40,BW$20),0) -> 0 | BX40: =IFERROR(IF(BV40<>"0000",INDEX(MysticAbilities,CA40,BX$20),TRUE),TRUE) -> TRUE | BY40: =IF(BV40<>"0000",INDEX(MysticAbilities,CA40,BY$20),0) -> 0 | BZ40: =IF(BV40<>"0000",INDEX(MysticAbilities,CA40,BZ$20),0) -> 0 | CA40: =IF(BV40<>"0000", MATCH(BV40,MysticIndex,0),"") ->  | CB40: =IF($BV40<>"0000",INDEX(MysticAbilities,$CA40,CB$20),FALSE) -> FALSE | CC40: =IF($BV40<>"0000",INDEX(MysticAbilities,$CA40,CC$20),FALSE) -> FALSE | CD40: =IF($BV40<>"0000",INDEX(MysticAbilities,$CA40,CD$20),TRUE) -> TRUE
CE41: =B40<>"" -> TRUE
B43: x | F43: =IF(BV43<>"0000",INDEX(MysticAbilities,CA43,'Master Sheet'!$D$9),"") ->  | W43: =IF(BV43="0000", "", IF(INDEX(MysticAbilities,CA43,5)=0, "-", INDEX(MysticAbilities,CA43,5))) ->  | Z43: =IF(BV43<>"0000",IF(INDEX(MysticAbilities,CA43,'Master Sheet'!$Z$9)= 0,"",INDEX(MysticAbilities,CA43,'Master Sheet'!$Z$9)),"") ->  | AJ43: =IF(BV43<>"0000",IF(INDEX(MysticAbilities,CA43,'Master Sheet'!$AJ$9)= 0,"",INDEX(MysticAbilities,CA43,'Master Sheet'!$AJ$9)),"") ->  | AQ43: =IF(BV43<>"0000",IF(INDEX(MysticAbilities,CA43,'Master Sheet'!$AQ$9)= 0,"",INDEX(MysticAbilities,CA43,'Master Sheet'!$AQ$9)),"") ->  | BV43: =IFERROR(INDEX(MysticAbilities,MATCH(INDEX(DisplayList,(ROW(A43)-19)/3),MysticIndex,0),$BV$20),"0000") -> 0000 | BW43: =IF(BV43<>"0000",INDEX(MysticAbilities,CA43,BW$20),0) -> 0 | BX43: =IFERROR(IF(BV43<>"0000",INDEX(MysticAbilities,CA43,BX$20),TRUE),TRUE) -> TRUE | BY43: =IF(BV43<>"0000",INDEX(MysticAbilities,CA43,BY$20),0) -> 0 | BZ43: =IF(BV43<>"0000",INDEX(MysticAbilities,CA43,BZ$20),0) -> 0 | CA43: =IF(BV43<>"0000", MATCH(BV43,MysticIndex,0),"") ->  | CB43: =IF($BV43<>"0000",INDEX(MysticAbilities,$CA43,CB$20),FALSE) -> FALSE | CC43: =IF($BV43<>"0000",INDEX(MysticAbilities,$CA43,CC$20),FALSE) -> FALSE | CD43: =IF($BV43<>"0000",INDEX(MysticAbilities,$CA43,CD$20),TRUE) -> TRUE
CE44: =B43<>"" -> TRUE
B46: x | D46: =IF(BV46<>"0000",INDEX(MysticAbilities,CA46,'Master Sheet'!$D$9),"") ->  | W46: =IF(BV46="0000", "", IF(INDEX(MysticAbilities,CA46,5)=0, "-", INDEX(MysticAbilities,CA46,5))) ->  | Z46: =IF(BV46<>"0000",IF(INDEX(MysticAbilities,CA46,'Master Sheet'!$Z$9)= 0,"",INDEX(MysticAbilities,CA46,'Master Sheet'!$Z$9)),"") ->  | AJ46: =IF(BV46<>"0000",IF(INDEX(MysticAbilities,CA46,'Master Sheet'!$AJ$9)= 0,"",INDEX(MysticAbilities,CA46,'Master Sheet'!$AJ$9)),"") ->  | AQ46: =IF(BV46<>"0000",IF(INDEX(MysticAbilities,CA46,'Master Sheet'!$AQ$9)= 0,"",INDEX(MysticAbilities,CA46,'Master Sheet'!$AQ$9)),"") ->  | BV46: =IFERROR(INDEX(MysticAbilities,MATCH(INDEX(DisplayList,(ROW(A46)-19)/3),MysticIndex,0),$BV$20),"0000") -> 0000 | BW46: =IF(BV46<>"0000",INDEX(MysticAbilities,CA46,BW$20),0) -> 0 | BX46: =IFERROR(IF(BV46<>"0000",INDEX(MysticAbilities,CA46,BX$20),TRUE),TRUE) -> TRUE | BY46: =IF(BV46<>"0000",INDEX(MysticAbilities,CA46,BY$20),0) -> 0 | BZ46: =IF(BV46<>"0000",INDEX(MysticAbilities,CA46,BZ$20),0) -> 0 | CA46: =IF(BV46<>"0000", MATCH(BV46,MysticIndex,0),"") ->  | CB46: =IF($BV46<>"0000",INDEX(MysticAbilities,$CA46,CB$20),FALSE) -> FALSE | CC46: =IF($BV46<>"0000",INDEX(MysticAbilities,$CA46,CC$20),FALSE) -> FALSE | CD46: =IF($BV46<>"0000",INDEX(MysticAbilities,$CA46,CD$20),TRUE) -> TRUE
CE47: =B46<>"" -> TRUE
B49: x | F49: =IF(BV49<>"0000",INDEX(MysticAbilities,CA49,'Master Sheet'!$D$9),"") ->  | W49: =IF(BV49="0000", "", IF(INDEX(MysticAbilities,CA49,5)=0, "-", INDEX(MysticAbilities,CA49,5))) ->  | Z49: =IF(BV49<>"0000",IF(INDEX(MysticAbilities,CA49,'Master Sheet'!$Z$9)= 0,"",INDEX(MysticAbilities,CA49,'Master Sheet'!$Z$9)),"") ->  | AJ49: =IF(BV49<>"0000",IF(INDEX(MysticAbilities,CA49,'Master Sheet'!$AJ$9)= 0,"",INDEX(MysticAbilities,CA49,'Master Sheet'!$AJ$9)),"") ->  | AQ49: =IF(BV49<>"0000",IF(INDEX(MysticAbilities,CA49,'Master Sheet'!$AQ$9)= 0,"",INDEX(MysticAbilities,CA49,'Master Sheet'!$AQ$9)),"") ->  | BV49: =IFERROR(INDEX(MysticAbilities,MATCH(INDEX(DisplayList,(ROW(A49)-19)/3),MysticIndex,0),$BV$20),"0000") -> 0000 | BW49: =IF(BV49<>"0000",INDEX(MysticAbilities,CA49,BW$20),0) -> 0 | BX49: =IFERROR(IF(BV49<>"0000",INDEX(MysticAbilities,CA49,BX$20),TRUE),TRUE) -> TRUE | BY49: =IF(BV49<>"0000",INDEX(MysticAbilities,CA49,BY$20),0) -> 0 | BZ49: =IF(BV49<>"0000",INDEX(MysticAbilities,CA49,BZ$20),0) -> 0 | CA49: =IF(BV49<>"0000", MATCH(BV49,MysticIndex,0),"") ->  | CB49: =IF($BV49<>"0000",INDEX(MysticAbilities,$CA49,CB$20),FALSE) -> FALSE | CC49: =IF($BV49<>"0000",INDEX(MysticAbilities,$CA49,CC$20),FALSE) -> FALSE | CD49: =IF($BV49<>"0000",INDEX(MysticAbilities,$CA49,CD$20),TRUE) -> TRUE
CE50: =B49<>"" -> TRUE
B52: x | H52: =IF(BV52<>"0000",INDEX(MysticAbilities,CA52,'Master Sheet'!$D$9),"") ->  | W52: =IF(BV52="0000", "", IF(INDEX(MysticAbilities,CA52,5)=0, "-", INDEX(MysticAbilities,CA52,5))) ->  | Z52: =IF(BV52<>"0000",IF(INDEX(MysticAbilities,CA52,'Master Sheet'!$Z$9)= 0,"",INDEX(MysticAbilities,CA52,'Master Sheet'!$Z$9)),"") ->  | AJ52: =IF(BV52<>"0000",IF(INDEX(MysticAbilities,CA52,'Master Sheet'!$AJ$9)= 0,"",INDEX(MysticAbilities,CA52,'Master Sheet'!$AJ$9)),"") ->  | AQ52: =IF(BV52<>"0000",IF(INDEX(MysticAbilities,CA52,'Master Sheet'!$AQ$9)= 0,"",INDEX(MysticAbilities,CA52,'Master Sheet'!$AQ$9)),"") ->  | BV52: =IFERROR(INDEX(MysticAbilities,MATCH(INDEX(DisplayList,(ROW(A52)-19)/3),MysticIndex,0),$BV$20),"0000") -> 0000 | BW52: =IF(BV52<>"0000",INDEX(MysticAbilities,CA52,BW$20),0) -> 0 | BX52: =IFERROR(IF(BV52<>"0000",INDEX(MysticAbilities,CA52,BX$20),TRUE),TRUE) -> TRUE | BY52: =IF(BV52<>"0000",INDEX(MysticAbilities,CA52,BY$20),0) -> 0 | BZ52: =IF(BV52<>"0000",INDEX(MysticAbilities,CA52,BZ$20),0) -> 0 | CA52: =IF(BV52<>"0000", MATCH(BV52,MysticIndex,0),"") ->  | CB52: =IF($BV52<>"0000",INDEX(MysticAbilities,$CA52,CB$20),FALSE) -> FALSE | CC52: =IF($BV52<>"0000",INDEX(MysticAbilities,$CA52,CC$20),FALSE) -> FALSE | CD52: =IF($BV52<>"0000",INDEX(MysticAbilities,$CA52,CD$20),TRUE) -> TRUE
CE53: =B52<>"" -> TRUE
B55: x | D55: =IF(BV55<>"0000",INDEX(MysticAbilities,CA55,'Master Sheet'!$D$9),"") ->  | W55: =IF(BV55="0000", "", IF(INDEX(MysticAbilities,CA55,5)=0, "-", INDEX(MysticAbilities,CA55,5))) ->  | Z55: =IF(BV55<>"0000",IF(INDEX(MysticAbilities,CA55,'Master Sheet'!$Z$9)= 0,"",INDEX(MysticAbilities,CA55,'Master Sheet'!$Z$9)),"") ->  | AJ55: =IF(BV55<>"0000",IF(INDEX(MysticAbilities,CA55,'Master Sheet'!$AJ$9)= 0,"",INDEX(MysticAbilities,CA55,'Master Sheet'!$AJ$9)),"") ->  | AQ55: =IF(BV55<>"0000",IF(INDEX(MysticAbilities,CA55,'Master Sheet'!$AQ$9)= 0,"",INDEX(MysticAbilities,CA55,'Master Sheet'!$AQ$9)),"") ->  | BV55: =IFERROR(INDEX(MysticAbilities,MATCH(INDEX(DisplayList,(ROW(A55)-19)/3),MysticIndex,0),$BV$20),"0000") -> 0000 | BW55: =IF(BV55<>"0000",INDEX(MysticAbilities,CA55,BW$20),0) -> 0 | BX55: =IFERROR(IF(BV55<>"0000",INDEX(MysticAbilities,CA55,BX$20),TRUE),TRUE) -> TRUE | BY55: =IF(BV55<>"0000",INDEX(MysticAbilities,CA55,BY$20),0) -> 0 | BZ55: =IF(BV55<>"0000",INDEX(MysticAbilities,CA55,BZ$20),0) -> 0 | CA55: =IF(BV55<>"0000", MATCH(BV55,MysticIndex,0),"") ->  | CB55: =IF($BV55<>"0000",INDEX(MysticAbilities,$CA55,CB$20),FALSE) -> FALSE | CC55: =IF($BV55<>"0000",INDEX(MysticAbilities,$CA55,CC$20),FALSE) -> FALSE | CD55: =IF($BV55<>"0000",INDEX(MysticAbilities,$CA55,CD$20),TRUE) -> TRUE
CE56: =B55<>"" -> TRUE
B58: x | F58: =IF(BV58<>"0000",INDEX(MysticAbilities,CA58,'Master Sheet'!$D$9),"") ->  | W58: =IF(BV58="0000", "", IF(INDEX(MysticAbilities,CA58,5)=0, "-", INDEX(MysticAbilities,CA58,5))) ->  | Z58: =IF(BV58<>"0000",IF(INDEX(MysticAbilities,CA58,'Master Sheet'!$Z$9)= 0,"",INDEX(MysticAbilities,CA58,'Master Sheet'!$Z$9)),"") ->  | AJ58: =IF(BV58<>"0000",IF(INDEX(MysticAbilities,CA58,'Master Sheet'!$AJ$9)= 0,"",INDEX(MysticAbilities,CA58,'Master Sheet'!$AJ$9)),"") ->  | AQ58: =IF(BV58<>"0000",IF(INDEX(MysticAbilities,CA58,'Master Sheet'!$AQ$9)= 0,"",INDEX(MysticAbilities,CA58,'Master Sheet'!$AQ$9)),"") ->  | BV58: =IFERROR(INDEX(MysticAbilities,MATCH(INDEX(DisplayList,(ROW(A58)-19)/3),MysticIndex,0),$BV$20),"0000") -> 0000 | BW58: =IF(BV58<>"0000",INDEX(MysticAbilities,CA58,BW$20),0) -> 0 | BX58: =IFERROR(IF(BV58<>"0000",INDEX(MysticAbilities,CA58,BX$20),TRUE),TRUE) -> TRUE | BY58: =IF(BV58<>"0000",INDEX(MysticAbilities,CA58,BY$20),0) -> 0 | BZ58: =IF(BV58<>"0000",INDEX(MysticAbilities,CA58,BZ$20),0) -> 0 | CA58: =IF(BV58<>"0000", MATCH(BV58,MysticIndex,0),"") ->  | CB58: =IF($BV58<>"0000",INDEX(MysticAbilities,$CA58,CB$20),FALSE) -> FALSE | CC58: =IF($BV58<>"0000",INDEX(MysticAbilities,$CA58,CC$20),FALSE) -> FALSE | CD58: =IF($BV58<>"0000",INDEX(MysticAbilities,$CA58,CD$20),TRUE) -> TRUE
CE59: =B58<>"" -> TRUE
B61: x | H61: =IF(BV61<>"0000",INDEX(MysticAbilities,CA61,'Master Sheet'!$D$9),"") ->  | W61: =IF(BV61="0000", "", IF(INDEX(MysticAbilities,CA61,5)=0, "-", INDEX(MysticAbilities,CA61,5))) ->  | Z61: =IF(BV61<>"0000",IF(INDEX(MysticAbilities,CA61,'Master Sheet'!$Z$9)= 0,"",INDEX(MysticAbilities,CA61,'Master Sheet'!$Z$9)),"") ->  | AJ61: =IF(BV61<>"0000",IF(INDEX(MysticAbilities,CA61,'Master Sheet'!$AJ$9)= 0,"",INDEX(MysticAbilities,CA61,'Master Sheet'!$AJ$9)),"") ->  | AQ61: =IF(BV61<>"0000",IF(INDEX(MysticAbilities,CA61,'Master Sheet'!$AQ$9)= 0,"",INDEX(MysticAbilities,CA61,'Master Sheet'!$AQ$9)),"") ->  | BV61: =IFERROR(INDEX(MysticAbilities,MATCH(INDEX(DisplayList,(ROW(A61)-19)/3),MysticIndex,0),$BV$20),"0000") -> 0000 | BW61: =IF(BV61<>"0000",INDEX(MysticAbilities,CA61,BW$20),0) -> 0 | BX61: =IFERROR(IF(BV61<>"0000",INDEX(MysticAbilities,CA61,BX$20),TRUE),TRUE) -> TRUE | BY61: =IF(BV61<>"0000",INDEX(MysticAbilities,CA61,BY$20),0) -> 0 | BZ61: =IF(BV61<>"0000",INDEX(MysticAbilities,CA61,BZ$20),0) -> 0 | CA61: =IF(BV61<>"0000", MATCH(BV61,MysticIndex,0),"") ->  | CB61: =IF($BV61<>"0000",INDEX(MysticAbilities,$CA61,CB$20),FALSE) -> FALSE | CC61: =IF($BV61<>"0000",INDEX(MysticAbilities,$CA61,CC$20),FALSE) -> FALSE | CD61: =IF($BV61<>"0000",INDEX(MysticAbilities,$CA61,CD$20),TRUE) -> TRUE
CE62: =B61<>"" -> TRUE
B64: x | D64: =IF(BV64<>"0000",INDEX(MysticAbilities,CA64,'Master Sheet'!$D$9),"") ->  | W64: =IF(BV64="0000", "", IF(INDEX(MysticAbilities,CA64,5)=0, "-", INDEX(MysticAbilities,CA64,5))) ->  | Z64: =IF(BV64<>"0000",IF(INDEX(MysticAbilities,CA64,'Master Sheet'!$Z$9)= 0,"",INDEX(MysticAbilities,CA64,'Master Sheet'!$Z$9)),"") ->  | AJ64: =IF(BV64<>"0000",IF(INDEX(MysticAbilities,CA64,'Master Sheet'!$AJ$9)= 0,"",INDEX(MysticAbilities,CA64,'Master Sheet'!$AJ$9)),"") ->  | AQ64: =IF(BV64<>"0000",IF(INDEX(MysticAbilities,CA64,'Master Sheet'!$AQ$9)= 0,"",INDEX(MysticAbilities,CA64,'Master Sheet'!$AQ$9)),"") ->  | BV64: =IFERROR(INDEX(MysticAbilities,MATCH(INDEX(DisplayList,(ROW(A64)-19)/3),MysticIndex,0),$BV$20),"0000") -> 0000 | BW64: =IF(BV64<>"0000",INDEX(MysticAbilities,CA64,BW$20),0) -> 0 | BX64: =IFERROR(IF(BV64<>"0000",INDEX(MysticAbilities,CA64,BX$20),TRUE),TRUE) -> TRUE | BY64: =IF(BV64<>"0000",INDEX(MysticAbilities,CA64,BY$20),0) -> 0 | BZ64: =IF(BV64<>"0000",INDEX(MysticAbilities,CA64,BZ$20),0) -> 0 | CA64: =IF(BV64<>"0000", MATCH(BV64,MysticIndex,0),"") ->  | CB64: =IF($BV64<>"0000",INDEX(MysticAbilities,$CA64,CB$20),FALSE) -> FALSE | CC64: =IF($BV64<>"0000",INDEX(MysticAbilities,$CA64,CC$20),FALSE) -> FALSE | CD64: =IF($BV64<>"0000",INDEX(MysticAbilities,$CA64,CD$20),TRUE) -> TRUE
CE65: =B64<>"" -> TRUE
B67: x | F67: =IF(BV67<>"0000",INDEX(MysticAbilities,CA67,'Master Sheet'!$D$9),"") ->  | W67: =IF(BV67="0000", "", IF(INDEX(MysticAbilities,CA67,5)=0, "-", INDEX(MysticAbilities,CA67,5))) ->  | Z67: =IF(BV67<>"0000",IF(INDEX(MysticAbilities,CA67,'Master Sheet'!$Z$9)= 0,"",INDEX(MysticAbilities,CA67,'Master Sheet'!$Z$9)),"") ->  | AJ67: =IF(BV67<>"0000",IF(INDEX(MysticAbilities,CA67,'Master Sheet'!$AJ$9)= 0,"",INDEX(MysticAbilities,CA67,'Master Sheet'!$AJ$9)),"") ->  | AQ67: =IF(BV67<>"0000",IF(INDEX(MysticAbilities,CA67,'Master Sheet'!$AQ$9)= 0,"",INDEX(MysticAbilities,CA67,'Master Sheet'!$AQ$9)),"") ->  | BV67: =IFERROR(INDEX(MysticAbilities,MATCH(INDEX(DisplayList,(ROW(A67)-19)/3),MysticIndex,0),$BV$20),"0000") -> 0000 | BW67: =IF(BV67<>"0000",INDEX(MysticAbilities,CA67,BW$20),0) -> 0 | BX67: =IFERROR(IF(BV67<>"0000",INDEX(MysticAbilities,CA67,BX$20),TRUE),TRUE) -> TRUE | BY67: =IF(BV67<>"0000",INDEX(MysticAbilities,CA67,BY$20),0) -> 0 | BZ67: =IF(BV67<>"0000",INDEX(MysticAbilities,CA67,BZ$20),0) -> 0 | CA67: =IF(BV67<>"0000", MATCH(BV67,MysticIndex,0),"") ->  | CB67: =IF($BV67<>"0000",INDEX(MysticAbilities,$CA67,CB$20),FALSE) -> FALSE | CC67: =IF($BV67<>"0000",INDEX(MysticAbilities,$CA67,CC$20),FALSE) -> FALSE | CD67: =IF($BV67<>"0000",INDEX(MysticAbilities,$CA67,CD$20),TRUE) -> TRUE
CE68: =B67<>"" -> TRUE
B70: x | F70: =IF(BV70<>"0000",INDEX(MysticAbilities,CA70,'Master Sheet'!$D$9),"") ->  | W70: =IF(BV70="0000", "", IF(INDEX(MysticAbilities,CA70,5)=0, "-", INDEX(MysticAbilities,CA70,5))) ->  | Z70: =IF(BV70<>"0000",IF(INDEX(MysticAbilities,CA70,'Master Sheet'!$Z$9)= 0,"",INDEX(MysticAbilities,CA70,'Master Sheet'!$Z$9)),"") ->  | AJ70: =IF(BV70<>"0000",IF(INDEX(MysticAbilities,CA70,'Master Sheet'!$AJ$9)= 0,"",INDEX(MysticAbilities,CA70,'Master Sheet'!$AJ$9)),"") ->  | AQ70: =IF(BV70<>"0000",IF(INDEX(MysticAbilities,CA70,'Master Sheet'!$AQ$9)= 0,"",INDEX(MysticAbilities,CA70,'Master Sheet'!$AQ$9)),"") ->  | BV70: =IFERROR(INDEX(MysticAbilities,MATCH(INDEX(DisplayList,(ROW(A70)-19)/3),MysticIndex,0),$BV$20),"0000") -> 0000 | BW70: =IF(BV70<>"0000",INDEX(MysticAbilities,CA70,BW$20),0) -> 0 | BX70: =IFERROR(IF(BV70<>"0000",INDEX(MysticAbilities,CA70,BX$20),TRUE),TRUE) -> TRUE | BY70: =IF(BV70<>"0000",INDEX(MysticAbilities,CA70,BY$20),0) -> 0 | BZ70: =IF(BV70<>"0000",INDEX(MysticAbilities,CA70,BZ$20),0) -> 0 | CA70: =IF(BV70<>"0000", MATCH(BV70,MysticIndex,0),"") ->  | CB70: =IF($BV70<>"0000",INDEX(MysticAbilities,$CA70,CB$20),FALSE) -> FALSE | CC70: =IF($BV70<>"0000",INDEX(MysticAbilities,$CA70,CC$20),FALSE) -> FALSE | CD70: =IF($BV70<>"0000",INDEX(MysticAbilities,$CA70,CD$20),TRUE) -> TRUE
CE71: =B70<>"" -> TRUE
B73: x | F73: =IF(BV73<>"0000",INDEX(MysticAbilities,CA73,'Master Sheet'!$D$9),"") ->  | W73: =IF(BV73="0000", "", IF(INDEX(MysticAbilities,CA73,5)=0, "-", INDEX(MysticAbilities,CA73,5))) ->  | Z73: =IF(BV73<>"0000",IF(INDEX(MysticAbilities,CA73,'Master Sheet'!$Z$9)= 0,"",INDEX(MysticAbilities,CA73,'Master Sheet'!$Z$9)),"") ->  | AJ73: =IF(BV73<>"0000",IF(INDEX(MysticAbilities,CA73,'Master Sheet'!$AJ$9)= 0,"",INDEX(MysticAbilities,CA73,'Master Sheet'!$AJ$9)),"") ->  | AQ73: =IF(BV73<>"0000",IF(INDEX(MysticAbilities,CA73,'Master Sheet'!$AQ$9)= 0,"",INDEX(MysticAbilities,CA73,'Master Sheet'!$AQ$9)),"") ->  | BV73: =IFERROR(INDEX(MysticAbilities,MATCH(INDEX(DisplayList,(ROW(A73)-19)/3),MysticIndex,0),$BV$20),"0000") -> 0000 | BW73: =IF(BV73<>"0000",INDEX(MysticAbilities,CA73,BW$20),0) -> 0 | BX73: =IFERROR(IF(BV73<>"0000",INDEX(MysticAbilities,CA73,BX$20),TRUE),TRUE) -> TRUE | BY73: =IF(BV73<>"0000",INDEX(MysticAbilities,CA73,BY$20),0) -> 0 | BZ73: =IF(BV73<>"0000",INDEX(MysticAbilities,CA73,BZ$20),0) -> 0 | CA73: =IF(BV73<>"0000", MATCH(BV73,MysticIndex,0),"") ->  | CB73: =IF($BV73<>"0000",INDEX(MysticAbilities,$CA73,CB$20),FALSE) -> FALSE | CC73: =IF($BV73<>"0000",INDEX(MysticAbilities,$CA73,CC$20),FALSE) -> FALSE | CD73: =IF($BV73<>"0000",INDEX(MysticAbilities,$CA73,CD$20),TRUE) -> TRUE
CE74: =B73<>"" -> TRUE
B76: x | F76: =IF(BV76<>"0000",INDEX(MysticAbilities,CA76,'Master Sheet'!$D$9),"") ->  | W76: =IF(BV76="0000", "", IF(INDEX(MysticAbilities,CA76,5)=0, "-", INDEX(MysticAbilities,CA76,5))) ->  | Z76: =IF(BV76<>"0000",IF(INDEX(MysticAbilities,CA76,'Master Sheet'!$Z$9)= 0,"",INDEX(MysticAbilities,CA76,'Master Sheet'!$Z$9)),"") ->  | AJ76: =IF(BV76<>"0000",IF(INDEX(MysticAbilities,CA76,'Master Sheet'!$AJ$9)= 0,"",INDEX(MysticAbilities,CA76,'Master Sheet'!$AJ$9)),"") ->  | AQ76: =IF(BV76<>"0000",IF(INDEX(MysticAbilities,CA76,'Master Sheet'!$AQ$9)= 0,"",INDEX(MysticAbilities,CA76,'Master Sheet'!$AQ$9)),"") ->  | BV76: =IFERROR(INDEX(MysticAbilities,MATCH(INDEX(DisplayList,(ROW(A76)-19)/3),MysticIndex,0),$BV$20),"0000") -> 0000 | BW76: =IF(BV76<>"0000",INDEX(MysticAbilities,CA76,BW$20),0) -> 0 | BX76: =IFERROR(IF(BV76<>"0000",INDEX(MysticAbilities,CA76,BX$20),TRUE),TRUE) -> TRUE | BY76: =IF(BV76<>"0000",INDEX(MysticAbilities,CA76,BY$20),0) -> 0 | BZ76: =IF(BV76<>"0000",INDEX(MysticAbilities,CA76,BZ$20),0) -> 0 | CA76: =IF(BV76<>"0000", MATCH(BV76,MysticIndex,0),"") ->  | CB76: =IF($BV76<>"0000",INDEX(MysticAbilities,$CA76,CB$20),FALSE) -> FALSE | CC76: =IF($BV76<>"0000",INDEX(MysticAbilities,$CA76,CC$20),FALSE) -> FALSE | CD76: =IF($BV76<>"0000",INDEX(MysticAbilities,$CA76,CD$20),TRUE) -> TRUE
CE77: =B76<>"" -> TRUE
B79: x | F79: =IF(BV79<>"0000",INDEX(MysticAbilities,CA79,'Master Sheet'!$D$9),"") ->  | W79: =IF(BV79="0000", "", IF(INDEX(MysticAbilities,CA79,5)=0, "-", INDEX(MysticAbilities,CA79,5))) ->  | Z79: =IF(BV79<>"0000",IF(INDEX(MysticAbilities,CA79,'Master Sheet'!$Z$9)= 0,"",INDEX(MysticAbilities,CA79,'Master Sheet'!$Z$9)),"") ->  | AJ79: =IF(BV79<>"0000",IF(INDEX(MysticAbilities,CA79,'Master Sheet'!$AJ$9)= 0,"",INDEX(MysticAbilities,CA79,'Master Sheet'!$AJ$9)),"") ->  | AQ79: =IF(BV79<>"0000",IF(INDEX(MysticAbilities,CA79,'Master Sheet'!$AQ$9)= 0,"",INDEX(MysticAbilities,CA79,'Master Sheet'!$AQ$9)),"") ->  | BV79: =IFERROR(INDEX(MysticAbilities,MATCH(INDEX(DisplayList,(ROW(A79)-19)/3),MysticIndex,0),$BV$20),"0000") -> 0000 | BW79: =IF(BV79<>"0000",INDEX(MysticAbilities,CA79,BW$20),0) -> 0 | BX79: =IFERROR(IF(BV79<>"0000",INDEX(MysticAbilities,CA79,BX$20),TRUE),TRUE) -> TRUE | BY79: =IF(BV79<>"0000",INDEX(MysticAbilities,CA79,BY$20),0) -> 0 | BZ79: =IF(BV79<>"0000",INDEX(MysticAbilities,CA79,BZ$20),0) -> 0 | CA79: =IF(BV79<>"0000", MATCH(BV79,MysticIndex,0),"") ->  | CB79: =IF($BV79<>"0000",INDEX(MysticAbilities,$CA79,CB$20),FALSE) -> FALSE | CC79: =IF($BV79<>"0000",INDEX(MysticAbilities,$CA79,CC$20),FALSE) -> FALSE | CD79: =IF($BV79<>"0000",INDEX(MysticAbilities,$CA79,CD$20),TRUE) -> TRUE
CE80: =B79<>"" -> TRUE
B82: x | F82: =IF(BV82<>"0000",INDEX(MysticAbilities,CA82,'Master Sheet'!$D$9),"") ->  | W82: =IF(BV82="0000", "", IF(INDEX(MysticAbilities,CA82,5)=0, "-", INDEX(MysticAbilities,CA82,5))) ->  | Z82: =IF(BV82<>"0000",IF(INDEX(MysticAbilities,CA82,'Master Sheet'!$Z$9)= 0,"",INDEX(MysticAbilities,CA82,'Master Sheet'!$Z$9)),"") ->  | AJ82: =IF(BV82<>"0000",IF(INDEX(MysticAbilities,CA82,'Master Sheet'!$AJ$9)= 0,"",INDEX(MysticAbilities,CA82,'Master Sheet'!$AJ$9)),"") ->  | AQ82: =IF(BV82<>"0000",IF(INDEX(MysticAbilities,CA82,'Master Sheet'!$AQ$9)= 0,"",INDEX(MysticAbilities,CA82,'Master Sheet'!$AQ$9)),"") ->  | BV82: =IFERROR(INDEX(MysticAbilities,MATCH(INDEX(DisplayList,(ROW(A82)-19)/3),MysticIndex,0),$BV$20),"0000") -> 0000 | BW82: =IF(BV82<>"0000",INDEX(MysticAbilities,CA82,BW$20),0) -> 0 | BX82: =IFERROR(IF(BV82<>"0000",INDEX(MysticAbilities,CA82,BX$20),TRUE),TRUE) -> TRUE | BY82: =IF(BV82<>"0000",INDEX(MysticAbilities,CA82,BY$20),0) -> 0 | BZ82: =IF(BV82<>"0000",INDEX(MysticAbilities,CA82,BZ$20),0) -> 0 | CA82: =IF(BV82<>"0000", MATCH(BV82,MysticIndex,0),"") ->  | CB82: =IF($BV82<>"0000",INDEX(MysticAbilities,$CA82,CB$20),FALSE) -> FALSE | CC82: =IF($BV82<>"0000",INDEX(MysticAbilities,$CA82,CC$20),FALSE) -> FALSE | CD82: =IF($BV82<>"0000",INDEX(MysticAbilities,$CA82,CD$20),TRUE) -> TRUE
CE83: =B82<>"" -> TRUE
B85: x | D85: =IF(BV85<>"0000",INDEX(MysticAbilities,CA85,'Master Sheet'!$D$9),"") ->  | W85: =IF(BV85="0000", "", IF(INDEX(MysticAbilities,CA85,5)=0, "-", INDEX(MysticAbilities,CA85,5))) ->  | Z85: =IF(BV85<>"0000",IF(INDEX(MysticAbilities,CA85,'Master Sheet'!$Z$9)= 0,"",INDEX(MysticAbilities,CA85,'Master Sheet'!$Z$9)),"") ->  | AJ85: =IF(BV85<>"0000",IF(INDEX(MysticAbilities,CA85,'Master Sheet'!$AJ$9)= 0,"",INDEX(MysticAbilities,CA85,'Master Sheet'!$AJ$9)),"") ->  | AQ85: =IF(BV85<>"0000",IF(INDEX(MysticAbilities,CA85,'Master Sheet'!$AQ$9)= 0,"",INDEX(MysticAbilities,CA85,'Master Sheet'!$AQ$9)),"") ->  | BV85: =IFERROR(INDEX(MysticAbilities,MATCH(INDEX(DisplayList,(ROW(A85)-19)/3),MysticIndex,0),$BV$20),"0000") -> 0000 | BW85: =IF(BV85<>"0000",INDEX(MysticAbilities,CA85,BW$20),0) -> 0 | BX85: =IFERROR(IF(BV85<>"0000",INDEX(MysticAbilities,CA85,BX$20),TRUE),TRUE) -> TRUE | BY85: =IF(BV85<>"0000",INDEX(MysticAbilities,CA85,BY$20),0) -> 0 | BZ85: =IF(BV85<>"0000",INDEX(MysticAbilities,CA85,BZ$20),0) -> 0 | CA85: =IF(BV85<>"0000", MATCH(BV85,MysticIndex,0),"") ->  | CB85: =IF($BV85<>"0000",INDEX(MysticAbilities,$CA85,CB$20),FALSE) -> FALSE | CC85: =IF($BV85<>"0000",INDEX(MysticAbilities,$CA85,CC$20),FALSE) -> FALSE | CD85: =IF($BV85<>"0000",INDEX(MysticAbilities,$CA85,CD$20),TRUE) -> TRUE
CE86: =B85<>"" -> TRUE
B88: x | F88: =IF(BV88<>"0000",INDEX(MysticAbilities,CA88,'Master Sheet'!$D$9),"") ->  | W88: =IF(BV88="0000", "", IF(INDEX(MysticAbilities,CA88,5)=0, "-", INDEX(MysticAbilities,CA88,5))) ->  | Z88: =IF(BV88<>"0000",IF(INDEX(MysticAbilities,CA88,'Master Sheet'!$Z$9)= 0,"",INDEX(MysticAbilities,CA88,'Master Sheet'!$Z$9)),"") ->  | AJ88: =IF(BV88<>"0000",IF(INDEX(MysticAbilities,CA88,'Master Sheet'!$AJ$9)= 0,"",INDEX(MysticAbilities,CA88,'Master Sheet'!$AJ$9)),"") ->  | AQ88: =IF(BV88<>"0000",IF(INDEX(MysticAbilities,CA88,'Master Sheet'!$AQ$9)= 0,"",INDEX(MysticAbilities,CA88,'Master Sheet'!$AQ$9)),"") ->  | BV88: =IFERROR(INDEX(MysticAbilities,MATCH(INDEX(DisplayList,(ROW(A88)-19)/3),MysticIndex,0),$BV$20),"0000") -> 0000 | BW88: =IF(BV88<>"0000",INDEX(MysticAbilities,CA88,BW$20),0) -> 0 | BX88: =IFERROR(IF(BV88<>"0000",INDEX(MysticAbilities,CA88,BX$20),TRUE),TRUE) -> TRUE | BY88: =IF(BV88<>"0000",INDEX(MysticAbilities,CA88,BY$20),0) -> 0 | BZ88: =IF(BV88<>"0000",INDEX(MysticAbilities,CA88,BZ$20),0) -> 0 | CA88: =IF(BV88<>"0000", MATCH(BV88,MysticIndex,0),"") ->  | CB88: =IF($BV88<>"0000",INDEX(MysticAbilities,$CA88,CB$20),FALSE) -> FALSE | CC88: =IF($BV88<>"0000",INDEX(MysticAbilities,$CA88,CC$20),FALSE) -> FALSE | CD88: =IF($BV88<>"0000",INDEX(MysticAbilities,$CA88,CD$20),TRUE) -> TRUE
CE89: =B88<>"" -> TRUE
B91: x | D91: =IF(BV91<>"0000",INDEX(MysticAbilities,CA91,'Master Sheet'!$D$9),"") ->  | W91: =IF(BV91="0000", "", IF(INDEX(MysticAbilities,CA91,5)=0, "-", INDEX(MysticAbilities,CA91,5))) ->  | Z91: =IF(BV91<>"0000",IF(INDEX(MysticAbilities,CA91,'Master Sheet'!$Z$9)= 0,"",INDEX(MysticAbilities,CA91,'Master Sheet'!$Z$9)),"") ->  | AJ91: =IF(BV91<>"0000",IF(INDEX(MysticAbilities,CA91,'Master Sheet'!$AJ$9)= 0,"",INDEX(MysticAbilities,CA91,'Master Sheet'!$AJ$9)),"") ->  | AQ91: =IF(BV91<>"0000",IF(INDEX(MysticAbilities,CA91,'Master Sheet'!$AQ$9)= 0,"",INDEX(MysticAbilities,CA91,'Master Sheet'!$AQ$9)),"") ->  | BV91: =IFERROR(INDEX(MysticAbilities,MATCH(INDEX(DisplayList,(ROW(A91)-19)/3),MysticIndex,0),$BV$20),"0000") -> 0000 | BW91: =IF(BV91<>"0000",INDEX(MysticAbilities,CA91,BW$20),0) -> 0 | BX91: =IFERROR(IF(BV91<>"0000",INDEX(MysticAbilities,CA91,BX$20),TRUE),TRUE) -> TRUE | BY91: =IF(BV91<>"0000",INDEX(MysticAbilities,CA91,BY$20),0) -> 0 | BZ91: =IF(BV91<>"0000",INDEX(MysticAbilities,CA91,BZ$20),0) -> 0 | CA91: =IF(BV91<>"0000", MATCH(BV91,MysticIndex,0),"") ->  | CB91: =IF($BV91<>"0000",INDEX(MysticAbilities,$CA91,CB$20),FALSE) -> FALSE | CC91: =IF($BV91<>"0000",INDEX(MysticAbilities,$CA91,CC$20),FALSE) -> FALSE | CD91: =IF($BV91<>"0000",INDEX(MysticAbilities,$CA91,CD$20),TRUE) -> TRUE
CE92: =B91<>"" -> TRUE
B94: x | F94: =IF(BV94<>"0000",INDEX(MysticAbilities,CA94,'Master Sheet'!$D$9),"") ->  | W94: =IF(BV94="0000", "", IF(INDEX(MysticAbilities,CA94,5)=0, "-", INDEX(MysticAbilities,CA94,5))) ->  | Z94: =IF(BV94<>"0000",IF(INDEX(MysticAbilities,CA94,'Master Sheet'!$Z$9)= 0,"",INDEX(MysticAbilities,CA94,'Master Sheet'!$Z$9)),"") ->  | AJ94: =IF(BV94<>"0000",IF(INDEX(MysticAbilities,CA94,'Master Sheet'!$AJ$9)= 0,"",INDEX(MysticAbilities,CA94,'Master Sheet'!$AJ$9)),"") ->  | AQ94: =IF(BV94<>"0000",IF(INDEX(MysticAbilities,CA94,'Master Sheet'!$AQ$9)= 0,"",INDEX(MysticAbilities,CA94,'Master Sheet'!$AQ$9)),"") ->  | BV94: =IFERROR(INDEX(MysticAbilities,MATCH(INDEX(DisplayList,(ROW(A94)-19)/3),MysticIndex,0),$BV$20),"0000") -> 0000 | BW94: =IF(BV94<>"0000",INDEX(MysticAbilities,CA94,BW$20),0) -> 0 | BX94: =IFERROR(IF(BV94<>"0000",INDEX(MysticAbilities,CA94,BX$20),TRUE),TRUE) -> TRUE | BY94: =IF(BV94<>"0000",INDEX(MysticAbilities,CA94,BY$20),0) -> 0 | BZ94: =IF(BV94<>"0000",INDEX(MysticAbilities,CA94,BZ$20),0) -> 0 | CA94: =IF(BV94<>"0000", MATCH(BV94,MysticIndex,0),"") ->  | CB94: =IF($BV94<>"0000",INDEX(MysticAbilities,$CA94,CB$20),FALSE) -> FALSE | CC94: =IF($BV94<>"0000",INDEX(MysticAbilities,$CA94,CC$20),FALSE) -> FALSE | CD94: =IF($BV94<>"0000",INDEX(MysticAbilities,$CA94,CD$20),TRUE) -> TRUE
CE95: =B94<>"" -> TRUE
B97: x | F97: =IF(BV97<>"0000",INDEX(MysticAbilities,CA97,'Master Sheet'!$D$9),"") ->  | W97: =IF(BV97="0000", "", IF(INDEX(MysticAbilities,CA97,5)=0, "-", INDEX(MysticAbilities,CA97,5))) ->  | Z97: =IF(BV97<>"0000",IF(INDEX(MysticAbilities,CA97,'Master Sheet'!$Z$9)= 0,"",INDEX(MysticAbilities,CA97,'Master Sheet'!$Z$9)),"") ->  | AJ97: =IF(BV97<>"0000",IF(INDEX(MysticAbilities,CA97,'Master Sheet'!$AJ$9)= 0,"",INDEX(MysticAbilities,CA97,'Master Sheet'!$AJ$9)),"") ->  | AQ97: =IF(BV97<>"0000",IF(INDEX(MysticAbilities,CA97,'Master Sheet'!$AQ$9)= 0,"",INDEX(MysticAbilities,CA97,'Master Sheet'!$AQ$9)),"") ->  | BV97: =IFERROR(INDEX(MysticAbilities,MATCH(INDEX(DisplayList,(ROW(A97)-19)/3),MysticIndex,0),$BV$20),"0000") -> 0000 | BW97: =IF(BV97<>"0000",INDEX(MysticAbilities,CA97,BW$20),0) -> 0 | BX97: =IFERROR(IF(BV97<>"0000",INDEX(MysticAbilities,CA97,BX$20),TRUE),TRUE) -> TRUE | BY97: =IF(BV97<>"0000",INDEX(MysticAbilities,CA97,BY$20),0) -> 0 | BZ97: =IF(BV97<>"0000",INDEX(MysticAbilities,CA97,BZ$20),0) -> 0 | CA97: =IF(BV97<>"0000", MATCH(BV97,MysticIndex,0),"") ->  | CB97: =IF($BV97<>"0000",INDEX(MysticAbilities,$CA97,CB$20),FALSE) -> FALSE | CC97: =IF($BV97<>"0000",INDEX(MysticAbilities,$CA97,CC$20),FALSE) -> FALSE | CD97: =IF($BV97<>"0000",INDEX(MysticAbilities,$CA97,CD$20),TRUE) -> TRUE
CE98: =B97<>"" -> TRUE
B100: x | D100: =IF(BV100<>"0000",INDEX(MysticAbilities,CA100,'Master Sheet'!$D$9),"") ->  | W100: =IF(BV100="0000", "", IF(INDEX(MysticAbilities,CA100,5)=0, "-", INDEX(MysticAbilities,CA100,5))) ->  | Z100: =IF(BV100<>"0000",IF(INDEX(MysticAbilities,CA100,'Master Sheet'!$Z$9)= 0,"",INDEX(MysticAbilities,CA100,'Master Sheet'!$Z$9)),"") ->  | AJ100: =IF(BV100<>"0000",IF(INDEX(MysticAbilities,CA100,'Master Sheet'!$AJ$9)= 0,"",INDEX(MysticAbilities,CA100,'Master Sheet'!$AJ$9)),"") ->  | AQ100: =IF(BV100<>"0000",IF(INDEX(MysticAbilities,CA100,'Master Sheet'!$AQ$9)= 0,"",INDEX(MysticAbilities,CA100,'Master Sheet'!$AQ$9)),"") ->  | BV100: =IFERROR(INDEX(MysticAbilities,MATCH(INDEX(DisplayList,(ROW(A100)-19)/3),MysticIndex,0),$BV$20),"0000") -> 0000 | BW100: =IF(BV100<>"0000",INDEX(MysticAbilities,CA100,BW$20),0) -> 0 | BX100: =IFERROR(IF(BV100<>"0000",INDEX(MysticAbilities,CA100,BX$20),TRUE),TRUE) -> TRUE | BY100: =IF(BV100<>"0000",INDEX(MysticAbilities,CA100,BY$20),0) -> 0 | BZ100: =IF(BV100<>"0000",INDEX(MysticAbilities,CA100,BZ$20),0) -> 0 | CA100: =IF(BV100<>"0000", MATCH(BV100,MysticIndex,0),"") ->  | CB100: =IF($BV100<>"0000",INDEX(MysticAbilities,$CA100,CB$20),FALSE) -> FALSE | CC100: =IF($BV100<>"0000",INDEX(MysticAbilities,$CA100,CC$20),FALSE) -> FALSE | CD100: =IF($BV100<>"0000",INDEX(MysticAbilities,$CA100,CD$20),TRUE) -> TRUE
CE101: =B100<>"" -> TRUE
B103: x | D103: =IF(BV103<>"0000",INDEX(MysticAbilities,CA103,'Master Sheet'!$D$9),"") ->  | W103: =IF(BV103="0000", "", IF(INDEX(MysticAbilities,CA103,5)=0, "-", INDEX(MysticAbilities,CA103,5))) ->  | Z103: =IF(BV103<>"0000",IF(INDEX(MysticAbilities,CA103,'Master Sheet'!$Z$9)= 0,"",INDEX(MysticAbilities,CA103,'Master Sheet'!$Z$9)),"") ->  | AJ103: =IF(BV103<>"0000",IF(INDEX(MysticAbilities,CA103,'Master Sheet'!$AJ$9)= 0,"",INDEX(MysticAbilities,CA103,'Master Sheet'!$AJ$9)),"") ->  | AQ103: =IF(BV103<>"0000",IF(INDEX(MysticAbilities,CA103,'Master Sheet'!$AQ$9)= 0,"",INDEX(MysticAbilities,CA103,'Master Sheet'!$AQ$9)),"") ->  | BV103: =IFERROR(INDEX(MysticAbilities,MATCH(INDEX(DisplayList,(ROW(A103)-19)/3),MysticIndex,0),$BV$20),"0000") -> 0000 | BW103: =IF(BV103<>"0000",INDEX(MysticAbilities,CA103,BW$20),0) -> 0 | BX103: =IFERROR(IF(BV103<>"0000",INDEX(MysticAbilities,CA103,BX$20),TRUE),TRUE) -> TRUE | BY103: =IF(BV103<>"0000",INDEX(MysticAbilities,CA103,BY$20),0) -> 0 | BZ103: =IF(BV103<>"0000",INDEX(MysticAbilities,CA103,BZ$20),0) -> 0 | CA103: =IF(BV103<>"0000", MATCH(BV103,MysticIndex,0),"") ->  | CB103: =IF($BV103<>"0000",INDEX(MysticAbilities,$CA103,CB$20),FALSE) -> FALSE | CC103: =IF($BV103<>"0000",INDEX(MysticAbilities,$CA103,CC$20),FALSE) -> FALSE | CD103: =IF($BV103<>"0000",INDEX(MysticAbilities,$CA103,CD$20),TRUE) -> TRUE
CE104: =B103<>"" -> TRUE
B106: x | F106: =IF(BV106<>"0000",INDEX(MysticAbilities,CA106,'Master Sheet'!$D$9),"") ->  | W106: =IF(BV106="0000", "", IF(INDEX(MysticAbilities,CA106,5)=0, "-", INDEX(MysticAbilities,CA106,5))) ->  | Z106: =IF(BV106<>"0000",IF(INDEX(MysticAbilities,CA106,'Master Sheet'!$Z$9)= 0,"",INDEX(MysticAbilities,CA106,'Master Sheet'!$Z$9)),"") ->  | AJ106: =IF(BV106<>"0000",IF(INDEX(MysticAbilities,CA106,'Master Sheet'!$AJ$9)= 0,"",INDEX(MysticAbilities,CA106,'Master Sheet'!$AJ$9)),"") ->  | AQ106: =IF(BV106<>"0000",IF(INDEX(MysticAbilities,CA106,'Master Sheet'!$AQ$9)= 0,"",INDEX(MysticAbilities,CA106,'Master Sheet'!$AQ$9)),"") ->  | BV106: =IFERROR(INDEX(MysticAbilities,MATCH(INDEX(DisplayList,(ROW(A106)-19)/3),MysticIndex,0),$BV$20),"0000") -> 0000 | BW106: =IF(BV106<>"0000",INDEX(MysticAbilities,CA106,BW$20),0) -> 0 | BX106: =IFERROR(IF(BV106<>"0000",INDEX(MysticAbilities,CA106,BX$20),TRUE),TRUE) -> TRUE | BY106: =IF(BV106<>"0000",INDEX(MysticAbilities,CA106,BY$20),0) -> 0 | BZ106: =IF(BV106<>"0000",INDEX(MysticAbilities,CA106,BZ$20),0) -> 0 | CA106: =IF(BV106<>"0000", MATCH(BV106,MysticIndex,0),"") ->  | CB106: =IF($BV106<>"0000",INDEX(MysticAbilities,$CA106,CB$20),FALSE) -> FALSE | CC106: =IF($BV106<>"0000",INDEX(MysticAbilities,$CA106,CC$20),FALSE) -> FALSE | CD106: =IF($BV106<>"0000",INDEX(MysticAbilities,$CA106,CD$20),TRUE) -> TRUE
CE107: =B106<>"" -> TRUE
B109: x | F109: =IF(BV109<>"0000",INDEX(MysticAbilities,CA109,'Master Sheet'!$D$9),"") ->  | W109: =IF(BV109="0000", "", IF(INDEX(MysticAbilities,CA109,5)=0, "-", INDEX(MysticAbilities,CA109,5))) ->  | Z109: =IF(BV109<>"0000",IF(INDEX(MysticAbilities,CA109,'Master Sheet'!$Z$9)= 0,"",INDEX(MysticAbilities,CA109,'Master Sheet'!$Z$9)),"") ->  | AJ109: =IF(BV109<>"0000",IF(INDEX(MysticAbilities,CA109,'Master Sheet'!$AJ$9)= 0,"",INDEX(MysticAbilities,CA109,'Master Sheet'!$AJ$9)),"") ->  | AQ109: =IF(BV109<>"0000",IF(INDEX(MysticAbilities,CA109,'Master Sheet'!$AQ$9)= 0,"",INDEX(MysticAbilities,CA109,'Master Sheet'!$AQ$9)),"") ->  | BV109: =IFERROR(INDEX(MysticAbilities,MATCH(INDEX(DisplayList,(ROW(A109)-19)/3),MysticIndex,0),$BV$20),"0000") -> 0000 | BW109: =IF(BV109<>"0000",INDEX(MysticAbilities,CA109,BW$20),0) -> 0 | BX109: =IFERROR(IF(BV109<>"0000",INDEX(MysticAbilities,CA109,BX$20),TRUE),TRUE) -> TRUE | BY109: =IF(BV109<>"0000",INDEX(MysticAbilities,CA109,BY$20),0) -> 0 | BZ109: =IF(BV109<>"0000",INDEX(MysticAbilities,CA109,BZ$20),0) -> 0 | CA109: =IF(BV109<>"0000", MATCH(BV109,MysticIndex,0),"") ->  | CB109: =IF($BV109<>"0000",INDEX(MysticAbilities,$CA109,CB$20),FALSE) -> FALSE | CC109: =IF($BV109<>"0000",INDEX(MysticAbilities,$CA109,CC$20),FALSE) -> FALSE | CD109: =IF($BV109<>"0000",INDEX(MysticAbilities,$CA109,CD$20),TRUE) -> TRUE
CE110: =B109<>"" -> TRUE
B112: x | D112: =IF(BV112<>"0000",INDEX(MysticAbilities,CA112,'Master Sheet'!$D$9),"") ->  | W112: =IF(BV112="0000", "", IF(INDEX(MysticAbilities,CA112,5)=0, "-", INDEX(MysticAbilities,CA112,5))) ->  | Z112: =IF(BV112<>"0000",IF(INDEX(MysticAbilities,CA112,'Master Sheet'!$Z$9)= 0,"",INDEX(MysticAbilities,CA112,'Master Sheet'!$Z$9)),"") ->  | AJ112: =IF(BV112<>"0000",IF(INDEX(MysticAbilities,CA112,'Master Sheet'!$AJ$9)= 0,"",INDEX(MysticAbilities,CA112,'Master Sheet'!$AJ$9)),"") ->  | AQ112: =IF(BV112<>"0000",IF(INDEX(MysticAbilities,CA112,'Master Sheet'!$AQ$9)= 0,"",INDEX(MysticAbilities,CA112,'Master Sheet'!$AQ$9)),"") ->  | BV112: =IFERROR(INDEX(MysticAbilities,MATCH(INDEX(DisplayList,(ROW(A112)-19)/3),MysticIndex,0),$BV$20),"0000") -> 0000 | BW112: =IF(BV112<>"0000",INDEX(MysticAbilities,CA112,BW$20),0) -> 0 | BX112: =IFERROR(IF(BV112<>"0000",INDEX(MysticAbilities,CA112,BX$20),TRUE),TRUE) -> TRUE | BY112: =IF(BV112<>"0000",INDEX(MysticAbilities,CA112,BY$20),0) -> 0 | BZ112: =IF(BV112<>"0000",INDEX(MysticAbilities,CA112,BZ$20),0) -> 0 | CA112: =IF(BV112<>"0000", MATCH(BV112,MysticIndex,0),"") ->  | CB112: =IF($BV112<>"0000",INDEX(MysticAbilities,$CA112,CB$20),FALSE) -> FALSE | CC112: =IF($BV112<>"0000",INDEX(MysticAbilities,$CA112,CC$20),FALSE) -> FALSE | CD112: =IF($BV112<>"0000",INDEX(MysticAbilities,$CA112,CD$20),TRUE) -> TRUE
CE113: =B112<>"" -> TRUE
B115: x | D115: =IF(BV115<>"0000",INDEX(MysticAbilities,CA115,'Master Sheet'!$D$9),"") ->  | W115: =IF(BV115="0000", "", IF(INDEX(MysticAbilities,CA115,5)=0, "-", INDEX(MysticAbilities,CA115,5))) ->  | Z115: =IF(BV115<>"0000",IF(INDEX(MysticAbilities,CA115,'Master Sheet'!$Z$9)= 0,"",INDEX(MysticAbilities,CA115,'Master Sheet'!$Z$9)),"") ->  | AJ115: =IF(BV115<>"0000",IF(INDEX(MysticAbilities,CA115,'Master Sheet'!$AJ$9)= 0,"",INDEX(MysticAbilities,CA115,'Master Sheet'!$AJ$9)),"") ->  | AQ115: =IF(BV115<>"0000",IF(INDEX(MysticAbilities,CA115,'Master Sheet'!$AQ$9)= 0,"",INDEX(MysticAbilities,CA115,'Master Sheet'!$AQ$9)),"") ->  | BV115: =IFERROR(INDEX(MysticAbilities,MATCH(INDEX(DisplayList,(ROW(A115)-19)/3),MysticIndex,0),$BV$20),"0000") -> 0000 | BW115: =IF(BV115<>"0000",INDEX(MysticAbilities,CA115,BW$20),0) -> 0 | BX115: =IFERROR(IF(BV115<>"0000",INDEX(MysticAbilities,CA115,BX$20),TRUE),TRUE) -> TRUE | BY115: =IF(BV115<>"0000",INDEX(MysticAbilities,CA115,BY$20),0) -> 0 | BZ115: =IF(BV115<>"0000",INDEX(MysticAbilities,CA115,BZ$20),0) -> 0 | CA115: =IF(BV115<>"0000", MATCH(BV115,MysticIndex,0),"") ->  | CB115: =IF($BV115<>"0000",INDEX(MysticAbilities,$CA115,CB$20),FALSE) -> FALSE | CC115: =IF($BV115<>"0000",INDEX(MysticAbilities,$CA115,CC$20),FALSE) -> FALSE | CD115: =IF($BV115<>"0000",INDEX(MysticAbilities,$CA115,CD$20),TRUE) -> TRUE
CE116: =B115<>"" -> TRUE
B118: x | F118: =IF(BV118<>"0000",INDEX(MysticAbilities,CA118,'Master Sheet'!$D$9),"") ->  | W118: =IF(BV118="0000", "", IF(INDEX(MysticAbilities,CA118,5)=0, "-", INDEX(MysticAbilities,CA118,5))) ->  | Z118: =IF(BV118<>"0000",IF(INDEX(MysticAbilities,CA118,'Master Sheet'!$Z$9)= 0,"",INDEX(MysticAbilities,CA118,'Master Sheet'!$Z$9)),"") ->  | AJ118: =IF(BV118<>"0000",IF(INDEX(MysticAbilities,CA118,'Master Sheet'!$AJ$9)= 0,"",INDEX(MysticAbilities,CA118,'Master Sheet'!$AJ$9)),"") ->  | AQ118: =IF(BV118<>"0000",IF(INDEX(MysticAbilities,CA118,'Master Sheet'!$AQ$9)= 0,"",INDEX(MysticAbilities,CA118,'Master Sheet'!$AQ$9)),"") ->  | BV118: =IFERROR(INDEX(MysticAbilities,MATCH(INDEX(DisplayList,(ROW(A118)-19)/3),MysticIndex,0),$BV$20),"0000") -> 0000 | BW118: =IF(BV118<>"0000",INDEX(MysticAbilities,CA118,BW$20),0) -> 0 | BX118: =IFERROR(IF(BV118<>"0000",INDEX(MysticAbilities,CA118,BX$20),TRUE),TRUE) -> TRUE | BY118: =IF(BV118<>"0000",INDEX(MysticAbilities,CA118,BY$20),0) -> 0 | BZ118: =IF(BV118<>"0000",INDEX(MysticAbilities,CA118,BZ$20),0) -> 0 | CA118: =IF(BV118<>"0000", MATCH(BV118,MysticIndex,0),"") ->  | CB118: =IF($BV118<>"0000",INDEX(MysticAbilities,$CA118,CB$20),FALSE) -> FALSE | CC118: =IF($BV118<>"0000",INDEX(MysticAbilities,$CA118,CC$20),FALSE) -> FALSE | CD118: =IF($BV118<>"0000",INDEX(MysticAbilities,$CA118,CD$20),TRUE) -> TRUE
CE119: =B118<>"" -> TRUE
B121: x | F121: =IF(BV121<>"0000",INDEX(MysticAbilities,CA121,'Master Sheet'!$D$9),"") ->  | W121: =IF(BV121="0000", "", IF(INDEX(MysticAbilities,CA121,5)=0, "-", INDEX(MysticAbilities,CA121,5))) ->  | Z121: =IF(BV121<>"0000",IF(INDEX(MysticAbilities,CA121,'Master Sheet'!$Z$9)= 0,"",INDEX(MysticAbilities,CA121,'Master Sheet'!$Z$9)),"") ->  | AJ121: =IF(BV121<>"0000",IF(INDEX(MysticAbilities,CA121,'Master Sheet'!$AJ$9)= 0,"",INDEX(MysticAbilities,CA121,'Master Sheet'!$AJ$9)),"") ->  | AQ121: =IF(BV121<>"0000",IF(INDEX(MysticAbilities,CA121,'Master Sheet'!$AQ$9)= 0,"",INDEX(MysticAbilities,CA121,'Master Sheet'!$AQ$9)),"") ->  | BV121: =IFERROR(INDEX(MysticAbilities,MATCH(INDEX(DisplayList,(ROW(A121)-19)/3),MysticIndex,0),$BV$20),"0000") -> 0000 | BW121: =IF(BV121<>"0000",INDEX(MysticAbilities,CA121,BW$20),0) -> 0 | BX121: =IFERROR(IF(BV121<>"0000",INDEX(MysticAbilities,CA121,BX$20),TRUE),TRUE) -> TRUE | BY121: =IF(BV121<>"0000",INDEX(MysticAbilities,CA121,BY$20),0) -> 0 | BZ121: =IF(BV121<>"0000",INDEX(MysticAbilities,CA121,BZ$20),0) -> 0 | CA121: =IF(BV121<>"0000", MATCH(BV121,MysticIndex,0),"") ->  | CB121: =IF($BV121<>"0000",INDEX(MysticAbilities,$CA121,CB$20),FALSE) -> FALSE | CC121: =IF($BV121<>"0000",INDEX(MysticAbilities,$CA121,CC$20),FALSE) -> FALSE | CD121: =IF($BV121<>"0000",INDEX(MysticAbilities,$CA121,CD$20),TRUE) -> TRUE
CE122: =B121<>"" -> TRUE
B124: x | D124: =IF(BV124<>"0000",INDEX(MysticAbilities,CA124,'Master Sheet'!$D$9),"") ->  | W124: =IF(BV124="0000", "", IF(INDEX(MysticAbilities,CA124,5)=0, "-", INDEX(MysticAbilities,CA124,5))) ->  | Z124: =IF(BV124<>"0000",IF(INDEX(MysticAbilities,CA124,'Master Sheet'!$Z$9)= 0,"",INDEX(MysticAbilities,CA124,'Master Sheet'!$Z$9)),"") ->  | AJ124: =IF(BV124<>"0000",IF(INDEX(MysticAbilities,CA124,'Master Sheet'!$AJ$9)= 0,"",INDEX(MysticAbilities,CA124,'Master Sheet'!$AJ$9)),"") ->  | AQ124: =IF(BV124<>"0000",IF(INDEX(MysticAbilities,CA124,'Master Sheet'!$AQ$9)= 0,"",INDEX(MysticAbilities,CA124,'Master Sheet'!$AQ$9)),"") ->  | BV124: =IFERROR(INDEX(MysticAbilities,MATCH(INDEX(DisplayList,(ROW(A124)-19)/3),MysticIndex,0),$BV$20),"0000") -> 0000 | BW124: =IF(BV124<>"0000",INDEX(MysticAbilities,CA124,BW$20),0) -> 0 | BX124: =IFERROR(IF(BV124<>"0000",INDEX(MysticAbilities,CA124,BX$20),TRUE),TRUE) -> TRUE | BY124: =IF(BV124<>"0000",INDEX(MysticAbilities,CA124,BY$20),0) -> 0 | BZ124: =IF(BV124<>"0000",INDEX(MysticAbilities,CA124,BZ$20),0) -> 0 | CA124: =IF(BV124<>"0000", MATCH(BV124,MysticIndex,0),"") ->  | CB124: =IF($BV124<>"0000",INDEX(MysticAbilities,$CA124,CB$20),FALSE) -> FALSE | CC124: =IF($BV124<>"0000",INDEX(MysticAbilities,$CA124,CC$20),FALSE) -> FALSE | CD124: =IF($BV124<>"0000",INDEX(MysticAbilities,$CA124,CD$20),TRUE) -> TRUE
CE125: =B124<>"" -> TRUE
B127: x | F127: =IF(BV127<>"0000",INDEX(MysticAbilities,CA127,'Master Sheet'!$D$9),"") ->  | W127: =IF(BV127="0000", "", IF(INDEX(MysticAbilities,CA127,5)=0, "-", INDEX(MysticAbilities,CA127,5))) ->  | Z127: =IF(BV127<>"0000",IF(INDEX(MysticAbilities,CA127,'Master Sheet'!$Z$9)= 0,"",INDEX(MysticAbilities,CA127,'Master Sheet'!$Z$9)),"") ->  | AJ127: =IF(BV127<>"0000",IF(INDEX(MysticAbilities,CA127,'Master Sheet'!$AJ$9)= 0,"",INDEX(MysticAbilities,CA127,'Master Sheet'!$AJ$9)),"") ->  | AQ127: =IF(BV127<>"0000",IF(INDEX(MysticAbilities,CA127,'Master Sheet'!$AQ$9)= 0,"",INDEX(MysticAbilities,CA127,'Master Sheet'!$AQ$9)),"") ->  | BV127: =IFERROR(INDEX(MysticAbilities,MATCH(INDEX(DisplayList,(ROW(A127)-19)/3),MysticIndex,0),$BV$20),"0000") -> 0000 | BW127: =IF(BV127<>"0000",INDEX(MysticAbilities,CA127,BW$20),0) -> 0 | BX127: =IFERROR(IF(BV127<>"0000",INDEX(MysticAbilities,CA127,BX$20),TRUE),TRUE) -> TRUE | BY127: =IF(BV127<>"0000",INDEX(MysticAbilities,CA127,BY$20),0) -> 0 | BZ127: =IF(BV127<>"0000",INDEX(MysticAbilities,CA127,BZ$20),0) -> 0 | CA127: =IF(BV127<>"0000", MATCH(BV127,MysticIndex,0),"") ->  | CB127: =IF($BV127<>"0000",INDEX(MysticAbilities,$CA127,CB$20),FALSE) -> FALSE | CC127: =IF($BV127<>"0000",INDEX(MysticAbilities,$CA127,CC$20),FALSE) -> FALSE | CD127: =IF($BV127<>"0000",INDEX(MysticAbilities,$CA127,CD$20),TRUE) -> TRUE
CE128: =B127<>"" -> TRUE
B130: x | H130: =IF(BV130<>"0000",INDEX(MysticAbilities,CA130,'Master Sheet'!$D$9),"") ->  | W130: =IF(BV130="0000", "", IF(INDEX(MysticAbilities,CA130,5)=0, "-", INDEX(MysticAbilities,CA130,5))) ->  | Z130: =IF(BV130<>"0000",IF(INDEX(MysticAbilities,CA130,'Master Sheet'!$Z$9)= 0,"",INDEX(MysticAbilities,CA130,'Master Sheet'!$Z$9)),"") ->  | AJ130: =IF(BV130<>"0000",IF(INDEX(MysticAbilities,CA130,'Master Sheet'!$AJ$9)= 0,"",INDEX(MysticAbilities,CA130,'Master Sheet'!$AJ$9)),"") ->  | AQ130: =IF(BV130<>"0000",IF(INDEX(MysticAbilities,CA130,'Master Sheet'!$AQ$9)= 0,"",INDEX(MysticAbilities,CA130,'Master Sheet'!$AQ$9)),"") ->  | BV130: =IFERROR(INDEX(MysticAbilities,MATCH(INDEX(DisplayList,(ROW(A130)-19)/3),MysticIndex,0),$BV$20),"0000") -> 0000 | BW130: =IF(BV130<>"0000",INDEX(MysticAbilities,CA130,BW$20),0) -> 0 | BX130: =IFERROR(IF(BV130<>"0000",INDEX(MysticAbilities,CA130,BX$20),TRUE),TRUE) -> TRUE | BY130: =IF(BV130<>"0000",INDEX(MysticAbilities,CA130,BY$20),0) -> 0 | BZ130: =IF(BV130<>"0000",INDEX(MysticAbilities,CA130,BZ$20),0) -> 0 | CA130: =IF(BV130<>"0000", MATCH(BV130,MysticIndex,0),"") ->  | CB130: =IF($BV130<>"0000",INDEX(MysticAbilities,$CA130,CB$20),FALSE) -> FALSE | CC130: =IF($BV130<>"0000",INDEX(MysticAbilities,$CA130,CC$20),FALSE) -> FALSE | CD130: =IF($BV130<>"0000",INDEX(MysticAbilities,$CA130,CD$20),TRUE) -> TRUE
CE131: =B130<>"" -> TRUE
B133: x | F133: =IF(BV133<>"0000",INDEX(MysticAbilities,CA133,'Master Sheet'!$D$9),"") ->  | W133: =IF(BV133="0000", "", IF(INDEX(MysticAbilities,CA133,5)=0, "-", INDEX(MysticAbilities,CA133,5))) ->  | Z133: =IF(BV133<>"0000",IF(INDEX(MysticAbilities,CA133,'Master Sheet'!$Z$9)= 0,"",INDEX(MysticAbilities,CA133,'Master Sheet'!$Z$9)),"") ->  | AJ133: =IF(BV133<>"0000",IF(INDEX(MysticAbilities,CA133,'Master Sheet'!$AJ$9)= 0,"",INDEX(MysticAbilities,CA133,'Master Sheet'!$AJ$9)),"") ->  | AQ133: =IF(BV133<>"0000",IF(INDEX(MysticAbilities,CA133,'Master Sheet'!$AQ$9)= 0,"",INDEX(MysticAbilities,CA133,'Master Sheet'!$AQ$9)),"") ->  | BV133: =IFERROR(INDEX(MysticAbilities,MATCH(INDEX(DisplayList,(ROW(A133)-19)/3),MysticIndex,0),$BV$20),"0000") -> 0000 | BW133: =IF(BV133<>"0000",INDEX(MysticAbilities,CA133,BW$20),0) -> 0 | BX133: =IFERROR(IF(BV133<>"0000",INDEX(MysticAbilities,CA133,BX$20),TRUE),TRUE) -> TRUE | BY133: =IF(BV133<>"0000",INDEX(MysticAbilities,CA133,BY$20),0) -> 0 | BZ133: =IF(BV133<>"0000",INDEX(MysticAbilities,CA133,BZ$20),0) -> 0 | CA133: =IF(BV133<>"0000", MATCH(BV133,MysticIndex,0),"") ->  | CB133: =IF($BV133<>"0000",INDEX(MysticAbilities,$CA133,CB$20),FALSE) -> FALSE | CC133: =IF($BV133<>"0000",INDEX(MysticAbilities,$CA133,CC$20),FALSE) -> FALSE | CD133: =IF($BV133<>"0000",INDEX(MysticAbilities,$CA133,CD$20),TRUE) -> TRUE
CE134: =B133<>"" -> TRUE
B136: x | F136: =IF(BV136<>"0000",INDEX(MysticAbilities,CA136,'Master Sheet'!$D$9),"") ->  | W136: =IF(BV136="0000", "", IF(INDEX(MysticAbilities,CA136,5)=0, "-", INDEX(MysticAbilities,CA136,5))) ->  | Z136: =IF(BV136<>"0000",IF(INDEX(MysticAbilities,CA136,'Master Sheet'!$Z$9)= 0,"",INDEX(MysticAbilities,CA136,'Master Sheet'!$Z$9)),"") ->  | AJ136: =IF(BV136<>"0000",IF(INDEX(MysticAbilities,CA136,'Master Sheet'!$AJ$9)= 0,"",INDEX(MysticAbilities,CA136,'Master Sheet'!$AJ$9)),"") ->  | AQ136: =IF(BV136<>"0000",IF(INDEX(MysticAbilities,CA136,'Master Sheet'!$AQ$9)= 0,"",INDEX(MysticAbilities,CA136,'Master Sheet'!$AQ$9)),"") ->  | BV136: =IFERROR(INDEX(MysticAbilities,MATCH(INDEX(DisplayList,(ROW(A136)-19)/3),MysticIndex,0),$BV$20),"0000") -> 0000 | BW136: =IF(BV136<>"0000",INDEX(MysticAbilities,CA136,BW$20),0) -> 0 | BX136: =IFERROR(IF(BV136<>"0000",INDEX(MysticAbilities,CA136,BX$20),TRUE),TRUE) -> TRUE | BY136: =IF(BV136<>"0000",INDEX(MysticAbilities,CA136,BY$20),0) -> 0 | BZ136: =IF(BV136<>"0000",INDEX(MysticAbilities,CA136,BZ$20),0) -> 0 | CA136: =IF(BV136<>"0000", MATCH(BV136,MysticIndex,0),"") ->  | CB136: =IF($BV136<>"0000",INDEX(MysticAbilities,$CA136,CB$20),FALSE) -> FALSE | CC136: =IF($BV136<>"0000",INDEX(MysticAbilities,$CA136,CC$20),FALSE) -> FALSE | CD136: =IF($BV136<>"0000",INDEX(MysticAbilities,$CA136,CD$20),TRUE) -> TRUE
CE137: =B136<>"" -> TRUE
B139: x | H139: =IF(BV139<>"0000",INDEX(MysticAbilities,CA139,'Master Sheet'!$D$9),"") ->  | W139: =IF(BV139="0000", "", IF(INDEX(MysticAbilities,CA139,5)=0, "-", INDEX(MysticAbilities,CA139,5))) ->  | Z139: =IF(BV139<>"0000",IF(INDEX(MysticAbilities,CA139,'Master Sheet'!$Z$9)= 0,"",INDEX(MysticAbilities,CA139,'Master Sheet'!$Z$9)),"") ->  | AJ139: =IF(BV139<>"0000",IF(INDEX(MysticAbilities,CA139,'Master Sheet'!$AJ$9)= 0,"",INDEX(MysticAbilities,CA139,'Master Sheet'!$AJ$9)),"") ->  | AQ139: =IF(BV139<>"0000",IF(INDEX(MysticAbilities,CA139,'Master Sheet'!$AQ$9)= 0,"",INDEX(MysticAbilities,CA139,'Master Sheet'!$AQ$9)),"") ->  | BV139: =IFERROR(INDEX(MysticAbilities,MATCH(INDEX(DisplayList,(ROW(A139)-19)/3),MysticIndex,0),$BV$20),"0000") -> 0000 | BW139: =IF($BV139<>"0000",INDEX(MysticAbilities,$CA139,$BW$20),0) -> 0 | BX139: =IFERROR(IF($BV139<>"0000",INDEX(MysticAbilities,$CA139,$BX$20),TRUE),TRUE) -> TRUE | BY139: =IF($BV139<>"0000",INDEX(MysticAbilities,$CA139,$BY$20),0) -> 0 | BZ139: =IF($BV139<>"0000",INDEX(MysticAbilities,$CA139,$BZ$20),0) -> 0 | CA139: =IF($BV139<>"0000", MATCH($BV139,MysticIndex,0),"") ->  | CB139: =IF($BV139<>"0000",INDEX(MysticAbilities,$CA139,$CB$20),FALSE) -> FALSE | CC139: =IF($BV139<>"0000",INDEX(MysticAbilities,$CA139,$CC$20),FALSE) -> FALSE | CD139: =IF($BV139<>"0000",INDEX(MysticAbilities,$CA139,CD$20),TRUE) -> TRUE
CE140: =B139<>"" -> TRUE
B142: x | D142: =IF(BV142<>"0000",INDEX(MysticAbilities,CA142,'Master Sheet'!$D$9),"") ->  | W142: =IF(BV142="0000", "", IF(INDEX(MysticAbilities,CA142,5)=0, "-", INDEX(MysticAbilities,CA142,5))) ->  | Z142: =IF(BV142<>"0000",IF(INDEX(MysticAbilities,CA142,'Master Sheet'!$Z$9)= 0,"",INDEX(MysticAbilities,CA142,'Master Sheet'!$Z$9)),"") ->  | AJ142: =IF(BV142<>"0000",IF(INDEX(MysticAbilities,CA142,'Master Sheet'!$AJ$9)= 0,"",INDEX(MysticAbilities,CA142,'Master Sheet'!$AJ$9)),"") ->  | AQ142: =IF(BV142<>"0000",IF(INDEX(MysticAbilities,CA142,'Master Sheet'!$AQ$9)= 0,"",INDEX(MysticAbilities,CA142,'Master Sheet'!$AQ$9)),"") ->  | BV142: =IFERROR(INDEX(MysticAbilities,MATCH(INDEX(DisplayList,(ROW(A142)-19)/3),MysticIndex,0),$BV$20),"0000") -> 0000 | BW142: =IF(BV142<>"0000",INDEX(MysticAbilities,CA142,BW$20),0) -> 0 | BX142: =IFERROR(IF(BV142<>"0000",INDEX(MysticAbilities,CA142,BX$20),TRUE),TRUE) -> TRUE | BY142: =IF(BV142<>"0000",INDEX(MysticAbilities,CA142,BY$20),0) -> 0 | BZ142: =IF(BV142<>"0000",INDEX(MysticAbilities,CA142,BZ$20),0) -> 0 | CA142: =IF(BV142<>"0000", MATCH(BV142,MysticIndex,0),"") ->  | CB142: =IF($BV142<>"0000",INDEX(MysticAbilities,$CA142,CB$20),FALSE) -> FALSE | CC142: =IF($BV142<>"0000",INDEX(MysticAbilities,$CA142,CC$20),FALSE) -> FALSE | CD142: =IF($BV142<>"0000",INDEX(MysticAbilities,$CA142,CD$20),TRUE) -> TRUE
CE143: =B142<>"" -> TRUE
B145: x | F145: =IF(BV145<>"0000",INDEX(MysticAbilities,CA145,'Master Sheet'!$D$9),"") ->  | W145: =IF(BV145="0000", "", IF(INDEX(MysticAbilities,CA145,5)=0, "-", INDEX(MysticAbilities,CA145,5))) ->  | Z145: =IF(BV145<>"0000",IF(INDEX(MysticAbilities,CA145,'Master Sheet'!$Z$9)= 0,"",INDEX(MysticAbilities,CA145,'Master Sheet'!$Z$9)),"") ->  | AJ145: =IF(BV145<>"0000",IF(INDEX(MysticAbilities,CA145,'Master Sheet'!$AJ$9)= 0,"",INDEX(MysticAbilities,CA145,'Master Sheet'!$AJ$9)),"") ->  | AQ145: =IF(BV145<>"0000",IF(INDEX(MysticAbilities,CA145,'Master Sheet'!$AQ$9)= 0,"",INDEX(MysticAbilities,CA145,'Master Sheet'!$AQ$9)),"") ->  | BV145: =IFERROR(INDEX(MysticAbilities,MATCH(INDEX(DisplayList,(ROW(A145)-19)/3),MysticIndex,0),$BV$20),"0000") -> 0000 | BW145: =IF(BV145<>"0000",INDEX(MysticAbilities,CA145,BW$20),0) -> 0 | BX145: =IFERROR(IF(BV145<>"0000",INDEX(MysticAbilities,CA145,BX$20),TRUE),TRUE) -> TRUE | BY145: =IF(BV145<>"0000",INDEX(MysticAbilities,CA145,BY$20),0) -> 0 | BZ145: =IF(BV145<>"0000",INDEX(MysticAbilities,CA145,BZ$20),0) -> 0 | CA145: =IF(BV145<>"0000", MATCH(BV145,MysticIndex,0),"") ->  | CB145: =IF($BV145<>"0000",INDEX(MysticAbilities,$CA145,CB$20),FALSE) -> FALSE | CC145: =IF($BV145<>"0000",INDEX(MysticAbilities,$CA145,CC$20),FALSE) -> FALSE | CD145: =IF($BV145<>"0000",INDEX(MysticAbilities,$CA145,CD$20),TRUE) -> TRUE
CE146: =B145<>"" -> TRUE
B148: x | F148: =IF(BV148<>"0000",INDEX(MysticAbilities,CA148,'Master Sheet'!$D$9),"") ->  | W148: =IF(BV148="0000", "", IF(INDEX(MysticAbilities,CA148,5)=0, "-", INDEX(MysticAbilities,CA148,5))) ->  | Z148: =IF(BV148<>"0000",IF(INDEX(MysticAbilities,CA148,'Master Sheet'!$Z$9)= 0,"",INDEX(MysticAbilities,CA148,'Master Sheet'!$Z$9)),"") ->  | AJ148: =IF(BV148<>"0000",IF(INDEX(MysticAbilities,CA148,'Master Sheet'!$AJ$9)= 0,"",INDEX(MysticAbilities,CA148,'Master Sheet'!$AJ$9)),"") ->  | AQ148: =IF(BV148<>"0000",IF(INDEX(MysticAbilities,CA148,'Master Sheet'!$AQ$9)= 0,"",INDEX(MysticAbilities,CA148,'Master Sheet'!$AQ$9)),"") ->  | BV148: =IFERROR(INDEX(MysticAbilities,MATCH(INDEX(DisplayList,(ROW(A148)-19)/3),MysticIndex,0),$BV$20),"0000") -> 0000 | BW148: =IF(BV148<>"0000",INDEX(MysticAbilities,CA148,BW$20),0) -> 0 | BX148: =IFERROR(IF(BV148<>"0000",INDEX(MysticAbilities,CA148,BX$20),TRUE),TRUE) -> TRUE | BY148: =IF(BV148<>"0000",INDEX(MysticAbilities,CA148,BY$20),0) -> 0 | BZ148: =IF(BV148<>"0000",INDEX(MysticAbilities,CA148,BZ$20),0) -> 0 | CA148: =IF(BV148<>"0000", MATCH(BV148,MysticIndex,0),"") ->  | CB148: =IF($BV148<>"0000",INDEX(MysticAbilities,$CA148,CB$20),FALSE) -> FALSE | CC148: =IF($BV148<>"0000",INDEX(MysticAbilities,$CA148,CC$20),FALSE) -> FALSE | CD148: =IF($BV148<>"0000",INDEX(MysticAbilities,$CA148,CD$20),TRUE) -> TRUE
CE149: =B148<>"" -> TRUE
B151: x | F151: =IF(BV151<>"0000",INDEX(MysticAbilities,CA151,'Master Sheet'!$D$9),"") ->  | W151: =IF(BV151="0000", "", IF(INDEX(MysticAbilities,CA151,5)=0, "-", INDEX(MysticAbilities,CA151,5))) ->  | Z151: =IF(BV151<>"0000",IF(INDEX(MysticAbilities,CA151,'Master Sheet'!$Z$9)= 0,"",INDEX(MysticAbilities,CA151,'Master Sheet'!$Z$9)),"") ->  | AJ151: =IF(BV151<>"0000",IF(INDEX(MysticAbilities,CA151,'Master Sheet'!$AJ$9)= 0,"",INDEX(MysticAbilities,CA151,'Master Sheet'!$AJ$9)),"") ->  | AQ151: =IF(BV151<>"0000",IF(INDEX(MysticAbilities,CA151,'Master Sheet'!$AQ$9)= 0,"",INDEX(MysticAbilities,CA151,'Master Sheet'!$AQ$9)),"") ->  | BV151: =IFERROR(INDEX(MysticAbilities,MATCH(INDEX(DisplayList,(ROW(A151)-19)/3),MysticIndex,0),$BV$20),"0000") -> 0000 | BW151: =IF(BV151<>"0000",INDEX(MysticAbilities,CA151,BW$20),0) -> 0 | BX151: =IFERROR(IF(BV151<>"0000",INDEX(MysticAbilities,CA151,BX$20),TRUE),TRUE) -> TRUE | BY151: =IF(BV151<>"0000",INDEX(MysticAbilities,CA151,BY$20),0) -> 0 | BZ151: =IF(BV151<>"0000",INDEX(MysticAbilities,CA151,BZ$20),0) -> 0 | CA151: =IF(BV151<>"0000", MATCH(BV151,MysticIndex,0),"") ->  | CB151: =IF($BV151<>"0000",INDEX(MysticAbilities,$CA151,CB$20),FALSE) -> FALSE | CC151: =IF($BV151<>"0000",INDEX(MysticAbilities,$CA151,CC$20),FALSE) -> FALSE | CD151: =IF($BV151<>"0000",INDEX(MysticAbilities,$CA151,CD$20),TRUE) -> TRUE
CE152: =B151<>"" -> TRUE
B154: x | D154: =IF(BV154<>"0000",INDEX(MysticAbilities,CA154,'Master Sheet'!$D$9),"") ->  | W154: =IF(BV154="0000", "", IF(INDEX(MysticAbilities,CA154,5)=0, "-", INDEX(MysticAbilities,CA154,5))) ->  | Z154: =IF(BV154<>"0000",IF(INDEX(MysticAbilities,CA154,'Master Sheet'!$Z$9)= 0,"",INDEX(MysticAbilities,CA154,'Master Sheet'!$Z$9)),"") ->  | AJ154: =IF(BV154<>"0000",IF(INDEX(MysticAbilities,CA154,'Master Sheet'!$AJ$9)= 0,"",INDEX(MysticAbilities,CA154,'Master Sheet'!$AJ$9)),"") ->  | AQ154: =IF(BV154<>"0000",IF(INDEX(MysticAbilities,CA154,'Master Sheet'!$AQ$9)= 0,"",INDEX(MysticAbilities,CA154,'Master Sheet'!$AQ$9)),"") ->  | BV154: =IFERROR(INDEX(MysticAbilities,MATCH(INDEX(DisplayList,(ROW(A154)-19)/3),MysticIndex,0),$BV$20),"0000") -> 0000 | BW154: =IF(BV154<>"0000",INDEX(MysticAbilities,CA154,BW$20),0) -> 0 | BX154: =IFERROR(IF(BV154<>"0000",INDEX(MysticAbilities,CA154,BX$20),TRUE),TRUE) -> TRUE | BY154: =IF(BV154<>"0000",INDEX(MysticAbilities,CA154,BY$20),0) -> 0 | BZ154: =IF(BV154<>"0000",INDEX(MysticAbilities,CA154,BZ$20),0) -> 0 | CA154: =IF(BV154<>"0000", MATCH(BV154,MysticIndex,0),"") ->  | CB154: =IF($BV154<>"0000",INDEX(MysticAbilities,$CA154,CB$20),FALSE) -> FALSE | CC154: =IF($BV154<>"0000",INDEX(MysticAbilities,$CA154,CC$20),FALSE) -> FALSE | CD154: =IF($BV154<>"0000",INDEX(MysticAbilities,$CA154,CD$20),TRUE) -> TRUE
CE155: =B154<>"" -> TRUE
B157: x | F157: =IF(BV157<>"0000",INDEX(MysticAbilities,CA157,'Master Sheet'!$D$9),"") ->  | W157: =IF(BV157="0000", "", IF(INDEX(MysticAbilities,CA157,5)=0, "-", INDEX(MysticAbilities,CA157,5))) ->  | Z157: =IF(BV157<>"0000",IF(INDEX(MysticAbilities,CA157,'Master Sheet'!$Z$9)= 0,"",INDEX(MysticAbilities,CA157,'Master Sheet'!$Z$9)),"") ->  | AJ157: =IF(BV157<>"0000",IF(INDEX(MysticAbilities,CA157,'Master Sheet'!$AJ$9)= 0,"",INDEX(MysticAbilities,CA157,'Master Sheet'!$AJ$9)),"") ->  | AQ157: =IF(BV157<>"0000",IF(INDEX(MysticAbilities,CA157,'Master Sheet'!$AQ$9)= 0,"",INDEX(MysticAbilities,CA157,'Master Sheet'!$AQ$9)),"") ->  | BV157: =IFERROR(INDEX(MysticAbilities,MATCH(INDEX(DisplayList,(ROW(A157)-19)/3),MysticIndex,0),$BV$20),"0000") -> 0000 | BW157: =IF(BV157<>"0000",INDEX(MysticAbilities,CA157,BW$20),0) -> 0 | BX157: =IFERROR(IF(BV157<>"0000",INDEX(MysticAbilities,CA157,BX$20),TRUE),TRUE) -> TRUE | BY157: =IF(BV157<>"0000",INDEX(MysticAbilities,CA157,BY$20),0) -> 0 | BZ157: =IF(BV157<>"0000",INDEX(MysticAbilities,CA157,BZ$20),0) -> 0 | CA157: =IF(BV157<>"0000", MATCH(BV157,MysticIndex,0),"") ->  | CB157: =IF($BV157<>"0000",INDEX(MysticAbilities,$CA157,CB$20),FALSE) -> FALSE | CC157: =IF($BV157<>"0000",INDEX(MysticAbilities,$CA157,CC$20),FALSE) -> FALSE | CD157: =IF($BV157<>"0000",INDEX(MysticAbilities,$CA157,CD$20),TRUE) -> TRUE
CE158: =B157<>"" -> TRUE
B160: x | D160: =IF(BV160<>"0000",INDEX(MysticAbilities,CA160,'Master Sheet'!$D$9),"") ->  | W160: =IF(BV160="0000", "", IF(INDEX(MysticAbilities,CA160,5)=0, "-", INDEX(MysticAbilities,CA160,5))) ->  | Z160: =IF(BV160<>"0000",IF(INDEX(MysticAbilities,CA160,'Master Sheet'!$Z$9)= 0,"",INDEX(MysticAbilities,CA160,'Master Sheet'!$Z$9)),"") ->  | AJ160: =IF(BV160<>"0000",IF(INDEX(MysticAbilities,CA160,'Master Sheet'!$AJ$9)= 0,"",INDEX(MysticAbilities,CA160,'Master Sheet'!$AJ$9)),"") ->  | AQ160: =IF(BV160<>"0000",IF(INDEX(MysticAbilities,CA160,'Master Sheet'!$AQ$9)= 0,"",INDEX(MysticAbilities,CA160,'Master Sheet'!$AQ$9)),"") ->  | BV160: =IFERROR(INDEX(MysticAbilities,MATCH(INDEX(DisplayList,(ROW(A160)-19)/3),MysticIndex,0),$BV$20),"0000") -> 0000 | BW160: =IF(BV160<>"0000",INDEX(MysticAbilities,CA160,BW$20),0) -> 0 | BX160: =IFERROR(IF(BV160<>"0000",INDEX(MysticAbilities,CA160,BX$20),TRUE),TRUE) -> TRUE | BY160: =IF(BV160<>"0000",INDEX(MysticAbilities,CA160,BY$20),0) -> 0 | BZ160: =IF(BV160<>"0000",INDEX(MysticAbilities,CA160,BZ$20),0) -> 0 | CA160: =IF(BV160<>"0000", MATCH(BV160,MysticIndex,0),"") ->  | CB160: =IF($BV160<>"0000",INDEX(MysticAbilities,$CA160,CB$20),FALSE) -> FALSE | CC160: =IF($BV160<>"0000",INDEX(MysticAbilities,$CA160,CC$20),FALSE) -> FALSE | CD160: =IF($BV160<>"0000",INDEX(MysticAbilities,$CA160,CD$20),TRUE) -> TRUE
CE161: =B160<>"" -> TRUE
B163: x | D163: =IF(BV163<>"0000",INDEX(MysticAbilities,CA163,'Master Sheet'!$D$9),"") ->  | W163: =IF(BV163="0000", "", IF(INDEX(MysticAbilities,CA163,5)=0, "-", INDEX(MysticAbilities,CA163,5))) ->  | Z163: =IF(BV163<>"0000",IF(INDEX(MysticAbilities,CA163,'Master Sheet'!$Z$9)= 0,"",INDEX(MysticAbilities,CA163,'Master Sheet'!$Z$9)),"") ->  | AJ163: =IF(BV163<>"0000",IF(INDEX(MysticAbilities,CA163,'Master Sheet'!$AJ$9)= 0,"",INDEX(MysticAbilities,CA163,'Master Sheet'!$AJ$9)),"") ->  | AQ163: =IF(BV163<>"0000",IF(INDEX(MysticAbilities,CA163,'Master Sheet'!$AQ$9)= 0,"",INDEX(MysticAbilities,CA163,'Master Sheet'!$AQ$9)),"") ->  | BV163: =IFERROR(INDEX(MysticAbilities,MATCH(INDEX(DisplayList,(ROW(A163)-19)/3),MysticIndex,0),$BV$20),"0000") -> 0000 | BW163: =IF(BV163<>"0000",INDEX(MysticAbilities,CA163,BW$20),0) -> 0 | BX163: =IFERROR(IF(BV163<>"0000",INDEX(MysticAbilities,CA163,BX$20),TRUE),TRUE) -> TRUE | BY163: =IF(BV163<>"0000",INDEX(MysticAbilities,CA163,BY$20),0) -> 0 | BZ163: =IF(BV163<>"0000",INDEX(MysticAbilities,CA163,BZ$20),0) -> 0 | CA163: =IF(BV163<>"0000", MATCH(BV163,MysticIndex,0),"") ->  | CB163: =IF($BV163<>"0000",INDEX(MysticAbilities,$CA163,CB$20),FALSE) -> FALSE | CC163: =IF($BV163<>"0000",INDEX(MysticAbilities,$CA163,CC$20),FALSE) -> FALSE | CD163: =IF($BV163<>"0000",INDEX(MysticAbilities,$CA163,CD$20),TRUE) -> TRUE
CE164: =B163<>"" -> TRUE
B166: x | D166: =IF(BV166<>"0000",INDEX(MysticAbilities,CA166,'Master Sheet'!$D$9),"") ->  | W166: =IF(BV166="0000", "", IF(INDEX(MysticAbilities,CA166,5)=0, "-", INDEX(MysticAbilities,CA166,5))) ->  | Z166: =IF(BV166<>"0000",IF(INDEX(MysticAbilities,CA166,'Master Sheet'!$Z$9)= 0,"",INDEX(MysticAbilities,CA166,'Master Sheet'!$Z$9)),"") ->  | AJ166: =IF(BV166<>"0000",IF(INDEX(MysticAbilities,CA166,'Master Sheet'!$AJ$9)= 0,"",INDEX(MysticAbilities,CA166,'Master Sheet'!$AJ$9)),"") ->  | AQ166: =IF(BV166<>"0000",IF(INDEX(MysticAbilities,CA166,'Master Sheet'!$AQ$9)= 0,"",INDEX(MysticAbilities,CA166,'Master Sheet'!$AQ$9)),"") ->  | BV166: =IFERROR(INDEX(MysticAbilities,MATCH(INDEX(DisplayList,(ROW(A166)-19)/3),MysticIndex,0),$BV$20),"0000") -> 0000 | BW166: =IF(BV166<>"0000",INDEX(MysticAbilities,CA166,BW$20),0) -> 0 | BX166: =IFERROR(IF(BV166<>"0000",INDEX(MysticAbilities,CA166,BX$20),TRUE),TRUE) -> TRUE | BY166: =IF(BV166<>"0000",INDEX(MysticAbilities,CA166,BY$20),0) -> 0 | BZ166: =IF(BV166<>"0000",INDEX(MysticAbilities,CA166,BZ$20),0) -> 0 | CA166: =IF(BV166<>"0000", MATCH(BV166,MysticIndex,0),"") ->  | CB166: =IF($BV166<>"0000",INDEX(MysticAbilities,$CA166,CB$20),FALSE) -> FALSE | CC166: =IF($BV166<>"0000",INDEX(MysticAbilities,$CA166,CC$20),FALSE) -> FALSE | CD166: =IF($BV166<>"0000",INDEX(MysticAbilities,$CA166,CD$20),TRUE) -> TRUE
CE167: =B166<>"" -> TRUE
F169: =IF(BV169<>"0000",INDEX(MysticAbilities,CA169,'Master Sheet'!$D$9),"") ->  | W169: =IF(BV169="0000", "", IF(INDEX(MysticAbilities,CA169,5)=0, "-", INDEX(MysticAbilities,CA169,5))) ->  | Z169: =IF(BV169<>"0000",IF(INDEX(MysticAbilities,CA169,'Master Sheet'!$Z$9)= 0,"",INDEX(MysticAbilities,CA169,'Master Sheet'!$Z$9)),"") ->  | AJ169: =IF(BV169<>"0000",IF(INDEX(MysticAbilities,CA169,'Master Sheet'!$AJ$9)= 0,"",INDEX(MysticAbilities,CA169,'Master Sheet'!$AJ$9)),"") ->  | AQ169: =IF(BV169<>"0000",IF(INDEX(MysticAbilities,CA169,'Master Sheet'!$AQ$9)= 0,"",INDEX(MysticAbilities,CA169,'Master Sheet'!$AQ$9)),"") ->  | BV169: =IFERROR(INDEX(MysticAbilities,MATCH(INDEX(DisplayList,(ROW(A169)-19)/3),MysticIndex,0),$BV$20),"0000") -> 0000 | BW169: =IF(BV169<>"0000",INDEX(MysticAbilities,CA169,BW$20),0) -> 0 | BX169: =IFERROR(IF(BV169<>"0000",INDEX(MysticAbilities,CA169,BX$20),TRUE),TRUE) -> TRUE | BY169: =IF(BV169<>"0000",INDEX(MysticAbilities,CA169,BY$20),0) -> 0 | BZ169: =IF(BV169<>"0000",INDEX(MysticAbilities,CA169,BZ$20),0) -> 0 | CA169: =IF(BV169<>"0000", MATCH(BV169,MysticIndex,0),"") ->  | CB169: =IF($BV169<>"0000",INDEX(MysticAbilities,$CA169,CB$20),FALSE) -> FALSE | CC169: =IF($BV169<>"0000",INDEX(MysticAbilities,$CA169,CC$20),FALSE) -> FALSE | CD169: =IF($BV169<>"0000",INDEX(MysticAbilities,$CA169,CD$20),TRUE) -> TRUE
CE170: =B169<>"" -> FALSE
F172: =IF(BV172<>"0000",INDEX(MysticAbilities,CA172,'Master Sheet'!$D$9),"") ->  | W172: =IF(BV172="0000", "", IF(INDEX(MysticAbilities,CA172,5)=0, "-", INDEX(MysticAbilities,CA172,5))) ->  | Z172: =IF(BV172<>"0000",IF(INDEX(MysticAbilities,CA172,'Master Sheet'!$Z$9)= 0,"",INDEX(MysticAbilities,CA172,'Master Sheet'!$Z$9)),"") ->  | AJ172: =IF(BV172<>"0000",IF(INDEX(MysticAbilities,CA172,'Master Sheet'!$AJ$9)= 0,"",INDEX(MysticAbilities,CA172,'Master Sheet'!$AJ$9)),"") ->  | AQ172: =IF(BV172<>"0000",IF(INDEX(MysticAbilities,CA172,'Master Sheet'!$AQ$9)= 0,"",INDEX(MysticAbilities,CA172,'Master Sheet'!$AQ$9)),"") ->  | BV172: =IFERROR(INDEX(MysticAbilities,MATCH(INDEX(DisplayList,(ROW(A172)-19)/3),MysticIndex,0),$BV$20),"0000") -> 0000 | BW172: =IF(BV172<>"0000",INDEX(MysticAbilities,CA172,BW$20),0) -> 0 | BX172: =IFERROR(IF(BV172<>"0000",INDEX(MysticAbilities,CA172,BX$20),TRUE),TRUE) -> TRUE | BY172: =IF(BV172<>"0000",INDEX(MysticAbilities,CA172,BY$20),0) -> 0 | BZ172: =IF(BV172<>"0000",INDEX(MysticAbilities,CA172,BZ$20),0) -> 0 | CA172: =IF(BV172<>"0000", MATCH(BV172,MysticIndex,0),"") ->  | CB172: =IF($BV172<>"0000",INDEX(MysticAbilities,$CA172,CB$20),FALSE) -> FALSE | CC172: =IF($BV172<>"0000",INDEX(MysticAbilities,$CA172,CC$20),FALSE) -> FALSE | CD172: =IF($BV172<>"0000",INDEX(MysticAbilities,$CA172,CD$20),TRUE) -> TRUE
CE173: =B172<>"" -> FALSE
B175: x | F175: =IF(BV175<>"0000",INDEX(MysticAbilities,CA175,'Master Sheet'!$D$9),"") ->  | W175: =IF(BV175="0000", "", IF(INDEX(MysticAbilities,CA175,5)=0, "-", INDEX(MysticAbilities,CA175,5))) ->  | Z175: =IF(BV175<>"0000",IF(INDEX(MysticAbilities,CA175,'Master Sheet'!$Z$9)= 0,"",INDEX(MysticAbilities,CA175,'Master Sheet'!$Z$9)),"") ->  | AJ175: =IF(BV175<>"0000",IF(INDEX(MysticAbilities,CA175,'Master Sheet'!$AJ$9)= 0,"",INDEX(MysticAbilities,CA175,'Master Sheet'!$AJ$9)),"") ->  | AQ175: =IF(BV175<>"0000",IF(INDEX(MysticAbilities,CA175,'Master Sheet'!$AQ$9)= 0,"",INDEX(MysticAbilities,CA175,'Master Sheet'!$AQ$9)),"") ->  | BV175: =IFERROR(INDEX(MysticAbilities,MATCH(INDEX(DisplayList,(ROW(A175)-19)/3),MysticIndex,0),$BV$20),"0000") -> 0000 | BW175: =IF(BV175<>"0000",INDEX(MysticAbilities,CA175,BW$20),0) -> 0 | BX175: =IFERROR(IF(BV175<>"0000",INDEX(MysticAbilities,CA175,BX$20),TRUE),TRUE) -> TRUE | BY175: =IF(BV175<>"0000",INDEX(MysticAbilities,CA175,BY$20),0) -> 0 | BZ175: =IF(BV175<>"0000",INDEX(MysticAbilities,CA175,BZ$20),0) -> 0 | CA175: =IF(BV175<>"0000", MATCH(BV175,MysticIndex,0),"") ->  | CB175: =IF($BV175<>"0000",INDEX(MysticAbilities,$CA175,CB$20),FALSE) -> FALSE | CC175: =IF($BV175<>"0000",INDEX(MysticAbilities,$CA175,CC$20),FALSE) -> FALSE | CD175: =IF($BV175<>"0000",INDEX(MysticAbilities,$CA175,CD$20),TRUE) -> TRUE
CE176: =B175<>"" -> TRUE
B178: x | F178: =IF(BV178<>"0000",INDEX(MysticAbilities,CA178,'Master Sheet'!$D$9),"") ->  | W178: =IF(BV178="0000", "", IF(INDEX(MysticAbilities,CA178,5)=0, "-", INDEX(MysticAbilities,CA178,5))) ->  | Z178: =IF(BV178<>"0000",IF(INDEX(MysticAbilities,CA178,'Master Sheet'!$Z$9)= 0,"",INDEX(MysticAbilities,CA178,'Master Sheet'!$Z$9)),"") ->  | AJ178: =IF(BV178<>"0000",IF(INDEX(MysticAbilities,CA178,'Master Sheet'!$AJ$9)= 0,"",INDEX(MysticAbilities,CA178,'Master Sheet'!$AJ$9)),"") ->  | AQ178: =IF(BV178<>"0000",IF(INDEX(MysticAbilities,CA178,'Master Sheet'!$AQ$9)= 0,"",INDEX(MysticAbilities,CA178,'Master Sheet'!$AQ$9)),"") ->  | BV178: =IFERROR(INDEX(MysticAbilities,MATCH(INDEX(DisplayList,(ROW(A178)-19)/3),MysticIndex,0),$BV$20),"0000") -> 0000 | BW178: =IF(BV178<>"0000",INDEX(MysticAbilities,CA178,BW$20),0) -> 0 | BX178: =IFERROR(IF(BV178<>"0000",INDEX(MysticAbilities,CA178,BX$20),TRUE),TRUE) -> TRUE | BY178: =IF(BV178<>"0000",INDEX(MysticAbilities,CA178,BY$20),0) -> 0 | BZ178: =IF(BV178<>"0000",INDEX(MysticAbilities,CA178,BZ$20),0) -> 0 | CA178: =IF(BV178<>"0000", MATCH(BV178,MysticIndex,0),"") ->  | CB178: =IF($BV178<>"0000",INDEX(MysticAbilities,$CA178,CB$20),FALSE) -> FALSE | CC178: =IF($BV178<>"0000",INDEX(MysticAbilities,$CA178,CC$20),FALSE) -> FALSE | CD178: =IF($BV178<>"0000",INDEX(MysticAbilities,$CA178,CD$20),TRUE) -> TRUE
CE179: =B178<>"" -> TRUE
B181: x | D181: =IF(BV181<>"0000",INDEX(MysticAbilities,CA181,'Master Sheet'!$D$9),"") ->  | W181: =IF(BV181="0000", "", IF(INDEX(MysticAbilities,CA181,5)=0, "-", INDEX(MysticAbilities,CA181,5))) ->  | Z181: =IF(BV181<>"0000",IF(INDEX(MysticAbilities,CA181,'Master Sheet'!$Z$9)= 0,"",INDEX(MysticAbilities,CA181,'Master Sheet'!$Z$9)),"") ->  | AJ181: =IF(BV181<>"0000",IF(INDEX(MysticAbilities,CA181,'Master Sheet'!$AJ$9)= 0,"",INDEX(MysticAbilities,CA181,'Master Sheet'!$AJ$9)),"") ->  | AQ181: =IF(BV181<>"0000",IF(INDEX(MysticAbilities,CA181,'Master Sheet'!$AQ$9)= 0,"",INDEX(MysticAbilities,CA181,'Master Sheet'!$AQ$9)),"") ->  | BV181: =IFERROR(INDEX(MysticAbilities,MATCH(INDEX(DisplayList,(ROW(A181)-19)/3),MysticIndex,0),$BV$20),"0000") -> 0000 | BW181: =IF(BV181<>"0000",INDEX(MysticAbilities,CA181,BW$20),0) -> 0 | BX181: =IFERROR(IF(BV181<>"0000",INDEX(MysticAbilities,CA181,BX$20),TRUE),TRUE) -> TRUE | BY181: =IF(BV181<>"0000",INDEX(MysticAbilities,CA181,BY$20),0) -> 0 | BZ181: =IF(BV181<>"0000",INDEX(MysticAbilities,CA181,BZ$20),0) -> 0 | CA181: =IF(BV181<>"0000", MATCH(BV181,MysticIndex,0),"") ->  | CB181: =IF($BV181<>"0000",INDEX(MysticAbilities,$CA181,CB$20),FALSE) -> FALSE | CC181: =IF($BV181<>"0000",INDEX(MysticAbilities,$CA181,CC$20),FALSE) -> FALSE | CD181: =IF($BV181<>"0000",INDEX(MysticAbilities,$CA181,CD$20),TRUE) -> TRUE
CE182: =B181<>"" -> TRUE
B184: x | F184: =IF(BV184<>"0000",INDEX(MysticAbilities,CA184,'Master Sheet'!$D$9),"") ->  | W184: =IF(BV184="0000", "", IF(INDEX(MysticAbilities,CA184,5)=0, "-", INDEX(MysticAbilities,CA184,5))) ->  | Z184: =IF(BV184<>"0000",IF(INDEX(MysticAbilities,CA184,'Master Sheet'!$Z$9)= 0,"",INDEX(MysticAbilities,CA184,'Master Sheet'!$Z$9)),"") ->  | AJ184: =IF(BV184<>"0000",IF(INDEX(MysticAbilities,CA184,'Master Sheet'!$AJ$9)= 0,"",INDEX(MysticAbilities,CA184,'Master Sheet'!$AJ$9)),"") ->  | AQ184: =IF(BV184<>"0000",IF(INDEX(MysticAbilities,CA184,'Master Sheet'!$AQ$9)= 0,"",INDEX(MysticAbilities,CA184,'Master Sheet'!$AQ$9)),"") ->  | BV184: =IFERROR(INDEX(MysticAbilities,MATCH(INDEX(DisplayList,(ROW(A184)-19)/3),MysticIndex,0),$BV$20),"0000") -> 0000 | BW184: =IF(BV184<>"0000",INDEX(MysticAbilities,CA184,BW$20),0) -> 0 | BX184: =IFERROR(IF(BV184<>"0000",INDEX(MysticAbilities,CA184,BX$20),TRUE),TRUE) -> TRUE | BY184: =IF(BV184<>"0000",INDEX(MysticAbilities,CA184,BY$20),0) -> 0 | BZ184: =IF(BV184<>"0000",INDEX(MysticAbilities,CA184,BZ$20),0) -> 0 | CA184: =IF(BV184<>"0000", MATCH(BV184,MysticIndex,0),"") ->  | CB184: =IF($BV184<>"0000",INDEX(MysticAbilities,$CA184,CB$20),FALSE) -> FALSE | CC184: =IF($BV184<>"0000",INDEX(MysticAbilities,$CA184,CC$20),FALSE) -> FALSE | CD184: =IF($BV184<>"0000",INDEX(MysticAbilities,$CA184,CD$20),TRUE) -> TRUE
CE185: =B184<>"" -> TRUE
B187: x | F187: =IF(BV187<>"0000",INDEX(MysticAbilities,CA187,'Master Sheet'!$D$9),"") ->  | W187: =IF(BV187="0000", "", IF(INDEX(MysticAbilities,CA187,5)=0, "-", INDEX(MysticAbilities,CA187,5))) ->  | Z187: =IF(BV187<>"0000",IF(INDEX(MysticAbilities,CA187,'Master Sheet'!$Z$9)= 0,"",INDEX(MysticAbilities,CA187,'Master Sheet'!$Z$9)),"") ->  | AJ187: =IF(BV187<>"0000",IF(INDEX(MysticAbilities,CA187,'Master Sheet'!$AJ$9)= 0,"",INDEX(MysticAbilities,CA187,'Master Sheet'!$AJ$9)),"") ->  | AQ187: =IF(BV187<>"0000",IF(INDEX(MysticAbilities,CA187,'Master Sheet'!$AQ$9)= 0,"",INDEX(MysticAbilities,CA187,'Master Sheet'!$AQ$9)),"") ->  | BV187: =IFERROR(INDEX(MysticAbilities,MATCH(INDEX(DisplayList,(ROW(A187)-19)/3),MysticIndex,0),$BV$20),"0000") -> 0000 | BW187: =IF(BV187<>"0000",INDEX(MysticAbilities,CA187,BW$20),0) -> 0 | BX187: =IFERROR(IF(BV187<>"0000",INDEX(MysticAbilities,CA187,BX$20),TRUE),TRUE) -> TRUE | BY187: =IF(BV187<>"0000",INDEX(MysticAbilities,CA187,BY$20),0) -> 0 | BZ187: =IF(BV187<>"0000",INDEX(MysticAbilities,CA187,BZ$20),0) -> 0 | CA187: =IF(BV187<>"0000", MATCH(BV187,MysticIndex,0),"") ->  | CB187: =IF($BV187<>"0000",INDEX(MysticAbilities,$CA187,CB$20),FALSE) -> FALSE | CC187: =IF($BV187<>"0000",INDEX(MysticAbilities,$CA187,CC$20),FALSE) -> FALSE | CD187: =IF($BV187<>"0000",INDEX(MysticAbilities,$CA187,CD$20),TRUE) -> TRUE
CE188: =B187<>"" -> TRUE
B190: x | D190: =IF(BV190<>"0000",INDEX(MysticAbilities,CA190,'Master Sheet'!$D$9),"") ->  | W190: =IF(BV190="0000", "", IF(INDEX(MysticAbilities,CA190,5)=0, "-", INDEX(MysticAbilities,CA190,5))) ->  | Z190: =IF(BV190<>"0000",IF(INDEX(MysticAbilities,CA190,'Master Sheet'!$Z$9)= 0,"",INDEX(MysticAbilities,CA190,'Master Sheet'!$Z$9)),"") ->  | AJ190: =IF(BV190<>"0000",IF(INDEX(MysticAbilities,CA190,'Master Sheet'!$AJ$9)= 0,"",INDEX(MysticAbilities,CA190,'Master Sheet'!$AJ$9)),"") ->  | AQ190: =IF(BV190<>"0000",IF(INDEX(MysticAbilities,CA190,'Master Sheet'!$AQ$9)= 0,"",INDEX(MysticAbilities,CA190,'Master Sheet'!$AQ$9)),"") ->  | BV190: =IFERROR(INDEX(MysticAbilities,MATCH(INDEX(DisplayList,(ROW(A190)-19)/3),MysticIndex,0),$BV$20),"0000") -> 0000 | BW190: =IF(BV190<>"0000",INDEX(MysticAbilities,CA190,BW$20),0) -> 0 | BX190: =IFERROR(IF(BV190<>"0000",INDEX(MysticAbilities,CA190,BX$20),TRUE),TRUE) -> TRUE | BY190: =IF(BV190<>"0000",INDEX(MysticAbilities,CA190,BY$20),0) -> 0 | BZ190: =IF(BV190<>"0000",INDEX(MysticAbilities,CA190,BZ$20),0) -> 0 | CA190: =IF(BV190<>"0000", MATCH(BV190,MysticIndex,0),"") ->  | CB190: =IF($BV190<>"0000",INDEX(MysticAbilities,$CA190,CB$20),FALSE) -> FALSE | CC190: =IF($BV190<>"0000",INDEX(MysticAbilities,$CA190,CC$20),FALSE) -> FALSE | CD190: =IF($BV190<>"0000",INDEX(MysticAbilities,$CA190,CD$20),TRUE) -> TRUE
CE191: =B190<>"" -> TRUE
B193: x | F193: =IF(BV193<>"0000",INDEX(MysticAbilities,CA193,'Master Sheet'!$D$9),"") ->  | W193: =IF(BV193="0000", "", IF(INDEX(MysticAbilities,CA193,5)=0, "-", INDEX(MysticAbilities,CA193,5))) ->  | Z193: =IF(BV193<>"0000",IF(INDEX(MysticAbilities,CA193,'Master Sheet'!$Z$9)= 0,"",INDEX(MysticAbilities,CA193,'Master Sheet'!$Z$9)),"") ->  | AJ193: =IF(BV193<>"0000",IF(INDEX(MysticAbilities,CA193,'Master Sheet'!$AJ$9)= 0,"",INDEX(MysticAbilities,CA193,'Master Sheet'!$AJ$9)),"") ->  | AQ193: =IF(BV193<>"0000",IF(INDEX(MysticAbilities,CA193,'Master Sheet'!$AQ$9)= 0,"",INDEX(MysticAbilities,CA193,'Master Sheet'!$AQ$9)),"") ->  | BV193: =IFERROR(INDEX(MysticAbilities,MATCH(INDEX(DisplayList,(ROW(A193)-19)/3),MysticIndex,0),$BV$20),"0000") -> 0000 | BW193: =IF(BV193<>"0000",INDEX(MysticAbilities,CA193,BW$20),0) -> 0 | BX193: =IFERROR(IF(BV193<>"0000",INDEX(MysticAbilities,CA193,BX$20),TRUE),TRUE) -> TRUE | BY193: =IF(BV193<>"0000",INDEX(MysticAbilities,CA193,BY$20),0) -> 0 | BZ193: =IF(BV193<>"0000",INDEX(MysticAbilities,CA193,BZ$20),0) -> 0 | CA193: =IF(BV193<>"0000", MATCH(BV193,MysticIndex,0),"") ->  | CB193: =IF($BV193<>"0000",INDEX(MysticAbilities,$CA193,CB$20),FALSE) -> FALSE | CC193: =IF($BV193<>"0000",INDEX(MysticAbilities,$CA193,CC$20),FALSE) -> FALSE | CD193: =IF($BV193<>"0000",INDEX(MysticAbilities,$CA193,CD$20),TRUE) -> TRUE
CE194: =B193<>"" -> TRUE
B196: x | D196: =IF(BV196<>"0000",INDEX(MysticAbilities,CA196,'Master Sheet'!$D$9),"") ->  | W196: =IF(BV196="0000", "", IF(INDEX(MysticAbilities,CA196,5)=0, "-", INDEX(MysticAbilities,CA196,5))) ->  | Z196: =IF(BV196<>"0000",IF(INDEX(MysticAbilities,CA196,'Master Sheet'!$Z$9)= 0,"",INDEX(MysticAbilities,CA196,'Master Sheet'!$Z$9)),"") ->  | AJ196: =IF(BV196<>"0000",IF(INDEX(MysticAbilities,CA196,'Master Sheet'!$AJ$9)= 0,"",INDEX(MysticAbilities,CA196,'Master Sheet'!$AJ$9)),"") ->  | AQ196: =IF(BV196<>"0000",IF(INDEX(MysticAbilities,CA196,'Master Sheet'!$AQ$9)= 0,"",INDEX(MysticAbilities,CA196,'Master Sheet'!$AQ$9)),"") ->  | BV196: =IFERROR(INDEX(MysticAbilities,MATCH(INDEX(DisplayList,(ROW(A196)-19)/3),MysticIndex,0),$BV$20),"0000") -> 0000 | BW196: =IF(BV196<>"0000",INDEX(MysticAbilities,CA196,BW$20),0) -> 0 | BX196: =IFERROR(IF(BV196<>"0000",INDEX(MysticAbilities,CA196,BX$20),TRUE),TRUE) -> TRUE | BY196: =IF(BV196<>"0000",INDEX(MysticAbilities,CA196,BY$20),0) -> 0 | BZ196: =IF(BV196<>"0000",INDEX(MysticAbilities,CA196,BZ$20),0) -> 0 | CA196: =IF(BV196<>"0000", MATCH(BV196,MysticIndex,0),"") ->  | CB196: =IF($BV196<>"0000",INDEX(MysticAbilities,$CA196,CB$20),FALSE) -> FALSE | CC196: =IF($BV196<>"0000",INDEX(MysticAbilities,$CA196,CC$20),FALSE) -> FALSE | CD196: =IF($BV196<>"0000",INDEX(MysticAbilities,$CA196,CD$20),TRUE) -> TRUE
CE197: =B196<>"" -> TRUE
B199: x | F199: =IF(BV199<>"0000",INDEX(MysticAbilities,CA199,'Master Sheet'!$D$9),"") ->  | W199: =IF(BV199="0000", "", IF(INDEX(MysticAbilities,CA199,5)=0, "-", INDEX(MysticAbilities,CA199,5))) ->  | Z199: =IF(BV199<>"0000",IF(INDEX(MysticAbilities,CA199,'Master Sheet'!$Z$9)= 0,"",INDEX(MysticAbilities,CA199,'Master Sheet'!$Z$9)),"") ->  | AJ199: =IF(BV199<>"0000",IF(INDEX(MysticAbilities,CA199,'Master Sheet'!$AJ$9)= 0,"",INDEX(MysticAbilities,CA199,'Master Sheet'!$AJ$9)),"") ->  | AQ199: =IF(BV199<>"0000",IF(INDEX(MysticAbilities,CA199,'Master Sheet'!$AQ$9)= 0,"",INDEX(MysticAbilities,CA199,'Master Sheet'!$AQ$9)),"") ->  | BV199: =IFERROR(INDEX(MysticAbilities,MATCH(INDEX(DisplayList,(ROW(A199)-19)/3),MysticIndex,0),$BV$20),"0000") -> 0000 | BW199: =IF(BV199<>"0000",INDEX(MysticAbilities,CA199,BW$20),0) -> 0 | BX199: =IFERROR(IF(BV199<>"0000",INDEX(MysticAbilities,CA199,BX$20),TRUE),TRUE) -> TRUE | BY199: =IF(BV199<>"0000",INDEX(MysticAbilities,CA199,BY$20),0) -> 0 | BZ199: =IF(BV199<>"0000",INDEX(MysticAbilities,CA199,BZ$20),0) -> 0 | CA199: =IF(BV199<>"0000", MATCH(BV199,MysticIndex,0),"") ->  | CB199: =IF($BV199<>"0000",INDEX(MysticAbilities,$CA199,CB$20),FALSE) -> FALSE | CC199: =IF($BV199<>"0000",INDEX(MysticAbilities,$CA199,CC$20),FALSE) -> FALSE | CD199: =IF($BV199<>"0000",INDEX(MysticAbilities,$CA199,CD$20),TRUE) -> TRUE
CE200: =B199<>"" -> TRUE
B202: x | F202: =IF(BV202<>"0000",INDEX(MysticAbilities,CA202,'Master Sheet'!$D$9),"") ->  | W202: =IF(BV202="0000", "", IF(INDEX(MysticAbilities,CA202,5)=0, "-", INDEX(MysticAbilities,CA202,5))) ->  | Z202: =IF(BV202<>"0000",IF(INDEX(MysticAbilities,CA202,'Master Sheet'!$Z$9)= 0,"",INDEX(MysticAbilities,CA202,'Master Sheet'!$Z$9)),"") ->  | AJ202: =IF(BV202<>"0000",IF(INDEX(MysticAbilities,CA202,'Master Sheet'!$AJ$9)= 0,"",INDEX(MysticAbilities,CA202,'Master Sheet'!$AJ$9)),"") ->  | AQ202: =IF(BV202<>"0000",IF(INDEX(MysticAbilities,CA202,'Master Sheet'!$AQ$9)= 0,"",INDEX(MysticAbilities,CA202,'Master Sheet'!$AQ$9)),"") ->  | BV202: =IFERROR(INDEX(MysticAbilities,MATCH(INDEX(DisplayList,(ROW(A202)-19)/3),MysticIndex,0),$BV$20),"0000") -> 0000 | BW202: =IF(BV202<>"0000",INDEX(MysticAbilities,CA202,BW$20),0) -> 0 | BX202: =IFERROR(IF(BV202<>"0000",INDEX(MysticAbilities,CA202,BX$20),TRUE),TRUE) -> TRUE | BY202: =IF(BV202<>"0000",INDEX(MysticAbilities,CA202,BY$20),0) -> 0 | BZ202: =IF(BV202<>"0000",INDEX(MysticAbilities,CA202,BZ$20),0) -> 0 | CA202: =IF(BV202<>"0000", MATCH(BV202,MysticIndex,0),"") ->  | CB202: =IF($BV202<>"0000",INDEX(MysticAbilities,$CA202,CB$20),FALSE) -> FALSE | CC202: =IF($BV202<>"0000",INDEX(MysticAbilities,$CA202,CC$20),FALSE) -> FALSE | CD202: =IF($BV202<>"0000",INDEX(MysticAbilities,$CA202,CD$20),TRUE) -> TRUE
CE203: =B202<>"" -> TRUE
B205: x | F205: =IF(BV205<>"0000",INDEX(MysticAbilities,CA205,'Master Sheet'!$D$9),"") ->  | W205: =IF(BV205="0000", "", IF(INDEX(MysticAbilities,CA205,5)=0, "-", INDEX(MysticAbilities,CA205,5))) ->  | Z205: =IF(BV205<>"0000",IF(INDEX(MysticAbilities,CA205,'Master Sheet'!$Z$9)= 0,"",INDEX(MysticAbilities,CA205,'Master Sheet'!$Z$9)),"") ->  | AJ205: =IF(BV205<>"0000",IF(INDEX(MysticAbilities,CA205,'Master Sheet'!$AJ$9)= 0,"",INDEX(MysticAbilities,CA205,'Master Sheet'!$AJ$9)),"") ->  | AQ205: =IF(BV205<>"0000",IF(INDEX(MysticAbilities,CA205,'Master Sheet'!$AQ$9)= 0,"",INDEX(MysticAbilities,CA205,'Master Sheet'!$AQ$9)),"") ->  | BV205: =IFERROR(INDEX(MysticAbilities,MATCH(INDEX(DisplayList,(ROW(A205)-19)/3),MysticIndex,0),$BV$20),"0000") -> 0000 | BW205: =IF(BV205<>"0000",INDEX(MysticAbilities,CA205,BW$20),0) -> 0 | BX205: =IFERROR(IF(BV205<>"0000",INDEX(MysticAbilities,CA205,BX$20),TRUE),TRUE) -> TRUE | BY205: =IF(BV205<>"0000",INDEX(MysticAbilities,CA205,BY$20),0) -> 0 | BZ205: =IF(BV205<>"0000",INDEX(MysticAbilities,CA205,BZ$20),0) -> 0 | CA205: =IF(BV205<>"0000", MATCH(BV205,MysticIndex,0),"") ->  | CB205: =IF($BV205<>"0000",INDEX(MysticAbilities,$CA205,CB$20),FALSE) -> FALSE | CC205: =IF($BV205<>"0000",INDEX(MysticAbilities,$CA205,CC$20),FALSE) -> FALSE | CD205: =IF($BV205<>"0000",INDEX(MysticAbilities,$CA205,CD$20),TRUE) -> TRUE
CE206: =B205<>"" -> TRUE
B208: x | D208: =IF(BV208<>"0000",INDEX(MysticAbilities,CA208,'Master Sheet'!$D$9),"") ->  | W208: =IF(BV208="0000", "", IF(INDEX(MysticAbilities,CA208,5)=0, "-", INDEX(MysticAbilities,CA208,5))) ->  | Z208: =IF(BV208<>"0000",IF(INDEX(MysticAbilities,CA208,'Master Sheet'!$Z$9)= 0,"",INDEX(MysticAbilities,CA208,'Master Sheet'!$Z$9)),"") ->  | AJ208: =IF(BV208<>"0000",IF(INDEX(MysticAbilities,CA208,'Master Sheet'!$AJ$9)= 0,"",INDEX(MysticAbilities,CA208,'Master Sheet'!$AJ$9)),"") ->  | AQ208: =IF(BV208<>"0000",IF(INDEX(MysticAbilities,CA208,'Master Sheet'!$AQ$9)= 0,"",INDEX(MysticAbilities,CA208,'Master Sheet'!$AQ$9)),"") ->  | BV208: =IFERROR(INDEX(MysticAbilities,MATCH(INDEX(DisplayList,(ROW(A208)-19)/3),MysticIndex,0),$BV$20),"0000") -> 0000 | BW208: =IF(BV208<>"0000",INDEX(MysticAbilities,CA208,BW$20),0) -> 0 | BX208: =IFERROR(IF(BV208<>"0000",INDEX(MysticAbilities,CA208,BX$20),TRUE),TRUE) -> TRUE | BY208: =IF(BV208<>"0000",INDEX(MysticAbilities,CA208,BY$20),0) -> 0 | BZ208: =IF(BV208<>"0000",INDEX(MysticAbilities,CA208,BZ$20),0) -> 0 | CA208: =IF(BV208<>"0000", MATCH(BV208,MysticIndex,0),"") ->  | CB208: =IF($BV208<>"0000",INDEX(MysticAbilities,$CA208,CB$20),FALSE) -> FALSE | CC208: =IF($BV208<>"0000",INDEX(MysticAbilities,$CA208,CC$20),FALSE) -> FALSE | CD208: =IF($BV208<>"0000",INDEX(MysticAbilities,$CA208,CD$20),TRUE) -> TRUE
CE209: =B208<>"" -> TRUE
B211: x | F211: =IF(BV211<>"0000",INDEX(MysticAbilities,CA211,'Master Sheet'!$D$9),"") ->  | W211: =IF(BV211="0000", "", IF(INDEX(MysticAbilities,CA211,5)=0, "-", INDEX(MysticAbilities,CA211,5))) ->  | Z211: =IF(BV211<>"0000",IF(INDEX(MysticAbilities,CA211,'Master Sheet'!$Z$9)= 0,"",INDEX(MysticAbilities,CA211,'Master Sheet'!$Z$9)),"") ->  | AJ211: =IF(BV211<>"0000",IF(INDEX(MysticAbilities,CA211,'Master Sheet'!$AJ$9)= 0,"",INDEX(MysticAbilities,CA211,'Master Sheet'!$AJ$9)),"") ->  | AQ211: =IF(BV211<>"0000",IF(INDEX(MysticAbilities,CA211,'Master Sheet'!$AQ$9)= 0,"",INDEX(MysticAbilities,CA211,'Master Sheet'!$AQ$9)),"") ->  | BV211: =IFERROR(INDEX(MysticAbilities,MATCH(INDEX(DisplayList,(ROW(A211)-19)/3),MysticIndex,0),$BV$20),"0000") -> 0000 | BW211: =IF(BV211<>"0000",INDEX(MysticAbilities,CA211,BW$20),0) -> 0 | BX211: =IFERROR(IF(BV211<>"0000",INDEX(MysticAbilities,CA211,BX$20),TRUE),TRUE) -> TRUE | BY211: =IF(BV211<>"0000",INDEX(MysticAbilities,CA211,BY$20),0) -> 0 | BZ211: =IF(BV211<>"0000",INDEX(MysticAbilities,CA211,BZ$20),0) -> 0 | CA211: =IF(BV211<>"0000", MATCH(BV211,MysticIndex,0),"") ->  | CB211: =IF($BV211<>"0000",INDEX(MysticAbilities,$CA211,CB$20),FALSE) -> FALSE | CC211: =IF($BV211<>"0000",INDEX(MysticAbilities,$CA211,CC$20),FALSE) -> FALSE | CD211: =IF($BV211<>"0000",INDEX(MysticAbilities,$CA211,CD$20),TRUE) -> TRUE
CE212: =B211<>"" -> TRUE
B214: x | F214: =IF(BV214<>"0000",INDEX(MysticAbilities,CA214,'Master Sheet'!$D$9),"") ->  | W214: =IF(BV214="0000", "", IF(INDEX(MysticAbilities,CA214,5)=0, "-", INDEX(MysticAbilities,CA214,5))) ->  | Z214: =IF(BV214<>"0000",IF(INDEX(MysticAbilities,CA214,'Master Sheet'!$Z$9)= 0,"",INDEX(MysticAbilities,CA214,'Master Sheet'!$Z$9)),"") ->  | AJ214: =IF(BV214<>"0000",IF(INDEX(MysticAbilities,CA214,'Master Sheet'!$AJ$9)= 0,"",INDEX(MysticAbilities,CA214,'Master Sheet'!$AJ$9)),"") ->  | AQ214: =IF(BV214<>"0000",IF(INDEX(MysticAbilities,CA214,'Master Sheet'!$AQ$9)= 0,"",INDEX(MysticAbilities,CA214,'Master Sheet'!$AQ$9)),"") ->  | BV214: =IFERROR(INDEX(MysticAbilities,MATCH(INDEX(DisplayList,(ROW(A214)-19)/3),MysticIndex,0),$BV$20),"0000") -> 0000 | BW214: =IF(BV214<>"0000",INDEX(MysticAbilities,CA214,BW$20),0) -> 0 | BX214: =IFERROR(IF(BV214<>"0000",INDEX(MysticAbilities,CA214,BX$20),TRUE),TRUE) -> TRUE | BY214: =IF(BV214<>"0000",INDEX(MysticAbilities,CA214,BY$20),0) -> 0 | BZ214: =IF(BV214<>"0000",INDEX(MysticAbilities,CA214,BZ$20),0) -> 0 | CA214: =IF(BV214<>"0000", MATCH(BV214,MysticIndex,0),"") ->  | CB214: =IF($BV214<>"0000",INDEX(MysticAbilities,$CA214,CB$20),FALSE) -> FALSE | CC214: =IF($BV214<>"0000",INDEX(MysticAbilities,$CA214,CC$20),FALSE) -> FALSE | CD214: =IF($BV214<>"0000",INDEX(MysticAbilities,$CA214,CD$20),TRUE) -> TRUE
CE215: =B214<>"" -> TRUE
B217: x | D217: =IF(BV217<>"0000",INDEX(MysticAbilities,CA217,'Master Sheet'!$D$9),"") ->  | W217: =IF(BV217="0000", "", IF(INDEX(MysticAbilities,CA217,5)=0, "-", INDEX(MysticAbilities,CA217,5))) ->  | Z217: =IF(BV217<>"0000",IF(INDEX(MysticAbilities,CA217,'Master Sheet'!$Z$9)= 0,"",INDEX(MysticAbilities,CA217,'Master Sheet'!$Z$9)),"") ->  | AJ217: =IF(BV217<>"0000",IF(INDEX(MysticAbilities,CA217,'Master Sheet'!$AJ$9)= 0,"",INDEX(MysticAbilities,CA217,'Master Sheet'!$AJ$9)),"") ->  | AQ217: =IF(BV217<>"0000",IF(INDEX(MysticAbilities,CA217,'Master Sheet'!$AQ$9)= 0,"",INDEX(MysticAbilities,CA217,'Master Sheet'!$AQ$9)),"") ->  | BV217: =IFERROR(INDEX(MysticAbilities,MATCH(INDEX(DisplayList,(ROW(A217)-19)/3),MysticIndex,0),$BV$20),"0000") -> 0000 | BW217: =IF(BV217<>"0000",INDEX(MysticAbilities,CA217,BW$20),0) -> 0 | BX217: =IFERROR(IF(BV217<>"0000",INDEX(MysticAbilities,CA217,BX$20),TRUE),TRUE) -> TRUE | BY217: =IF(BV217<>"0000",INDEX(MysticAbilities,CA217,BY$20),0) -> 0 | BZ217: =IF(BV217<>"0000",INDEX(MysticAbilities,CA217,BZ$20),0) -> 0 | CA217: =IF(BV217<>"0000", MATCH(BV217,MysticIndex,0),"") ->  | CB217: =IF($BV217<>"0000",INDEX(MysticAbilities,$CA217,CB$20),FALSE) -> FALSE | CC217: =IF($BV217<>"0000",INDEX(MysticAbilities,$CA217,CC$20),FALSE) -> FALSE | CD217: =IF($BV217<>"0000",INDEX(MysticAbilities,$CA217,CD$20),TRUE) -> TRUE
CE218: =B217<>"" -> TRUE
B220: x | F220: =IF(BV220<>"0000",INDEX(MysticAbilities,CA220,'Master Sheet'!$D$9),"") ->  | W220: =IF(BV220="0000", "", IF(INDEX(MysticAbilities,CA220,5)=0, "-", INDEX(MysticAbilities,CA220,5))) ->  | Z220: =IF(BV220<>"0000",IF(INDEX(MysticAbilities,CA220,'Master Sheet'!$Z$9)= 0,"",INDEX(MysticAbilities,CA220,'Master Sheet'!$Z$9)),"") ->  | AJ220: =IF(BV220<>"0000",IF(INDEX(MysticAbilities,CA220,'Master Sheet'!$AJ$9)= 0,"",INDEX(MysticAbilities,CA220,'Master Sheet'!$AJ$9)),"") ->  | AQ220: =IF(BV220<>"0000",IF(INDEX(MysticAbilities,CA220,'Master Sheet'!$AQ$9)= 0,"",INDEX(MysticAbilities,CA220,'Master Sheet'!$AQ$9)),"") ->  | BV220: =IFERROR(INDEX(MysticAbilities,MATCH(INDEX(DisplayList,(ROW(A220)-19)/3),MysticIndex,0),$BV$20),"0000") -> 0000 | BW220: =IF(BV220<>"0000",INDEX(MysticAbilities,CA220,BW$20),0) -> 0 | BX220: =IFERROR(IF(BV220<>"0000",INDEX(MysticAbilities,CA220,BX$20),TRUE),TRUE) -> TRUE | BY220: =IF(BV220<>"0000",INDEX(MysticAbilities,CA220,BY$20),0) -> 0 | BZ220: =IF(BV220<>"0000",INDEX(MysticAbilities,CA220,BZ$20),0) -> 0 | CA220: =IF(BV220<>"0000", MATCH(BV220,MysticIndex,0),"") ->  | CB220: =IF($BV220<>"0000",INDEX(MysticAbilities,$CA220,CB$20),FALSE) -> FALSE | CC220: =IF($BV220<>"0000",INDEX(MysticAbilities,$CA220,CC$20),FALSE) -> FALSE | CD220: =IF($BV220<>"0000",INDEX(MysticAbilities,$CA220,CD$20),TRUE) -> TRUE
CE221: =B220<>"" -> TRUE
B223: x | D223: =IF(BV223<>"0000",INDEX(MysticAbilities,CA223,'Master Sheet'!$D$9),"") ->  | W223: =IF(BV223="0000", "", IF(INDEX(MysticAbilities,CA223,5)=0, "-", INDEX(MysticAbilities,CA223,5))) ->  | Z223: =IF(BV223<>"0000",IF(INDEX(MysticAbilities,CA223,'Master Sheet'!$Z$9)= 0,"",INDEX(MysticAbilities,CA223,'Master Sheet'!$Z$9)),"") ->  | AJ223: =IF(BV223<>"0000",IF(INDEX(MysticAbilities,CA223,'Master Sheet'!$AJ$9)= 0,"",INDEX(MysticAbilities,CA223,'Master Sheet'!$AJ$9)),"") ->  | AQ223: =IF(BV223<>"0000",IF(INDEX(MysticAbilities,CA223,'Master Sheet'!$AQ$9)= 0,"",INDEX(MysticAbilities,CA223,'Master Sheet'!$AQ$9)),"") ->  | BV223: =IFERROR(INDEX(MysticAbilities,MATCH(INDEX(DisplayList,(ROW(A223)-19)/3),MysticIndex,0),$BV$20),"0000") -> 0000 | BW223: =IF(BV223<>"0000",INDEX(MysticAbilities,CA223,BW$20),0) -> 0 | BX223: =IFERROR(IF(BV223<>"0000",INDEX(MysticAbilities,CA223,BX$20),TRUE),TRUE) -> TRUE | BY223: =IF(BV223<>"0000",INDEX(MysticAbilities,CA223,BY$20),0) -> 0 | BZ223: =IF(BV223<>"0000",INDEX(MysticAbilities,CA223,BZ$20),0) -> 0 | CA223: =IF(BV223<>"0000", MATCH(BV223,MysticIndex,0),"") ->  | CB223: =IF($BV223<>"0000",INDEX(MysticAbilities,$CA223,CB$20),FALSE) -> FALSE | CC223: =IF($BV223<>"0000",INDEX(MysticAbilities,$CA223,CC$20),FALSE) -> FALSE | CD223: =IF($BV223<>"0000",INDEX(MysticAbilities,$CA223,CD$20),TRUE) -> TRUE
CE224: =B223<>"" -> TRUE
B226: x | F226: =IF(BV226<>"0000",INDEX(MysticAbilities,CA226,'Master Sheet'!$D$9),"") ->  | W226: =IF(BV226="0000", "", IF(INDEX(MysticAbilities,CA226,5)=0, "-", INDEX(MysticAbilities,CA226,5))) ->  | Z226: =IF(BV226<>"0000",IF(INDEX(MysticAbilities,CA226,'Master Sheet'!$Z$9)= 0,"",INDEX(MysticAbilities,CA226,'Master Sheet'!$Z$9)),"") ->  | AJ226: =IF(BV226<>"0000",IF(INDEX(MysticAbilities,CA226,'Master Sheet'!$AJ$9)= 0,"",INDEX(MysticAbilities,CA226,'Master Sheet'!$AJ$9)),"") ->  | AQ226: =IF(BV226<>"0000",IF(INDEX(MysticAbilities,CA226,'Master Sheet'!$AQ$9)= 0,"",INDEX(MysticAbilities,CA226,'Master Sheet'!$AQ$9)),"") ->  | BV226: =IFERROR(INDEX(MysticAbilities,MATCH(INDEX(DisplayList,(ROW(A226)-19)/3),MysticIndex,0),$BV$20),"0000") -> 0000 | BW226: =IF(BV226<>"0000",INDEX(MysticAbilities,CA226,BW$20),0) -> 0 | BX226: =IFERROR(IF(BV226<>"0000",INDEX(MysticAbilities,CA226,BX$20),TRUE),TRUE) -> TRUE | BY226: =IF(BV226<>"0000",INDEX(MysticAbilities,CA226,BY$20),0) -> 0 | BZ226: =IF(BV226<>"0000",INDEX(MysticAbilities,CA226,BZ$20),0) -> 0 | CA226: =IF(BV226<>"0000", MATCH(BV226,MysticIndex,0),"") ->  | CB226: =IF($BV226<>"0000",INDEX(MysticAbilities,$CA226,CB$20),FALSE) -> FALSE | CC226: =IF($BV226<>"0000",INDEX(MysticAbilities,$CA226,CC$20),FALSE) -> FALSE | CD226: =IF($BV226<>"0000",INDEX(MysticAbilities,$CA226,CD$20),TRUE) -> TRUE
CE227: =B226<>"" -> TRUE
B229: x | D229: =IF(BV229<>"0000",INDEX(MysticAbilities,CA229,'Master Sheet'!$D$9),"") ->  | W229: =IF(BV229="0000", "", IF(INDEX(MysticAbilities,CA229,5)=0, "-", INDEX(MysticAbilities,CA229,5))) ->  | Z229: =IF(BV229<>"0000",IF(INDEX(MysticAbilities,CA229,'Master Sheet'!$Z$9)= 0,"",INDEX(MysticAbilities,CA229,'Master Sheet'!$Z$9)),"") ->  | AJ229: =IF(BV229<>"0000",IF(INDEX(MysticAbilities,CA229,'Master Sheet'!$AJ$9)= 0,"",INDEX(MysticAbilities,CA229,'Master Sheet'!$AJ$9)),"") ->  | AQ229: =IF(BV229<>"0000",IF(INDEX(MysticAbilities,CA229,'Master Sheet'!$AQ$9)= 0,"",INDEX(MysticAbilities,CA229,'Master Sheet'!$AQ$9)),"") ->  | BV229: =IFERROR(INDEX(MysticAbilities,MATCH(INDEX(DisplayList,(ROW(A229)-19)/3),MysticIndex,0),$BV$20),"0000") -> 0000 | BW229: =IF(BV229<>"0000",INDEX(MysticAbilities,CA229,BW$20),0) -> 0 | BX229: =IFERROR(IF(BV229<>"0000",INDEX(MysticAbilities,CA229,BX$20),TRUE),TRUE) -> TRUE | BY229: =IF(BV229<>"0000",INDEX(MysticAbilities,CA229,BY$20),0) -> 0 | BZ229: =IF(BV229<>"0000",INDEX(MysticAbilities,CA229,BZ$20),0) -> 0 | CA229: =IF(BV229<>"0000", MATCH(BV229,MysticIndex,0),"") ->  | CB229: =IF($BV229<>"0000",INDEX(MysticAbilities,$CA229,CB$20),FALSE) -> FALSE | CC229: =IF($BV229<>"0000",INDEX(MysticAbilities,$CA229,CC$20),FALSE) -> FALSE | CD229: =IF($BV229<>"0000",INDEX(MysticAbilities,$CA229,CD$20),TRUE) -> TRUE
CE230: =B229<>"" -> TRUE
B232: x | F232: =IF(BV232<>"0000",INDEX(MysticAbilities,CA232,'Master Sheet'!$D$9),"") ->  | W232: =IF(BV232="0000", "", IF(INDEX(MysticAbilities,CA232,5)=0, "-", INDEX(MysticAbilities,CA232,5))) ->  | Z232: =IF(BV232<>"0000",IF(INDEX(MysticAbilities,CA232,'Master Sheet'!$Z$9)= 0,"",INDEX(MysticAbilities,CA232,'Master Sheet'!$Z$9)),"") ->  | AJ232: =IF(BV232<>"0000",IF(INDEX(MysticAbilities,CA232,'Master Sheet'!$AJ$9)= 0,"",INDEX(MysticAbilities,CA232,'Master Sheet'!$AJ$9)),"") ->  | AQ232: =IF(BV232<>"0000",IF(INDEX(MysticAbilities,CA232,'Master Sheet'!$AQ$9)= 0,"",INDEX(MysticAbilities,CA232,'Master Sheet'!$AQ$9)),"") ->  | BV232: =IFERROR(INDEX(MysticAbilities,MATCH(INDEX(DisplayList,(ROW(A232)-19)/3),MysticIndex,0),$BV$20),"0000") -> 0000 | BW232: =IF(BV232<>"0000",INDEX(MysticAbilities,CA232,BW$20),0) -> 0 | BX232: =IFERROR(IF(BV232<>"0000",INDEX(MysticAbilities,CA232,BX$20),TRUE),TRUE) -> TRUE | BY232: =IF(BV232<>"0000",INDEX(MysticAbilities,CA232,BY$20),0) -> 0 | BZ232: =IF(BV232<>"0000",INDEX(MysticAbilities,CA232,BZ$20),0) -> 0 | CA232: =IF(BV232<>"0000", MATCH(BV232,MysticIndex,0),"") ->  | CB232: =IF($BV232<>"0000",INDEX(MysticAbilities,$CA232,CB$20),FALSE) -> FALSE | CC232: =IF($BV232<>"0000",INDEX(MysticAbilities,$CA232,CC$20),FALSE) -> FALSE | CD232: =IF($BV232<>"0000",INDEX(MysticAbilities,$CA232,CD$20),TRUE) -> TRUE
CE233: =B232<>"" -> TRUE
B235: x | F235: =IF(BV235<>"0000",INDEX(MysticAbilities,CA235,'Master Sheet'!$D$9),"") ->  | W235: =IF(BV235="0000", "", IF(INDEX(MysticAbilities,CA235,5)=0, "-", INDEX(MysticAbilities,CA235,5))) ->  | Z235: =IF(BV235<>"0000",IF(INDEX(MysticAbilities,CA235,'Master Sheet'!$Z$9)= 0,"",INDEX(MysticAbilities,CA235,'Master Sheet'!$Z$9)),"") ->  | AJ235: =IF(BV235<>"0000",IF(INDEX(MysticAbilities,CA235,'Master Sheet'!$AJ$9)= 0,"",INDEX(MysticAbilities,CA235,'Master Sheet'!$AJ$9)),"") ->  | AQ235: =IF(BV235<>"0000",IF(INDEX(MysticAbilities,CA235,'Master Sheet'!$AQ$9)= 0,"",INDEX(MysticAbilities,CA235,'Master Sheet'!$AQ$9)),"") ->  | BV235: =IFERROR(INDEX(MysticAbilities,MATCH(INDEX(DisplayList,(ROW(A235)-19)/3),MysticIndex,0),$BV$20),"0000") -> 0000 | BW235: =IF(BV235<>"0000",INDEX(MysticAbilities,CA235,BW$20),0) -> 0 | BX235: =IFERROR(IF(BV235<>"0000",INDEX(MysticAbilities,CA235,BX$20),TRUE),TRUE) -> TRUE | BY235: =IF(BV235<>"0000",INDEX(MysticAbilities,CA235,BY$20),0) -> 0 | BZ235: =IF(BV235<>"0000",INDEX(MysticAbilities,CA235,BZ$20),0) -> 0 | CA235: =IF(BV235<>"0000", MATCH(BV235,MysticIndex,0),"") ->  | CB235: =IF($BV235<>"0000",INDEX(MysticAbilities,$CA235,CB$20),FALSE) -> FALSE | CC235: =IF($BV235<>"0000",INDEX(MysticAbilities,$CA235,CC$20),FALSE) -> FALSE | CD235: =IF($BV235<>"0000",INDEX(MysticAbilities,$CA235,CD$20),TRUE) -> TRUE
CE236: =B235<>"" -> TRUE
B238: x | F238: =IF(BV238<>"0000",INDEX(MysticAbilities,CA238,'Master Sheet'!$D$9),"") ->  | W238: =IF(BV238="0000", "", IF(INDEX(MysticAbilities,CA238,5)=0, "-", INDEX(MysticAbilities,CA238,5))) ->  | Z238: =IF(BV238<>"0000",IF(INDEX(MysticAbilities,CA238,'Master Sheet'!$Z$9)= 0,"",INDEX(MysticAbilities,CA238,'Master Sheet'!$Z$9)),"") ->  | AJ238: =IF(BV238<>"0000",IF(INDEX(MysticAbilities,CA238,'Master Sheet'!$AJ$9)= 0,"",INDEX(MysticAbilities,CA238,'Master Sheet'!$AJ$9)),"") ->  | AQ238: =IF(BV238<>"0000",IF(INDEX(MysticAbilities,CA238,'Master Sheet'!$AQ$9)= 0,"",INDEX(MysticAbilities,CA238,'Master Sheet'!$AQ$9)),"") ->  | BV238: =IFERROR(INDEX(MysticAbilities,MATCH(INDEX(DisplayList,(ROW(A238)-19)/3),MysticIndex,0),$BV$20),"0000") -> 0000 | BW238: =IF(BV238<>"0000",INDEX(MysticAbilities,CA238,BW$20),0) -> 0 | BX238: =IFERROR(IF(BV238<>"0000",INDEX(MysticAbilities,CA238,BX$20),TRUE),TRUE) -> TRUE | BY238: =IF(BV238<>"0000",INDEX(MysticAbilities,CA238,BY$20),0) -> 0 | BZ238: =IF(BV238<>"0000",INDEX(MysticAbilities,CA238,BZ$20),0) -> 0 | CA238: =IF(BV238<>"0000", MATCH(BV238,MysticIndex,0),"") ->  | CB238: =IF($BV238<>"0000",INDEX(MysticAbilities,$CA238,CB$20),FALSE) -> FALSE | CC238: =IF($BV238<>"0000",INDEX(MysticAbilities,$CA238,CC$20),FALSE) -> FALSE | CD238: =IF($BV238<>"0000",INDEX(MysticAbilities,$CA238,CD$20),TRUE) -> TRUE
CE239: =B238<>"" -> TRUE
B241: x | F241: =IF(BV241<>"0000",INDEX(MysticAbilities,CA241,'Master Sheet'!$D$9),"") ->  | W241: =IF(BV241="0000", "", IF(INDEX(MysticAbilities,CA241,5)=0, "-", INDEX(MysticAbilities,CA241,5))) ->  | Z241: =IF(BV241<>"0000",IF(INDEX(MysticAbilities,CA241,'Master Sheet'!$Z$9)= 0,"",INDEX(MysticAbilities,CA241,'Master Sheet'!$Z$9)),"") ->  | AJ241: =IF(BV241<>"0000",IF(INDEX(MysticAbilities,CA241,'Master Sheet'!$AJ$9)= 0,"",INDEX(MysticAbilities,CA241,'Master Sheet'!$AJ$9)),"") ->  | AQ241: =IF(BV241<>"0000",IF(INDEX(MysticAbilities,CA241,'Master Sheet'!$AQ$9)= 0,"",INDEX(MysticAbilities,CA241,'Master Sheet'!$AQ$9)),"") ->  | BV241: =IFERROR(INDEX(MysticAbilities,MATCH(INDEX(DisplayList,(ROW(A241)-19)/3),MysticIndex,0),$BV$20),"0000") -> 0000 | BW241: =IF(BV241<>"0000",INDEX(MysticAbilities,CA241,BW$20),0) -> 0 | BX241: =IFERROR(IF(BV241<>"0000",INDEX(MysticAbilities,CA241,BX$20),TRUE),TRUE) -> TRUE | BY241: =IF(BV241<>"0000",INDEX(MysticAbilities,CA241,BY$20),0) -> 0 | BZ241: =IF(BV241<>"0000",INDEX(MysticAbilities,CA241,BZ$20),0) -> 0 | CA241: =IF(BV241<>"0000", MATCH(BV241,MysticIndex,0),"") ->  | CB241: =IF($BV241<>"0000",INDEX(MysticAbilities,$CA241,CB$20),FALSE) -> FALSE | CC241: =IF($BV241<>"0000",INDEX(MysticAbilities,$CA241,CC$20),FALSE) -> FALSE | CD241: =IF($BV241<>"0000",INDEX(MysticAbilities,$CA241,CD$20),TRUE) -> TRUE
CE242: =B241<>"" -> TRUE
B244: x | F244: =IF(BV244<>"0000",INDEX(MysticAbilities,CA244,'Master Sheet'!$D$9),"") ->  | W244: =IF(BV244="0000", "", IF(INDEX(MysticAbilities,CA244,5)=0, "-", INDEX(MysticAbilities,CA244,5))) ->  | Z244: =IF(BV244<>"0000",IF(INDEX(MysticAbilities,CA244,'Master Sheet'!$Z$9)= 0,"",INDEX(MysticAbilities,CA244,'Master Sheet'!$Z$9)),"") ->  | AJ244: =IF(BV244<>"0000",IF(INDEX(MysticAbilities,CA244,'Master Sheet'!$AJ$9)= 0,"",INDEX(MysticAbilities,CA244,'Master Sheet'!$AJ$9)),"") ->  | AQ244: =IF(BV244<>"0000",IF(INDEX(MysticAbilities,CA244,'Master Sheet'!$AQ$9)= 0,"",INDEX(MysticAbilities,CA244,'Master Sheet'!$AQ$9)),"") ->  | BV244: =IFERROR(INDEX(MysticAbilities,MATCH(INDEX(DisplayList,(ROW(A244)-19)/3),MysticIndex,0),$BV$20),"0000") -> 0000 | BW244: =IF(BV244<>"0000",INDEX(MysticAbilities,CA244,BW$20),0) -> 0 | BX244: =IFERROR(IF(BV244<>"0000",INDEX(MysticAbilities,CA244,BX$20),TRUE),TRUE) -> TRUE | BY244: =IF(BV244<>"0000",INDEX(MysticAbilities,CA244,BY$20),0) -> 0 | BZ244: =IF(BV244<>"0000",INDEX(MysticAbilities,CA244,BZ$20),0) -> 0 | CA244: =IF(BV244<>"0000", MATCH(BV244,MysticIndex,0),"") ->  | CB244: =IF($BV244<>"0000",INDEX(MysticAbilities,$CA244,CB$20),FALSE) -> FALSE | CC244: =IF($BV244<>"0000",INDEX(MysticAbilities,$CA244,CC$20),FALSE) -> FALSE | CD244: =IF($BV244<>"0000",INDEX(MysticAbilities,$CA244,CD$20),TRUE) -> TRUE
CE245: =B244<>"" -> TRUE
B247: x | F247: =IF(BV247<>"0000",INDEX(MysticAbilities,CA247,'Master Sheet'!$D$9),"") ->  | W247: =IF(BV247="0000", "", IF(INDEX(MysticAbilities,CA247,5)=0, "-", INDEX(MysticAbilities,CA247,5))) ->  | Z247: =IF(BV247<>"0000",IF(INDEX(MysticAbilities,CA247,'Master Sheet'!$Z$9)= 0,"",INDEX(MysticAbilities,CA247,'Master Sheet'!$Z$9)),"") ->  | AJ247: =IF(BV247<>"0000",IF(INDEX(MysticAbilities,CA247,'Master Sheet'!$AJ$9)= 0,"",INDEX(MysticAbilities,CA247,'Master Sheet'!$AJ$9)),"") ->  | AQ247: =IF(BV247<>"0000",IF(INDEX(MysticAbilities,CA247,'Master Sheet'!$AQ$9)= 0,"",INDEX(MysticAbilities,CA247,'Master Sheet'!$AQ$9)),"") ->  | BV247: =IFERROR(INDEX(MysticAbilities,MATCH(INDEX(DisplayList,(ROW(A247)-19)/3),MysticIndex,0),$BV$20),"0000") -> 0000 | BW247: =IF(BV247<>"0000",INDEX(MysticAbilities,CA247,BW$20),0) -> 0 | BX247: =IFERROR(IF(BV247<>"0000",INDEX(MysticAbilities,CA247,BX$20),TRUE),TRUE) -> TRUE | BY247: =IF(BV247<>"0000",INDEX(MysticAbilities,CA247,BY$20),0) -> 0 | BZ247: =IF(BV247<>"0000",INDEX(MysticAbilities,CA247,BZ$20),0) -> 0 | CA247: =IF(BV247<>"0000", MATCH(BV247,MysticIndex,0),"") ->  | CB247: =IF($BV247<>"0000",INDEX(MysticAbilities,$CA247,CB$20),FALSE) -> FALSE | CC247: =IF($BV247<>"0000",INDEX(MysticAbilities,$CA247,CC$20),FALSE) -> FALSE | CD247: =IF($BV247<>"0000",INDEX(MysticAbilities,$CA247,CD$20),TRUE) -> TRUE
CE248: =B247<>"" -> TRUE
B250: x | F250: =IF(BV250<>"0000",INDEX(MysticAbilities,CA250,'Master Sheet'!$D$9),"") ->  | W250: =IF(BV250="0000", "", IF(INDEX(MysticAbilities,CA250,5)=0, "-", INDEX(MysticAbilities,CA250,5))) ->  | Z250: =IF(BV250<>"0000",IF(INDEX(MysticAbilities,CA250,'Master Sheet'!$Z$9)= 0,"",INDEX(MysticAbilities,CA250,'Master Sheet'!$Z$9)),"") ->  | AJ250: =IF(BV250<>"0000",IF(INDEX(MysticAbilities,CA250,'Master Sheet'!$AJ$9)= 0,"",INDEX(MysticAbilities,CA250,'Master Sheet'!$AJ$9)),"") ->  | AQ250: =IF(BV250<>"0000",IF(INDEX(MysticAbilities,CA250,'Master Sheet'!$AQ$9)= 0,"",INDEX(MysticAbilities,CA250,'Master Sheet'!$AQ$9)),"") ->  | BV250: =IFERROR(INDEX(MysticAbilities,MATCH(INDEX(DisplayList,(ROW(A250)-19)/3),MysticIndex,0),$BV$20),"0000") -> 0000 | BW250: =IF(BV250<>"0000",INDEX(MysticAbilities,CA250,BW$20),0) -> 0 | BX250: =IFERROR(IF(BV250<>"0000",INDEX(MysticAbilities,CA250,BX$20),TRUE),TRUE) -> TRUE | BY250: =IF(BV250<>"0000",INDEX(MysticAbilities,CA250,BY$20),0) -> 0 | BZ250: =IF(BV250<>"0000",INDEX(MysticAbilities,CA250,BZ$20),0) -> 0 | CA250: =IF(BV250<>"0000", MATCH(BV250,MysticIndex,0),"") ->  | CB250: =IF($BV250<>"0000",INDEX(MysticAbilities,$CA250,CB$20),FALSE) -> FALSE | CC250: =IF($BV250<>"0000",INDEX(MysticAbilities,$CA250,CC$20),FALSE) -> FALSE | CD250: =IF($BV250<>"0000",INDEX(MysticAbilities,$CA250,CD$20),TRUE) -> TRUE
CE251: =B250<>"" -> TRUE
B253: x | F253: =IF(BV253<>"0000",INDEX(MysticAbilities,CA253,'Master Sheet'!$D$9),"") ->  | W253: =IF(BV253="0000", "", IF(INDEX(MysticAbilities,CA253,5)=0, "-", INDEX(MysticAbilities,CA253,5))) ->  | Z253: =IF(BV253<>"0000",IF(INDEX(MysticAbilities,CA253,'Master Sheet'!$Z$9)= 0,"",INDEX(MysticAbilities,CA253,'Master Sheet'!$Z$9)),"") ->  | AJ253: =IF(BV253<>"0000",IF(INDEX(MysticAbilities,CA253,'Master Sheet'!$AJ$9)= 0,"",INDEX(MysticAbilities,CA253,'Master Sheet'!$AJ$9)),"") ->  | AQ253: =IF(BV253<>"0000",IF(INDEX(MysticAbilities,CA253,'Master Sheet'!$AQ$9)= 0,"",INDEX(MysticAbilities,CA253,'Master Sheet'!$AQ$9)),"") ->  | BV253: =IFERROR(INDEX(MysticAbilities,MATCH(INDEX(DisplayList,(ROW(A253)-19)/3),MysticIndex,0),$BV$20),"0000") -> 0000 | BW253: =IF(BV253<>"0000",INDEX(MysticAbilities,CA253,BW$20),0) -> 0 | BX253: =IFERROR(IF(BV253<>"0000",INDEX(MysticAbilities,CA253,BX$20),TRUE),TRUE) -> TRUE | BY253: =IF(BV253<>"0000",INDEX(MysticAbilities,CA253,BY$20),0) -> 0 | BZ253: =IF(BV253<>"0000",INDEX(MysticAbilities,CA253,BZ$20),0) -> 0 | CA253: =IF(BV253<>"0000", MATCH(BV253,MysticIndex,0),"") ->  | CB253: =IF($BV253<>"0000",INDEX(MysticAbilities,$CA253,CB$20),FALSE) -> FALSE | CC253: =IF($BV253<>"0000",INDEX(MysticAbilities,$CA253,CC$20),FALSE) -> FALSE | CD253: =IF($BV253<>"0000",INDEX(MysticAbilities,$CA253,CD$20),TRUE) -> TRUE
CE254: =B253<>"" -> TRUE
B256: x | F256: =IF(BV256<>"0000",INDEX(MysticAbilities,CA256,'Master Sheet'!$D$9),"") ->  | W256: =IF(BV256="0000", "", IF(INDEX(MysticAbilities,CA256,5)=0, "-", INDEX(MysticAbilities,CA256,5))) ->  | Z256: =IF(BV256<>"0000",IF(INDEX(MysticAbilities,CA256,'Master Sheet'!$Z$9)= 0,"",INDEX(MysticAbilities,CA256,'Master Sheet'!$Z$9)),"") ->  | AJ256: =IF(BV256<>"0000",IF(INDEX(MysticAbilities,CA256,'Master Sheet'!$AJ$9)= 0,"",INDEX(MysticAbilities,CA256,'Master Sheet'!$AJ$9)),"") ->  | AQ256: =IF(BV256<>"0000",IF(INDEX(MysticAbilities,CA256,'Master Sheet'!$AQ$9)= 0,"",INDEX(MysticAbilities,CA256,'Master Sheet'!$AQ$9)),"") ->  | BV256: =IFERROR(INDEX(MysticAbilities,MATCH(INDEX(DisplayList,(ROW(A256)-19)/3),MysticIndex,0),$BV$20),"0000") -> 0000 | BW256: =IF(BV256<>"0000",INDEX(MysticAbilities,CA256,BW$20),0) -> 0 | BX256: =IFERROR(IF(BV256<>"0000",INDEX(MysticAbilities,CA256,BX$20),TRUE),TRUE) -> TRUE | BY256: =IF(BV256<>"0000",INDEX(MysticAbilities,CA256,BY$20),0) -> 0 | BZ256: =IF(BV256<>"0000",INDEX(MysticAbilities,CA256,BZ$20),0) -> 0 | CA256: =IF(BV256<>"0000", MATCH(BV256,MysticIndex,0),"") ->  | CB256: =IF($BV256<>"0000",INDEX(MysticAbilities,$CA256,CB$20),FALSE) -> FALSE | CC256: =IF($BV256<>"0000",INDEX(MysticAbilities,$CA256,CC$20),FALSE) -> FALSE | CD256: =IF($BV256<>"0000",INDEX(MysticAbilities,$CA256,CD$20),TRUE) -> TRUE
CE257: =B256<>"" -> TRUE
B259: x | H259: =IF(BV259<>"0000",INDEX(MysticAbilities,CA259,'Master Sheet'!$D$9),"") ->  | W259: =IF(BV259="0000", "", IF(INDEX(MysticAbilities,CA259,5)=0, "-", INDEX(MysticAbilities,CA259,5))) ->  | Z259: =IF(BV259<>"0000",IF(INDEX(MysticAbilities,CA259,'Master Sheet'!$Z$9)= 0,"",INDEX(MysticAbilities,CA259,'Master Sheet'!$Z$9)),"") ->  | AJ259: =IF(BV259<>"0000",IF(INDEX(MysticAbilities,CA259,'Master Sheet'!$AJ$9)= 0,"",INDEX(MysticAbilities,CA259,'Master Sheet'!$AJ$9)),"") ->  | AQ259: =IF(BV259<>"0000",IF(INDEX(MysticAbilities,CA259,'Master Sheet'!$AQ$9)= 0,"",INDEX(MysticAbilities,CA259,'Master Sheet'!$AQ$9)),"") ->  | BV259: =IFERROR(INDEX(MysticAbilities,MATCH(INDEX(DisplayList,(ROW(A259)-19)/3),MysticIndex,0),$BV$20),"0000") -> 0000 | BW259: =IF(BV259<>"0000",INDEX(MysticAbilities,CA259,BW$20),0) -> 0 | BX259: =IFERROR(IF(BV259<>"0000",INDEX(MysticAbilities,CA259,BX$20),TRUE),TRUE) -> TRUE | BY259: =IF(BV259<>"0000",INDEX(MysticAbilities,CA259,BY$20),0) -> 0 | BZ259: =IF(BV259<>"0000",INDEX(MysticAbilities,CA259,BZ$20),0) -> 0 | CA259: =IF(BV259<>"0000", MATCH(BV259,MysticIndex,0),"") ->  | CB259: =IF($BV259<>"0000",INDEX(MysticAbilities,$CA259,CB$20),FALSE) -> FALSE | CC259: =IF($BV259<>"0000",INDEX(MysticAbilities,$CA259,CC$20),FALSE) -> FALSE | CD259: =IF($BV259<>"0000",INDEX(MysticAbilities,$CA259,CD$20),TRUE) -> TRUE
CE260: =B259<>"" -> TRUE
B262: x | D262: =IF(BV262<>"0000",INDEX(MysticAbilities,CA262,'Master Sheet'!$D$9),"") ->  | W262: =IF(BV262="0000", "", IF(INDEX(MysticAbilities,CA262,5)=0, "-", INDEX(MysticAbilities,CA262,5))) ->  | Z262: =IF(BV262<>"0000",IF(INDEX(MysticAbilities,CA262,'Master Sheet'!$Z$9)= 0,"",INDEX(MysticAbilities,CA262,'Master Sheet'!$Z$9)),"") ->  | AJ262: =IF(BV262<>"0000",IF(INDEX(MysticAbilities,CA262,'Master Sheet'!$AJ$9)= 0,"",INDEX(MysticAbilities,CA262,'Master Sheet'!$AJ$9)),"") ->  | AQ262: =IF(BV262<>"0000",IF(INDEX(MysticAbilities,CA262,'Master Sheet'!$AQ$9)= 0,"",INDEX(MysticAbilities,CA262,'Master Sheet'!$AQ$9)),"") ->  | BV262: =IFERROR(INDEX(MysticAbilities,MATCH(INDEX(DisplayList,(ROW(A262)-19)/3),MysticIndex,0),$BV$20),"0000") -> 0000 | BW262: =IF(BV262<>"0000",INDEX(MysticAbilities,CA262,BW$20),0) -> 0 | BX262: =IFERROR(IF(BV262<>"0000",INDEX(MysticAbilities,CA262,BX$20),TRUE),TRUE) -> TRUE | BY262: =IF(BV262<>"0000",INDEX(MysticAbilities,CA262,BY$20),0) -> 0 | BZ262: =IF(BV262<>"0000",INDEX(MysticAbilities,CA262,BZ$20),0) -> 0 | CA262: =IF(BV262<>"0000", MATCH(BV262,MysticIndex,0),"") ->  | CB262: =IF($BV262<>"0000",INDEX(MysticAbilities,$CA262,CB$20),FALSE) -> FALSE | CC262: =IF($BV262<>"0000",INDEX(MysticAbilities,$CA262,CC$20),FALSE) -> FALSE | CD262: =IF($BV262<>"0000",INDEX(MysticAbilities,$CA262,CD$20),TRUE) -> TRUE
CE263: =B262<>"" -> TRUE
B265: x | D265: =IF(BV265<>"0000",INDEX(MysticAbilities,CA265,'Master Sheet'!$D$9),"") ->  | W265: =IF(BV265="0000", "", IF(INDEX(MysticAbilities,CA265,5)=0, "-", INDEX(MysticAbilities,CA265,5))) ->  | Z265: =IF(BV265<>"0000",IF(INDEX(MysticAbilities,CA265,'Master Sheet'!$Z$9)= 0,"",INDEX(MysticAbilities,CA265,'Master Sheet'!$Z$9)),"") ->  | AJ265: =IF(BV265<>"0000",IF(INDEX(MysticAbilities,CA265,'Master Sheet'!$AJ$9)= 0,"",INDEX(MysticAbilities,CA265,'Master Sheet'!$AJ$9)),"") ->  | AQ265: =IF(BV265<>"0000",IF(INDEX(MysticAbilities,CA265,'Master Sheet'!$AQ$9)= 0,"",INDEX(MysticAbilities,CA265,'Master Sheet'!$AQ$9)),"") ->  | BV265: =IFERROR(INDEX(MysticAbilities,MATCH(INDEX(DisplayList,(ROW(A265)-19)/3),MysticIndex,0),$BV$20),"0000") -> 0000 | BW265: =IF(BV265<>"0000",INDEX(MysticAbilities,CA265,BW$20),0) -> 0 | BX265: =IFERROR(IF(BV265<>"0000",INDEX(MysticAbilities,CA265,BX$20),TRUE),TRUE) -> TRUE | BY265: =IF(BV265<>"0000",INDEX(MysticAbilities,CA265,BY$20),0) -> 0 | BZ265: =IF(BV265<>"0000",INDEX(MysticAbilities,CA265,BZ$20),0) -> 0 | CA265: =IF(BV265<>"0000", MATCH(BV265,MysticIndex,0),"") ->  | CB265: =IF($BV265<>"0000",INDEX(MysticAbilities,$CA265,CB$20),FALSE) -> FALSE | CC265: =IF($BV265<>"0000",INDEX(MysticAbilities,$CA265,CC$20),FALSE) -> FALSE | CD265: =IF($BV265<>"0000",INDEX(MysticAbilities,$CA265,CD$20),TRUE) -> TRUE
CE266: =B265<>"" -> TRUE
B268: x | D268: =IF(BV268<>"0000",INDEX(MysticAbilities,CA268,'Master Sheet'!$D$9),"") ->  | W268: =IF(BV268="0000", "", IF(INDEX(MysticAbilities,CA268,5)=0, "-", INDEX(MysticAbilities,CA268,5))) ->  | Z268: =IF(BV268<>"0000",IF(INDEX(MysticAbilities,CA268,'Master Sheet'!$Z$9)= 0,"",INDEX(MysticAbilities,CA268,'Master Sheet'!$Z$9)),"") ->  | AJ268: =IF(BV268<>"0000",IF(INDEX(MysticAbilities,CA268,'Master Sheet'!$AJ$9)= 0,"",INDEX(MysticAbilities,CA268,'Master Sheet'!$AJ$9)),"") ->  | AQ268: =IF(BV268<>"0000",IF(INDEX(MysticAbilities,CA268,'Master Sheet'!$AQ$9)= 0,"",INDEX(MysticAbilities,CA268,'Master Sheet'!$AQ$9)),"") ->  | BV268: =IFERROR(INDEX(MysticAbilities,MATCH(INDEX(DisplayList,(ROW(A268)-19)/3),MysticIndex,0),$BV$20),"0000") -> 0000 | BW268: =IF(BV268<>"0000",INDEX(MysticAbilities,CA268,BW$20),0) -> 0 | BX268: =IFERROR(IF(BV268<>"0000",INDEX(MysticAbilities,CA268,BX$20),TRUE),TRUE) -> TRUE | BY268: =IF(BV268<>"0000",INDEX(MysticAbilities,CA268,BY$20),0) -> 0 | BZ268: =IF(BV268<>"0000",INDEX(MysticAbilities,CA268,BZ$20),0) -> 0 | CA268: =IF(BV268<>"0000", MATCH(BV268,MysticIndex,0),"") ->  | CB268: =IF($BV268<>"0000",INDEX(MysticAbilities,$CA268,CB$20),FALSE) -> FALSE | CC268: =IF($BV268<>"0000",INDEX(MysticAbilities,$CA268,CC$20),FALSE) -> FALSE | CD268: =IF($BV268<>"0000",INDEX(MysticAbilities,$CA268,CD$20),TRUE) -> TRUE
CE269: =B268<>"" -> TRUE
B271: x | F271: =IF(BV271<>"0000",INDEX(MysticAbilities,CA271,'Master Sheet'!$D$9),"") ->  | W271: =IF(BV271="0000", "", IF(INDEX(MysticAbilities,CA271,5)=0, "-", INDEX(MysticAbilities,CA271,5))) ->  | Z271: =IF(BV271<>"0000",IF(INDEX(MysticAbilities,CA271,'Master Sheet'!$Z$9)= 0,"",INDEX(MysticAbilities,CA271,'Master Sheet'!$Z$9)),"") ->  | AJ271: =IF(BV271<>"0000",IF(INDEX(MysticAbilities,CA271,'Master Sheet'!$AJ$9)= 0,"",INDEX(MysticAbilities,CA271,'Master Sheet'!$AJ$9)),"") ->  | AQ271: =IF(BV271<>"0000",IF(INDEX(MysticAbilities,CA271,'Master Sheet'!$AQ$9)= 0,"",INDEX(MysticAbilities,CA271,'Master Sheet'!$AQ$9)),"") ->  | BV271: =IFERROR(INDEX(MysticAbilities,MATCH(INDEX(DisplayList,(ROW(A271)-19)/3),MysticIndex,0),$BV$20),"0000") -> 0000 | BW271: =IF(BV271<>"0000",INDEX(MysticAbilities,CA271,BW$20),0) -> 0 | BX271: =IFERROR(IF(BV271<>"0000",INDEX(MysticAbilities,CA271,BX$20),TRUE),TRUE) -> TRUE | BY271: =IF(BV271<>"0000",INDEX(MysticAbilities,CA271,BY$20),0) -> 0 | BZ271: =IF(BV271<>"0000",INDEX(MysticAbilities,CA271,BZ$20),0) -> 0 | CA271: =IF(BV271<>"0000", MATCH(BV271,MysticIndex,0),"") ->  | CB271: =IF($BV271<>"0000",INDEX(MysticAbilities,$CA271,CB$20),FALSE) -> FALSE | CC271: =IF($BV271<>"0000",INDEX(MysticAbilities,$CA271,CC$20),FALSE) -> FALSE | CD271: =IF($BV271<>"0000",INDEX(MysticAbilities,$CA271,CD$20),TRUE) -> TRUE
CE272: =B271<>"" -> TRUE
D274: =IF(BV274<>"0000",INDEX(MysticAbilities,CA274,'Master Sheet'!$D$9),"") ->  | W274: =IF(BV274="0000", "", IF(INDEX(MysticAbilities,CA274,5)=0, "-", INDEX(MysticAbilities,CA274,5))) ->  | Z274: =IF(BV274<>"0000",IF(INDEX(MysticAbilities,CA274,'Master Sheet'!$Z$9)= 0,"",INDEX(MysticAbilities,CA274,'Master Sheet'!$Z$9)),"") ->  | AJ274: =IF(BV274<>"0000",IF(INDEX(MysticAbilities,CA274,'Master Sheet'!$AJ$9)= 0,"",INDEX(MysticAbilities,CA274,'Master Sheet'!$AJ$9)),"") ->  | AQ274: =IF(BV274<>"0000",IF(INDEX(MysticAbilities,CA274,'Master Sheet'!$AQ$9)= 0,"",INDEX(MysticAbilities,CA274,'Master Sheet'!$AQ$9)),"") ->  | BV274: =IFERROR(INDEX(MysticAbilities,MATCH(INDEX(DisplayList,(ROW(A274)-19)/3),MysticIndex,0),$BV$20),"0000") -> 0000 | BW274: =IF(BV274<>"0000",INDEX(MysticAbilities,CA274,BW$20),0) -> 0 | BX274: =IFERROR(IF(BV274<>"0000",INDEX(MysticAbilities,CA274,BX$20),TRUE),TRUE) -> TRUE | BY274: =IF(BV274<>"0000",INDEX(MysticAbilities,CA274,BY$20),0) -> 0 | BZ274: =IF(BV274<>"0000",INDEX(MysticAbilities,CA274,BZ$20),0) -> 0 | CA274: =IF(BV274<>"0000", MATCH(BV274,MysticIndex,0),"") ->  | CB274: =IF($BV274<>"0000",INDEX(MysticAbilities,$CA274,CB$20),FALSE) -> FALSE | CC274: =IF($BV274<>"0000",INDEX(MysticAbilities,$CA274,CC$20),FALSE) -> FALSE | CD274: =IF($BV274<>"0000",INDEX(MysticAbilities,$CA274,CD$20),TRUE) -> TRUE
CE275: =B274<>"" -> FALSE
D277: =IF(BV277<>"0000",INDEX(MysticAbilities,CA277,'Master Sheet'!$D$9),"") ->  | W277: =IF(BV277="0000", "", IF(INDEX(MysticAbilities,CA277,5)=0, "-", INDEX(MysticAbilities,CA277,5))) ->  | Z277: =IF(BV277<>"0000",IF(INDEX(MysticAbilities,CA277,'Master Sheet'!$Z$9)= 0,"",INDEX(MysticAbilities,CA277,'Master Sheet'!$Z$9)),"") ->  | AJ277: =IF(BV277<>"0000",IF(INDEX(MysticAbilities,CA277,'Master Sheet'!$AJ$9)= 0,"",INDEX(MysticAbilities,CA277,'Master Sheet'!$AJ$9)),"") ->  | AQ277: =IF(BV277<>"0000",IF(INDEX(MysticAbilities,CA277,'Master Sheet'!$AQ$9)= 0,"",INDEX(MysticAbilities,CA277,'Master Sheet'!$AQ$9)),"") ->  | BV277: =IFERROR(INDEX(MysticAbilities,MATCH(INDEX(DisplayList,(ROW(A277)-19)/3),MysticIndex,0),$BV$20),"0000") -> 0000 | BW277: =IF(BV277<>"0000",INDEX(MysticAbilities,CA277,BW$20),0) -> 0 | BX277: =IFERROR(IF(BV277<>"0000",INDEX(MysticAbilities,CA277,BX$20),TRUE),TRUE) -> TRUE | BY277: =IF(BV277<>"0000",INDEX(MysticAbilities,CA277,BY$20),0) -> 0 | BZ277: =IF(BV277<>"0000",INDEX(MysticAbilities,CA277,BZ$20),0) -> 0 | CA277: =IF(BV277<>"0000", MATCH(BV277,MysticIndex,0),"") ->  | CB277: =IF($BV277<>"0000",INDEX(MysticAbilities,$CA277,CB$20),FALSE) -> FALSE | CC277: =IF($BV277<>"0000",INDEX(MysticAbilities,$CA277,CC$20),FALSE) -> FALSE | CD277: =IF($BV277<>"0000",INDEX(MysticAbilities,$CA277,CD$20),TRUE) -> TRUE
CE278: =B277<>"" -> FALSE
D280: =IF(BV280<>"0000",INDEX(MysticAbilities,CA280,'Master Sheet'!$D$9),"") ->  | W280: =IF(BV280="0000", "", IF(INDEX(MysticAbilities,CA280,5)=0, "-", INDEX(MysticAbilities,CA280,5))) ->  | Z280: =IF(BV280<>"0000",IF(INDEX(MysticAbilities,CA280,'Master Sheet'!$Z$9)= 0,"",INDEX(MysticAbilities,CA280,'Master Sheet'!$Z$9)),"") ->  | AJ280: =IF(BV280<>"0000",IF(INDEX(MysticAbilities,CA280,'Master Sheet'!$AJ$9)= 0,"",INDEX(MysticAbilities,CA280,'Master Sheet'!$AJ$9)),"") ->  | AQ280: =IF(BV280<>"0000",IF(INDEX(MysticAbilities,CA280,'Master Sheet'!$AQ$9)= 0,"",INDEX(MysticAbilities,CA280,'Master Sheet'!$AQ$9)),"") ->  | BV280: =IFERROR(INDEX(MysticAbilities,MATCH(INDEX(DisplayList,(ROW(A280)-19)/3),MysticIndex,0),$BV$20),"0000") -> 0000 | BW280: =IF(BV280<>"0000",INDEX(MysticAbilities,CA280,BW$20),0) -> 0 | BX280: =IFERROR(IF(BV280<>"0000",INDEX(MysticAbilities,CA280,BX$20),TRUE),TRUE) -> TRUE | BY280: =IF(BV280<>"0000",INDEX(MysticAbilities,CA280,BY$20),0) -> 0 | BZ280: =IF(BV280<>"0000",INDEX(MysticAbilities,CA280,BZ$20),0) -> 0 | CA280: =IF(BV280<>"0000", MATCH(BV280,MysticIndex,0),"") ->  | CB280: =IF($BV280<>"0000",INDEX(MysticAbilities,$CA280,CB$20),FALSE) -> FALSE | CC280: =IF($BV280<>"0000",INDEX(MysticAbilities,$CA280,CC$20),FALSE) -> FALSE | CD280: =IF($BV280<>"0000",INDEX(MysticAbilities,$CA280,CD$20),TRUE) -> TRUE
CE281: =B280<>"" -> FALSE
D283: =IF(BV283<>"0000",INDEX(MysticAbilities,CA283,'Master Sheet'!$D$9),"") ->  | W283: =IF(BV283="0000", "", IF(INDEX(MysticAbilities,CA283,5)=0, "-", INDEX(MysticAbilities,CA283,5))) ->  | Z283: =IF(BV283<>"0000",IF(INDEX(MysticAbilities,CA283,'Master Sheet'!$Z$9)= 0,"",INDEX(MysticAbilities,CA283,'Master Sheet'!$Z$9)),"") ->  | AJ283: =IF(BV283<>"0000",IF(INDEX(MysticAbilities,CA283,'Master Sheet'!$AJ$9)= 0,"",INDEX(MysticAbilities,CA283,'Master Sheet'!$AJ$9)),"") ->  | AQ283: =IF(BV283<>"0000",IF(INDEX(MysticAbilities,CA283,'Master Sheet'!$AQ$9)= 0,"",INDEX(MysticAbilities,CA283,'Master Sheet'!$AQ$9)),"") ->  | BV283: =IFERROR(INDEX(MysticAbilities,MATCH(INDEX(DisplayList,(ROW(A283)-19)/3),MysticIndex,0),$BV$20),"0000") -> 0000 | BW283: =IF(BV283<>"0000",INDEX(MysticAbilities,CA283,BW$20),0) -> 0 | BX283: =IFERROR(IF(BV283<>"0000",INDEX(MysticAbilities,CA283,BX$20),TRUE),TRUE) -> TRUE | BY283: =IF(BV283<>"0000",INDEX(MysticAbilities,CA283,BY$20),0) -> 0 | BZ283: =IF(BV283<>"0000",INDEX(MysticAbilities,CA283,BZ$20),0) -> 0 | CA283: =IF(BV283<>"0000", MATCH(BV283,MysticIndex,0),"") ->  | CB283: =IF($BV283<>"0000",INDEX(MysticAbilities,$CA283,CB$20),FALSE) -> FALSE | CC283: =IF($BV283<>"0000",INDEX(MysticAbilities,$CA283,CC$20),FALSE) -> FALSE | CD283: =IF($BV283<>"0000",INDEX(MysticAbilities,$CA283,CD$20),TRUE) -> TRUE
CE284: =B283<>"" -> FALSE
D286: =IF(BV286<>"0000",INDEX(MysticAbilities,CA286,'Master Sheet'!$D$9),"") ->  | W286: =IF(BV286="0000", "", IF(INDEX(MysticAbilities,CA286,5)=0, "-", INDEX(MysticAbilities,CA286,5))) ->  | Z286: =IF(BV286<>"0000",IF(INDEX(MysticAbilities,CA286,'Master Sheet'!$Z$9)= 0,"",INDEX(MysticAbilities,CA286,'Master Sheet'!$Z$9)),"") ->  | AJ286: =IF(BV286<>"0000",IF(INDEX(MysticAbilities,CA286,'Master Sheet'!$AJ$9)= 0,"",INDEX(MysticAbilities,CA286,'Master Sheet'!$AJ$9)),"") ->  | AQ286: =IF(BV286<>"0000",IF(INDEX(MysticAbilities,CA286,'Master Sheet'!$AQ$9)= 0,"",INDEX(MysticAbilities,CA286,'Master Sheet'!$AQ$9)),"") ->  | BV286: =IFERROR(INDEX(MysticAbilities,MATCH(INDEX(DisplayList,(ROW(A286)-19)/3),MysticIndex,0),$BV$20),"0000") -> 0000 | BW286: =IF(BV286<>"0000",INDEX(MysticAbilities,CA286,BW$20),0) -> 0 | BX286: =IFERROR(IF(BV286<>"0000",INDEX(MysticAbilities,CA286,BX$20),TRUE),TRUE) -> TRUE | BY286: =IF(BV286<>"0000",INDEX(MysticAbilities,CA286,BY$20),0) -> 0 | BZ286: =IF(BV286<>"0000",INDEX(MysticAbilities,CA286,BZ$20),0) -> 0 | CA286: =IF(BV286<>"0000", MATCH(BV286,MysticIndex,0),"") ->  | CB286: =IF($BV286<>"0000",INDEX(MysticAbilities,$CA286,CB$20),FALSE) -> FALSE | CC286: =IF($BV286<>"0000",INDEX(MysticAbilities,$CA286,CC$20),FALSE) -> FALSE | CD286: =IF($BV286<>"0000",INDEX(MysticAbilities,$CA286,CD$20),TRUE) -> TRUE
CE287: =B286<>"" -> FALSE
D289: =IF(BV289<>"0000",INDEX(MysticAbilities,CA289,'Master Sheet'!$D$9),"") ->  | W289: =IF(BV289="0000", "", IF(INDEX(MysticAbilities,CA289,5)=0, "-", INDEX(MysticAbilities,CA289,5))) ->  | Z289: =IF(BV289<>"0000",IF(INDEX(MysticAbilities,CA289,'Master Sheet'!$Z$9)= 0,"",INDEX(MysticAbilities,CA289,'Master Sheet'!$Z$9)),"") ->  | AJ289: =IF(BV289<>"0000",IF(INDEX(MysticAbilities,CA289,'Master Sheet'!$AJ$9)= 0,"",INDEX(MysticAbilities,CA289,'Master Sheet'!$AJ$9)),"") ->  | AQ289: =IF(BV289<>"0000",IF(INDEX(MysticAbilities,CA289,'Master Sheet'!$AQ$9)= 0,"",INDEX(MysticAbilities,CA289,'Master Sheet'!$AQ$9)),"") ->  | BV289: =IFERROR(INDEX(MysticAbilities,MATCH(INDEX(DisplayList,(ROW(A289)-19)/3),MysticIndex,0),$BV$20),"0000") -> 0000 | BW289: =IF(BV289<>"0000",INDEX(MysticAbilities,CA289,BW$20),0) -> 0 | BX289: =IFERROR(IF(BV289<>"0000",INDEX(MysticAbilities,CA289,BX$20),TRUE),TRUE) -> TRUE | BY289: =IF(BV289<>"0000",INDEX(MysticAbilities,CA289,BY$20),0) -> 0 | BZ289: =IF(BV289<>"0000",INDEX(MysticAbilities,CA289,BZ$20),0) -> 0 | CA289: =IF(BV289<>"0000", MATCH(BV289,MysticIndex,0),"") ->  | CB289: =IF($BV289<>"0000",INDEX(MysticAbilities,$CA289,CB$20),FALSE) -> FALSE | CC289: =IF($BV289<>"0000",INDEX(MysticAbilities,$CA289,CC$20),FALSE) -> FALSE | CD289: =IF($BV289<>"0000",INDEX(MysticAbilities,$CA289,CD$20),TRUE) -> TRUE
CE290: =B289<>"" -> FALSE
D292: =IF(BV292<>"0000",INDEX(MysticAbilities,CA292,'Master Sheet'!$D$9),"") ->  | W292: =IF(BV292="0000", "", IF(INDEX(MysticAbilities,CA292,5)=0, "-", INDEX(MysticAbilities,CA292,5))) ->  | Z292: =IF(BV292<>"0000",IF(INDEX(MysticAbilities,CA292,'Master Sheet'!$Z$9)= 0,"",INDEX(MysticAbilities,CA292,'Master Sheet'!$Z$9)),"") ->  | AJ292: =IF(BV292<>"0000",IF(INDEX(MysticAbilities,CA292,'Master Sheet'!$AJ$9)= 0,"",INDEX(MysticAbilities,CA292,'Master Sheet'!$AJ$9)),"") ->  | AQ292: =IF(BV292<>"0000",IF(INDEX(MysticAbilities,CA292,'Master Sheet'!$AQ$9)= 0,"",INDEX(MysticAbilities,CA292,'Master Sheet'!$AQ$9)),"") ->  | BV292: =IFERROR(INDEX(MysticAbilities,MATCH(INDEX(DisplayList,(ROW(A292)-19)/3),MysticIndex,0),$BV$20),"0000") -> 0000 | BW292: =IF(BV292<>"0000",INDEX(MysticAbilities,CA292,BW$20),0) -> 0 | BX292: =IFERROR(IF(BV292<>"0000",INDEX(MysticAbilities,CA292,BX$20),TRUE),TRUE) -> TRUE | BY292: =IF(BV292<>"0000",INDEX(MysticAbilities,CA292,BY$20),0) -> 0 | BZ292: =IF(BV292<>"0000",INDEX(MysticAbilities,CA292,BZ$20),0) -> 0 | CA292: =IF(BV292<>"0000", MATCH(BV292,MysticIndex,0),"") ->  | CB292: =IF($BV292<>"0000",INDEX(MysticAbilities,$CA292,CB$20),FALSE) -> FALSE | CC292: =IF($BV292<>"0000",INDEX(MysticAbilities,$CA292,CC$20),FALSE) -> FALSE | CD292: =IF($BV292<>"0000",INDEX(MysticAbilities,$CA292,CD$20),TRUE) -> TRUE
CE293: =B292<>"" -> FALSE
D295: =IF(BV295<>"0000",INDEX(MysticAbilities,CA295,'Master Sheet'!$D$9),"") ->  | W295: =IF(BV295="0000", "", IF(INDEX(MysticAbilities,CA295,5)=0, "-", INDEX(MysticAbilities,CA295,5))) ->  | Z295: =IF(BV295<>"0000",IF(INDEX(MysticAbilities,CA295,'Master Sheet'!$Z$9)= 0,"",INDEX(MysticAbilities,CA295,'Master Sheet'!$Z$9)),"") ->  | AJ295: =IF(BV295<>"0000",IF(INDEX(MysticAbilities,CA295,'Master Sheet'!$AJ$9)= 0,"",INDEX(MysticAbilities,CA295,'Master Sheet'!$AJ$9)),"") ->  | AQ295: =IF(BV295<>"0000",IF(INDEX(MysticAbilities,CA295,'Master Sheet'!$AQ$9)= 0,"",INDEX(MysticAbilities,CA295,'Master Sheet'!$AQ$9)),"") ->  | BV295: =IFERROR(INDEX(MysticAbilities,MATCH(INDEX(DisplayList,(ROW(A295)-19)/3),MysticIndex,0),$BV$20),"0000") -> 0000 | BW295: =IF(BV295<>"0000",INDEX(MysticAbilities,CA295,BW$20),0) -> 0 | BX295: =IFERROR(IF(BV295<>"0000",INDEX(MysticAbilities,CA295,BX$20),TRUE),TRUE) -> TRUE | BY295: =IF(BV295<>"0000",INDEX(MysticAbilities,CA295,BY$20),0) -> 0 | BZ295: =IF(BV295<>"0000",INDEX(MysticAbilities,CA295,BZ$20),0) -> 0 | CA295: =IF(BV295<>"0000", MATCH(BV295,MysticIndex,0),"") ->  | CB295: =IF($BV295<>"0000",INDEX(MysticAbilities,$CA295,CB$20),FALSE) -> FALSE | CC295: =IF($BV295<>"0000",INDEX(MysticAbilities,$CA295,CC$20),FALSE) -> FALSE | CD295: =IF($BV295<>"0000",INDEX(MysticAbilities,$CA295,CD$20),TRUE) -> TRUE
CE296: =B295<>"" -> FALSE
D298: =IF(BV298<>"0000",INDEX(MysticAbilities,CA298,'Master Sheet'!$D$9),"") ->  | W298: =IF(BV298="0000", "", IF(INDEX(MysticAbilities,CA298,5)=0, "-", INDEX(MysticAbilities,CA298,5))) ->  | Z298: =IF(BV298<>"0000",IF(INDEX(MysticAbilities,CA298,'Master Sheet'!$Z$9)= 0,"",INDEX(MysticAbilities,CA298,'Master Sheet'!$Z$9)),"") ->  | AJ298: =IF(BV298<>"0000",IF(INDEX(MysticAbilities,CA298,'Master Sheet'!$AJ$9)= 0,"",INDEX(MysticAbilities,CA298,'Master Sheet'!$AJ$9)),"") ->  | AQ298: =IF(BV298<>"0000",IF(INDEX(MysticAbilities,CA298,'Master Sheet'!$AQ$9)= 0,"",INDEX(MysticAbilities,CA298,'Master Sheet'!$AQ$9)),"") ->  | BV298: =IFERROR(INDEX(MysticAbilities,MATCH(INDEX(DisplayList,(ROW(A298)-19)/3),MysticIndex,0),$BV$20),"0000") -> 0000 | BW298: =IF(BV298<>"0000",INDEX(MysticAbilities,CA298,BW$20),0) -> 0 | BX298: =IFERROR(IF(BV298<>"0000",INDEX(MysticAbilities,CA298,BX$20),TRUE),TRUE) -> TRUE | BY298: =IF(BV298<>"0000",INDEX(MysticAbilities,CA298,BY$20),0) -> 0 | BZ298: =IF(BV298<>"0000",INDEX(MysticAbilities,CA298,BZ$20),0) -> 0 | CA298: =IF(BV298<>"0000", MATCH(BV298,MysticIndex,0),"") ->  | CB298: =IF($BV298<>"0000",INDEX(MysticAbilities,$CA298,CB$20),FALSE) -> FALSE | CC298: =IF($BV298<>"0000",INDEX(MysticAbilities,$CA298,CC$20),FALSE) -> FALSE | CD298: =IF($BV298<>"0000",INDEX(MysticAbilities,$CA298,CD$20),TRUE) -> TRUE
CE299: =B298<>"" -> FALSE
D301: =IF(BV301<>"0000",INDEX(MysticAbilities,CA301,'Master Sheet'!$D$9),"") ->  | W301: =IF(BV301="0000", "", IF(INDEX(MysticAbilities,CA301,5)=0, "-", INDEX(MysticAbilities,CA301,5))) ->  | Z301: =IF(BV301<>"0000",IF(INDEX(MysticAbilities,CA301,'Master Sheet'!$Z$9)= 0,"",INDEX(MysticAbilities,CA301,'Master Sheet'!$Z$9)),"") ->  | AJ301: =IF(BV301<>"0000",IF(INDEX(MysticAbilities,CA301,'Master Sheet'!$AJ$9)= 0,"",INDEX(MysticAbilities,CA301,'Master Sheet'!$AJ$9)),"") ->  | AQ301: =IF(BV301<>"0000",IF(INDEX(MysticAbilities,CA301,'Master Sheet'!$AQ$9)= 0,"",INDEX(MysticAbilities,CA301,'Master Sheet'!$AQ$9)),"") ->  | BV301: =IFERROR(INDEX(MysticAbilities,MATCH(INDEX(DisplayList,(ROW(A301)-19)/3),MysticIndex,0),$BV$20),"0000") -> 0000 | BW301: =IF(BV301<>"0000",INDEX(MysticAbilities,CA301,BW$20),0) -> 0 | BX301: =IFERROR(IF(BV301<>"0000",INDEX(MysticAbilities,CA301,BX$20),TRUE),TRUE) -> TRUE | BY301: =IF(BV301<>"0000",INDEX(MysticAbilities,CA301,BY$20),0) -> 0 | BZ301: =IF(BV301<>"0000",INDEX(MysticAbilities,CA301,BZ$20),0) -> 0 | CA301: =IF(BV301<>"0000", MATCH(BV301,MysticIndex,0),"") ->  | CB301: =IF($BV301<>"0000",INDEX(MysticAbilities,$CA301,CB$20),FALSE) -> FALSE | CC301: =IF($BV301<>"0000",INDEX(MysticAbilities,$CA301,CC$20),FALSE) -> FALSE | CD301: =IF($BV301<>"0000",INDEX(MysticAbilities,$CA301,CD$20),TRUE) -> TRUE
CE302: =B301<>"" -> FALSE
D304: =IF(BV304<>"0000",INDEX(MysticAbilities,CA304,'Master Sheet'!$D$9),"") ->  | W304: =IF(BV304="0000", "", IF(INDEX(MysticAbilities,CA304,5)=0, "-", INDEX(MysticAbilities,CA304,5))) ->  | Z304: =IF(BV304<>"0000",IF(INDEX(MysticAbilities,CA304,'Master Sheet'!$Z$9)= 0,"",INDEX(MysticAbilities,CA304,'Master Sheet'!$Z$9)),"") ->  | AJ304: =IF(BV304<>"0000",IF(INDEX(MysticAbilities,CA304,'Master Sheet'!$AJ$9)= 0,"",INDEX(MysticAbilities,CA304,'Master Sheet'!$AJ$9)),"") ->  | AQ304: =IF(BV304<>"0000",IF(INDEX(MysticAbilities,CA304,'Master Sheet'!$AQ$9)= 0,"",INDEX(MysticAbilities,CA304,'Master Sheet'!$AQ$9)),"") ->  | BV304: =IFERROR(INDEX(MysticAbilities,MATCH(INDEX(DisplayList,(ROW(A304)-19)/3),MysticIndex,0),$BV$20),"0000") -> 0000 | BW304: =IF(BV304<>"0000",INDEX(MysticAbilities,CA304,BW$20),0) -> 0 | BX304: =IFERROR(IF(BV304<>"0000",INDEX(MysticAbilities,CA304,BX$20),TRUE),TRUE) -> TRUE | BY304: =IF(BV304<>"0000",INDEX(MysticAbilities,CA304,BY$20),0) -> 0 | BZ304: =IF(BV304<>"0000",INDEX(MysticAbilities,CA304,BZ$20),0) -> 0 | CA304: =IF(BV304<>"0000", MATCH(BV304,MysticIndex,0),"") ->  | CB304: =IF($BV304<>"0000",INDEX(MysticAbilities,$CA304,CB$20),FALSE) -> FALSE | CC304: =IF($BV304<>"0000",INDEX(MysticAbilities,$CA304,CC$20),FALSE) -> FALSE | CD304: =IF($BV304<>"0000",INDEX(MysticAbilities,$CA304,CD$20),TRUE) -> TRUE
CE305: =B304<>"" -> FALSE
D307: =IF(BV307<>"0000",INDEX(MysticAbilities,CA307,'Master Sheet'!$D$9),"") ->  | W307: =IF(BV307="0000", "", IF(INDEX(MysticAbilities,CA307,5)=0, "-", INDEX(MysticAbilities,CA307,5))) ->  | Z307: =IF(BV307<>"0000",IF(INDEX(MysticAbilities,CA307,'Master Sheet'!$Z$9)= 0,"",INDEX(MysticAbilities,CA307,'Master Sheet'!$Z$9)),"") ->  | AJ307: =IF(BV307<>"0000",IF(INDEX(MysticAbilities,CA307,'Master Sheet'!$AJ$9)= 0,"",INDEX(MysticAbilities,CA307,'Master Sheet'!$AJ$9)),"") ->  | AQ307: =IF(BV307<>"0000",IF(INDEX(MysticAbilities,CA307,'Master Sheet'!$AQ$9)= 0,"",INDEX(MysticAbilities,CA307,'Master Sheet'!$AQ$9)),"") ->  | BV307: =IFERROR(INDEX(MysticAbilities,MATCH(INDEX(DisplayList,(ROW(A307)-19)/3),MysticIndex,0),$BV$20),"0000") -> 0000 | BW307: =IF(BV307<>"0000",INDEX(MysticAbilities,CA307,BW$20),0) -> 0 | BX307: =IFERROR(IF(BV307<>"0000",INDEX(MysticAbilities,CA307,BX$20),TRUE),TRUE) -> TRUE | BY307: =IF(BV307<>"0000",INDEX(MysticAbilities,CA307,BY$20),0) -> 0 | BZ307: =IF(BV307<>"0000",INDEX(MysticAbilities,CA307,BZ$20),0) -> 0 | CA307: =IF(BV307<>"0000", MATCH(BV307,MysticIndex,0),"") ->  | CB307: =IF($BV307<>"0000",INDEX(MysticAbilities,$CA307,CB$20),FALSE) -> FALSE | CC307: =IF($BV307<>"0000",INDEX(MysticAbilities,$CA307,CC$20),FALSE) -> FALSE | CD307: =IF($BV307<>"0000",INDEX(MysticAbilities,$CA307,CD$20),TRUE) -> TRUE
... 11 more rows

Sheet Earth Crusher (hidden)
B2: =INDEX(MysticArmaments,BW3) -> Earth Crusher | U2: =INDEX(MysticElements,BW3) -> Earth | AD2: =BZ4 -> Neutral | AQ2: =CC2 -> 1 | AZ2: EGO | BF2: HARMONY | BV2: RowStart: | BW2: 17 | BY2: Weapon Name | BZ2: =INDEX(MysticArmaments,BW3) -> Earth Crusher | CB2: Level | CC2: =IF(INDEX(SpiritLevels,BW3)=0, "", INDEX(SpiritLevels,BW3)) -> 1 | CE2: Spirit Charges | CF2: =IF(CC2=0,"",2+CC2*2+IF($B$5=INDEX(SpiritPreferredForms,BW3),2)) -> 4
B3: Weapon Name | U3: Element | AD3: Alignment | AQ3: Spirit Level | AZ3: =BZ5 -> 21 | BF3: =BZ6 ->  | BV3: ArmID | BW3: 3 | BY3: Element | BZ3: =INDEX(MysticElements,BW3) -> Earth | CB3: Proficiency | CC3: =IF(INDEX(SpiritLevels,$BW$3)=0,"",ROUNDDOWN((INDEX(SpiritLevels,$BW$3)+7) / 4, 0)) -> +2 | CE3: Spirit Attack | CF3: =INDEX(SpiritAttacks,BW3) -> +2
BY4: Alignment | BZ4: =INDEX(MysticAlignments,BW3) -> Neutral | CB4: Enchantment | CC4: =IF(CC2="","","+"&FLOOR(MAX(0, (CC2 + 2) /5),1)) -> +0 | CE4: Save DC | CF4: =INDEX(SpiritSaveDCs,BW3) -> 13
U5: =CC5 -> 1 B | AD5: =CC3 -> +2 | AL5: =CC4 -> +0 | AV5: =CF2 -> 4 | BF5: =CF3 -> +2 | BO5: =CF4 -> 13 | BY5: Ego | BZ5: =INDEX(SpiritEgos,BW3) -> 21 | CB5: Damage | CC5: =INDEX(WeaponTable,INDEX(SpiritFormIDs,$BW$3),3) & " " & INDEX(WeaponTable,INDEX(SpiritFormIDs,$BW$3),2) -> 1 B | CE5: Spirit Name | CF5: =INDEX(Spirits,BW3,1) -> Gaia, Earthly Mother
B6: Weapon Form | U6: Damage | AD6: Proficiency | AL6: Enchantment | AV6: Spirit Charges | BF6: Spirit Attack | BO6: Save DC | BY6: Harmony | BZ6: =9-(ABS(INDEX(AlignMetrix,MATCH(BZ4,Alignments,0),2)-INDEX(AlignMetrix,CharAlignID,2))*2)-(ABS(INDEX(AlignMetrix,MATCH(BZ4,Alignments,0),3)-INDEX(AlignMetrix,CharAlignID,3))*2) ->  | CB6: AP Remaining | CC6: =INDEX(AbilityMax,BW3)-INDEX(SpiritAbilityCounts,BW3) -> 1 | CE6: Spirit Desc | CF6: =INDEX(Spirits,BW3,2) -> Gaia possesses a kind smile and a noble heart. She is often perceived as a motherly figure – slightly older in appearance than the other spirits – with a stretch of brownish hair speckled with strands of silvery gray and golden blonde. Gaia, though kind, is very passive. She accepts things as they come. A being of earthly energy, she understands that in the grand scheme of things, even the largest of changes are often insignificant. One’s choice to act or not is meaningless. Though her heart can sometimes be difficult to read because of this outlook, she inadvertently tends to grow attached to her wielders. Their loss is one change she has trouble accepting.
B8: Spirit EXP: | L8: 0 | T8: Harmony Shift: | AD8: 0 | AM8: Bonus Abilities: | AW8: 0 | BE8: AP Remaining: | BO8: =CC6 -> 1
B11: Spirit: | X11: =CF5 -> Gaia, Earthly Mother
B12: =CF6 -> Gaia possesses a kind smile and a noble heart. She is often perceived as a motherly figure – slightly older in appearance than the other spirits – with a stretch of brownish hair speckled with strands of silvery gray and golden blonde. Gaia, though kind, is very passive. She accepts things as they come. A being of earthly energy, she understands that in the grand scheme of things, even the largest of changes are often insignificant. One’s choice to act or not is meaningless. Though her heart can sometimes be difficult to read because of this outlook, she inadvertently tends to grow attached to her wielders. Their loss is one change she has trouble accepting. | BV12: 0 | BW12: =IFERROR(INDEX(Spirits,BW3,3),22) -> 98 | BX12: FALSE | BY12: 0
D14: 4 | W14: 5 | Z14: 20 | AJ14: 21 | AQ14: 19 | BV14: MysticIndex | BW14: Height | BX14: Border | BY14: Depth | BZ14: Fill | CA14: RowIndex | CB14: Visible | CC14: Selectable | CD14: chkboc
B15: SPECIAL ABILITIES AND TECHNIQUES | BV15: 1 | BW15: 22 | BX15: 23 | BY15: 24 | BZ15: 25 | CB15: 26 | CC15: 27 | CD15: 31
B16: √ | D16: Ability Name | W16: Lv | Z16: Must Know | AJ16: Misc. | AQ16: Description
B17: x | D17: =IF(BV17<>"0000",INDEX(MysticAbilities,CA17,'Master Sheet'!$D$9),"") -> Stone Cunning | W17: =IF(BV17="0000", "", IF(INDEX(MysticAbilities,CA17,$W$14)=0, "-", INDEX(MysticAbilities,CA17,$W$14))) -> - | Z17: =IF(BV17<>"0000",IF(INDEX(MysticAbilities,CA17,$Z$14)= 0,"",INDEX(MysticAbilities,CA17,$Z$14)),"") ->  | AJ17: =IF(BV17<>"0000",IF(INDEX(MysticAbilities,CA17,$AJ$14)= 0,"",INDEX(MysticAbilities,CA17,$AJ$14)),"") ->  | AQ17: =IF(BV17<>"0000",IF(INDEX(MysticAbilities,CA17,$AQ$14)= 0,"",INDEX(MysticAbilities,CA17,$AQ$14)),"") -> While bonded with the Earth Crusher the weapon grants a natural knowledge of earth and stonework. The wielder has Advantage on Investigation Rolls to find secret or hidden doors. Additionally, they can easily identify the type of stone something is made of. They can also always tell how far below the surface they are at any time. | BV17: =IF(_xlfn.IFNA(MATCH(TEXT($BW$3,"00")&TEXT(((ROW()+3)-$BW$2) / 3,"00"),MysticIndex,0),0)=0,"0000",TEXT($BW$3,"00")&TEXT(((ROW()+3)-$BW$2) / 3,"00")) -> 0301 | BW17: =IF(BV17<>"0000",INDEX(MysticAbilities,CA17,BW$15),0) -> 90 | BX17: =IFERROR(IF(BV17<>"0000",INDEX(MysticAbilities,CA17,BX$15),TRUE),TRUE) -> TRUE | BY17: =IF(BV17<>"0000",INDEX(MysticAbilities,CA17,BY$15),0) -> 0 | BZ17: =IF($BV17<>"0000",INDEX(MysticAbilities,CA17,BZ$15),0) -> 0 | CA17: =IF(BV17<>"0000", MATCH(BV17,MysticIndex,0),"") -> 89 | CB17: =IF($BV17<>"0000",INDEX(MysticAbilities,$CA17,CB$15),FALSE) -> TRUE | CC17: =IF($BV17<>"0000",INDEX(MysticAbilities,$CA17,CC$15),FALSE) -> TRUE | CD17: =IF($BV17<>"0000",INDEX(MysticAbilities,$CA17,CD$15),TRUE) -> TRUE
CE18: =B17<>"" -> TRUE
F20: =IF(BV20<>"0000",INDEX(MysticAbilities,CA20,'Master Sheet'!$D$9),"") -> See Secret Doors | W20: =IF(BV20="0000", "", IF(INDEX(MysticAbilities,CA20,$W$14)=0, "-", INDEX(MysticAbilities,CA20,$W$14))) -> 15 | Z20: =IF(BV20<>"0000",IF(INDEX(MysticAbilities,CA20,$Z$14)= 0,"",INDEX(MysticAbilities,CA20,$Z$14)),"") ->  | AJ20: =IF(BV20<>"0000",IF(INDEX(MysticAbilities,CA20,$AJ$14)= 0,"",INDEX(MysticAbilities,CA20,$AJ$14)),"") -> WIS 15+; | AQ20: =IF(BV20<>"0000",IF(INDEX(MysticAbilities,CA20,$AQ$14)= 0,"",INDEX(MysticAbilities,CA20,$AQ$14)),"") -> This ability allows the wielder of the Earth Crusher to percieve Secret Doors as if they were normal doors. | BV20: =IF(_xlfn.IFNA(MATCH(TEXT($BW$3,"00")&TEXT(((ROW()+3)-$BW$2) / 3,"00"),MysticIndex,0),0)=0,"0000",TEXT($BW$3,"00")&TEXT(((ROW()+3)-$BW$2) / 3,"00")) -> 0302 | BW20: =IF(BV20<>"0000",INDEX(MysticAbilities,CA20,BW$15),0) -> 30 | BX20: =IFERROR(IF(BV20<>"0000",INDEX(MysticAbilities,CA20,BX$15),TRUE),TRUE) -> FALSE | BY20: =IF(BV20<>"0000",INDEX(MysticAbilities,CA20,BY$15),0) -> 1 | BZ20: =IF(BV20<>"0000",INDEX(MysticAbilities,CA20,BZ$15),0) -> 12 | CA20: =IF(BV20<>"0000", MATCH(BV20,MysticIndex,0),"") -> 90 | CB20: =IF($BV20<>"0000",INDEX(MysticAbilities,$CA20,CB$15),FALSE) -> TRUE | CC20: =IF($BV20<>"0000",INDEX(MysticAbilities,$CA20,CC$15),FALSE) -> FALSE | CD20: =IF($BV20<>"0000",INDEX(MysticAbilities,$CA20,CD$15),TRUE) -> TRUE
CE21: =B20<>"" -> FALSE
